Workbook

Sheet Previsão N+1 (hidden)
D1: Anual | E1: mensal | F1: 6 meses
C2: Variação de mercado TE | D2: 0 | E2: =(1+D2)^(1/12)-1 -> 0 | F2: =(1+E2)^6-1 -> 0
C3: Variação de mercado TUSD | D3: 0 | E3: =(1+D3)^(1/12)-1 -> 0 | F3: =(1+E3)^6-1 -> 0
C4: Variação mercado GD II e GD-III | D4: 0.2 | E4: 0.0153094705 | F4: 0.09544511501
C5: IPCA futuro 12 meses | D5: =VLOOKUP(EDATE(CAPA!C15,12),Índices!$B$10:$F$500,3)/VLOOKUP(EDATE(CAPA!C15,0),Índices!$B$10:$F$500,3)-1 -> 0.04038587399 | E5: 0.00330475512 | F5: 0.01999307546
C6: IGP-M futuro | D6: =VLOOKUP(EDATE(CAPA!C15,12),Índices!$B$10:$F$500,2)/VLOOKUP(EDATE(CAPA!C15,0),Índices!$B$10:$F$500,2)-1 -> 0.04671872351 | E6: 0.003812268768 | F6: 0.02309272478
C7: Dolar futuro | E7: 0 | F7: 0
C8: Selic Atual | D8: =VLOOKUP(EDATE(CAPA!C15,0),Índices!$B$10:$F$500,5)/VLOOKUP(EDATE(CAPA!C15,-12),Índices!$B$10:$F$500,5)-1 -> 0.1478963512 | E8: 0.01156056335 | F8: 0.07139924922
C9: Selic 12 meses
E10: Atenção
C11: Próximo processo tarifário (RTA ou RTP) | E11: RTA
D12: =YEAR(LnkTxtDRPData) -> 2026 | E12: =D12+1 -> 2027 | K12: Tabela auxiliar - cálculo de CVA M2 de encargos e Transporte
D13: Processo Atual (R$) | E13: Projeção para próximo processo (R$) | F13: ='Votos e NTs'!E46 -> Variação | G13: ='Votos e NTs'!F46 -> Participação no Reajuste | H13: ='Votos e NTs'!G46 -> Participação na Receita | I13: 1 | K13: Descasamento CVA (meses) | L13: Delta total para estimativa de CVA M2 | M13: Fator de cálculo da CVA M2
C14: ='Votos e NTs'!B47 -> PARCELA A [Encargos+Transmissão+Energia] | D14: ='Votos e NTs'!D47 -> 4807152490 | E14: =E15+E27+E36 -> 4882820892 | F14: =IFERROR(E14/D14-1,0) -> 0.01574079498 | G14: =IFERROR((E14-D14)/$D$39,0) -> 0.00934420723 | H14: =E14/$E$39 -> 0.5919661977 | I14: =IF(AND(E14=0,D14=0),0,1) -> 1
C15: ='Votos e NTs'!B48 -> Encargos Setoriais | D15: ='Votos e NTs'!D48 -> 1756183039 | E15: =SUM(E16:E26) -> 1814363660 | F15: =IFERROR(E15/D15-1,0) -> 0.03312901924 | G15: =IFERROR((E15-D15)/$D$39,0) -> 0.007184660611 | H15: =E15/$E$39 -> 0.2199634148 | I15: 1
C16: ='Votos e NTs'!B49 -> Taxa de Fisc. de Serviços de E.E. – TFSEE | D16: ='Votos e NTs'!D49 -> 12595427.8 | E16: =D16*E38/D38 -> 12882173.72 | F16: 0.02276587399 | G16: 3.540993673e-05 | H16: 0.00156176349 | I16: 1 | K16: 0 | L16: =E16-D16 -> 286745.9222 | M16: =IFERROR(VLOOKUP(K16,$AF$103:$AJ$114,5),0) -> 0
C17: ='Votos e NTs'!B50 -> Conta de Desenv. Energético – CDE (USO) | D17: ='Votos e NTs'!D50 -> 1155141285 | E17: =D17*(1+D5) -> 1201792675 | F17: 0.04038587399 | G17: 0.005760928592 | H17: 0.1456986968 | I17: =IF(AND(E17=0,D17=0),0,1) -> 1 | K17: =MONTH(LnkTxtDRPData)-1 -> 3 | L17: 46651390.38 | M17: 0.2754535497
C18: ='Votos e NTs'!B51 -> Conta de Desenv. Energético – CDE Conta-Covid | D18: ='Votos e NTs'!D51 -> 0 | E18: 0 | F18: 0 | G18: 0 | H18: 0 | I18: =IF(AND(E18=0,D18=0),0,1) -> 0 | K18: 0 | L18: 0 | M18: 0
C19: ='Votos e NTs'!B52 -> Conta de Desenv. Energético – CDE Eletrobrás | D19: ='Votos e NTs'!D52 -> -5296524.4 | E19: =D19*(1+D5) -> -5510429.167 | F19: 0.04038587399 | G19: -2.641486306e-05 | H19: -0.0006680539536 | I19: 1 | K19: 0 | L19: -213904.767 | M19: 0
C20: ='Votos e NTs'!B53 -> Conta de Desenv. Energético – CDE Conta-Escassez Hídrica | D20: ='Votos e NTs'!D53 -> 240063889.6 | E20: =D20 -> 240063889.6 | F20: 0 | G20: 0 | H20: 0.02910401816 | I20: 1 | K20: 0 | L20: 0 | M20: 0
C21: ='Votos e NTs'!B54 -> Conta de Desenv. Energético – CDE GD | D21: ='Votos e NTs'!D54 -> 0.001 | E21: =D21*(1+D5)*(1+D4) -> 0.001248463049 | F21: 0.2484630488 | G21: 3.068242705e-14 | H21: 1.513567547e-13 | I21: 1 | K21: 0 | L21: 0.0002484630488 | M21: 0
C22: ='Votos e NTs'!B55 -> Compensação Financeira - CFURH | D22: ='Votos e NTs'!D55 -> 0 | E22: =D22*(1+D4) -> 0 | F22: 0 | G22: 0 | H22: 0 | I22: 0 | K22: 0 | L22: 0 | M22: 0
C23: ='Votos e NTs'!B56 -> Encargos Serv. Sist. - ESS/Energ. Reserv. - EER/ERCAP | D23: ='Votos e NTs'!D56 -> 177657414.8 | E23: =D23*(1+D5) -> 184832264.7 | F23: 0.04038587399 | G23: 0.0008860142855 | H23: 0.02240804146 | I23: 1 | K23: 0 | L23: 7174849.966 | M23: 0
C24: ='Votos e NTs'!B57 -> PROINFA | D24: ='Votos e NTs'!D57 -> 109229850.3 | E24: =D24*(1+D5) -> 113641193.2 | F24: 0.04038587399 | G24: 0.0005447518634 | H24: 0.01377722971 | I24: 1 | K24: =MONTH(LnkTxtDRPData)-1 -> 3 | L24: 4411342.969 | M24: 0.2754535497
C25: ='Votos e NTs'!B58 -> P&D, Efic.Energ e Ressarc.ICMS Sist.Isol. | D25: ='Votos e NTs'!D58 -> 66561627.81 | E25: =IFERROR(1%*(E16+E24+E23+E27+E36+E38+E37)+1%*E41,0) -> 66422533.52 | F25: -0.002089706779 | G25: -1.717659937e-05 | H25: 0.008052700577 | I25: 1 | K25: 0 | L25: -139094.2849 | M25: 0
C26: ='Votos e NTs'!B59 -> ONS | D26: ='Votos e NTs'!D59 -> 230067.84 | E26: =D26*(1+D5) -> 239359.3308 | F26: 0.04038587399 | G26: 1.14739592e-06 | H26: 2.901860135e-05 | I26: 1 | K26: 0 | L26: 9291.490795 | M26: 0
C27: ='Votos e NTs'!B60 -> Custos de Transmissão | D27: ='Votos e NTs'!D60 -> 747712273.3 | E27: =SUM(E28:E35) -> 777909286.9 | F27: 0.04038587399 | G27: 0.003728995812 | H27: 0.09430941928 | I27: 1
C28: ='Votos e NTs'!B61 -> Rede Básica | D28: ='Votos e NTs'!D61 -> 438437604.6 | E28: =D28*(1+$D$5) -> 456144290.5 | F28: 0.04038587399 | G28: 0.002186579049 | H28: 0.05530041081 | I28: 1 | K28: =MONTH(LnkTxtDRPData)-1-7 -> -4 | L28: =E28-D28 -> 17706685.85 | M28: =IFERROR(VLOOKUP(K28,$AF$103:$AJ$114,5),0) -> 0
C29: ='Votos e NTs'!B62 -> Rede Básica Fronteira | D29: ='Votos e NTs'!D62 -> 155431143 | E29: =D29*(1+$D$5) -> 161708365.6 | F29: 0.04038587399 | G29: 0.0007751672695 | H29: 0.01960462782 | I29: 1 | K29: =K28 -> -4 | L29: 6277222.555 | M29: 0 | W29: Bandeira | X29: Verde | Z29: Amarela | AB29: Vermelha 1 | AD29: Vermelha 2 | AG29: PLDmin | AH29: 61.07
C30: ='Votos e NTs'!B63 -> Rede Básica ONS (A2) | D30: ='Votos e NTs'!D63 -> 3588665.95 | E30: =D30*(1+$D$5) -> 3733597.361 | F30: 0.04038587399 | G30: 1.78974196e-05 | H30: 0.0004526406932 | I30: 1 | K30: =K29 -> -4 | L30: 144931.4108 | M30: 0 | W30: Valor | X30: =AH36 -> 31.92797 | Z30: =AH37 -> 69.05913 | AB30: =AH38 -> 92.46868 | AD30: =AH39 -> 136.4595 | AG30: PLDmax | AH30: 716.8
C31: ='Votos e NTs'!B64 -> Rede Básica Export. (A2) | D31: ='Votos e NTs'!D64 -> 55994317.95 | E31: 58255697.42 | F31: 0.04038587399 | G31: 0.0002792552491 | H31: 0.007062598539 | I31: 1 | K31: =K30 -> -4 | L31: 2261379.469 | M31: 0 | V31: GSF previsto | W31: Profundidade da exposição | X31: PLD | Z31: PLD | AB31: PLD | AD31: PLD
C32: ='Votos e NTs'!B65 -> MUST Itaipu | D32: ='Votos e NTs'!D65 -> 26463786.3 | E32: 27532549.44 | F32: 0.04038587399 | G32: 0.0001319803778 | H32: 0.00333789401 | I32: 1 | K32: -4 | L32: 1068763.139 | M32: 0 | X32: Limite inferior | Y32: Limite superior | Z32: Limite inferior | AA32: Limite superior | AB32: Limite inferior | AC32: Limite superior | AD32: Limite inferior | AE32: Limite superior | AG32: Adicional AMARELA | AH32: 18.85
C33: ='Votos e NTs'!B66 -> Transporte de Itaipu | D33: ='Votos e NTs'!D66 -> 52047098.74 | E33: 54149066.31 | F33: 0.04038587399 | G33: 0.0002595696502 | H33: 0.006564733297 | I33: 1 | K33: -4 | L33: 2101967.571 | M33: 0 | V33: 1 | W33: =1-V33 -> 0 | X33: 61.07 | Y33: =AH30 -> 716.8 | AG33: Adicional VERMELHA I | AH33: 44.63
C34: ='Votos e NTs'!B67 -> Conexão | D34: ='Votos e NTs'!D67 -> 13753345.26 | E34: 14308786.13 | F34: 0.04038587399 | G34: 6.859077846e-05 | H34: 0.001734718088 | I34: 1 | K34: 0 | L34: 555440.8688 | M34: 0 | V34: 0.99 | W34: =1-V34 -> 0.01 | X34: 61.07 | Y34: =IF($AH$36/$W34>$AH$30,$AH$30,IF($X$30/$W34<$AH$29,$AH$29,$AH$36/$W34)) -> 716.8 | AG34: Adicional VERMELHA II | AH34: 78.77
C35: ='Votos e NTs'!B68 -> Uso do sistema de distribuição e CCD | D35: ='Votos e NTs'!D68 -> 1996311.457 | E35: 2076934.24 | F35: 0.04038587399 | G35: 9.956018281e-06 | H35: 0.0002517960196 | I35: 1 | K35: 0 | L35: 80622.78294 | M35: 0 | V35: 0.98 | W35: =1-V35 -> 0.02 | X35: 61.07 | Y35: =IF($AH$36/$W35>$AH$30,$AH$30,IF($X$30/$W35<$AH$29,$AH$29,$AH$36/$W35)) -> 716.8
C36: ='Votos e NTs'!B69 -> Custos de Aquisição de Energia | D36: ='Votos e NTs'!D69 -> 2303257178 | E36: =D36*(1+D5)*(Q157/P157) -> 2290547945 | F36: -0.005517939409 | G36: -0.001569449193 | H36: 0.2776933636 | I36: 1 | V36: 0.97 | W36: 0.03 | X36: 61.07 | Y36: 716.8 | AG36: VERDE | AH36: 31.92797
V37: 0.96 | W37: 0.04 | X37: 61.07 | Y37: 716.8 | AG37: AMARELA | AH37: 69.05913
C38: ='Votos e NTs'!B71 -> PARCELA B | D38: ='Votos e NTs'!D71 -> 3290741735 | E38: =IF(E11="RTA",D38*(1+D5-AC184),D38*(1+Z179)*(1+D5)) -> 3365658347 | F38: 0.02276587399 | G38: =IFERROR((E38-D38)/$D$39,0) -> 0.009251369503 | H38: 0.4080338023 | I38: 1 | K38: Fator T | M38: =LnkTxtFatorT -> 0.01762 | V38: 0.95 | W38: 0.05 | X38: 61.07 | Y38: 638.5594 | Z38: =IF(Y38=$AH$29,$M$1+0.01,Y38+0.01) -> 638.5694 | AA38: =IF($Z$30/$W38>$AH$30,$AH$30,IF($Z$30/$W38<$AH$29,$AH$29,$Z$30/$W38)) -> 716.8 | AG38: VERMELHA I | AH38: 92.46868
C39: ='Votos e NTs'!B80 -> IRT | D39: ='Votos e NTs'!D80 -> 8097894225 | E39: =E38+E14 -> 8248479239 | F39: 0.01859557673 | G39: 0.01859557673 | H39: 1 | I39: 1 | V39: 0.94 | W39: 0.06 | X39: 61.07 | Y39: 532.1328333 | Z39: =IF(Y39=$AH$29,$M$1+0.01,Y39+0.01) -> 532.1428333 | AA39: =IF($Z$30/$W39>$AH$30,$AH$30,IF($Z$30/$W39<$AH$29,$AH$29,$Z$30/$W39)) -> 716.8 | AG39: VERMELHA II | AH39: 136.4595
I40: 0 | V40: 0.93 | W40: 0.07 | X40: 61.07 | Y40: 456.1138571 | Z40: 456.1238571 | AA40: 716.8 | AG40: VERMELHA II | AH40: 136.4595
C41: ='Votos e NTs'!B82 -> Efeito dos Componentes Financeiros do Processo Atual | D41: ='Votos e NTs'!D82 -> 11792491.92 | E41: =SUM(E42:E97) -> -103217857.8 | F41: -9.752845329 | G41: -0.01420250087 | H41: -0.01251356218 | I41: 1 | V41: 0.92 | W41: 0.08 | X41: 61.07 | Y41: 399.099625 | Z41: 399.109625 | AA41: 716.8
C42: ='Votos e NTs'!B83 -> CVA em processamento - Energia | D42: ='Votos e NTs'!D83 -> 303486515.1 | E42: =SUMPRODUCT(S164:S170,T164:T170)-E60-AB119 -> 152455510.6 | F42: =ABS(IFERROR(E42/D42-1,0)) -> 0.4976530982 | G42: -0.01865065168 | H42: 0.01848286286 | I42: 1 | V42: 0.91 | W42: 0.09 | X42: 61.07 | Y42: 354.7552222 | Z42: 354.7652222 | AA42: 716.8
C43: ='Votos e NTs'!B84 -> CVA em processamento - Transporte | D43: ='Votos e NTs'!D84 -> 93490311.88 | E43: =SUMPRODUCT(L28:L35,M28:M35)+M43*(D27-D34-D35)*(1+D8) -> 70998354.82 | F43: =IFERROR(E43/D43-1,0) -> -0.2405806185 | G43: -0.002777506897 | H43: 0.008607447841 | I43: 1 | K43: Tributos de transmissão na CVA | M43: 0.0845 | N43: <- Obter alíquota média na planilha de CVA transporte M3 | V43: 0.9 | W43: 0.1 | X43: 61.07 | Y43: 319.2797 | Z43: 319.2897 | AA43: 690.5913 | AB43: =IF(AA43=$AH$29,$M$1+0.01,AA43+0.01) -> 690.6013 | AC43: =IF($AB$30/$W43>$AH$30,$AH$30,IF($AB$30/$W43<$AH$29,$AH$29,$AB$30/$W43)) -> 716.8
C44: ='Votos e NTs'!B85 -> CVA em processamento - Encargos Setoriais | D44: ='Votos e NTs'!D85 -> 164493160.9 | E44: =SUMPRODUCT(L16:L26,M16:M26) -> 14065411.16 | F44: =ABS(IFERROR(E44/D44-1,0)) -> 0.9144924258 | G44: -0.01857615642 | H44: 0.001705212652 | I44: 1 | V44: 0.89 | W44: 0.11 | X44: 61.07 | Y44: =IF(AH42/$W44>$AH$30,"PLDmax",IF($X$30/$W44<$AH$29,"PLDmin",$AH$36/$W44)) -> 290.2542727 | Z44: 290.2642727 | AA44: 627.8102727 | AB44: =IF(AA44=$AH$29,$M$1+0.01,AA44+0.01) -> 627.8202727 | AC44: =IF($AB$30/$W44>$AH$30,$AH$30,IF($AB$30/$W44<$AH$29,$AH$29,$AB$30/$W44)) -> 716.8
C45: ='Votos e NTs'!B86 -> Saldo a Compensar CVA-Ano Anterior + Ajustes | D45: ='Votos e NTs'!D86 -> 4316456.322 | E45: 0 | F45: -1 | G45: -0.0005330344163 | H45: 0 | I45: 1 | V45: 0.88 | W45: 0.12 | X45: 61.07 | Y45: =IF(AH36/$W45>$AH$30,"PLDmax",IF($X$30/$W45<$AH$29,"PLDmin",$AH$36/$W45)) -> 266.0664167 | Z45: 266.0764167 | AA45: 575.49275 | AB45: 575.50275 | AC45: 716.8
C46: ='Votos e NTs'!B87 -> Neutralidade de Parcela A - Encargos Setoriais | D46: ='Votos e NTs'!D87 -> -54914659.06 | E46: 0 | F46: -1 | G46: 0.006781350501 | H46: 0 | I46: 1 | V46: 0.87 | W46: 0.13 | X46: 61.07 | Y46: =IF(AH36/$W46>$AH$30,"PLDmax",IF($X$30/$W46<$AH$29,"PLDmin",$AH$36/$W46)) -> 245.5997692 | Z46: 245.6097692 | AA46: 531.2240769 | AB46: 531.2340769 | AC46: 711.2975385 | AD46: =IF(AC46=$AH$29,$M$1+0.01,AC46+0.01) -> 711.3075385 | AE46: =$AH$30 -> 716.8
C47: ='Votos e NTs'!B88 -> Neutralidade de Parcela A - Receita Irrecuperável | D47: ='Votos e NTs'!D88 -> 0 | E47: 0 | F47: 0 | G47: 0 | H47: 0 | I47: 0 | V47: 0.86 | W47: 0.14 | X47: 61.07 | Y47: =IF(AH36/$W47>$AH$30,"PLDmax",IF($X$30/$W47<$AH$29,"PLDmin",$AH$36/$W47)) -> 228.0569286 | Z47: 228.0669286 | AA47: 493.2795 | AB47: 493.2895 | AC47: 660.4905714 | AD47: =IF(AC47=$AH$29,$M$1+0.01,AC47+0.01) -> 660.5005714 | AE47: =$AH$30 -> 716.8
C48: ='Votos e NTs'!B89 -> Neutralidade de Fin. Parcela B - Conta Covid | D48: ='Votos e NTs'!D89 -> 0 | E48: 0 | F48: 0 | G48: 0 | H48: 0 | I48: 0 | V48: 0.85 | W48: 0.15 | X48: 61.07 | Y48: =IF(AH36/$W48>$AH$30,"PLDmax",IF($X$30/$W48<$AH$29,"PLDmin",$AH$36/$W48)) -> 212.8531333 | Z48: 212.8631333 | AA48: 460.3942 | AB48: 460.4042 | AC48: 616.4578667 | AD48: 616.4678667 | AE48: 716.8
C49: ='Votos e NTs'!B90 -> Financeiro CDE Eletrobras | D49: ='Votos e NTs'!D90 -> -1.061387713e-05 | E49: 0 | F49: -1 | G49: 1.310695946e-15 | H49: 0 | I49: 1 | V49: 0.84 | W49: 0.16 | X49: 61.07 | Y49: =IF(AH36/$W49>$AH$30,"PLDmax",IF($X$30/$W49<$AH$29,"PLDmin",$AH$36/$W49)) -> 199.5498125 | Z49: 199.5598125 | AA49: 431.6195625 | AB49: 431.6295625 | AC49: 577.92925 | AD49: 577.93925 | AE49: 716.8
C50: ='Votos e NTs'!B91 -> Restituição de encargo do ONS | D50: ='Votos e NTs'!D91 -> 0 | E50: 0 | F50: 0 | G50: 0 | H50: 0 | I50: 0 | V50: 0.83 | W50: 0.17 | X50: 61.07 | Y50: =IF(AH36/$W50>$AH$30,"PLDmax",IF($X$30/$W50<$AH$29,"PLDmin",$AH$36/$W50)) -> 187.8115882 | Z50: 187.8215882 | AA50: 406.2301765 | AB50: 406.2401765 | AC50: 543.9334118 | AD50: 543.9434118 | AE50: 716.8
C51: ='Votos e NTs'!B92 -> Financeiros residuais do encargo de ONS | D51: ='Votos e NTs'!D92 -> 0 | E51: 0 | F51: 0 | G51: 0 | H51: 0 | I51: 0 | V51: 0.82 | W51: 0.18 | X51: 61.07 | Y51: =IF(AH36/$W51>$AH$30,"PLDmax",IF($X$30/$W51<$AH$29,"PLDmin",$AH$36/$W51)) -> 177.3776111 | Z51: 177.3876111 | AA51: 383.6618333 | AB51: 383.6718333 | AC51: 513.7148889 | AD51: 513.7248889 | AE51: 716.8
C52: ='Votos e NTs'!B93 -> Neutralidade de Fin. Parcela B - Conta Covid | D52: ='Votos e NTs'!D93 -> 0 | E52: 0 | F52: 0 | G52: 0 | H52: 0 | I52: 0 | V52: 0.81 | W52: 0.19 | X52: 61.07 | Y52: =IF(AH36/$W52>$AH$30,"PLDmax",IF($X$30/$W52<$AH$29,"PLDmin",$AH$36/$W52)) -> 168.0419474 | Z52: 168.0519474 | AA52: 363.4691053 | AB52: 363.4791053 | AC52: 486.6772632 | AD52: 486.6872632 | AE52: 716.8
C53: ='Votos e NTs'!B94 -> Neutralidade Escassez Hídrica | D53: ='Votos e NTs'!D94 -> 0 | E53: 0 | F53: 0 | G53: 0 | H53: 0 | I53: 0 | V53: 0.8 | W53: 0.2 | X53: 61.07 | Y53: =IF(AH51/$W53>$AH$30,"PLDmax",IF($X$30/$W53<$AH$29,"PLDmin",$AH$36/$W53)) -> 159.63985 | Z53: 159.64985 | AA53: 345.29565 | AB53: 345.30565 | AC53: 462.3434 | AD53: 462.3534 | AE53: 716.8
C54: ='Votos e NTs'!B95 -> Neutralidade de Créditos de PIS/COFINS | D54: ='Votos e NTs'!D95 -> -4414433.023 | E54: 0 | F54: -1 | G54: 0.0005451334508 | H54: 0 | I54: 1 | V54: 0.79 | W54: 0.21 | X54: 61.07 | Y54: =IF(AH36/$W54>$AH$30,"PLDmax",IF($X$30/$W54<$AH$29,"PLDmin",$AH$36/$W54)) -> 152.0379524 | Z54: 152.0479524 | AA54: 328.853 | AB54: 328.863 | AC54: 440.3270476 | AD54: 440.3370476 | AE54: 716.8
C55: ='Votos e NTs'!B96 -> Sobrecontratação | D55: ='Votos e NTs'!D96 -> 52931995.9 | E55: =V115 -> 43217422.1 | F55: -0.1835293311 | G55: -0.001199641972 | H55: 0.005239441216 | I55: 1 | V55: 0.78 | W55: 0.22 | X55: 61.07 | Y55: =IF(AH36/$W55>$AH$30,"PLDmax",IF($X$30/$W55<$AH$29,"PLDmin",$AH$36/$W55)) -> 145.1271364 | Z55: 145.1371364 | AA55: 313.9051364 | AB55: 313.9151364 | AC55: 420.3121818 | AD55: 420.3221818 | AE55: 716.8
C56: ='Votos e NTs'!B97 -> Garantias financeiras na contratação regulada de energia (CCEAR) | D56: ='Votos e NTs'!D97 -> 329848.8007 | E56: =D56*(1+$D$5) -> 343170.0328 | F56: 0.04038587399 | G56: 1.645024216e-06 | H56: 4.160403668e-05 | I56: 1 | V56: 0.77 | W56: 0.23 | X56: 61.07 | Y56: =IF(AH36/$W56>$AH$30,"PLDmax",IF($X$30/$W56<$AH$29,"PLDmin",$AH$36/$W56)) -> 138.8172609 | Z56: 138.8272609 | AA56: 300.257087 | AB56: 300.267087 | AC56: 402.0377391 | AD56: 402.0477391 | AE56: 716.8
C57: ='Votos e NTs'!B98 -> Reversão Sobrecontratação | D57: ='Votos e NTs'!D98 -> 0 | E57: 0 | F57: 0 | G57: 0 | H57: 0 | I57: 0 | V57: 0.76 | W57: 0.24 | X57: 61.07 | Y57: =IF(AH36/$W57>$AH$30,"PLDmax",IF($X$30/$W57<$AH$29,"PLDmin",$AH$36/$W57)) -> 133.0332083 | Z57: 133.0432083 | AA57: 287.746375 | AB57: 287.756375 | AC57: 385.2861667 | AD57: 385.2961667 | AE57: 716.8
C58: ='Votos e NTs'!B99 -> Recálculo Exposição CCEAR entre Submercados | D58: ='Votos e NTs'!D99 -> 0 | E58: 0 | F58: 0 | G58: 0 | H58: 0 | I58: 0 | V58: 0.75 | W58: 0.25 | X58: 61.07 | Y58: =IF(AH36/$W58>$AH$30,"PLDmax",IF($X$30/$W58<$AH$29,"PLDmin",$AH$36/$W58)) -> 127.71188 | Z58: 127.72188 | AA58: 276.23652 | AB58: 276.24652 | AC58: 369.87472 | AD58: 369.88472 | AE58: 716.8
C59: ='Votos e NTs'!B100 -> Compensação ref. acordos bilaterais de CCEAR | D59: ='Votos e NTs'!D100 -> 0 | E59: 0 | F59: 0 | G59: 0 | H59: 0 | I59: 0 | V59: 0.74 | W59: 0.26 | X59: 61.07 | Y59: =IF(AH57/$W59>$AH$30,"PLDmax",IF($X$30/$W59<$AH$29,"PLDmin",$AH$36/$W59)) -> 122.7998846 | Z59: 122.8098846 | AA59: 265.6120385 | AB59: 265.6220385 | AC59: 355.6487692 | AD59: 355.6587692 | AE59: 716.8
C60: ='Votos e NTs'!B101 -> Reversão de Risco Hidrológico | D60: ='Votos e NTs'!D101 -> -159828532.2 | E60: =-NPV(-((1+D8)^(1/12)-1),D61/12,D61/12,D61/12,D61/12,D61/12,D61/12,D61/12,D61/12,D61/12,D61/12,D61/12,D61/12) -> -210746970.6 | F60: 0.3185816553 | G60: -0.006287861627 | H60: -0.02554979706 | I60: 1 | V60: 0.73 | W60: 0.27 | X60: 61.07 | Y60: =IF(AH36/$W60>$AH$30,"PLDmax",IF($X$30/$W60<$AH$29,"PLDmin",$AH$36/$W60)) -> 118.2517407 | Z60: 118.2617407 | AA60: 255.7745556 | AB60: 255.7845556 | AC60: 342.4765926 | AD60: 342.4865926 | AE60: 716.8
C61: ='Votos e NTs'!B102 -> Previsão de Risco Hidrológico | D61: ='Votos e NTs'!D102 -> 195248156.8 | E61: =D61*0.9*(1+D5) -> 182820081.8 | F61: -0.06365271341 | G61: -0.00153472923 | H61: 0.02216409553 | I61: 1 | V61: 0.72 | W61: 0.28 | X61: 61.07 | Y61: =IF(AH36/$W61>$AH$30,"PLDmax",IF($X$30/$W61<$AH$29,"PLDmin",$AH$36/$W61)) -> 114.0284643 | Z61: 114.0384643 | AA61: 246.63975 | AB61: 246.64975 | AC61: 330.2452857 | AD61: 330.2552857 | AE61: 716.8
C62: ='Votos e NTs'!B103 -> Repasse de ultrapassagem de Supridas/Permissionárias | D62: ='Votos e NTs'!D103 -> 0 | E62: 0 | F62: 0 | G62: 0 | H62: 0 | I62: 0 | V62: 0.71 | W62: 0.29 | X62: 61.07 | Y62: =IF(AH60/$W62>$AH$30,"PLDmax",IF($X$30/$W62<$AH$29,"PLDmin",$AH$36/$W62)) -> 110.0964483 | Z62: 110.1064483 | AA62: 238.134931 | AB62: 238.144931 | AC62: 318.8575172 | AD62: 318.8675172 | AE62: 716.8
C63: ='Votos e NTs'!B104 -> Ajuste CUSD | D63: ='Votos e NTs'!D104 -> 96163.63317 | E63: =D63*(1+$D$5) -> 100047.2855 | F63: 0.04038587399 | G63: 4.795879353e-07 | H63: 1.212917953e-05 | I63: 1 | V63: 0.7 | W63: 0.3 | X63: 61.07 | Y63: =IF(AH36/$W63>$AH$30,"PLDmax",IF($X$30/$W63<$AH$29,"PLDmin",$AH$36/$W63)) -> 106.4265667 | Z63: 106.4365667 | AA63: 230.1971 | AB63: 230.2071 | AC63: 308.2289333 | AD63: 308.2389333 | AE63: 716.8
C64: ='Votos e NTs'!B105 -> Descasamento TUSD Distribuição | D64: ='Votos e NTs'!D105 -> 0 | E64: 0 | F64: 0 | G64: 0 | H64: 0 | I64: 0 | V64: 0.69 | W64: 0.31 | X64: 61.07 | Y64: =IF(AH36/$W64>$AH$30,"PLDmax",IF($X$30/$W64<$AH$29,"PLDmin",$AH$36/$W64)) -> 102.9934516 | Z64: 103.0034516 | AA64: 222.7713871 | AB64: 222.7813871 | AC64: 298.2860645 | AD64: 298.2960645 | AE64: 716.8
C65: ='Votos e NTs'!B106 -> Descasamento TUSD Geração | D65: ='Votos e NTs'!D106 -> 0 | E65: =D65*(1+$D$5) -> 0 | F65: 0 | G65: 0 | H65: 0 | I65: 0 | V65: 0.68 | W65: 0.32 | X65: 61.07 | Y65: =IF(AH36/$W65>$AH$30,"PLDmax",IF($X$30/$W65<$AH$29,"PLDmin",$AH$36/$W65)) -> 99.77490625 | Z65: 99.78490625 | AA65: 215.8097813 | AB65: 215.8197813 | AC65: 288.964625 | AD65: 288.974625 | AE65: 716.8
C66: ='Votos e NTs'!B107 -> Restituição da cobertura excedente do Conselho de Consumidores | D66: ='Votos e NTs'!D107 -> 0 | E66: 0 | F66: 0 | G66: 0 | H66: 0 | I66: 0 | V66: 0.67 | W66: 0.33 | X66: 61.07 | Y66: =IF(AH36/$W66>$AH$30,"PLDmax",IF($X$30/$W66<$AH$29,"PLDmin",$AH$36/$W66)) -> 96.75142424 | Z66: 96.76142424 | AA66: 209.2700909 | AB66: 209.2800909 | AC66: 280.2081212 | AD66: 280.2181212 | AE66: 716.8
C67: ='Votos e NTs'!B108 -> Repasse de compensação DIC/FIC | D67: ='Votos e NTs'!D108 -> -1206422.203 | E67: =D67*(1+D5) -> -1255144.618 | F67: 0.04038587399 | G67: -6.016677138e-06 | H67: -0.0001521667912 | I67: 1 | V67: 0.66 | W67: 0.34 | X67: 61.07 | Y67: =IF(AH36/$W67>$AH$30,"PLDmax",IF($X$30/$W67<$AH$29,"PLDmin",$AH$36/$W67)) -> 93.90579412 | Z67: 93.91579412 | AA67: 203.1150882 | AB67: 203.1250882 | AC67: 271.9667059 | AD67: 271.9767059 | AE67: 716.8
C68: ='Votos e NTs'!B109 -> Acordo REN 824/2018 | D68: ='Votos e NTs'!D109 -> 0 | E68: 0 | F68: 0 | G68: 0 | H68: 0 | I68: 0 | V68: 0.65 | W68: 0.35 | X68: 61.07 | Y68: =IF(AH36/$W68>$AH$30,"PLDmax",IF($X$30/$W68<$AH$29,"PLDmin",$AH$36/$W68)) -> 91.22277143 | Z68: 91.23277143 | AA68: 197.3118 | AB68: 197.3218 | AC68: 264.1962286 | AD68: 264.2062286 | AE68: 716.8
C69: ='Votos e NTs'!B110 -> Custo Distribuidora - Conta Covid - Art 4º - REN 952/2021 - Tusd | D69: ='Votos e NTs'!D110 -> 0 | E69: 0 | F69: 0 | G69: 0 | H69: 0 | I69: 0 | V69: 0.64 | W69: 0.36 | X69: 61.07 | Y69: =IF(AH37/$W69>$AH$30,"PLDmax",IF($X$30/$W69<$AH$29,"PLDmin",$AH$36/$W69)) -> 88.68880556 | Z69: 88.69880556 | AA69: 191.8309167 | AB69: 191.8409167 | AC69: 256.8574444 | AD69: 256.8674444 | AE69: 716.8
C70: ='Votos e NTs'!B111 -> Custo Distribuidora - Conta Covid - Art 4º - REN 952/2021 - TE | D70: ='Votos e NTs'!D111 -> 0 | E70: 0 | F70: 0 | G70: 0 | H70: 0 | I70: 0 | V70: 0.63 | W70: 0.37 | X70: 61.07 | Y70: =IF(AH38/$W70>$AH$30,"PLDmax",IF($X$30/$W70<$AH$29,"PLDmin",$AH$36/$W70)) -> 86.29181081 | Z70: 86.30181081 | AA70: 186.6462973 | AB70: 186.6562973 | AC70: 249.9153514 | AD70: 249.9253514 | AE70: 716.8
C71: ='Votos e NTs'!B112 -> Recomposição do Deficit de cobertura - CDE GD - 2025 | D71: ='Votos e NTs'!D112 -> 119136012.7 | E71: 0 | F71: -1 | G71: -0.01471197442 | H71: 0 | I71: 1 | V71: 0.62 | W71: 0.38 | X71: 61.07 | Y71: =IF(AH39/$W71>$AH$30,"PLDmax",IF($X$30/$W71<$AH$29,"PLDmin",$AH$36/$W71)) -> 84.02097368 | Z71: 84.03097368 | AA71: 181.7345526 | AB71: 181.7445526 | AC71: 243.3386316 | AD71: 243.3486316 | AE71: 716.8
C72: ='Votos e NTs'!B113 -> Empr. Escassez Hídrica | D72: ='Votos e NTs'!D113 -> 0 | E72: 0 | F72: 0 | G72: 0 | H72: 0 | I72: 0 | V72: 0.61 | W72: 0.39 | X72: 61.07 | Y72: 81.86658974 | Z72: 81.87658974 | AA72: 177.0746923 | AB72: 177.0846923 | AC72: 237.0991795 | AD72: 237.1091795 | AE72: 716.8
C73: ='Votos e NTs'!B114 -> Diferimento Parcela B | D73: ='Votos e NTs'!D114 -> 0 | E73: 0 | F73: 0 | G73: 0 | H73: 0 | I73: 0 | V73: 0.6 | W73: 0.4 | X73: 61.07 | Y73: =IF(AH46/$W73>$AH$30,"PLDmax",IF($X$30/$W73<$AH$29,"PLDmin",$AH$36/$W73)) -> 79.819925 | Z73: 79.829925 | AA73: 172.647825 | AB73: 172.657825 | AC73: 231.1717 | AD73: 231.1817 | AE73: 716.8
C74: ='Votos e NTs'!B115 -> Recomposição à conta de comercialização de Itaipu - Reversão Bônus Itaipu | D74: ='Votos e NTs'!D115 -> 0 | E74: 0 | F74: 0 | G74: 0 | H74: 0 | I74: 0 | V74: 0.59 | W74: 0.41 | X74: 61.07 | Y74: =IF(AH47/$W74>$AH$30,"PLDmax",IF($X$30/$W74<$AH$29,"PLDmin",$AH$36/$W74)) -> 77.87309756 | Z74: 77.88309756 | AA74: 168.4369024 | AB74: 168.4469024 | AC74: 225.5333659 | AD74: 225.5433659 | AE74: 716.8
C75: ='Votos e NTs'!B116 -> Neutralidade Mitigação Itaipu - Energia de Revenda | D75: ='Votos e NTs'!D116 -> 0 | E75: 0 | F75: 0 | G75: 0 | H75: 0 | I75: 0 | V75: 0.58 | W75: 0.42 | X75: 61.07 | Y75: =IF(AH48/$W75>$AH$30,"PLDmax",IF($X$30/$W75<$AH$29,"PLDmin",$AH$36/$W75)) -> 76.01897619 | Z75: 76.02897619 | AA75: 164.4265 | AB75: 164.4365 | AC75: 220.1635238 | AD75: 220.1735238 | AE75: 716.8
C76: ='Votos e NTs'!B117 -> Frustração de repasse Decreto 10.665/2021 - Ajuste Bônus Itaipu | D76: ='Votos e NTs'!D117 -> 0 | E76: 0 | F76: 0 | G76: 0 | H76: 0 | I76: 0 | V76: 0.57 | W76: 0.43 | X76: 61.07 | Y76: =IF(AH36/$W76>$AH$30,"PLDmax",IF($X$30/$W76<$AH$29,"PLDmin",$AH$36/$W76)) -> 74.25109302 | Z76: 74.26109302 | AA76: 160.6026279 | AB76: 160.6126279 | AC76: 215.0434419 | AD76: 215.0534419 | AE76: 716.8
C77: ='Votos e NTs'!B118 -> Financeiro referente ajuste encargo conexão | D77: ='Votos e NTs'!D118 -> 0 | E77: 0 | F77: 0 | G77: 0 | H77: 0 | I77: 0 | V77: 0.56 | W77: 0.44 | X77: 61.07 | Y77: =IF(AH36/$W77>$AH$30,"PLDmax",IF($X$30/$W77<$AH$29,"PLDmin",$AH$36/$W77)) -> 72.56356818 | Z77: 72.57356818 | AA77: 156.9525682 | AB77: 156.9625682 | AC77: 210.1560909 | AD77: 210.1660909 | AE77: 716.8
C78: ='Votos e NTs'!B119 -> Reversão diferimento Rede Básica | D78: ='Votos e NTs'!D119 -> 0 | E78: 0 | F78: 0 | G78: 0 | H78: 0 | I78: 0 | V78: 0.55 | W78: 0.45 | X78: 61.07 | Y78: =IF(AH36/$W78>$AH$30,"PLDmax",IF($X$30/$W78<$AH$29,"PLDmin",$AH$36/$W78)) -> 70.95104444 | Z78: 70.96104444 | AA78: 153.4647333 | AB78: 153.4747333 | AC78: 205.4859556 | AD78: 205.4959556 | AE78: 716.8
C79: ='Votos e NTs'!B120 -> Spread sobre a antecipação de créditos de UDER | D79: ='Votos e NTs'!D120 -> 0 | E79: 0 | F79: 0 | G79: 0 | H79: 0 | I79: 0 | V79: 0.54 | W79: 0.46 | X79: 61.07 | Y79: =IF(AH52/$W79>$AH$30,"PLDmax",IF($X$30/$W79<$AH$29,"PLDmin",$AH$36/$W79)) -> 69.40863043 | Z79: 69.41863043 | AA79: 150.1285435 | AB79: 150.1385435 | AC79: 201.0188696 | AD79: 201.0288696 | AE79: 716.8
C80: ='Votos e NTs'!B121 -> Reversão da antecipação de créditos de UDER | D80: ='Votos e NTs'!D121 -> 0 | E80: 0 | F80: 0 | G80: 0 | H80: 0 | I80: 0 | V80: 0.53 | W80: 0.47 | X80: 61.07 | Y80: =IF(AH53/$W80>$AH$30,"PLDmax",IF($X$30/$W80<$AH$29,"PLDmin",$AH$36/$W80)) -> 67.93185106 | Z80: 67.94185106 | AA80: 146.9343191 | AB80: 146.9443191 | AC80: 196.7418723 | AD80: 196.7518723 | AE80: 716.8
C81: ='Votos e NTs'!B122 -> Recomposição de diferença de cobertura CDE GD - RTA 2025 | D81: ='Votos e NTs'!D122 -> 0 | E81: 0 | F81: 0 | G81: 0 | H81: 0 | I81: 0 | V81: 0.52 | W81: 0.48 | X81: 61.07 | Y81: =IF(AH54/$W81>$AH$30,"PLDmax",IF($X$30/$W81<$AH$29,"PLDmin",$AH$36/$W81)) -> 66.51660417 | Z81: 66.52660417 | AA81: 143.8731875 | AB81: 143.8831875 | AC81: 192.6430833 | AD81: 192.6530833 | AE81: 716.8
C82: ='Votos e NTs'!B123 -> Déficit de faturamento - Energia Angra - Baixa Renda- Art. 2º da Lei 15.235/2025 | D82: ='Votos e NTs'!D123 -> 0 | E82: 0 | F82: 0 | G82: 0 | H82: 0 | I82: =IF(AND(E82=0,D82=0),0,1) -> 0 | V82: 0.51 | W82: 0.49 | X82: 61.07 | Y82: =IF(AH36/$W82>$AH$30,"PLDmax",IF($X$30/$W82<$AH$29,"PLDmin",$AH$36/$W82)) -> 65.15912245 | Z82: 65.16912245 | AA82: 140.937 | AB82: 140.947 | AC82: 188.7115918 | AD82: 188.7215918 | AE82: 716.8
C83: ='Votos e NTs'!B124 -> Financeiro de atualização do fator XQ (Parcela B) | D83: ='Votos e NTs'!D124 -> 14657049.49 | E83: 0 | F83: -1 | G83: -0.001809982828 | H83: 0 | I83: 1 | V83: 0.5 | W83: 0.5 | X83: 61.07 | Y83: =IF(AH36/$W83>$AH$30,"PLDmax",IF($X$30/$W83<$AH$29,"PLDmin",$AH$36/$W83)) -> 63.85594 | Z83: 63.86594 | AA83: 138.11826 | AB83: 138.12826 | AC83: 184.93736 | AD83: 184.94736 | AE83: 716.8
C84: ='Votos e NTs'!B125 -> Ajuste de custos de conexão RTA 2025 (SE 138 kV Lucas do Rio Verde) | D84: ='Votos e NTs'!D125 -> -2505556.666 | E84: 0 | F84: -1 | G84: 0.000309408421 | H84: 0 | I84: 1
C85: ='Votos e NTs'!B126 -> Ajuste de custos de conexão RTA 2025 (SE 13,8 kV Sorriso) | D85: ='Votos e NTs'!D126 -> -2915028.433 | E85: 0 | F85: -1 | G85: 0.0003599736366 | H85: 0 | I85: 1
C86: ='Votos e NTs'!B127 -> Penalidade por descumprimento de meta de universalização -DSP 1.658/2024-ANEEL | D86: ='Votos e NTs'!D127 -> -4860294.04 | E86: 0 | F86: =IFERROR(E86/D86-1,0) -> -1 | G86: =IFERROR((E86-D86)/$D$39,0) -> 0.0006001923345 | H86: =E86/$E$39 -> 0 | I86: 1
C87: ='Votos e NTs'!B128 -> Financeiro de Postergação Transporte | D87: ='Votos e NTs'!D128 -> 0 | E87: 0 | F87: 0 | G87: 0 | H87: 0 | I87: 0
C88: ='Votos e NTs'!B129 -> Financeiro de Postergação Parcela B | D88: ='Votos e NTs'!D129 -> 0 | E88: 0 | F88: 0 | G88: 0 | H88: 0 | I88: 0
C89: ='Votos e NTs'!B130 -> Créditos de Pis/Cofins | D89: ='Votos e NTs'!D130 -> -11601714 | E89: =-MIN(PIS_COFINS!E9-13*PIS_COFINS!K22,12*PIS_COFINS!K22) -> -110490206.2 | F89: 8.523610577 | G89: -0.01221163051 | H89: -0.01339522147 | I89: 1
C90: ='Votos e NTs'!B131 -> Reversão de Créditos de modicidade (REN 1.000/2021) | D90: ='Votos e NTs'!D131 -> -4480688.191 | E90: =D90*(1+$D$5) -> -4661644.7 | F90: 0.04038587399 | G90: -2.234611908e-05 | H90: -0.0005651520195 | I90: 1
C91: ='Votos e NTs'!B132 -> Arrecadação CDE Escassez de migrantes (REN 1.008/2022) | D91: ='Votos e NTs'!D132 -> -33247679.16 | E91: 0 | F91: -1 | G91: 0.004105719121 | H91: 0 | I91: 1
C92: ='Votos e NTs'!B133 -> Arrecadação CDE Covid de migrantes (REN 885/2020) | D92: ='Votos e NTs'!D133 -> -1051606.299 | E92: 0 | F92: -1 | G92: 0.0001298616986 | H92: 0 | I92: 1
C93: ='Votos e NTs'!B134 -> Custo da distribuidora - Conta Escassez Hídrica | D93: ='Votos e NTs'!D134 -> 0 | E93: =D93*(1+D5) -> 0 | F93: 0 | G93: 0 | H93: 0 | I93: 0
C94: ='Votos e NTs'!B135 -> Quitação cta. Escassez Hídrica - Reversão de componente econômico | D94: ='Votos e NTs'!D135 -> -240063889.6 | E94: =-E20 -> -240063889.6 | F94: 0 | G94: 0 | H94: -0.02910401816 | I94: 1 | X94: Bandeira
C95: ='Votos e NTs'!B136 -> Reversão de cobertura excedente Conta Escassez Hídrica (a partir 09/2024) | D95: ='Votos e NTs'!D136 -> 0 | E95: 0 | F95: 0 | G95: 0 | H95: 0 | I95: 0 | X95: AMARELA | Y95: REH 3.306/2024 | Z95: 18.85
C96: ='Votos e NTs'!B137 -> Multa CCEAR - Goiânia II - Desp. nº 4.863/2023 | D96: ='Votos e NTs'!D137 -> -596.0557639 | E96: 0 | F96: -1 | G96: 7.360626692e-08 | H96: 0 | I96: 1 | X96: VERMELHA I | Y96: REH 3.306/2024 | Z96: 44.63
C97: ='Votos e NTs'!B138 -> Multa CCEAR - Termoceará - Desp. nº 2.495/2024 | D97: ='Votos e NTs'!D138 -> -1140007.722 | E97: 0 | F97: -1 | G97: 0.0001407782925 | H97: 0 | I97: 1 | X97: VERMELHA II | Y97: REH 3.306/2024 | Z97: 78.77
C98: Receita Requerida Total | D98: =D39+D41 -> 8109686717 | E98: =E39+E41 -> 8145261381 | F98: =IFERROR(E98/D98-1,0) -> 0.004386687787 | I98: 1
C99: Efeito Médio | D99: =LnkTxtEfeito -> 0.06855935181 | E99: =(E39+E41/(1+IF(Mercado!H13>0,Mercado!H13,0)))/(D39+D41/(1+IF(Mercado!G13>0,Mercado!G13,0)))-1 -> 0.004457229451 | I99: =IF(AND(G99=0,E99=0),0,1) -> 1
AF100: Tabela de cálculo de fatores de atualização da CVA M2 devido à desconcatenação
O101: Previsão de liquidação de Energia no MCP informada pela distribuidora (preencher se informado) | T101: Projeção de PLD (Informa CCEE) | U101: Projeção de venda de energia no MCP | V101: Projeção de resultado MCP | X101: Previsão de acionamento de bandeiras (Informa CCEE) | Y101: Adicional de bandeiras | Z101: Mercado Bandeiras | AA101: Arrecadação de bandeiras | AB101: ="Expectativa de disponibilidade de bandeiras para "&E12 -> Expectativa de disponibilidade de bandeiras para 2027 | AF101: Quantidade de meses de desconcatenação | AG101: Atualização SELIC (Delta para Saldo a compensar) | AH101: somatório da atualização SELIC de "n" deltas consecutivos | AI101: Atualização SELIC de "a compensar" para "em processamento" | AJ101: Fator de cálculo da CVA M2 devido à desconcatenação
C102: Receita RA1 PCAT com ajuste de mercado sobre financeiros | D102: =(D39+D41/(1+IF(Mercado!G13>0,Mercado!G13,0))) -> 8109117185 | O102: Mês | P102: =U102 -> MWh | Q102: Perfil de liquidação | S102: Competência | T102: R$/MWh | U102: MWh | V102: R$ | X102: Bandeira | Y102: R$/MWh | Z102: Mercado TE (MWh) | AA102: R$ | AB102: R$ | AF102: n | AG102: % | AH102: % | AI102: % | AJ102: %
C103: Valor estimado da base de cálculo do efeito médio em 2025 | D103: =(D102)/(1+D99) -> 7588831796 | E103: =D102 -> 8109117185 | O103: =EDATE(CAPA!C15,1) -> 46113 | Q103: =P103/$P$115 ->  | S103: =O103 -> 46113 | T103: =VLOOKUP(S103,pld_gsf_previsao,2) -> 272 | U103: =IF(MAX($P$103:$P$114)>0,P103,IF((Energia!$H$24-Energia!$I$24)>0,(Energia!$H$24-Energia!$I$24)/12,0)) -> 165622.2928 | V103: =($P$160-T103)*U103 -> 4788411.607 | X103: =LOOKUP(S103,$W$136:$W$152,$AB$136:$AB$152) -> VERDE | Y103: =IF(X103="VERDE",0,VLOOKUP(X103,$X$95:$Z$97,3)) -> 0 | Z103: =SUMIFS(Mercado_Receita!P:P,Mercado_Receita!K:K,EDATE('Previsão N+1'!S103,-12)) -> 623646.769 | AA103: =Z103*Y103 -> 0 | AB103: =AA103*VLOOKUP(EDATE(CAPA!$C$15,12),Índices!$B$7:$F$500,5)/VLOOKUP('Previsão N+1'!S103,Índices!$B$7:$F$500,5) -> 0 | AF103: 0 | AG103: 0 | AH103: =SUM($AG$103:AG103)/12 -> 0 | AI103: =IFERROR(PMT($E$8,12,-1)*12,0)-1 -> 0.07672664321 | AJ103: =(AH103)*(1+AI103) -> 0
O104: =EDATE(O103,1) -> 46143 | S104: =EDATE(S103,1) -> 46143 | T104: 177 | U104: =IF(MAX($P$103:$P$114)>0,P104,IF((Energia!$H$24-Energia!$I$24)>0,(Energia!$H$24-Energia!$I$24)/12,0)) -> 165622.2928 | V104: 20522529.43 | X104: =LOOKUP(S104,$W$136:$W$152,$AB$136:$AB$152) -> VERDE | Y104: =IF(X104="VERDE",0,VLOOKUP(X104,$X$95:$Z$97,3)) -> 0 | Z104: =SUMIFS(Mercado_Receita!P:P,Mercado_Receita!K:K,EDATE('Previsão N+1'!S104,-12)) -> 648892.672 | AA104: 0 | AB104: =AA104*VLOOKUP(EDATE(CAPA!$C$15,12),Índices!$B$7:$F$500,5)/VLOOKUP('Previsão N+1'!S104,Índices!$B$7:$F$500,5) -> 0 | AF104: =AF103+1 -> 1 | AG104: =(1+$E$8)^(AF104) -> 1.011560563 | AH104: =SUM($AG$103:AG104)/12 -> 0.08429671361 | AI104: =IFERROR(PMT($E$8,12,-1)*12,0)-1 -> 0.07672664321 | AJ104: =(AH104)*(1+AI104) -> 0.09076451748
O105: =EDATE(O104,1) -> 46174 | S105: =EDATE(S104,1) -> 46174 | T105: 225 | U105: =IF(MAX($P$103:$P$114)>0,P105,IF((Energia!$H$24-Energia!$I$24)>0,(Energia!$H$24-Energia!$I$24)/12,0)) -> 165622.2928 | V105: 12572659.37 | X105: AMARELA | Y105: 18.85 | Z105: =SUMIFS(Mercado_Receita!P:P,Mercado_Receita!K:K,EDATE('Previsão N+1'!S105,-12)) -> 588220.827 | AA105: 11087962.59 | AB105: =AA105*VLOOKUP(EDATE(CAPA!$C$15,12),Índices!$B$7:$F$500,5)/VLOOKUP('Previsão N+1'!S105,Índices!$B$7:$F$500,5) -> 12271873.84 | AF105: =AF104+1 -> 2 | AG105: 1.023254773 | AH105: =SUM($AG$103:AG105)/12 -> 0.1695679447 | AI105: 0.07672664321 | AJ105: 0.1825783239
C106: Diferimento proposto | D106: 0 | E106: =-D106*(1+D8) -> 0 | H106: % equilavente RI | O106: 46204 | S106: 46204 | T106: 226 | U106: =IF(MAX($P$103:$P$114)>0,P106,IF((Energia!$H$24-Energia!$I$24)>0,(Energia!$H$24-Energia!$I$24)/12,0)) -> 165622.2928 | V106: 12407037.08 | X106: VERMELHA I | Y106: 44.63 | Z106: =SUMIFS(Mercado_Receita!P:P,Mercado_Receita!K:K,EDATE('Previsão N+1'!S106,-12)) -> 572734.686 | AA106: 25561149.04 | AB106: =AA106*VLOOKUP(EDATE(CAPA!$C$15,12),Índices!$B$7:$F$500,5)/VLOOKUP('Previsão N+1'!S106,Índices!$B$7:$F$500,5) -> 27939618.08 | AF106: 3 | AG106: 1.035084175 | AH106: =SUM($AG$103:AG106)/12 -> 0.2558249593 | AI106: 0.07672664321 | AJ106: 0.2754535497
C107: Efeito P&D | D107: =0.01*D106 -> 0 | E107: =E106*1% -> 0 | F107: <- considerando que diferimento não seja de CDE | O107: 46235 | S107: 46235 | T107: 230 | U107: =IF(MAX($P$103:$P$114)>0,P107,IF((Energia!$H$24-Energia!$I$24)>0,(Energia!$H$24-Energia!$I$24)/12,0)) -> 165622.2928 | V107: 11744547.91 | X107: VERMELHA I | Y107: 44.63 | Z107: =SUMIFS(Mercado_Receita!P:P,Mercado_Receita!K:K,EDATE('Previsão N+1'!S107,-12)) -> 641864.627 | AA107: 28646418.3 | AB107: =AA107*VLOOKUP(EDATE(CAPA!$C$15,12),Índices!$B$7:$F$500,5)/VLOOKUP('Previsão N+1'!S107,Índices!$B$7:$F$500,5) -> 30957266.46 | AF107: 4 | AG107: 1.047050331 | AH107: =SUM($AG$103:AG107)/12 -> 0.3430791536 | AI107: 0.07672664321 | AJ107: 0.3694024654
C108: Efeito RI | D108: =H108*D106 -> 0 | E108: =H108*E106 -> 0 | H108: =D37/(D39+D41) -> 0 | O108: 46266 | S108: 46266 | T108: 115 | U108: =IF(MAX($P$103:$P$114)>0,P108,IF((Energia!$H$24-Energia!$I$24)>0,(Energia!$H$24-Energia!$I$24)/12,0)) -> 165622.2928 | V108: 30791111.58 | X108: VERDE | Y108: 0 | Z108: =SUMIFS(Mercado_Receita!P:P,Mercado_Receita!K:K,EDATE('Previsão N+1'!S108,-12)) -> 678322.661 | AA108: 0 | AB108: =AA108*VLOOKUP(EDATE(CAPA!$C$15,12),Índices!$B$7:$F$500,5)/VLOOKUP('Previsão N+1'!S108,Índices!$B$7:$F$500,5) -> 0 | AF108: 5 | AG108: 1.059154823 | AH108: =SUM($AG$103:AG108)/12 -> 0.4313420555 | AI108: 0.07672664321 | AJ108: 0.4644374835
C109: Efeito TFSEE | D109: =Encargos!J15*Encargos!J14*D106*0 -> 0 | E109: =0.004*E106*0 -> 0 | F109: <- considerar se diferimento for de PB | O109: 46296 | S109: 46296 | T109: 299 | U109: =IF(MAX($P$103:$P$114)>0,P109,IF((Energia!$H$24-Energia!$I$24)>0,(Energia!$H$24-Energia!$I$24)/12,0)) -> 165622.2928 | V109: 316609.7002 | X109: AMARELA | Y109: 18.85 | Z109: =SUMIFS(Mercado_Receita!P:P,Mercado_Receita!K:K,EDATE('Previsão N+1'!S109,-12)) -> 769409.584 | AA109: 14503370.66 | AB109: =AA109*VLOOKUP(EDATE(CAPA!$C$15,12),Índices!$B$7:$F$500,5)/VLOOKUP('Previsão N+1'!S109,Índices!$B$7:$F$500,5) -> 15320240.7 | AF109: 6 | AG109: 1.071399249 | AH109: =SUM($AG$103:AG109)/12 -> 0.5206253262 | AI109: 0.07672664321 | AJ109: 0.5605711599
C110: Receita Requerida com diferimento | D110: =D39+D41+D106+D107+D108+D109 -> 8109686717 | E110: =E98+E106+E107+E108 -> 8145261381 | O110: 46327 | S110: 46327 | T110: 613 | U110: =IF(MAX($P$103:$P$114)>0,P110,IF((Energia!$H$24-Energia!$I$24)>0,(Energia!$H$24-Energia!$I$24)/12,0)) -> 165622.2928 | V110: -51688790.25 | X110: VERMELHA II | Y110: 78.77 | Z110: =SUMIFS(Mercado_Receita!P:P,Mercado_Receita!K:K,EDATE('Previsão N+1'!S110,-12)) -> 745056.841 | AA110: 58688127.37 | AB110: =AA110*VLOOKUP(EDATE(CAPA!$C$15,12),Índices!$B$7:$F$500,5)/VLOOKUP('Previsão N+1'!S110,Índices!$B$7:$F$500,5) -> 61357873.33 | AF110: 7 | AG110: 1.083785228 | AH110: =SUM($AG$103:AG110)/12 -> 0.6109407619 | AI110: 0.07672664321 | AJ110: 0.6578161958
O111: 46357 | S111: 46357 | T111: 375 | U111: =IF(MAX($P$103:$P$114)>0,P111,IF((Energia!$H$24-Energia!$I$24)>0,(Energia!$H$24-Energia!$I$24)/12,0)) -> 165622.2928 | V111: -12270684.55 | X111: AMARELA | Y111: 18.85 | Z111: =SUMIFS(Mercado_Receita!P:P,Mercado_Receita!K:K,EDATE('Previsão N+1'!S111,-12)) -> 667461.711 | AA111: 12581653.25 | AB111: =AA111*VLOOKUP(EDATE(CAPA!$C$15,12),Índices!$B$7:$F$500,5)/VLOOKUP('Previsão N+1'!S111,Índices!$B$7:$F$500,5) -> 12997934.11 | AF111: 8 | AG111: 1.096314396 | AH111: =SUM($AG$103:AG111)/12 -> 0.7023002949 | AI111: 0.07672664321 | AJ111: 0.7561854391
D112: =D12 -> 2026 | E112: =E12 -> 2027 | O112: 46388 | S112: 46388 | T112: 407 | U112: =IF(MAX($P$103:$P$114)>0,P112,IF((Energia!$H$24-Energia!$I$24)>0,(Energia!$H$24-Energia!$I$24)/12,0)) -> 165622.2928 | V112: -17570597.93 | X112: VERDE | Y112: 0 | Z112: =SUMIFS(Mercado_Receita!P:P,Mercado_Receita!K:K,EDATE('Previsão N+1'!S112,-12)) -> 632217.465 | AA112: 0 | AB112: =AA112*VLOOKUP(EDATE(CAPA!$C$15,12),Índices!$B$7:$F$500,5)/VLOOKUP('Previsão N+1'!S112,Índices!$B$7:$F$500,5) -> 0 | AF112: 9 | AG112: 1.108988408 | AH112: =SUM($AG$103:AG112)/12 -> 0.7947159956 | AI112: 0.07672664321 | AJ112: 0.8556918862
C113: Efeito médio com diferimento | D113: =(D39+D107+D109+(D41+D106)/(1+IF(Mercado!G13>0,Mercado!G13,0)))/D103-1 -> 0.06855935181 | E113: =(E39+E107+E110+(E41+E106)/(1+IF(Mercado!H13>0,Mercado!H13,0)))/(D39+D107+D110+(D41+D106)/(1+IF(Mercado!G13>0,Mercado!G13,0)))-1 -> 0.004421957381 | G113: Diferença efeito | H113: =E113-D113 -> -0.06413739443 | O113: 46419 | S113: 46419 | T113: 347 | U113: =IF(MAX($P$103:$P$114)>0,P113,IF((Energia!$H$24-Energia!$I$24)>0,(Energia!$H$24-Energia!$I$24)/12,0)) -> 165622.2928 | V113: -7633260.356 | X113: VERDE | Y113: 0 | Z113: =SUMIFS(Mercado_Receita!P:P,Mercado_Receita!K:K,EDATE('Previsão N+1'!S113,-12)) -> 618437.629 | AA113: 0 | AB113: =AA113*VLOOKUP(EDATE(CAPA!$C$15,12),Índices!$B$7:$F$500,5)/VLOOKUP('Previsão N+1'!S113,Índices!$B$7:$F$500,5) -> 0 | AF113: 10 | AG113: 1.121808939 | AH113: =SUM($AG$103:AG113)/12 -> 0.8882000738 | AI113: 0.07672664321 | AJ113: 0.9563486839
O114: 46447 | S114: 46447 | T114: 64 | U114: =IF(MAX($P$103:$P$114)>0,P114,IF((Energia!$H$24-Energia!$I$24)>0,(Energia!$H$24-Energia!$I$24)/12,0)) -> 165622.2928 | V114: 39237848.52 | X114: VERDE | Y114: 0 | Z114: =SUMIFS(Mercado_Receita!P:P,Mercado_Receita!K:K,EDATE('Previsão N+1'!S114,-12)) -> 618437.629 | AA114: 0 | AB114: =AA114*VLOOKUP(EDATE(CAPA!$C$15,12),Índices!$B$7:$F$500,5)/VLOOKUP('Previsão N+1'!S114,Índices!$B$7:$F$500,5) -> 0 | AF114: 11 | AG114: 1.134777682 | AH114: =SUM($AG$103:AG114)/12 -> 0.9827648806 | AI114: 0.07672664321 | AJ114: 1.058169131
P115: =SUM(P103:P114) -> 0 | S115: Total | U115: =SUM(U103:U114) -> 1987467.514 | V115: =SUM(V103:V114) -> 43217422.1 | X115: Arrecadação de conta Bandeira 5du | AB115: =SUM(AB102:AB114) -> 160844806.5
X116: Arrecadação de conta Bandeiras em processamento | AB116: =-12*PMT(E8,12,AB115) -> 173185888.6
O117: Energia - Percentuais de perdas regulatórias
O118: Perdas Regulatórias | P118: DRP | Q118: DRP +1 | X118: Alocação de receita de bandeiras em ESS/EER | AB118: =MIN(AB116,(1-0.637)*E23*(-12*PMT(E8,12,1))) -> 72242018.1 | AC118: <- Expectativa de reserva de recursos para cobertura de CVA de ESS/EER.
C119: Estimativa Efeito (sem diferimento) | D119: =D112 -> 2026 | E119: =E112 -> 2027 | O119: PNT | P119: =Energia!I13 -> 0.07342613513 | Q119: =P119 -> 0.07342613513 | R119: <- Atenção!!! Preencher percentual de perdas não técnicas previsto para próximo ano | X119: Alocação de receita de bandeiras em Energia | AB119: =AB116-AB118 -> 100943870.5
C120: Parcela A | D120: =Resultado!D39 -> 4807152490 | E120: =E14 -> 4882820892 | O120: PT | P120: =Energia!I14 -> 0.08779 | Q120: =P120 -> 0.08779
C121: Parcela B | D121: =Resultado!D41 -> 0 | E121: =E38 -> 3365658347 | O121: P_RB | P121: =Energia!I15 -> 0.01518880945 | Q121: 0.01518880945
C122: Financeiros | D122: =D41 -> 11792491.92 | E122: =E41 -> -103217857.8 | O122: P_DIT (MWh) | P122: =SUMIFS(TabPerdaDIT[Valor],TabPerdaDIT[Dados de perda],"Perdas DITs") -> 14902.63757 | Q122: =P122 -> 14902.63757
C123: Diferimento | D123: 0 | E123: 0
C124: RA1 + Financeiros | D124: =SUBTOTAL(9,D120:D123) -> 4818944982 | E124: =SUBTOTAL(9,E120:E123) -> 8145261381 | O124: Energia - Mercado de referência
C125: Efeito médio | D125: =D99 -> 0.06855935181 | E125: =E99 -> 0.004457229451 | O125: Mercado | P125: MWh DRP | Q125: MWh DRP +1
O126: Fornecimento | P126: =Energia!I4 -> 9539147.854 | Q126: =P126*(1+$D$2) -> 9539147.854
C127: Estimativa Efeito (com diferimento) | D127: =D119 -> 2026 | E127: =E119 -> 2027 | O127: Suprimento (Mercado TE) | P127: =Energia!D8 -> 0 | Q127: =P127*(1+$D$2) -> 0
C128: Parcela A | D128: =D14+D107+D108+D109 -> 4807152490 | E128: =E14+E107+E108+E109 -> 4882820892 | O128: Suprimento (Mercado TUSD) | P128: =Energia!I5 -> 0 | Q128: =P128*(1+$D$3) -> 0
C129: Parcela B | D129: =D38 -> 3290741735 | E129: =E38 -> 3365658347 | O129: Livre Total + Distribuição | P129: =Energia!I6+Energia!I7 -> 3834296.215 | Q129: =P129*(1+$D$3) -> 3834296.215
C130: Financeiros | D130: =D41 -> 11792491.92 | E130: =E41 -> -103217857.8 | O130: A1 | P130: =Energia!I8 -> 0 | Q130: =P130*(1+$D$3) -> 0
C131: Diferimento | D131: =D106 -> 0 | E131: =E106 -> 0 | O131: BT | P131: =Energia!I9 -> 7887964.265 | Q131: =P131*(1+$D$2) -> 7887964.265
C132: RA1 + Financeiros | D132: =SUM(D128:D131) -> 8109686717 | E132: =SUM(E128:E131) -> 8145261381 | O132: GD | P132: =Energia!J4 -> 3936272.863 | Q132: =P132*(1+$D$4) -> 4723527.436
C133: Efeito médio | D133: =D113 -> 0.06855935181 | E133: =E113 -> 0.004421957381
O134: Energia - Cálculo das perdas de acordo com percentuais regulatórios e mercado
O135: Descrição | P135: DRP | Q135: DRP+1 | W135: Competência | X135: PLD | Y135: Status_PLD | Z135: GSF | AA135: Status_GSF | AB135: Previsão Bandeira
O136: % Não Técnica (sobre Baixa Tensão) | P136: =P119 -> 0.07342613513 | Q136: 0.07342613513 | W136: 46023 | X136: 183 | Y136: VIGEN. | Z136: 95 | AA136: VIGEN. | AB136: =IF(X136<LOOKUP(MAX((100-Z136)/100,0.01),$W$33:$W$83,$Y$33:$Y$83),"VERDE",IF(X136<LOOKUP(MAX((100-Z136)/100,0.01),$W$33:$W$83,$AA$33:$AA$83),"AMARELA",IF(X136<LOOKUP(MAX((100-Z136)/100,0.01),$W$33:$W$83,$AC$33:$AC$83),"VERMELHA I","VERMELHA II"))) -> VERDE
O137: % Técnica (sobre energia injetada) | P137: 0.08779 | Q137: 0.08779 | W137: 46054 | X137: 355 | Y137: VIGEN. | Z137: 100 | AA137: VIGEN. | AB137: =IF(X137<LOOKUP(MAX((100-Z137)/100,0.01),$W$33:$W$83,$Y$33:$Y$83),"VERDE",IF(X137<LOOKUP(MAX((100-Z137)/100,0.01),$W$33:$W$83,$AA$33:$AA$83),"AMARELA",IF(X137<LOOKUP(MAX((100-Z137)/100,0.01),$W$33:$W$83,$AC$33:$AC$83),"VERMELHA I","VERMELHA II"))) -> VERDE
O138: % Rede Básica (s/ merc. Injetado) | P138: 0.01518880945 | Q138: 0.01518880945 | W138: 46082 | X138: 349 | Y138: PROJ. | Z138: 107 | AA138: PROJ. | AB138: VERDE
O139: Perda Não Técnica | P139: =P136*$P$131 -> 579182.7301 | Q139: =Q136*$Q$131 -> 579182.7301 | W139: 46113 | X139: 272 | Y139: PROJ. | Z139: 99 | AA139: PROJ. | AB139: VERDE
O140: Perda Técnica + Perdas DITs | P140: =SUM(P126,P128:P129,-$P$130,P139)/(1-P137)*P137+P144 -> 1357686.763 | Q140: =SUM(Q126,Q128:Q129,-$Q$130,Q139,Q132)/(1-Q137)*Q137+Q144 -> 1812273.397 | W140: 46143 | X140: 177 | Y140: PROJ. | Z140: 84 | AA140: PROJ. | AB140: VERDE
O141: Perda Rede Básica sobre Dist. | P141: =SUM(P139:P140)*P138 -> 29418.74165 | Q141: =SUM(Q139:Q140)*Q138 -> 36323.37141 | W141: 46174 | X141: 225 | Y141: PROJ. | Z141: 76 | AA141: PROJ. | AB141: AMARELA
O142: Perda Rede Básica sobre mercado Cat. | P142: =(SUM(P126,-P132)+P127)*P121 -> 85101.0006 | Q142: =(SUM(Q126,-Q132)+Q127)*Q121 -> 73143.54091 | W142: 46204 | X142: 226 | Y142: PROJ. | Z142: 66 | AA142: PROJ. | AB142: VERMELHA I
W143: 46235 | X143: 230 | Y143: PROJ. | Z143: 65 | AA143: PROJ. | AB143: VERMELHA I
O144: Perdas DIT (sobre mercado) | P144: =SUMIFS(TabPerdaDIT[Valor],TabPerdaDIT[Dados de perda],"Perdas DITs") -> 14902.63757 | Q144: =SUMIFS(TabPerdaDIT[Valor],TabPerdaDIT[Dados de perda],"Perdas DITs") -> 14902.63757 | W144: 46266 | X144: 115 | Y144: PROJ. | Z144: 75 | AA144: PROJ. | AB144: VERDE
O145: Perdas Técnicas (sem dits) | P145: =SUM(P126,P128:P129,-$P$130,P139,P132)/(1-P137)*P137 -> 1721606.32 | Q145: =SUM($Q$126:$Q$129,-$Q$130,Q139,Q132)/(1-Q137)*Q137 -> 1797370.759 | W145: 46296 | X145: 299 | Y145: PROJ. | Z145: 81 | AA145: PROJ. | AB145: AMARELA
W146: 46327 | X146: 613 | Y146: PROJ. | Z146: 80 | AA146: PROJ. | AB146: VERMELHA II
O147: Energia - Sintese do cálculod e energia requerida | W147: 46357 | X147: 375 | Y147: PROJ. | Z147: 84 | AA147: PROJ. | AB147: AMARELA
O148: Energia Requerida | P148: =P135 -> DRP | Q148: =Q135 -> DRP+1 | W148: 46388 | X148: 407 | Y148: PROJ. | Z148: 96 | AA148: PROJ. | AB148: VERDE
O149: =Energia!B6 -> Fornecimento + Suprimento | P149: =P150+P151 -> 5602874.991 | Q149: =Q150+Q151 -> 4815620.418 | W149: 46419 | X149: 347 | Y149: PROJ. | Z149: 103 | AA149: PROJ. | AB149: VERDE
O150: =Energia!B7 -> Fornecimento - GD_injetado | P150: =P126-P132 -> 5602874.991 | Q150: =Q126-Q132 -> 4815620.418 | W150: 46447 | X150: 64 | Y150: PROJ. | Z150: 109 | AA150: PROJ. | AB150: VERDE
O151: =Energia!B8 -> Suprimento (Mercado TE) | P151: =P127 -> 0 | Q151: =Q127 -> 0 | W151: 46478 | X151: 57 | Y151: PROJ. | Z151: 101 | AA151: PROJ. | AB151: VERDE
O152: =Energia!B9 -> Perdas Regulatórias | P152: =SUM(P153:P156) -> 2051389.235 | Q152: =SUM(Q153:Q156) -> 2500923.039 | AB152: VERDE
O153: =Energia!B10 -> Perda Não Técnica | P153: =P139 -> 579182.7301 | Q153: 579182.7301
O154: =Energia!B11 -> Perda Técnica | P154: 1357686.763 | Q154: 1812273.397 | W154: Arquivo | X154: InfoPLD_Diario03032026.pdf
O155: =Energia!B12 -> Perda Rede Básica sobre Dist. | P155: 29418.74165 | Q155: 36323.37141 | W155: Hora de atualização: | X155: 2026-03-04T06:58:26
O156: =Energia!B13 -> Perda Rede Básica sobre mercado Cat. | P156: 85101.0006 | Q156: 73143.54091
O157: Energia Requerida | P157: =P149+P152 -> 7654264.226 | Q157: =Q149+Q152 -> 7316543.458
O159: Energia - Custo médio futuro
O160: =Energia!B14 -> Custo Médio | P160: =Energia!D14 -> 300.911637 | Q160: =P160*(1+D5) -> 313.0642164
O162: Energia - Cálculo da CVA M2 de energia conforme desconcatenação de contratos | R162: Energia - Custo médio futuro
O163: Energia | P163: DRP | Q163: DRP +1 | R163: Descasamento CVA (meses) | S163: Deslta total para estimativa de CVA M2 | T163: Fator de cálculo da CVA M2
O164: =Energia!B21 -> Geração Própria | P164: =Energia!E21 -> 609815.3781 | Q164: =Energia!F21 -> 0 | R164: 0 | S164: =Q164-P164 -> -609815.3781 | T164: =IFERROR(VLOOKUP(R164,$AF$103:$AJ$114,5),0) -> 0
O165: =Energia!B22 -> Cota Angra I/Angra II | P165: =Energia!E22 -> 54534716.18 | Q165: =P165*(1+D5) -> 56737148.35 | R165: =MONTH(LnkTxtDRPData)-1 -> 3 | S165: =Q165-P165 -> 2202432.176 | T165: 0.2754535497
O166: =Energia!B23 -> Cotas Lei n º 12783/2013 | P166: =Energia!E23 -> 186503068.9 | Q166: =P166*(1+D5) -> 194035158.4 | R166: =MONTH(LnkTxtDRPData)-1+12-7 -> 8 | S166: 7532089.44 | T166: 0.7561854391
O167: =Energia!B24 -> Itaipu (tirando as perdas) | P167: =Energia!E24 -> 249781617.6 | Q167: =P167*(1+D5) -> 259869266.5 | R167: =MONTH(LnkTxtDRPData)-1+12-7 -> 8 | S167: 10087648.93 | T167: 0.7561854391
O168: =Energia!B25 -> PROINFA | P168: =Energia!E25 -> 0 | Q168: =Energia!F25 -> 0 | S168: 0 | T168: 0
O169: =Energia!B26 -> Bilateral | P169: =Energia!E26 -> 543143170.5 | Q169: =P169*(1+D4) -> 651771804.6 | S169: 108628634.1 | T169: 0
O170: CCEAR | P170: =Energia!E28 -> 1268684790 | Q170: =P170*(1+D5) -> 1319921734 | R170: 6 | S170: 51236944.04 | T170: 0.5605711599
O171: Total | P171: =SUM(P164:P170) -> 2303257178 | Q171: =SUM(Q164:Q170) -> 2482335111
U173: PARCELA B - Usado apenas de o próximo processo for uma revisão
U175: Ciclo tarifário (anos) | V175: =VLOOKUP(CAPA!$N$2,V197:X249,3) -> 5 | X175: IPCA ciclo | Y175: =VLOOKUP(EDATE(CAPA!C15,12),Índices!$B$8:$F$500,3)/VLOOKUP(EDATE(CAPA!C15,-12*(V175-1)),Índices!$B$8:$F$500,3)-1 -> 0.2383101143
U177: Dados da última revisão tarifária | V177: Valores homologados na última RTP | W177: Última RTP com crescimento de BRR projetado | Z177: Crescimento de PB projetado | AB177: Estimativa de limites inferiores e superiores (CP 62)
U178: Custos Operacionais | V178: 1072420582 | W178: =IFERROR(V178*(1-AD184),0) -> 1050212621 | AC178: Valor CP 62 (12/2020) | AD178: Valor na data da última RTP
U179: Anuidades | V179: 121992637.4 | W179: =IFERROR(V179*(1+AC188),0) -> 136468334 | Z179: =W185/V185-1 -> 0.1145429898 | AC179: 44166 | AD179: =DATE(LOOKUP(CAPA!N2,'Previsão N+1'!V197:V249,'Previsão N+1'!W197:W249),MONTH(LnkTxtDRPData),1) -> 45017
U180: Remuneração | V180: 551405936.6 | W180: =IFERROR(V180*(1+AC189),0) -> 703437461.4 | AB180: Limite inferior de CO | AC180: =LOOKUP(CAPA!C8,'Previsão N+1'!$U$312:$U$363,'Previsão N+1'!BE312:BE363)*1000 -> 773440122.3 | AD180: =AC180*VLOOKUP(EDATE($AD$179,-1),Índices!$B$7:$F$500,3)/VLOOKUP($AC$179,Índices!$B$7:$F$500,3) -> 919359991.1
U181: Depreciação | V181: 317982503.6 | W181: =IFERROR(V181*(1+AC190),0)*Z181 -> 388556469.2 | Y181: Aumento tx. depreciação | Z181: =4.1%/3.82% -> 1.073298429 | AB181: Limite superior de CO | AC181: =LOOKUP(CAPA!C8,'Previsão N+1'!$U$315:$U$366,'Previsão N+1'!BF315:BF366)*1000 -> 812581071.5 | AD181: =AC181*VLOOKUP(EDATE($AD$179,-1),Índices!$B$7:$F$500,3)/VLOOKUP($AC$179,Índices!$B$7:$F$500,3) -> 965885406.2
U182: Outras Receitas | V182: -141784206.9 | W182: =V182 -> -141784206.9 | X182: <- supondo manutenção da participação
U183: UDEROR | V183: -46099715.48 | W183: =V183 -> -46099715.48 | X183: <- supondo manutenção da participação | AC183: Atual | AD183: Próxima Revisão
U184: Ajuste Investimentos 2CRTP | AB184: Fator T | AC184: =LnkTxtFatorT -> 0.01762 | AD184: =-((AD181/V178)^(1/5)-1) -> 0.02070825685
U185: PARCELA B | V185: =SUM(V178:V184) -> 1875917737 | W185: =SUM(W178:W184) -> 2090790963
W187: variação anual média Brasil | X187: =LnkTxtNomeResumido -> EMT | Y187: Média região | Z187: Peso Brasil | AA187: Peso região | AB187: Expectativa de crescimento anual usada na projeção | AC187: crescimento real no ciclo, descontada a inflação e variação de mercado
U188: Estimativa de crescimento real de de AIS projetado para o ciclo | W188: =Y308 -> 0.02088112685 | X188: =Y309 -> 0.02082369792 | Y188: =Y310 -> 0.02633441146 | Z188: 0.333333 | AA188: 0.333333 | AB188: =W188*(Z188)+Y188*AA188+X188*(1-Z188-AA188) -> 0.02267974355 | AC188: =((1+AB188)^$V$175)-1 -> 0.1186604123
U189: Estimativa de crescimento real de de BRL projetada para o ciclo | W189: =AA308 -> 0.04087612112 | X189: =AA309 -> 0.04629815234 | Y189: =AA310 -> 0.06254659076 | Z189: 0.333333 | AA189: 0.333333 | AB189: =W189*(Z189)+Y189*AA189+X189*(1-Z189-AA189) -> 0.04990695113 | AC189: =((1+AB189)^$V$175)-1 -> 0.2757161553
U190: Estimativa de crescimento real de de BRB projetada para o ciclo | W190: =Z308 -> 0.02102286384 | X190: =Z309 -> 0.02539380761 | Y190: =Z310 -> 0.03242488834 | Z190: 0.333333 | AA190: 0.333333 | AB190: 0.02628051905 | AC190: =((1+AB190)^$V$175)-1 -> 0.1384931602
U193: Dados de crescimento de Base de Remuneração das concessionárias observado nas última revisões tarifárias
Y194: Input da última RTP | AC194: Inputs da penúltima RTP (Atualizado para data da última RTP) | AG194: Output (última RTP) | AH194: Output (penúltima RTP)
V195: ID Agente | W195: Última RTP | X195: Ciclo | Y195: AIS | Z195: BRB | AA195: BRL | AB195: Número IPCA | AC195: AIS | AD195: BRB | AE195: BRL | AF195: Número IPCA | AG195: MWh | AH195: MWh
Y196: 413 | Z196: 417 | AA196: 426 | AC196: 413 | AD196: 417 | AE196: 426 | AG196: Energia TUSD (Energia Injetada) | AH196: Energia TUSD (Energia Injetada)
U197: Energisa AC | V197: 26 | W197: 2023 | X197: 5 | Y197: 2594685496 | Z197: 1426712835 | AA197: 1043042084 | AB197: 6735.67449 | AC197: 1503406817 | AD197: 916245625.7 | AE197: 596000790.6 | AF197: 5468.573472 | AG197: 1232551.137 | AH197: 1097923.064
U198: CEA | V198: 31 | W198: 2023 | X198: 5 | Y198: 2000430775 | Z198: 1505040169 | AA198: 940690254.7 | AB198: 6735.67449 | AC198: 0 | AD198: 0 | AE198: 0 | AF198: 5103.69 | AG198: 1130651.722 | AH198: 1056635.607
U199: Energisa TO | V199: 32 | W199: 2020 | X199: 4 | Y199: 4304184896 | Z199: 2004739384 | AA199: 1370455804 | AB199: 5321.21097 | AC199: 2893348044 | AD199: 1144224633 | AE199: 577082363.8 | AF199: 4690.658259 | AG199: 2411250.662 | AH199: 2173682.333
U200: Equatorial MA | V200: 37 | W200: 2021 | X200: 4 | Y200: 1.027670243e+10 | Z200: 6421994461 | AA200: 4365600367 | AB200: 5825.37 | AC200: 7807568634 | AD200: 4921565389 | AE200: 3309956657 | AF200: 4843.87 | AG200: 6747227.429 | AH200: 6065935.195
U201: Equatorial PI | V201: 38 | W201: 2023 | X201: 5 | Y201: 8472870626 | Z201: 4253089915 | AA201: 3102549073 | AB201: 6737.279791 | AC201: 5971799056 | AD201: 2701776382 | AE201: 1671301647 | AF201: 5458.241044 | AG201: 4076370.609 | AH201: 3759074.012
U202: Enel CE | V202: 39 | W202: 2023 | X202: 4 | Y202: 1.528626106e+10 | Z202: 1.119043108e+10 | AA202: 7196269954 | AB202: 6609.67 | AC202: 9483557461 | AD202: 7023006640 | AE202: 4241297386 | AF202: 5177.47 | AG202: 12650692.66 | AH202: 12009534.27
U203: Neoenergia RN | V203: 40 | W203: 2023 | X203: 5 | Y203: 5878331727 | Z203: 4595044647 | AA203: 3448020099 | AB203: 6609.67 | AC203: 3685461469 | AD203: 2553480179 | AE203: 1652645302 | AF203: 4950.95 | AG203: 5795898.503 | AH203: 5614984.767
U204: Neoenergia PE | V204: 43 | W204: 2021 | X204: 4 | Y204: 1.115947486e+10 | Z204: 9229257396 | AA204: 5648102700 | AB204: 5674.72 | AC204: 7812490850 | AD204: 6246987221 | AE204: 3514868913 | AF204: 4821.69 | AG204: 13900820.45 | AH204: 13595445.26
U205: Equatorial AL | V205: 44 | W205: 2024 | X205: 4 | Y205: 5576686378 | Z205: 3945212206 | AA205: 2567519828 | AB205: 6890.262606 | AC205: 3521605270 | AD205: 2436881793 | AE205: 1354070251 | AF205: 5354.908188 | AG205: 4359230.405 | AH205: 3868836.446
U206: SULGIPE | V206: 46 | W206: 2022 | X206: 5 | Y206: 507694939.5 | Z206: 203597674.9 | AA206: 119358174.4 | AB206: 6382.88 | AC206: 350547134.4 | AD206: 130059967.9 | AE206: 65142615.76 | AF206: 4828.44 | AG206: 491118.552 | AH206: 378578.001
U207: Neoenergia BA | V207: 47 | W207: 2023 | X207: 5 | Y207: 3.717913712e+10 | Z207: 2.341301925e+10 | AA207: 1.527856881e+10 | AB207: 6609.67 | AC207: 2.14498354e+10 | AD207: 1.289865022e+10 | AE207: 7380489706 | AF207: 4950.95 | AG207: 21402755.21 | AH207: 19669734.6
U208: DMED | V208: 51 | W208: 2020 | X208: 5 | Y208: 348153464.5 | Z208: 281519479.2 | AA208: 164414371.2 | AB208: 5438.12 | AC208: 230544499.4 | AD208: 193772671.4 | AE208: 116132551.1 | AF208: 4370.12 | AG208: 518765.816 | AH208: 458821.905
... 155 more rows

Sheet CAPA
B1: SPARTA | C1: ajuste botões | R1: DF | S1: Sudeste/Centro Oeste
B2: Helenístico LX | C2: 0.95 | M2: =C23 -> 117 | N2: =C22 -> 405
C3: Macro Ver.
C4: 81.06
B6: EMT | C6: =VLOOKUP(B6,TabEmpresas[#Data],5,FALSE) -> NÃO SUPRIDA | L6: CodigoSamp | M6: Empresa | N6: Nome Completo | O6: IdSgtAg | P6: CodigoSamp | Q6: Supridora/suprida | R6: Financeiro 243 (TUSD) | S6: Databse Fin. 243 | T6: Contrato de Concessão | U6: Data Aditivo (Cont Novo) | V6: Cidade Sede | W6: CNPJ | X6: Novo/Antigo | Y6: DtRevisao-2023:2027 | Z6: idCiclo | AA6: Considerar passante | AB6: AnoRevisao | AC6: Obs
B7: =VLOOKUP(B6,TabEmpresas[#Data],2,FALSE) -> Energisa Mato Grosso - Distribuidora de Energia S.A. | C7: Reajuste | G7: Últ. Atualização | L7: 7019 | M7: Amazonas Energia | N7: Amazonas Energia S.A. | O7: 102 | P7: 7019 | Q7: NÃO SUPRIDA | T7: 1/2019 | U7: 42579 | V7: Manaus - AM | W7: 02.341.467/0001-20 | X7: N | Y7: 45438 | Z7: 5 | AA7: N
B8: CÓDIGO DA EMPRESA | C8: ="D" & TEXT(C23-100,"00") -> D17 | F8: Info iniciais | G8: 2026-02-26T14:42:31 | L8: 31 | M8: CEA | N8: Companhia de Eletricidade do Amapá | O8: 107 | P8: 31 | Q8: NÃO SUPRIDA | T8: 01/2021 | U8: 42606 | V8: Macapá - AP | W8: 05.965.546/0001-09 | X8: N | Y8: 46369 | Z8: 5 | AA8: S | AB8: RTP-2026
B9: Data do Reajuste/Revisão Anterior | C9: 45755 | F9: Energia do ano anterior (CM compra, MWh Mercado, R$ Mercado) | G9: 2026-02-26T14:41:53 | L9: 5707 | M9: CEEE-D | N9: Companhia Estadual de Distribuição de Energia Elétrica | O9: 110 | P9: 5707 | Q9: NÃO SUPRIDA | T9: 81/1999 | U9: 42347 | V9: Porto Alegre - RS | W9: 08.467.115/0001-00 | X9: N | Y9: 46348 | Z9: 5 | AA9: S | AB9: RTP-2026
B10: Data de Reajuste/Revisão em Processamento | C10: 46120 | F10: Perdas Regulatórias | G10: 2026-02-26T14:41:53 | L10: 5697 | M10: Celesc-Dis | N10: Celesc Distribuição S.A. | O10: 111 | P10: 5697 | Q10: NÃO SUPRIDA | T10: 56/1999 | U10: 42347 | V10: Florianópolis - SC | W10: 08.336.783/0001-90 | X10: N | Y10: 46256 | Z10: 5 | AA10: S | AB10: RTP-2026
F11: TUSDg ONS-RB | G11: 2026-02-26T14:41:53 | L11: 4950 | M11: Cemig-D | N11: Cemig Distribuição S.A. | O11: 118 | P11: 4950 | Q11: NÃO SUPRIDA | T11: 3/1997 | U11: 42359 | V11: Belo Horizonte - MG | W11: 06.981.180/0001-16 | X11: N | Y11: 45074 | Z11: 5 | AA11: N
F12: Perda de RB | G12: 2026-02-26T14:41:53 | L12: 103 | M12: CHESP | N12: Companhia Hidroelétrica São Patrício | O12: 123 | P12: 103 | Q12: SUPRIDA | T12: 44/1999 | U12: 42347 | V12: Ceres - GO | W12: 01.377.555/0001-10 | X12: N | Y12: 46348 | Z12: 5 | AA12: S | AB12: RTP-2026
F13: Perda DIT | G13: 2026-02-26T14:41:53 | L13: 82 | M13: Cocel | N13: Companhia Campolarguense de Energia | O13: 128 | P13: 82 | Q13: SUPRIDA | T13: 27/1998 | U13: 42347 | V13: Campo Largo - PR | W13: 75.805.895/0001-30 | X13: N | Y13: 46202 | Z13: 5 | AA13: S | AB13: RTP-2026
F14: Encargos ano anterior (não RTE) | G14: 2026-02-26T14:41:53 | L14: 2904 | M14: Cooperaliança | N14: Cooperativa Aliança | O14: 131 | P14: 2904 | Q14: SUPRIDA | T14: 145/2002 | U14: 42347 | V14: Iraça - SC | W14: 83.647.990/0001-81 | X14: N | Y14: 46628 | Z14: 5 | AA14: N
B15: Período de Referencia final | C15: =DATE(YEAR($C$10),MONTH($C$10)-1,1) -> 46082 | F15: Dados da Revisão, Fator X e DecFec | G15: 2026-02-26T14:42:19 | L15: 2866 | M15: Copel-Dis | N15: Copel Distribuição S.A. | O15: 132 | P15: 2866 | Q15: NÃO SUPRIDA | T15: 46/1999 | U15: 42347 | V15: Curitiba - PR | W15: 04.368.898/0001-06 | X15: N | Y15: 46197 | Z15: 5 | AA15: S | AB15: RTP-2026
B16: Período de Referencia inicial | C16: =DATE(YEAR($C$10)-1,MONTH($C$10),1) -> 45748 | F16: Custos Operacionais/Beta | G16: 2026-02-26T14:42:31 | L16: 63 | M16: CPFL Paulista | N16: Companhia Paulista de Força e Luz | O16: 136 | P16: 63 | Q16: NÃO SUPRIDA | T16: 14/1997 | V16: Campinas - SP | W16: 33.050.196/0001-88 | X16: A | Y16: 45024 | Z16: 5 | AA16: N
B17: Índice IGPM na data Revisão/Reajuste | C17: =VLOOKUP(C15,Índices!$B$7:$F$500,2,FALSE) -> 1185.499 | F17: Previsão de Subsidios dos Processos Anteriores | G17: 2026-02-26T14:42:24 | L17: 2937 | M17: CPFL Piratininga | N17: Companhia Piratininga de Força e Luz | O17: 135 | P17: 2937 | Q17: NÃO SUPRIDA | T17: 9/2002 | V17: Sorocaba - SP | W17: 04.172.213/0001-51 | X17: A | Y17: 45222 | Z17: 4 | AA17: N
B18: Índice IPCA na data Revisão/Reajuste | C18: =VLOOKUP(C15,Índices!$B$7:$F$500,3,FALSE) -> 7517.48 | F18: Conexão ano anterior | G18: 2026-02-26T14:42:24 | L18: 1000041 | M18: CPFL Santa Cruz | N18: Companhia Jaguari de Energia | O18: 166 | P18: 1000041 | Q18: NÃO SUPRIDA | T18: 15/1999 | U18: 42347 | V18: Jaguariúna - SP | W18: 53.859.112/0001-69 | X18: N | Y18: 46103 | Z18: 5 | AA18: S | AB18: RTP-2026
B19: IGPM para o período de Referência | C19: =VLOOKUP(DATE(YEAR($C$10),MONTH($C$10)-1,1),Índices!$B$7:$F$500,2,FALSE)/VLOOKUP(DATE(YEAR($C$9),MONTH($C$9)-1,1),Índices!$B$7:$F$500,2,FALSE)-1 -> -0.01978862805 | F19: Receita de Bandeira | G19: 2026-02-26T14:42:28 | L19: 87 | M19: DCELT | N19: Distribuidora Catarinense de Energia Elétrica Ltda | O19: 158 | P19: 87 | Q19: NÃO SUPRIDA | T19: 50/1999 | U19: 42353 | V19: Xanxerê - SC | W19: 83.855.973/0001-30 | X19: N | Y19: 46263 | Z19: 5 | AA19: S | AB19: RTP-2026
B20: IPCA para o período de Referência | C20: =VLOOKUP(DATE(YEAR(C10),MONTH(C10)-1,1),Índices!$B$7:$F$500,3,FALSE)/VLOOKUP(DATE(YEAR($C$9),MONTH($C$9)-1,1),Índices!$B$7:$F$500,3,FALSE)-1 -> 0.03755496606 | F20: Financeiros | G20: 2026-03-23T16:39:37 | L20: 95 | M20: Demei | N20: Departamento Municipal de Energia de Ijuí | O20: 138 | P20: 95 | Q20: SUPRIDA | T20: 85/2000 | U20: 42347 | V20: Ijuí - RS | W20: 95.289.500/0001-00 | X20: N | Y20: 46590 | Z20: 5 | AA20: N
B21: Dados Gerenciais | F21: Financeiros ano anterior (CVA 5º dia útil, RTE restante) | G21: 2026-02-26T14:43:11 | L21: 51 | M21: DME-D | N21: DME Distribuição S.A. | O21: 139 | P21: 51 | Q21: NÃO SUPRIDA | T21: 49/1999 | U21: 42347 | V21: Poços de Caldas - MG | W21: 23.664.303/0001-04 | X21: N | Y21: 45983 | Z21: 5 | AA21: S | AB21: RTP-2025
B22: IdAgente | C22: =VLOOKUP(B6,TabEmpresas[#Data],4,FALSE) -> 405 | F22: Financeiro Desconcatenação Permissionárias | G22: 2026-02-26T14:43:17 | L22: 26 | M22: EAC | N22: Energisa Acre - Distribuidora de Energia S.A | O22: 146 | P22: 26 | Q22: NÃO SUPRIDA | T22: 3/2018 | U22: 42579 | V22: Rio Branco - AC | W22: 04.065.033/0001-70 | X22: N | Y22: 45273 | Z22: 5 | AA22: N
B23: ID Concessão | C23: =VLOOKUP(B6,TabEmpresas[#Data],3,FALSE) -> 117 | F23: Garantias Financeiras | G23: 2026-02-26T14:43:22 | L23: 6611 | M23: EBO | N23: Energisa Borborema - Distribuidora de Energia S.A | O23: 140 | P23: 6611 | Q23: NÃO SUPRIDA | T23: 8/2000 | V23: Campina Grande - PB | W23: 08.826.596/0001-95 | X23: A | Y23: 45897 | Z23: 4 | AA23: N
F24: Itens extraordinários REN1000/covid/escassez | G24: 2026-03-23T16:39:37 | L24: 380 | M24: EDP ES | N24: EDP Espírito Santo Distribuição de Energia S.A. | O24: 154 | P24: 380 | Q24: NÃO SUPRIDA | T24: 1/1995 | V24: Vitória - ES | W24: 28.152.650/0001-71 | X24: A | Y24: 45876 | Z24: 3 | AA24: S | AB24: RTP-2025
B25: Quadro para vínculos | F25: Energia (CCEAR, Bil., Itaipu) | G25: 2026-03-23T16:31:04 | L25: 391 | M25: EDP SP | N25: EDP São Paulo Distribuição de Energia S.A. | O25: 104 | P25: 391 | Q25: NÃO SUPRIDA | T25: 202/1998 | V25: São Paulo - SP | W25: 02.302.100/0001-06 | X25: A | Y25: 45222 | Z25: 4 | AA25: N
B26: Descrição | C26: valor | F26: CCEAR | G26: 2026-03-19T13:46:25 | L26: 86 | M26: EFLUL | N26: Empresa Força e Luz de Urussanga Ltda | O26: 144 | P26: 86 | Q26: SUPRIDA | T26: 25/1999 | U26: 42347 | V26: Urussanga - SC | W26: 86.531.175/0001-40 | X26: N | Y26: 46263 | Z26: 5 | AA26: S | AB26: RTP-2026
B27: Tipo de contrato | C27: =IF(VLOOKUP(B6,TabEmpresas[],12,FALSE)="A", "Antigo","Novo") -> Antigo | F27: GSF, PLD, Fator de Rateio de RH e MWm Repactuado | G27: 2026-03-19T13:47:41 | L27: 398 | M27: Eletrocar | N27: Centrais Elétricas de Carazinho S.A. | O27: 147 | P27: 398 | Q27: SUPRIDA | T27: 84/2000 | U27: 42347 | V27: Carazinho - RS | W27: 88.446.034/0001-55 | X27: N | Y27: 46590 | Z27: 5 | AA27: N
B28: Contrato de concessão | C28: =VLOOKUP(B6,TabEmpresas[],8,FALSE) -> 3/1997 | F28: Itaipu (Energia, Transporte, MUST) | G28: 2026-03-23T16:31:04 | L28: 6585 | M28: EMG | N28: Energisa Minas Gerais - Distribuidora de Energia S.A. | O28: 150 | P28: 6585 | Q28: NÃO SUPRIDA | T28: 40/1999 | U28: 42347 | V28: Cataguases - MG | W28: 19.527.639/0001-58 | X28: N | Y28: 46195 | Z28: 5 | AA28: S | AB28: RTP-2026 | AC28: Agrupada
B29: Número do Processo | C29: 48500.030639/2025-71 | F29: Cotas Lei/Angra | G29: 2026-03-19T13:47:41 | L29: 404 | M29: EMS | N29: Energisa Mato Grosso do Sul - Distribuidora de Energia S.A. | O29: 151 | P29: 404 | Q29: NÃO SUPRIDA | T29: 1/1997 | V29: Campo Grande - MS | W29: 15.413.826/0001-50 | X29: A | Y29: 45024 | Z29: 5 | AA29: N
B30: Período de Referencia | C30: =TEXT(C16,"mmmm/aaaa")& " a "&TEXT(C15,"mmmm/aaaa") -> abril/2025 a março/2026 | F30: Encargos DRP | G30: 2026-03-04T06:49:45 | L30: 405 | M30: EMT | N30: Energisa Mato Grosso - Distribuidora de Energia S.A. | O30: 117 | P30: 405 | Q30: NÃO SUPRIDA | T30: 3/1997 | V30: Cuiabá - MT | W30: 03.467.321/0001-99 | X30: A | Y30: 45024 | Z30: 5 | AA30: N
B31: Início da vigênica por extenso | C31: =DAY(LnkTxtDRPData)&" de "&TEXT(LnkTxtDRPData,"mmmmmm")&" de "&YEAR(LnkTxtDRPData) -> 8 de abril de 2026 | F31: Indicadores Econômicos / Dólar | G31: 2026-03-30T11:48:55 | H31: Quando for necessário atualizar, lembrar-se de acrescentar indices SELIC anteriores à 2000. | L31: 39 | M31: ENEL CE | N31: Companhia Energética do Ceará | O31: 130 | P31: 39 | Q31: NÃO SUPRIDA | T31: 1/1998 | V31: Fortaleza - CE | W31: 07.047.251/0001-70 | X31: A | Y31: 45038 | Z31: 4 | AA31: N
B32: CNPJ | C32: =VLOOKUP(B6,TabEmpresas[],11,FALSE) -> 03.467.321/0001-99 | F32: Tudo Mercado | G32: 2026-03-27T17:06:40 | L32: 6072 | M32: ENEL GO | N32: Enel Distribuição Goiás | O32: 112 | P32: 6072 | Q32: NÃO SUPRIDA | T32: 63/2000 | U32: 42367 | V32: Goiânia - GO | W32: 01.543.032/0001-04 | X32: N | Y32: 45221 | Z32: 5 | AA32: N
B33: Período de competência de previsão de subsídios | C33: =TEXT(EDATE(Aj.Subsidio!G19,12),"mmmmmm")&"/"&TEXT(EDATE(Aj.Subsidio!G19,12),"aaaa")&" a "&TEXT(EDATE(Aj.Subsidio!R19,12),"mmmmmm")&"/"&TEXT(EDATE(Aj.Subsidio!R19,12),"aaaa") -> abril/2026 a março/2027 | F33: SAMP_Fornecimento/Receita_Uso e Tab_EnergiaConsumidaMWh | G33: 2026-03-27T17:04:42 | L33: 383 | M33: ENEL RJ | N33: Ampla Energia e Serviços S.A. | O33: 103 | P33: 383 | Q33: NÃO SUPRIDA | T33: 5/1996 | U33: 42808 | V33: Rio de Janeiro - RJ | W33: 33.050.071/0001-58 | X33: N | Y33: 45000 | Z33: 5 | AA33: N
B34: Período de competência de ajuste de subsídios | C34: =TEXT(Aj.Subsidio!G19,"mmmmmm")&"/"&TEXT(Aj.Subsidio!G19,"aaaa")&" a "&TEXT(Aj.Subsidio!R19,"mmmmmm")&"/"&TEXT(Aj.Subsidio!R19,"aaaa") -> abril/2025 a março/2026 | F34: SAMP_balanco | G34: 2026-03-27T17:05:45 | L34: 390 | M34: ENEL SP | N34: Eletropaulo Metropolitana Eletricidade de São Paulo S.A. | O34: 148 | P34: 390 | Q34: NÃO SUPRIDA | T34: 162/1998 | V34: São Paulo - SP | W34: 61.695.227/0001-93 | X34: A | Y34: 45111 | Z34: 4 | AA34: N
B35: Cidade Sede | C35: =VLOOKUP(B6,TabEmpresas[],10,FALSE) -> Cuiabá - MT | F35: Subsídio concomitante Irrigante - Fonte incentivada | G35: 2026-03-27T17:06:40 | L35: 6612 | M35: ENF | N35: Energisa Nova Friburgo - Distribuidora de Energia S.A. | O35: 152 | P35: 6612 | Q35: SUPRIDA | T35: 42/1999 | U35: 42347 | V35: Nova Friburgo - RJ | W35: 33.249.046/0001-06 | X35: N | Y35: 46195 | Z35: 5 | AA35: S | AB35: RTP-2026 | AC35: Agrupada
B36: Receita | C36: =IF(Mercado!D24>2000000000,ROUND(Mercado!D24/1000000000,2)&" bilhões",IF(Mercado!D24>1000000000,ROUND(Mercado!D24/1000000000,2)&" bilhão",IF(Mercado!D24>100000000,ROUND(Mercado!D24/1000000,0)&" milhões",IF(Mercado!D24>10000000,ROUND(Mercado!D24/1000000,1)&" milhões",IF(Mercado!D24>2000000,ROUND(Mercado!D24/1000000,2)&" milhões",IF(Mercado!D24>1000000,ROUND(Mercado!D24/1000000,2)&" milhão",ROUND(Mercado!D24/1000,0)&" mil")))))) -> 8,03 bilhões | F36: Rede Básica e Conexão | G36: 2026-03-16T15:25:48 | L36: 6600 | M36: EPB | N36: Energisa Paraíba - Distribuidora de Energia S.A. | O36: 153 | P36: 6600 | Q36: NÃO SUPRIDA | T36: 19/2001 | V36: João Pessoa - PB | W36: 09.095.183/0001-40 | X36: A | Y36: 45897 | Z36: 4 | AA36: S | AB36: RTP-2025
B37: Unidades Consumidoras | C37: =IF(Mercado!E38>2000000,ROUND(Mercado!E38/1000000,2)&" milhões de",IF(Mercado!E38>1000000,ROUND(Mercado!E38/1000000,2)&" milhão de",IF(Mercado!E38>100000,ROUND(Mercado!E38/1000,0)&" mil",IF(Mercado!E38>10000,ROUND(Mercado!E38/1000,1)&" mil",IF(Mercado!E38>1000,ROUND(Mercado!E38/1000,2)&" mil",Mercado!E38))))) -> 1,73 milhão de | F37: Histórico de Tarifas B1 Residencial | L37: 44 | M37: Equatorial AL | N37: Equatorial Alagoas Distribuidora de Energia S.A. | O37: 108 | P37: 44 | Q37: NÃO SUPRIDA | T37: 2/2019 | U37: 42579 | V37: Maceió - AL | W37: 12.272.084/0001-00 | X37: N | Y37: 45415 | Z37: 5 | AA37: N
B38: Data SAMP | C38: =TEXT(_xlfn.MAXIFS(Mercado_Receita!K:K,Mercado_Receita!B:B,"regular"),"mmmmmm")&"/"&YEAR(_xlfn.MAXIFS(Mercado_Receita!K:K,Mercado_Receita!B:B,"regular")) -> fevereiro/2026 | F38: CVA | G38: 2026-03-23T15:44:13 | L38: 37 | M38: Equatorial MA | N38: Equatorial Maranhão Distribuidora de Energia S.A. | O38: 116 | P38: 37 | Q38: NÃO SUPRIDA | T38: 60/2000 | V38: São Luís - MA | W38: 06.272.793/0001-84 | X38: A | Y38: 45897 | Z38: 4 | AA38: S | AB38: RTP-2025
B39: Classificação mercado próprio | C39: >700 | F39: CUSD | G39: 2026-03-19T17:13:00 | L39: 371 | M39: Equatorial PA | N39: Equatorial Pará Distribuidora de Energia S.A. | O39: 113 | P39: 371 | Q39: NÃO SUPRIDA | T39: 182/1998 | V39: Belém - PA | W39: 04.895.728/0001-80 | X39: A | Y39: 45145 | Z39: 4 | AA39: N
B40: Data Reunião Pública - RPO | C40: =IF(MOD(LnkTxtDRPData,7)>0,ROUNDDOWN(LnkTxtDRPData/7,0)*7+3,ROUNDDOWN(LnkTxtDRPData/7,0)*7-4)-7 -> 46112 | F40: Suprimento: Financeiro de Ultrapassagem e Sobrecontratação | L40: 38 | M40: Equatorial PI | N40: Equatorial Piauí Distribuidora de Energia S.A. | O40: 119 | P40: 38 | Q40: NÃO SUPRIDA | T40: 1/2018 | U40: 42579 | V40: Teresina - PI | W40: 06.840.748/0001-89 | X40: N | Y40: 45262 | Z40: 5 | AA40: N
B41: Data limite Atualização Indicadores Econômicos (RPO-8) | C41: =C40-8 -> 46104 | F41: Uderor | G41: 2026-03-04T06:54:25 | L41: 369 | M41: ERO | N41: Energisa Rondônia - Distribuidora de Energia S.A. | O41: 120 | P41: 369 | Q41: NÃO SUPRIDA | T41: 2/2018 | U41: 42579 | V41: Porto Velho - RO | W41: 05.914.650/0001-66 | X41: N | Y41: 45273 | Z41: 5 | AA41: N
B42: Resolução Homologatória (processo anterior) | C42: REH nº 3.440, de 01 de abril de 2025 | F42: BMP/RIT | G42: 2026-03-04T06:55:30 | L42: 6587 | M42: ESE | N42: Energisa Sergipe - Distribuidora de Energia S.A. | O42: 155 | P42: 6587 | Q42: NÃO SUPRIDA | T42: 7/1997 | V42: Aracajú - SE | W42: 13.017.462/0001-63 | X42: A | Y42: 45038 | Z42: 5 | AA42: N
B43: Efeito médio do último processo tarifário | C43: 0.0179 | F43: Componente Q do Fator X | G43: 2026-03-27T17:11:39 | L43: 1000040 | M43: ESS | N43: Energisa Sul-Sudeste - Distribuidora de Energia S.A. | O43: 165 | P43: 1000040 | Q43: NÃO SUPRIDA | T43: 13/1999 | U43: 42347 | V43: Presidente Prudente - SP | W43: 07.282.377/0001-20 | X43: N | Y43: 46215 | Z43: 5 | AA43: S | AB43: RTP-2026
B44: Índice Inflacionário do contrato | C44: =IF(VLOOKUP(B6,TabEmpresas[#Data],12,FALSE)="N","IPCA","IGP-M") -> IGP-M | F44: GSF e PLD futuros (para previsão de efeito futuro) | G44: 2026-03-04T06:58:26 | L44: 32 | M44: ETO | N44: Energisa Tocantins Distribuidora de Energia S.A. | O44: 115 | P44: 32 | Q44: NÃO SUPRIDA | T44: 52/1999 | U44: 43805 | V44: Palmas - TO | W44: 25.086.034/0001-71 | X44: N | Y44: 45842 | Z44: 5 | AA44: S | AB44: RTP-2025
B45: Variação do Índice Inflacionário (12 meses) | C45: =IF(VLOOKUP(B6,TabEmpresas[#Data],12,FALSE)="N",LnkTxtIPCA,LnkTxtIGPM) -> -0.01978862805 | F45: DIC FIC | G45: 2026-03-04T06:59:00 | L45: 83 | M45: Forcel | N45: Força e Luz Coronel Vivida Ltda. | O45: 156 | P45: 83 | Q45: SUPRIDA | T45: 69/1999 | U45: 42347 | V45: Coronel Vivida - PR | W45: 79.850.574/0001-09 | X45: N | Y45: 46260 | Z45: 5 | AA45: S | AB45: RTP-2026
B46: Resoluções Homologatórias da RAP e TUST | C46: REH nº 3.481 e 3.482, ambas de 15 de julho de 2025 | L46: 399 | M46: Hidropan | N46: Hidropan Distribuição de Energia S.A. | O46: 157 | P46: 399 | Q46: SUPRIDA | T46: 86/2000 | U46: 42347 | V46: Panambi - RS | W46: 91.982.348/0001-87 | X46: N | Y46: 46590 | Z46: 5 | AA46: N
B47: Deslocar mercado | C47: Não | L47: 88 | M47: João Cesa | N47: Empresa Força e Luz João Cesa Ltda. | O47: 143 | P47: 88 | Q47: SUPRIDA | T47: 26/1999 | U47: 42347 | V47: Siderópolis - SC | W47: 86.301.124/0001-22 | X47: N | Y47: 46263 | Z47: 5 | AA47: S | AB47: RTP-2026
B48: Data de processamento em simulação | C48: 43811 | L48: 382 | M48: Light | N48: Light Serviços de Eletricidade S.A. | O48: 160 | P48: 382 | Q48: NÃO SUPRIDA | T48: 1/1996 | U48: 42803 | V48: Rio de Janeiro - RJ | W48: 60.444.437/0001-46 | X48: N | Y48: 46461 | Z48: 5 | AA48: N
L49: 401 | M49: Mux Energia | N49: Muxfeldt Marin E Cia Ltda | O49: 161 | P49: 401 | Q49: SUPRIDA | T49: 87/2000 | U49: 42347 | V49: Tapejara - RS | W49: 97.578.090/0001-34 | X49: N | Y49: 46590 | Z49: 5 | AA49: N
B50: Ano do Reajuste/Revisão em processamento | C50: =YEAR(C10) -> 2026 | L50: 5160 | M50: Neoenergia Brasília | N50: Neoenergia Distribuição Brasília S.A. | O50: 109 | P50: 5160 | Q50: NÃO SUPRIDA | T50: 66/1999 | U50: 42347 | V50: Brasília - DF | W50: 07.522.669/0001-92 | X50: N | Y50: 46317 | Z50: 5 | AA50: S | AB50: RTP-2026
L51: 47 | M51: Neoenergia Coelba | N51: Companhia de Eletricidade do Estado da Bahia | O51: 129 | P51: 47 | Q51: NÃO SUPRIDA | T51: 10/1997 | V51: Salvador - BA | W51: 15.139.629/0001-94 | X51: A | Y51: 45038 | Z51: 5 | AA51: N
L52: 40 | M52: Neoenergia Cosern | N52: Companhia Energetica do Rio Grande do Norte | O52: 133 | P52: 40 | Q52: NÃO SUPRIDA | T52: 8/1997 | V52: Natal - RN | W52: 08.324.196/0001-81 | X52: A | Y52: 45038 | Z52: 5 | AA52: N
L53: 385 | M53: Neoenergia Elektro | N53: Elektro Redes S.A. | O53: 145 | P53: 385 | Q53: NÃO SUPRIDA | T53: 187/1998 | V53: Campinas - SP | W53: 02.328.280/0001-97 | X53: A | Y53: 45165 | Z53: 4 | AA53: N
L54: 43 | M54: Neoenergia Pernambuco | N54: Companhia Energética de Pernambuco | O54: 114 | P54: 43 | Q54: NÃO SUPRIDA | T54: 26/2000 | V54: Recife - PE | W54: 10.835.932/0001-08 | X54: A | Y54: 45776 | Z54: 4 | AA54: S | AB54: RTP-2025
L55: 400 | M55: Nova Palma | N55: Nova Palma Energia Ltda. | O55: 164 | P55: 400 | Q55: SUPRIDA | T55: 107/2001 | U55: 42347 | V55: Faxinal do Soturno - RS | W55: 89.889.604/0001-44 | X55: N | Y55: 46590 | Z55: 5 | AA55: N
L56: 1000042 | M56: RGE | N56: RGE Sul Distribuidora de Energia S.A. | O56: 167 | P56: 1000042 | Q56: NÃO SUPRIDA | T56: 12/1997 | V56: São Leopoldo - RS | W56: 02.016.440/0001-62 | X56: A | Y56: 45096 | Z56: 5 | AA56: N
L57: 370 | M57: Roraima Energia | N57: Roraima Energia S.A. | O57: 105 | P57: 370 | Q57: NÃO SUPRIDA | T57: 4/2018 | U57: 42579 | V57: Boa Vista - RR | W57: 02.341.470/0001-44 | X57: N | Y57: 45316 | Z57: 5 | AA57: N
L58: 381 | M58: Santa Maria | N58: Empresa Luz e Força Santa Maria S/A | O58: 149 | P58: 381 | Q58: SUPRIDA | T58: 20/1999 | U58: 42347 | V58: Colatina - ES | W58: 27.485.069/0001-09 | X58: N | Y58: 46287 | Z58: 5 | AA58: S | AB58: RTP-2026
L59: 46 | M59: Sulgipe | N59: Companhia Sul Sergipana de Eletricidade | O59: 163 | P59: 46 | Q59: SUPRIDA | T59: 91/1999 | U59: 42347 | V59: Estância - SE | W59: 13.255.658/0001-96 | X59: N | Y59: 46529 | Z59: 5 | AA59: N

Sheet Multas Geradores
A1: Considerar | B1: Ato Legal | D1: Produto | E1: Valor nominal das multas | F1: Valor atualizado das multas | G1: Valor atualizado já revertido à modicidade | H1: Diferença a ser revertida
A2: S | B2: Desp. nº 4.863/2023 | C2: Goiânia II | D2: 2009-T15 | E2: =SUMIFS($Q:$Q,$T:$T,CAPA!$C$22,$K:$K,$C2,$P:$P,'Multas Geradores'!$D2) -> 13185.48 | F2: =SUMIFS($S:$S,$T:$T,CAPA!$C$22,$K:$K,$C2,$P:$P,'Multas Geradores'!$D2) -> 17438.40537 | G2: =SUMIFS($X:$X,$T:$T,CAPA!$C$22,$K:$K,$C2,$P:$P,'Multas Geradores'!$D2) -> -16842.34961 | H2: =IF(A2="S",F2+G2,0) -> 596.0557639
A3: S | B3: Desp. nº 2.495/2024 | C3: Termoceará | D3: 2009-T15 | E3: =SUMIFS($Q:$Q,$T:$T,CAPA!$C$22,$K:$K,$C3,$P:$P,'Multas Geradores'!$D3) -> 65477.12 | F3: =SUMIFS($S:$S,$T:$T,CAPA!$C$22,$K:$K,$C3,$P:$P,'Multas Geradores'!$D3) -> 87389.7243 | G3: =SUMIFS($X:$X,$T:$T,CAPA!$C$22,$K:$K,$C3,$P:$P,'Multas Geradores'!$D3) -> 0 | H3: =IF(A3="S",F3+G3,0) -> 87389.7243
A4: S | B4: Desp. nº 2.495/2024 | C4: Termoceará | D4: 2010-T15 | E4: =SUMIFS($Q:$Q,$T:$T,CAPA!$C$22,$K:$K,$C4,$P:$P,'Multas Geradores'!$D4) -> 788678.48 | F4: =SUMIFS($S:$S,$T:$T,CAPA!$C$22,$K:$K,$C4,$P:$P,'Multas Geradores'!$D4) -> 1052617.997 | G4: =SUMIFS($X:$X,$T:$T,CAPA!$C$22,$K:$K,$C4,$P:$P,'Multas Geradores'!$D4) -> 0 | H4: 1052617.997
B6: =LnkTxtNomeResumido -> EMT | J6: Ato legal | K6: Usina | L6: Perfil agente VENDEDOR | M6: Perfil agente COMPRADOR | N6: Código do Contrato CliqCCEE | O6: Leilão | P6: Produto | Q6: Valor da Multa | R6: Data Base Recisão | S6: Valor atualizado da multa | T6: Código Empresa | U6: Já revertida em processo anterior (S/N) | V6: Quanto foi revertido? | W6: Data reversão | X6: Valor já revertido atualizado
J7: Desp. nº 4.863/2023 | K7: Goiânia II | L7: BRENTECH 1LN | M7: AMPLA | N7: 17327 | O7: 1º LEN | P7: 2009-T15 | Q7: 15929.44 | R7: 45280 | S7: =Q7*VLOOKUP(CAPA!$C$15,Índices!$B$8:$F$1000,5)/VLOOKUP(EDATE('Multas Geradores'!R7,-1),Índices!$B$8:$F$1000,5) -> 21067.41902 | T7: =VLOOKUP(M7,$Z$7:$AD$64,2) -> 383 | U7: N | X7: =IFERROR(V7*VLOOKUP(CAPA!$C$15,Índices!$B$8:$F$1000,5)/VLOOKUP(EDATE('Multas Geradores'!W7,-1),Índices!$B$8:$F$1000,5),0) -> 0 | Z7: AMPLA | AA7: 383 | AB7: ENEL RJ | AC7: Ampla Energia e Serviços S.A.
J8: Desp. nº 4.863/2023 | K8: Goiânia II | L8: BRENTECH 1LN | M8: BANDEIRANTE | N8: 17329 | O8: 1º LEN | P8: 2009-T15 | Q8: 18568.15 | R8: 45280 | S8: =Q8*VLOOKUP(CAPA!$C$15,Índices!$B$8:$F$1000,5)/VLOOKUP(EDATE('Multas Geradores'!R8,-1),Índices!$B$8:$F$1000,5) -> 24557.23468 | T8: 391 | U8: N | X8: =IFERROR(V8*VLOOKUP(CAPA!$C$15,Índices!$B$8:$F$1000,5)/VLOOKUP(EDATE('Multas Geradores'!W8,-1),Índices!$B$8:$F$1000,5),0) -> 0 | Z8: BANDEIRANTE | AA8: 391 | AB8: EDP SP | AC8: EDP São Paulo Distribuição de Energia S.A.
J9: Desp. nº 4.863/2023 | K9: Goiânia II | L9: BRENTECH 1LN | M9: CEAL | N9: 17324 | O9: 1º LEN | P9: 2009-T15 | Q9: 3361.81 | R9: 45280 | S9: =Q9*VLOOKUP(CAPA!$C$15,Índices!$B$8:$F$1000,5)/VLOOKUP(EDATE('Multas Geradores'!R9,-1),Índices!$B$8:$F$1000,5) -> 4446.148761 | T9: 44 | U9: N | X9: =IFERROR(V9*VLOOKUP(CAPA!$C$15,Índices!$B$8:$F$1000,5)/VLOOKUP(EDATE('Multas Geradores'!W9,-1),Índices!$B$8:$F$1000,5),0) -> 0 | Z9: CEAL | AA9: 44 | AB9: Equatorial AL | AC9: Equatorial Alagoas Distribuidora de Energia S.A.
J10: Desp. nº 4.863/2023 | K10: Goiânia II | L10: BRENTECH 1LN | M10: CEB DISTRIBUIC | N10: 17325 | O10: 1º LEN | P10: 2009-T15 | Q10: 21286.28 | R10: 45280 | S10: =Q10*VLOOKUP(CAPA!$C$15,Índices!$B$8:$F$1000,5)/VLOOKUP(EDATE('Multas Geradores'!R10,-1),Índices!$B$8:$F$1000,5) -> 28152.08696 | T10: 5160 | U10: N | X10: =IFERROR(V10*VLOOKUP(CAPA!$C$15,Índices!$B$8:$F$1000,5)/VLOOKUP(EDATE('Multas Geradores'!W10,-1),Índices!$B$8:$F$1000,5),0) -> 0 | Z10: CEB DISTRIBUIC | AA10: 5160 | AB10: Neoenergia Brasília | AC10: Neoenergia Distribuição Brasília S.A.
J11: Desp. nº 4.863/2023 | K11: Goiânia II | L11: BRENTECH 1LN | M11: CEEE DISTRIB | N11: 17333 | O11: 1º LEN | P11: 2009-T15 | Q11: 13746.78 | R11: 45280 | S11: =Q11*VLOOKUP(CAPA!$C$15,Índices!$B$8:$F$1000,5)/VLOOKUP(EDATE('Multas Geradores'!R11,-1),Índices!$B$8:$F$1000,5) -> 18180.75051 | T11: 5707 | U11: N | X11: =IFERROR(V11*VLOOKUP(CAPA!$C$15,Índices!$B$8:$F$1000,5)/VLOOKUP(EDATE('Multas Geradores'!W11,-1),Índices!$B$8:$F$1000,5),0) -> 0 | Z11: CEEE DISTRIB | AA11: 5707 | AB11: CEEE-D | AC11: Companhia Estadual de Distribuição de Energia Elétrica
J12: Desp. nº 4.863/2023 | K12: Goiânia II | L12: BRENTECH 1LN | M12: CELESC DIST | N12: 17308 | O12: 1º LEN | P12: 2009-T15 | Q12: 58245.53 | R12: 45280 | S12: =Q12*VLOOKUP(CAPA!$C$15,Índices!$B$8:$F$1000,5)/VLOOKUP(EDATE('Multas Geradores'!R12,-1),Índices!$B$8:$F$1000,5) -> 77032.39953 | T12: 5697 | U12: N | X12: =IFERROR(V12*VLOOKUP(CAPA!$C$15,Índices!$B$8:$F$1000,5)/VLOOKUP(EDATE('Multas Geradores'!W12,-1),Índices!$B$8:$F$1000,5),0) -> 0 | Z12: CELESC DIST | AA12: 5697 | AB12: Celesc-Dis | AC12: Celesc Distribuição S.A.
J13: Desp. nº 4.863/2023 | K13: Goiânia II | L13: BRENTECH 1LN | M13: CELG | N13: 17332 | O13: 1º LEN | P13: 2009-T15 | Q13: 21717.13 | R13: 45280 | S13: =Q13*VLOOKUP(CAPA!$C$15,Índices!$B$8:$F$1000,5)/VLOOKUP(EDATE('Multas Geradores'!R13,-1),Índices!$B$8:$F$1000,5) -> 28721.90595 | T13: 6072 | U13: N | X13: =IFERROR(V13*VLOOKUP(CAPA!$C$15,Índices!$B$8:$F$1000,5)/VLOOKUP(EDATE('Multas Geradores'!W13,-1),Índices!$B$8:$F$1000,5),0) -> 0 | Z13: CELG | AA13: 6072 | AB13: ENEL GO | AC13: Enel Distribuição Goiás
J14: Desp. nº 4.863/2023 | K14: Goiânia II | L14: BRENTECH 1LN | M14: CELPA | N14: 17313 | O14: 1º LEN | P14: 2009-T15 | Q14: 19498.83 | R14: 45280 | S14: =Q14*VLOOKUP(CAPA!$C$15,Índices!$B$8:$F$1000,5)/VLOOKUP(EDATE('Multas Geradores'!R14,-1),Índices!$B$8:$F$1000,5) -> 25788.1019 | T14: 371 | U14: N | X14: =IFERROR(V14*VLOOKUP(CAPA!$C$15,Índices!$B$8:$F$1000,5)/VLOOKUP(EDATE('Multas Geradores'!W14,-1),Índices!$B$8:$F$1000,5),0) -> 0 | Z14: CELPA | AA14: 371 | AB14: Equatorial PA | AC14: Equatorial Pará Distribuidora de Energia S.A.
J15: Desp. nº 4.863/2023 | K15: Goiânia II | L15: BRENTECH 1LN | M15: CELPE | N15: 17306 | O15: 1º LEN | P15: 2009-T15 | Q15: 33171 | R15: 45280 | S15: =Q15*VLOOKUP(CAPA!$C$15,Índices!$B$8:$F$1000,5)/VLOOKUP(EDATE('Multas Geradores'!R15,-1),Índices!$B$8:$F$1000,5) -> 43870.17724 | T15: 43 | U15: N | X15: =IFERROR(V15*VLOOKUP(CAPA!$C$15,Índices!$B$8:$F$1000,5)/VLOOKUP(EDATE('Multas Geradores'!W15,-1),Índices!$B$8:$F$1000,5),0) -> 0 | Z15: CELPE | AA15: 43 | AB15: Neoenergia Pernambuco | AC15: Companhia Energética de Pernambuco
J16: Desp. nº 4.863/2023 | K16: Goiânia II | L16: BRENTECH 1LN | M16: CEMAR | N16: 17338 | O16: 1º LEN | P16: 2009-T15 | Q16: 11687.45 | R16: 45280 | S16: =Q16*VLOOKUP(CAPA!$C$15,Índices!$B$8:$F$1000,5)/VLOOKUP(EDATE('Multas Geradores'!R16,-1),Índices!$B$8:$F$1000,5) -> 15457.19161 | T16: 37 | U16: N | X16: =IFERROR(V16*VLOOKUP(CAPA!$C$15,Índices!$B$8:$F$1000,5)/VLOOKUP(EDATE('Multas Geradores'!W16,-1),Índices!$B$8:$F$1000,5),0) -> 0 | Z16: CEMAR | AA16: 37 | AB16: Equatorial MA | AC16: Equatorial Maranhão Distribuidora de Energia S.A.
J17: Desp. nº 4.863/2023 | K17: Goiânia II | L17: BRENTECH 1LN | M17: CEMIG DISTRIB | N17: 17321 | O17: 1º LEN | P17: 2009-T15 | Q17: 45542.57 | R17: 45280 | S17: =Q17*VLOOKUP(CAPA!$C$15,Índices!$B$8:$F$1000,5)/VLOOKUP(EDATE('Multas Geradores'!R17,-1),Índices!$B$8:$F$1000,5) -> 60232.14911 | T17: 4950 | U17: N | X17: =IFERROR(V17*VLOOKUP(CAPA!$C$15,Índices!$B$8:$F$1000,5)/VLOOKUP(EDATE('Multas Geradores'!W17,-1),Índices!$B$8:$F$1000,5),0) -> 0 | Z17: CEMIG DISTRIB | AA17: 4950 | AB17: Cemig-D | AC17: Cemig Distribuição S.A.
J18: Desp. nº 4.863/2023 | K18: Goiânia II | L18: BRENTECH 1LN | M18: CEPISA | N18: 17314 | O18: 1º LEN | P18: 2009-T15 | Q18: 9214.03 | R18: 45280 | S18: =Q18*VLOOKUP(CAPA!$C$15,Índices!$B$8:$F$1000,5)/VLOOKUP(EDATE('Multas Geradores'!R18,-1),Índices!$B$8:$F$1000,5) -> 12185.9796 | T18: 4950 | U18: N | X18: =IFERROR(V18*VLOOKUP(CAPA!$C$15,Índices!$B$8:$F$1000,5)/VLOOKUP(EDATE('Multas Geradores'!W18,-1),Índices!$B$8:$F$1000,5),0) -> 0 | Z18: COELBA | AA18: 47 | AB18: Neoenergia Coelba | AC18: Companhia de Eletricidadedo Estado da Bahia
J19: Desp. nº 4.863/2023 | K19: Goiânia II | L19: BRENTECH 1LN | M19: COELBA | N19: 17322 | O19: 1º LEN | P19: 2009-T15 | Q19: 37317.37 | R19: 45280 | S19: =Q19*VLOOKUP(CAPA!$C$15,Índices!$B$8:$F$1000,5)/VLOOKUP(EDATE('Multas Geradores'!R19,-1),Índices!$B$8:$F$1000,5) -> 49353.94279 | T19: 47 | U19: S | V19: -41525.5207 | W19: 45748 | X19: =IFERROR(V19*VLOOKUP(CAPA!$C$15,Índices!$B$8:$F$1000,5)/VLOOKUP(EDATE('Multas Geradores'!W19,-1),Índices!$B$8:$F$1000,5),0) -> -47666.9937 | Z19: COELCE | AA19: 39 | AB19: ENEL CE | AC19: Companhia Energética do Ceará
J20: Desp. nº 4.863/2023 | K20: Goiânia II | L20: BRENTECH 1LN | M20: COELCE | N20: 17309 | O20: 1º LEN | P20: 2009-T15 | Q20: 22642.66 | R20: 45280 | S20: =Q20*VLOOKUP(CAPA!$C$15,Índices!$B$8:$F$1000,5)/VLOOKUP(EDATE('Multas Geradores'!R20,-1),Índices!$B$8:$F$1000,5) -> 29945.96206 | T20: 39 | U20: N | X20: =IFERROR(V20*VLOOKUP(CAPA!$C$15,Índices!$B$8:$F$1000,5)/VLOOKUP(EDATE('Multas Geradores'!W20,-1),Índices!$B$8:$F$1000,5),0) -> 0 | Z20: COPEL DISTRIB | AA20: 2866 | AB20: Copel-Dis | AC20: Copel Distribuição S.A.
J21: Desp. nº 4.863/2023 | K21: Goiânia II | L21: BRENTECH 1LN | M21: COPEL DISTRIB | N21: 17330 | O21: 1º LEN | P21: 2009-T15 | Q21: 47040.61 | R21: 45280 | S21: =Q21*VLOOKUP(CAPA!$C$15,Índices!$B$8:$F$1000,5)/VLOOKUP(EDATE('Multas Geradores'!R21,-1),Índices!$B$8:$F$1000,5) -> 62213.37609 | T21: 2866 | U21: N | X21: =IFERROR(V21*VLOOKUP(CAPA!$C$15,Índices!$B$8:$F$1000,5)/VLOOKUP(EDATE('Multas Geradores'!W21,-1),Índices!$B$8:$F$1000,5),0) -> 0 | Z21: COSERN | AA21: 40 | AB21: Neoenergia Cosern | AC21: Companhia Energetica do Rio Grande do Norte
J22: Desp. nº 4.863/2023 | K22: Goiânia II | L22: BRENTECH 1LN | M22: COSERN | N22: 17311 | O22: 1º LEN | P22: 2009-T15 | Q22: 16239.97 | R22: 45280 | S22: =Q22*VLOOKUP(CAPA!$C$15,Índices!$B$8:$F$1000,5)/VLOOKUP(EDATE('Multas Geradores'!R22,-1),Índices!$B$8:$F$1000,5) -> 21478.10926 | T22: 40 | U22: N | X22: =IFERROR(V22*VLOOKUP(CAPA!$C$15,Índices!$B$8:$F$1000,5)/VLOOKUP(EDATE('Multas Geradores'!W22,-1),Índices!$B$8:$F$1000,5),0) -> 0 | Z22: CPFL LESTE PAULISTA | AA22: 1000041 | AB22: CPFL Santa Cruz | AC22: Companhia Jaguari de Energia
J23: Desp. nº 4.863/2023 | K23: Goiânia II | L23: BRENTECH 1LN | M23: CPFL PAULISTA | N23: 17307 | O23: 1º LEN | P23: 2009-T15 | Q23: 73736.37 | R23: 45280 | S23: =Q23*VLOOKUP(CAPA!$C$15,Índices!$B$8:$F$1000,5)/VLOOKUP(EDATE('Multas Geradores'!R23,-1),Índices!$B$8:$F$1000,5) -> 97519.74982 | T23: 63 | U23: S | V23: -99212.53901 | W23: 45748 | X23: =IFERROR(V23*VLOOKUP(CAPA!$C$15,Índices!$B$8:$F$1000,5)/VLOOKUP(EDATE('Multas Geradores'!W23,-1),Índices!$B$8:$F$1000,5),0) -> -113885.7115 | Z23: CPFL PAULISTA | AA23: 63 | AB23: CPFL Paulista | AC23: Companhia Paulista de Força e Luz
J24: Desp. nº 4.863/2023 | K24: Goiânia II | L24: BRENTECH 1LN | M24: CPFL SANTA CRUZ | N24: 17316 | O24: 1º LEN | P24: 2009-T15 | Q24: 1715.42 | R24: 45280 | S24: =Q24*VLOOKUP(CAPA!$C$15,Índices!$B$8:$F$1000,5)/VLOOKUP(EDATE('Multas Geradores'!R24,-1),Índices!$B$8:$F$1000,5) -> 2268.72206 | T24: 1000041 | U24: S | V24: -1890.64 | W24: 45717 | X24: =IFERROR(V24*VLOOKUP(CAPA!$C$15,Índices!$B$8:$F$1000,5)/VLOOKUP(EDATE('Multas Geradores'!W24,-1),Índices!$B$8:$F$1000,5),0) -> -2191.180693 | Z24: CPFL PIRATINGA | AA24: 2937 | AB24: CPFL Piratininga | AC24: Companhia Piratininga de Força e Luz
J25: Desp. nº 4.863/2023 | K25: Goiânia II | L25: BRENTECH 1LN | M25: ELEKTRO | N25: 17323 | O25: 1º LEN | P25: 2009-T15 | Q25: 27188.21 | R25: 45280 | S25: =Q25*VLOOKUP(CAPA!$C$15,Índices!$B$8:$F$1000,5)/VLOOKUP(EDATE('Multas Geradores'!R25,-1),Índices!$B$8:$F$1000,5) -> 35957.66156 | T25: 385 | U25: S | V25: -31659.78 | W25: 45870 | X25: =IFERROR(V25*VLOOKUP(CAPA!$C$15,Índices!$B$8:$F$1000,5)/VLOOKUP(EDATE('Multas Geradores'!W25,-1),Índices!$B$8:$F$1000,5),0) -> -34728.61047 | Z25: CPFL SANTA CRUZ | AA25: 1000041 | AB25: CPFL Santa Cruz | AC25: Companhia Jaguari de Energia
J26: Desp. nº 4.863/2023 | K26: Goiânia II | L26: BRENTECH 1LN | M26: ELETROPAULO | N26: 17326 | O26: 1º LEN | P26: 2009-T15 | Q26: 52745.37 | R26: 45280 | S26: =Q26*VLOOKUP(CAPA!$C$15,Índices!$B$8:$F$1000,5)/VLOOKUP(EDATE('Multas Geradores'!R26,-1),Índices!$B$8:$F$1000,5) -> 69758.18428 | T26: 390 | U26: N | X26: =IFERROR(V26*VLOOKUP(CAPA!$C$15,Índices!$B$8:$F$1000,5)/VLOOKUP(EDATE('Multas Geradores'!W26,-1),Índices!$B$8:$F$1000,5),0) -> 0 | Z26: ELEKTRO | AA26: 385 | AB26: Neoenergia Elektro | AC26: Elektro Redes S.A.
J27: Desp. nº 4.863/2023 | K27: Goiânia II | L27: BRENTECH 1LN | M27: ENERGISA BORBOREMA | N27: 17317 | O27: 1º LEN | P27: 2009-T15 | Q27: 1045.7 | R27: 45280 | S27: =Q27*VLOOKUP(CAPA!$C$15,Índices!$B$8:$F$1000,5)/VLOOKUP(EDATE('Multas Geradores'!R27,-1),Índices!$B$8:$F$1000,5) -> 1382.986474 | T27: 6600 | U27: N | X27: =IFERROR(V27*VLOOKUP(CAPA!$C$15,Índices!$B$8:$F$1000,5)/VLOOKUP(EDATE('Multas Geradores'!W27,-1),Índices!$B$8:$F$1000,5),0) -> 0 | Z27: ELETROPAULO | AA27: 390 | AB27: ENEL SP | AC27: Eletropaulo Metropolitana Eletricidade de São Paulo S.A.
J28: Desp. nº 4.863/2023 | K28: Goiânia II | L28: BRENTECH 1LN | M28: ENERGISA BR | N28: 17320 | O28: 1º LEN | P28: 2009-T15 | Q28: 1003.04 | R28: 45280 | S28: =Q28*VLOOKUP(CAPA!$C$15,Índices!$B$8:$F$1000,5)/VLOOKUP(EDATE('Multas Geradores'!R28,-1),Índices!$B$8:$F$1000,5) -> 1326.566657 | T28: 1000040 | U28: N | X28: =IFERROR(V28*VLOOKUP(CAPA!$C$15,Índices!$B$8:$F$1000,5)/VLOOKUP(EDATE('Multas Geradores'!W28,-1),Índices!$B$8:$F$1000,5),0) -> 0 | Z28: ENERGISA BORBOREMA | AA28: 6600 | AB28: EPB | AC28: Energisa Paraíba - Distribuidora de Energia S.A.
J29: Desp. nº 4.863/2023 | K29: Goiânia II | L29: BRENTECH 1LN | M29: ENERGISA MR | N29: 17337 | O29: 1º LEN | P29: 2009-T15 | Q29: 1742.24 | R29: 45280 | S29: =Q29*VLOOKUP(CAPA!$C$15,Índices!$B$8:$F$1000,5)/VLOOKUP(EDATE('Multas Geradores'!R29,-1),Índices!$B$8:$F$1000,5) -> 2304.192747 | T29: 6585 | U29: S | V29: -1787.073087 | W29: 45444 | X29: =IFERROR(V29*VLOOKUP(CAPA!$C$15,Índices!$B$8:$F$1000,5)/VLOOKUP(EDATE('Multas Geradores'!W29,-1),Índices!$B$8:$F$1000,5),0) -> -2243.942327 | Z29: ENERGISA BR | AA29: 1000040 | AB29: ESS | AC29: Energisa Sul-Sudeste - Distribuidora de Energia S.A.
J30: Desp. nº 4.863/2023 | K30: Goiânia II | L30: BRENTECH 1LN | M30: ENERGISA MS | N30: 17319 | O30: 1º LEN | P30: 2009-T15 | Q30: 7504.94 | R30: 45280 | S30: =Q30*VLOOKUP(CAPA!$C$15,Índices!$B$8:$F$1000,5)/VLOOKUP(EDATE('Multas Geradores'!R30,-1),Índices!$B$8:$F$1000,5) -> 9925.629254 | T30: 404 | U30: S | V30: -7504.94 | W30: 45383 | X30: =IFERROR(V30*VLOOKUP(CAPA!$C$15,Índices!$B$8:$F$1000,5)/VLOOKUP(EDATE('Multas Geradores'!W30,-1),Índices!$B$8:$F$1000,5),0) -> -9586.364947 | Z30: ENERGISA MR | AA30: 6585 | AB30: EMG | AC30: Energisa Minas Gerais - Distribuidora de Energia S.A.
J31: Desp. nº 4.863/2023 | K31: Goiânia II | L31: BRENTECH 1LN | M31: ENERGISA MT | N31: 17335 | O31: 1º LEN | P31: 2009-T15 | Q31: 13185.48 | R31: 45280 | S31: =Q31*VLOOKUP(CAPA!$C$15,Índices!$B$8:$F$1000,5)/VLOOKUP(EDATE('Multas Geradores'!R31,-1),Índices!$B$8:$F$1000,5) -> 17438.40537 | T31: 405 | U31: S | V31: -13185.48 | W31: 45383 | X31: =IFERROR(V31*VLOOKUP(CAPA!$C$15,Índices!$B$8:$F$1000,5)/VLOOKUP(EDATE('Multas Geradores'!W31,-1),Índices!$B$8:$F$1000,5),0) -> -16842.34961 | Z31: ENERGISA MS | AA31: 404 | AB31: EMS | AC31: Energisa Mato Grossodo Sul - Distribuidora de Energia S.A.
J32: Desp. nº 4.863/2023 | K32: Goiânia II | L32: BRENTECH 1LN | M32: ENERGISA PB | N32: 17328 | O32: 1º LEN | P32: 2009-T15 | Q32: 6622.77 | R32: 45280 | S32: =Q32*VLOOKUP(CAPA!$C$15,Índices!$B$8:$F$1000,5)/VLOOKUP(EDATE('Multas Geradores'!R32,-1),Índices!$B$8:$F$1000,5) -> 8758.918747 | T32: 6600 | U32: S | V32: -6851.87026 | W32: 45505 | X32: =IFERROR(V32*VLOOKUP(CAPA!$C$15,Índices!$B$8:$F$1000,5)/VLOOKUP(EDATE('Multas Geradores'!W32,-1),Índices!$B$8:$F$1000,5),0) -> -8459.533344 | Z32: ENERGISA MT | AA32: 405 | AB32: EMT | AC32: Energisa Mato Grosso - Distribuidora de Energia S.A.
J33: Desp. nº 4.863/2023 | K33: Goiânia II | L33: BRENTECH 1LN | M33: ENERGISA SE | N33: 17331 | O33: 1º LEN | P33: 2009-T15 | Q33: 5874.03 | R33: 45280 | S33: =Q33*VLOOKUP(CAPA!$C$15,Índices!$B$8:$F$1000,5)/VLOOKUP(EDATE('Multas Geradores'!R33,-1),Índices!$B$8:$F$1000,5) -> 7768.675567 | T33: 6587 | U33: N | X33: =IFERROR(V33*VLOOKUP(CAPA!$C$15,Índices!$B$8:$F$1000,5)/VLOOKUP(EDATE('Multas Geradores'!W33,-1),Índices!$B$8:$F$1000,5),0) -> 0 | Z33: ENERGISA NA | AA33: 1000040 | AB33: ESS | AC33: Energisa Sul-Sudeste - Distribuidora de Energia S.A.
J34: Desp. nº 4.863/2023 | K34: Goiânia II | L34: BRENTECH 1LN | M34: ENERGISA SS | N34: 17318 | O34: 1º LEN | P34: 2009-T15 | Q34: 2003.62 | R34: 45280 | S34: =Q34*VLOOKUP(CAPA!$C$15,Índices!$B$8:$F$1000,5)/VLOOKUP(EDATE('Multas Geradores'!R34,-1),Índices!$B$8:$F$1000,5) -> 2649.879851 | T34: 1000040 | U34: S | V34: -2003.62 | W34: 45474 | X34: =IFERROR(V34*VLOOKUP(CAPA!$C$15,Índices!$B$8:$F$1000,5)/VLOOKUP(EDATE('Multas Geradores'!W34,-1),Índices!$B$8:$F$1000,5),0) -> -2496.171699 | Z34: ENERGISA PB | AA34: 6600 | AB34: EPB | AC34: Energisa Paraíba - Distribuidora de Energia S.A.
J35: Desp. nº 4.863/2023 | K35: Goiânia II | L35: BRENTECH 1LN | M35: ENERGISA TO | N35: 17334 | O35: 1º LEN | P35: 2009-T15 | Q35: 2667.56 | R35: 45280 | S35: =Q35*VLOOKUP(CAPA!$C$15,Índices!$B$8:$F$1000,5)/VLOOKUP(EDATE('Multas Geradores'!R35,-1),Índices!$B$8:$F$1000,5) -> 3527.97112 | T35: 32 | U35: S | V35: -2757.774871 | W35: 45839 | X35: =IFERROR(V35*VLOOKUP(CAPA!$C$15,Índices!$B$8:$F$1000,5)/VLOOKUP(EDATE('Multas Geradores'!W35,-1),Índices!$B$8:$F$1000,5),0) -> -3063.682228 | Z35: ENERGISA SE | AA35: 6587 | AB35: ESE | AC35: Energisa Sergipe - Distribuidora de Energia S.A.
J36: Desp. nº 4.863/2023 | K36: Goiânia II | L36: BRENTECH 1LN | M36: ENERGISA VP | N36: 17336 | O36: 1º LEN | P36: 2009-T15 | Q36: 1257.19 | R36: 45280 | S36: =Q36*VLOOKUP(CAPA!$C$15,Índices!$B$8:$F$1000,5)/VLOOKUP(EDATE('Multas Geradores'!R36,-1),Índices!$B$8:$F$1000,5) -> 1662.691753 | T36: 1000040 | U36: N | X36: =IFERROR(V36*VLOOKUP(CAPA!$C$15,Índices!$B$8:$F$1000,5)/VLOOKUP(EDATE('Multas Geradores'!W36,-1),Índices!$B$8:$F$1000,5),0) -> 0 | Z36: ENERGISA SS | AA36: 1000040 | AB36: ESS | AC36: Energisa Sul-Sudeste - Distribuidora de Energia S.A.
J37: Desp. nº 4.863/2023 | K37: Goiânia II | L37: BRENTECH 1LN | M37: ESCELSA | N37: 17310 | O37: 1º LEN | P37: 2009-T15 | Q37: 15085.97 | R37: 45280 | S37: =Q37*VLOOKUP(CAPA!$C$15,Índices!$B$8:$F$1000,5)/VLOOKUP(EDATE('Multas Geradores'!R37,-1),Índices!$B$8:$F$1000,5) -> 19951.89104 | T37: 380 | U37: N | V37: 0 | X37: =IFERROR(V37*VLOOKUP(CAPA!$C$15,Índices!$B$8:$F$1000,5)/VLOOKUP(EDATE('Multas Geradores'!W37,-1),Índices!$B$8:$F$1000,5),0) -> 0 | Z37: ENERGISA TO | AA37: 32 | AB37: ETO | AC37: Energisa Tocantins Distribuidora de Energia S.A.
J38: Desp. nº 4.863/2023 | K38: Goiânia II | L38: BRENTECH 1LN | M38: LIGHT | N38: 17312 | O38: 1º LEN | P38: 2009-T15 | Q38: 34994.68 | R38: 45280 | S38: =Q38*VLOOKUP(CAPA!$C$15,Índices!$B$8:$F$1000,5)/VLOOKUP(EDATE('Multas Geradores'!R38,-1),Índices!$B$8:$F$1000,5) -> 46282.07815 | T38: 382 | U38: N | X38: =IFERROR(V38*VLOOKUP(CAPA!$C$15,Índices!$B$8:$F$1000,5)/VLOOKUP(EDATE('Multas Geradores'!W38,-1),Índices!$B$8:$F$1000,5),0) -> 0 | Z38: ENERGISA VP | AA38: 1000040 | AB38: ESS | AC38: Energisa Sul-Sudeste - Distribuidora de Energia S.A.
J39: Desp. nº 4.863/2023 | K39: Goiânia II | L39: BRENTECH 1LN | M39: RGE SUL | N39: 17315 | O39: 1º LEN | P39: 2009-T15 | Q39: 18189.04 | R39: 45280 | S39: =Q39*VLOOKUP(CAPA!$C$15,Índices!$B$8:$F$1000,5)/VLOOKUP(EDATE('Multas Geradores'!R39,-1),Índices!$B$8:$F$1000,5) -> 24055.84422 | T39: =VLOOKUP(M39,$Z$7:$AD$64,2) -> 1000042 | U39: S | V39: -20504.82 | W39: 45809 | X39: =IFERROR(V39*VLOOKUP(CAPA!$C$15,Índices!$B$8:$F$1000,5)/VLOOKUP(EDATE('Multas Geradores'!W39,-1),Índices!$B$8:$F$1000,5),0) -> -23029.22681 | Z39: ESCELSA | AA39: 380 | AB39: EDP ES | AC39: EDP Espírito Santo Distribuição de Energia S.A.
J40: Desp. nº 2.495/2024 | K40: Termoceará | L40: PETROB PIE 1LN | M40: AMPLA | N40: 16299 | O40: 1º LEN | P40: 2009-T15 | Q40: 79105.63 | R40: 45231 | S40: =Q40*VLOOKUP(CAPA!$C$15,Índices!$B$8:$F$1000,5)/VLOOKUP(EDATE('Multas Geradores'!R40,-1),Índices!$B$8:$F$1000,5) -> 105579.158 | T40: 383 | U40: N | X40: =IFERROR(V40*VLOOKUP(CAPA!$C$15,Índices!$B$8:$F$1000,5)/VLOOKUP(EDATE('Multas Geradores'!W40,-1),Índices!$B$8:$F$1000,5),0) -> 0 | Z40: LIGHT | AA40: 382 | AB40: Light | AC40: Light Serviços de Eletricidade S.A.
J41: Desp. nº 2.495/2024 | K41: Termoceará | L41: PETROB PIE 1LN | M41: BANDEIRANTE | N41: 16301 | O41: 1º LEN | P41: 2009-T15 | Q41: 88987.05 | R41: 45231 | S41: =Q41*VLOOKUP(CAPA!$C$15,Índices!$B$8:$F$1000,5)/VLOOKUP(EDATE('Multas Geradores'!R41,-1),Índices!$B$8:$F$1000,5) -> 118767.4987 | T41: 391 | U41: N | X41: =IFERROR(V41*VLOOKUP(CAPA!$C$15,Índices!$B$8:$F$1000,5)/VLOOKUP(EDATE('Multas Geradores'!W41,-1),Índices!$B$8:$F$1000,5),0) -> 0 | Z41: RGE SUL | AA41: 1000042 | AB41: RGE | AC41: RGE Sul Distribuidora de Energia S.A.
J42: Desp. nº 2.495/2024 | K42: Termoceará | L42: PETROB PIE 1LN | M42: CEAL | N42: 16296 | O42: 1º LEN | P42: 2009-T15 | Q42: 16693.61 | R42: 45231 | S42: =Q42*VLOOKUP(CAPA!$C$15,Índices!$B$8:$F$1000,5)/VLOOKUP(EDATE('Multas Geradores'!R42,-1),Índices!$B$8:$F$1000,5) -> 22280.30151 | T42: 44 | U42: N | X42: =IFERROR(V42*VLOOKUP(CAPA!$C$15,Índices!$B$8:$F$1000,5)/VLOOKUP(EDATE('Multas Geradores'!W42,-1),Índices!$B$8:$F$1000,5),0) -> 0 | AA42: 7019 | AB42: Amazonas Energia | AC42: Amazonas Energia S.A.
J43: Desp. nº 2.495/2024 | K43: Termoceará | L43: PETROB PIE 1LN | M43: CEB DISTRIBUIC | N43: 16297 | O43: 1º LEN | P43: 2009-T15 | Q43: 102183.96 | R43: 45231 | S43: =Q43*VLOOKUP(CAPA!$C$15,Índices!$B$8:$F$1000,5)/VLOOKUP(EDATE('Multas Geradores'!R43,-1),Índices!$B$8:$F$1000,5) -> 136380.8929 | T43: 5160 | U43: N | X43: =IFERROR(V43*VLOOKUP(CAPA!$C$15,Índices!$B$8:$F$1000,5)/VLOOKUP(EDATE('Multas Geradores'!W43,-1),Índices!$B$8:$F$1000,5),0) -> 0 | AA43: 31 | AB43: CEA | AC43: Companhia de Eletricidade do Amapá
J44: Desp. nº 2.495/2024 | K44: Termoceará | L44: PETROB PIE 1LN | M44: CEEE DISTRIB | N44: 16305 | O44: 1º LEN | P44: 2009-T15 | Q44: 65125.68 | R44: 45231 | S44: =Q44*VLOOKUP(CAPA!$C$15,Índices!$B$8:$F$1000,5)/VLOOKUP(EDATE('Multas Geradores'!R44,-1),Índices!$B$8:$F$1000,5) -> 86920.67122 | T44: 5707 | U44: N | X44: =IFERROR(V44*VLOOKUP(CAPA!$C$15,Índices!$B$8:$F$1000,5)/VLOOKUP(EDATE('Multas Geradores'!W44,-1),Índices!$B$8:$F$1000,5),0) -> 0 | AA44: 103 | AB44: CHESP | AC44: Companhia Hidroelétrica São Patrício
J45: Desp. nº 2.495/2024 | K45: Termoceará | L45: PETROB PIE 1LN | M45: CELESC DIST | N45: 16280 | O45: 1º LEN | P45: 2009-T15 | Q45: 289258.62 | R45: 45231 | S45: =Q45*VLOOKUP(CAPA!$C$15,Índices!$B$8:$F$1000,5)/VLOOKUP(EDATE('Multas Geradores'!R45,-1),Índices!$B$8:$F$1000,5) -> 386062.0481 | T45: 5697 | U45: N | X45: =IFERROR(V45*VLOOKUP(CAPA!$C$15,Índices!$B$8:$F$1000,5)/VLOOKUP(EDATE('Multas Geradores'!W45,-1),Índices!$B$8:$F$1000,5),0) -> 0 | AA45: 82 | AB45: Cocel | AC45: Companhia Campolarguense de Energia
J46: Desp. nº 2.495/2024 | K46: Termoceará | L46: PETROB PIE 1LN | M46: CELG | N46: 16304 | O46: 1º LEN | P46: 2009-T15 | Q46: 104252.17 | R46: 45231 | S46: =Q46*VLOOKUP(CAPA!$C$15,Índices!$B$8:$F$1000,5)/VLOOKUP(EDATE('Multas Geradores'!R46,-1),Índices!$B$8:$F$1000,5) -> 139141.2511 | T46: 6072 | U46: N | X46: =IFERROR(V46*VLOOKUP(CAPA!$C$15,Índices!$B$8:$F$1000,5)/VLOOKUP(EDATE('Multas Geradores'!W46,-1),Índices!$B$8:$F$1000,5),0) -> 0 | AA46: 2904 | AB46: Cooperaliança | AC46: Cooperativa Aliança
J47: Desp. nº 2.495/2024 | K47: Termoceará | L47: PETROB PIE 1LN | M47: CELPA | N47: 16285 | O47: 1º LEN | P47: 2009-T15 | Q47: 96834.97 | R47: 45231 | S47: =Q47*VLOOKUP(CAPA!$C$15,Índices!$B$8:$F$1000,5)/VLOOKUP(EDATE('Multas Geradores'!R47,-1),Índices!$B$8:$F$1000,5) -> 129241.8074 | T47: 371 | U47: N | X47: =IFERROR(V47*VLOOKUP(CAPA!$C$15,Índices!$B$8:$F$1000,5)/VLOOKUP(EDATE('Multas Geradores'!W47,-1),Índices!$B$8:$F$1000,5),0) -> 0 | AA47: 87 | AB47: DCELT | AC47: Distribuidora Catarinense de Energia Elétrica Ltda
J48: Desp. nº 2.495/2024 | K48: Termoceará | L48: PETROB PIE 1LN | M48: CELPE | N48: 16278 | O48: 1º LEN | P48: 2009-T15 | Q48: 164722.26 | R48: 45231 | S48: =Q48*VLOOKUP(CAPA!$C$15,Índices!$B$8:$F$1000,5)/VLOOKUP(EDATE('Multas Geradores'!R48,-1),Índices!$B$8:$F$1000,5) -> 219848.2903 | T48: 43 | U48: N | X48: =IFERROR(V48*VLOOKUP(CAPA!$C$15,Índices!$B$8:$F$1000,5)/VLOOKUP(EDATE('Multas Geradores'!W48,-1),Índices!$B$8:$F$1000,5),0) -> 0 | AA48: 95 | AB48: Demei | AC48: Departamento Municipal de Energia de Ijuí
J49: Desp. nº 2.495/2024 | K49: Termoceará | L49: PETROB PIE 1LN | M49: CEMAR | N49: 16310 | O49: 1º LEN | P49: 2009-T15 | Q49: 58042.11 | R49: 45231 | S49: =Q49*VLOOKUP(CAPA!$C$15,Índices!$B$8:$F$1000,5)/VLOOKUP(EDATE('Multas Geradores'!R49,-1),Índices!$B$8:$F$1000,5) -> 77466.51029 | T49: 37 | U49: N | X49: =IFERROR(V49*VLOOKUP(CAPA!$C$15,Índices!$B$8:$F$1000,5)/VLOOKUP(EDATE('Multas Geradores'!W49,-1),Índices!$B$8:$F$1000,5),0) -> 0 | AA49: 51 | AB49: DME-D | AC49: DME Distribuição S.A.
J50: Desp. nº 2.495/2024 | K50: Termoceará | L50: PETROB PIE 1LN | M50: CEMIG DISTRIB | N50: 16293 | O50: 1º LEN | P50: 2009-T15 | Q50: 226149.29 | R50: 45231 | S50: =Q50*VLOOKUP(CAPA!$C$15,Índices!$B$8:$F$1000,5)/VLOOKUP(EDATE('Multas Geradores'!R50,-1),Índices!$B$8:$F$1000,5) -> 301832.5196 | T50: 4950 | U50: N | X50: =IFERROR(V50*VLOOKUP(CAPA!$C$15,Índices!$B$8:$F$1000,5)/VLOOKUP(EDATE('Multas Geradores'!W50,-1),Índices!$B$8:$F$1000,5),0) -> 0 | AA50: 26 | AB50: EAC | AC50: Energisa Acre - Distribuidora de Energia S.A
J51: Desp. nº 2.495/2024 | K51: Termoceará | L51: PETROB PIE 1LN | M51: CEPISA | N51: 16286 | O51: 1º LEN | P51: 2009-T15 | Q51: 43811.33 | R51: 45231 | S51: =Q51*VLOOKUP(CAPA!$C$15,Índices!$B$8:$F$1000,5)/VLOOKUP(EDATE('Multas Geradores'!R51,-1),Índices!$B$8:$F$1000,5) -> 58473.25065 | T51: 4950 | U51: N | X51: =IFERROR(V51*VLOOKUP(CAPA!$C$15,Índices!$B$8:$F$1000,5)/VLOOKUP(EDATE('Multas Geradores'!W51,-1),Índices!$B$8:$F$1000,5),0) -> 0 | AA51: 6611 | AB51: EBO | AC51: Energisa Borborema - Distribuidora de Energia S.A
J52: Desp. nº 2.495/2024 | K52: Termoceará | L52: PETROB PIE 1LN | M52: COELBA | N52: 16294 | O52: 1º LEN | P52: 2009-T15 | Q52: 185312.57 | R52: 45231 | S52: =Q52*VLOOKUP(CAPA!$C$15,Índices!$B$8:$F$1000,5)/VLOOKUP(EDATE('Multas Geradores'!R52,-1),Índices!$B$8:$F$1000,5) -> 247329.3633 | T52: 47 | U52: S | V52: =-1801895.84088413*185312.57/(185312.57+1598898.52) -> -187149.3519 | W52: 45748 | X52: =IFERROR(V52*VLOOKUP(CAPA!$C$15,Índices!$B$8:$F$1000,5)/VLOOKUP(EDATE('Multas Geradores'!W52,-1),Índices!$B$8:$F$1000,5),0) -> -214828.0582 | AA52: 86 | AB52: EFLUL | AC52: Empresa Força e Luz de Urussanga Ltda
J53: Desp. nº 2.495/2024 | K53: Termoceará | L53: PETROB PIE 1LN | M53: COELCE | N53: 16281 | O53: 1º LEN | P53: 2009-T15 | Q53: 112440.14 | R53: 45231 | S53: =Q53*VLOOKUP(CAPA!$C$15,Índices!$B$8:$F$1000,5)/VLOOKUP(EDATE('Multas Geradores'!R53,-1),Índices!$B$8:$F$1000,5) -> 150069.411 | T53: 39 | U53: N | X53: =IFERROR(V53*VLOOKUP(CAPA!$C$15,Índices!$B$8:$F$1000,5)/VLOOKUP(EDATE('Multas Geradores'!W53,-1),Índices!$B$8:$F$1000,5),0) -> 0 | AA53: 398 | AB53: Eletrocar | AC53: Centrais Elétricas de Carazinho S.A.
J54: Desp. nº 2.495/2024 | K54: Termoceará | L54: PETROB PIE 1LN | M54: COPEL DISTRIB | N54: 16302 | O54: 1º LEN | P54: 2009-T15 | Q54: 233592.3 | R54: 45231 | S54: =Q54*VLOOKUP(CAPA!$C$15,Índices!$B$8:$F$1000,5)/VLOOKUP(EDATE('Multas Geradores'!R54,-1),Índices!$B$8:$F$1000,5) -> 311766.4108 | T54: 2866 | U54: N | X54: =IFERROR(V54*VLOOKUP(CAPA!$C$15,Índices!$B$8:$F$1000,5)/VLOOKUP(EDATE('Multas Geradores'!W54,-1),Índices!$B$8:$F$1000,5),0) -> 0 | AA54: 6612 | AB54: ENF | AC54: Energisa Nova Friburgo - Distribuidora de Energia S.A.
J55: Desp. nº 2.495/2024 | K55: Termoceará | L55: PETROB PIE 1LN | M55: COSERN | N55: 16283 | O55: 1º LEN | P55: 2009-T15 | Q55: 80645.27 | R55: 45231 | S55: =Q55*VLOOKUP(CAPA!$C$15,Índices!$B$8:$F$1000,5)/VLOOKUP(EDATE('Multas Geradores'!R55,-1),Índices!$B$8:$F$1000,5) -> 107634.0546 | T55: 40 | U55: N | X55: =IFERROR(V55*VLOOKUP(CAPA!$C$15,Índices!$B$8:$F$1000,5)/VLOOKUP(EDATE('Multas Geradores'!W55,-1),Índices!$B$8:$F$1000,5),0) -> 0 | AA55: 38 | AB55: Equatorial PI | AC55: Equatorial Piauí Distribuidora de Energia S.A.
J56: Desp. nº 2.495/2024 | K56: Termoceará | L56: PETROB PIE 1LN | M56: CPFL PAULISTA | N56: 16279 | O56: 1º LEN | P56: 2009-T15 | Q56: 366163.95 | R56: 45231 | S56: =Q56*VLOOKUP(CAPA!$C$15,Índices!$B$8:$F$1000,5)/VLOOKUP(EDATE('Multas Geradores'!R56,-1),Índices!$B$8:$F$1000,5) -> 488704.5526 | T56: 63 | U56: S | V56: -351995.5516 | W56: 45748 | X56: =IFERROR(V56*VLOOKUP(CAPA!$C$15,Índices!$B$8:$F$1000,5)/VLOOKUP(EDATE('Multas Geradores'!W56,-1),Índices!$B$8:$F$1000,5),0) -> -404054.4093 | AA56: 369 | AB56: ERO | AC56: Energisa Rondônia - Distribuidora de Energia S.A.
J57: Desp. nº 2.495/2024 | K57: Termoceará | L57: PETROB PIE 1LN | M57: CPFL SANTA CRUZ | N57: 16288 | O57: 1º LEN | P57: 2009-T15 | Q57: 8518.79 | R57: 45231 | S57: =Q57*VLOOKUP(CAPA!$C$15,Índices!$B$8:$F$1000,5)/VLOOKUP(EDATE('Multas Geradores'!R57,-1),Índices!$B$8:$F$1000,5) -> 11369.69234 | T57: 1000041 | U57: S | V57: =-82230.1*8518.79/(8518.79+72840.76+68.22) -> -8602.727959 | W57: 45717 | X57: =IFERROR(V57*VLOOKUP(CAPA!$C$15,Índices!$B$8:$F$1000,5)/VLOOKUP(EDATE('Multas Geradores'!W57,-1),Índices!$B$8:$F$1000,5),0) -> -9970.238339 | AA57: 83 | AB57: Forcel | AC57: Força e Luz Coronel Vivida Ltda.
J58: Desp. nº 2.495/2024 | K58: Termoceará | L58: PETROB PIE 1LN | M58: ELEKTRO | N58: 16295 | O58: 1º LEN | P58: 2009-T15 | Q58: 135021.97 | R58: 45231 | S58: =Q58*VLOOKUP(CAPA!$C$15,Índices!$B$8:$F$1000,5)/VLOOKUP(EDATE('Multas Geradores'!R58,-1),Índices!$B$8:$F$1000,5) -> 180208.4871 | T58: 385 | U58: S | V58: =-1153405.38*135021.97/(135021.97+935155.36) -> -145522.6739 | W58: 45870 | X58: =IFERROR(V58*VLOOKUP(CAPA!$C$15,Índices!$B$8:$F$1000,5)/VLOOKUP(EDATE('Multas Geradores'!W58,-1),Índices!$B$8:$F$1000,5),0) -> -159628.4073 | AA58: 399 | AB58: Hidropan | AC58: Hidropan Distribuição de Energia S.A.
J59: Desp. nº 2.495/2024 | K59: Termoceará | L59: PETROB PIE 1LN | M59: ELETROPAULO | N59: 16298 | O59: 1º LEN | P59: 2009-T15 | Q59: 261941.35 | R59: 45231 | S59: =Q59*VLOOKUP(CAPA!$C$15,Índices!$B$8:$F$1000,5)/VLOOKUP(EDATE('Multas Geradores'!R59,-1),Índices!$B$8:$F$1000,5) -> 349602.7675 | T59: 390 | U59: N | X59: =IFERROR(V59*VLOOKUP(CAPA!$C$15,Índices!$B$8:$F$1000,5)/VLOOKUP(EDATE('Multas Geradores'!W59,-1),Índices!$B$8:$F$1000,5),0) -> 0 | AA59: 88 | AB59: João Cesa | AC59: Empresa Força e Luz João Cesa Ltda.
J60: Desp. nº 2.495/2024 | K60: Termoceará | L60: PETROB PIE 1LN | M60: ENERGISA BORBOREMA | N60: 16289 | O60: 1º LEN | P60: 2009-T15 | Q60: 5193.13 | R60: 45231 | S60: =Q60*VLOOKUP(CAPA!$C$15,Índices!$B$8:$F$1000,5)/VLOOKUP(EDATE('Multas Geradores'!R60,-1),Índices!$B$8:$F$1000,5) -> 6931.06537 | T60: 6600 | U60: S | V60: =-439557.38*5193.13/(5193.13+32889.97+44113.25+279067.32) -> -6318.59444 | W60: 45809 | X60: =IFERROR(V60*VLOOKUP(CAPA!$C$15,Índices!$B$8:$F$1000,5)/VLOOKUP(EDATE('Multas Geradores'!W60,-1),Índices!$B$8:$F$1000,5),0) -> -7096.494606 | AA60: 401 | AB60: Mux Energia | AC60: Muxfeldt Marin E Cia Ltda
J61: Desp. nº 2.495/2024 | K61: Termoceara | L61: PETROB PIE 1LN | M61: ENERGISA BR | N61: 16292 | O61: 1º LEN | P61: 2009-T15 | Q61: 4981.23 | R61: 45231 | S61: =Q61*VLOOKUP(CAPA!$C$15,Índices!$B$8:$F$1000,5)/VLOOKUP(EDATE('Multas Geradores'!R61,-1),Índices!$B$8:$F$1000,5) -> 6648.250814 | T61: 1000040 | U61: S | V61: =-276681.523893658*4981.23/(4981.23+65963.88+292.48+9950.3+102128.5+6243.38+68032.54) -> -5350.370542 | W61: 45839 | X61: =IFERROR(V61*VLOOKUP(CAPA!$C$15,Índices!$B$8:$F$1000,5)/VLOOKUP(EDATE('Multas Geradores'!W61,-1),Índices!$B$8:$F$1000,5),0) -> -5943.862683 | AA61: 400 | AB61: Nova Palma | AC61: Nova Palma Energia Ltda.
J62: Desp. nº 2.495/2024 | K62: Termoceará | L62: PETROB PIE 1LN | M62: ENERGISA MR | N62: 16309 | O62: 1º LEN | P62: 2009-T15 | Q62: 8651.55 | R62: 45231 | S62: =Q62*VLOOKUP(CAPA!$C$15,Índices!$B$8:$F$1000,5)/VLOOKUP(EDATE('Multas Geradores'!R62,-1),Índices!$B$8:$F$1000,5) -> 11546.88186 | T62: 6585 | U62: S | V62: -9107.019526 | W62: 45809 | X62: =IFERROR(V62*VLOOKUP(CAPA!$C$15,Índices!$B$8:$F$1000,5)/VLOOKUP(EDATE('Multas Geradores'!W62,-1),Índices!$B$8:$F$1000,5),0) -> -10228.21065 | AA62: 370 | AB62: Roraima Energia | AC62: Roraima Energia S.A.
J63: Desp. nº 2.495/2024 | K63: Termoceará | L63: PETROB PIE 1LN | M63: ENERGISA MS | N63: 16291 | O63: 1º LEN | P63: 2009-T15 | Q63: 37268.41 | R63: 45231 | S63: =Q63*VLOOKUP(CAPA!$C$15,Índices!$B$8:$F$1000,5)/VLOOKUP(EDATE('Multas Geradores'!R63,-1),Índices!$B$8:$F$1000,5) -> 49740.67392 | T63: 404 | U63: N | X63: =IFERROR(V63*VLOOKUP(CAPA!$C$15,Índices!$B$8:$F$1000,5)/VLOOKUP(EDATE('Multas Geradores'!W63,-1),Índices!$B$8:$F$1000,5),0) -> 0 | AA63: 381 | AB63: Santa Maria | AC63: Empresa Luz e Força Santa Maria S/A
J64: Desp. nº 2.495/2024 | K64: Termoceará | L64: PETROB PIE 1LN | M64: ENERGISA MT | N64: 16307 | O64: 1º LEN | P64: 2009-T15 | Q64: 65477.12 | R64: 45231 | S64: =Q64*VLOOKUP(CAPA!$C$15,Índices!$B$8:$F$1000,5)/VLOOKUP(EDATE('Multas Geradores'!R64,-1),Índices!$B$8:$F$1000,5) -> 87389.7243 | T64: 405 | U64: N | X64: =IFERROR(V64*VLOOKUP(CAPA!$C$15,Índices!$B$8:$F$1000,5)/VLOOKUP(EDATE('Multas Geradores'!W64,-1),Índices!$B$8:$F$1000,5),0) -> 0 | AA64: 46 | AB64: Sulgipe | AC64: Companhia Sul Sergipana de Eletricidade
J65: Desp. nº 2.495/2024 | K65: Termoceará | L65: PETROB PIE 1LN | M65: ENERGISA PB | N65: 16300 | O65: 1º LEN | P65: 2009-T15 | Q65: 32889.97 | R65: 45231 | S65: =Q65*VLOOKUP(CAPA!$C$15,Índices!$B$8:$F$1000,5)/VLOOKUP(EDATE('Multas Geradores'!R65,-1),Índices!$B$8:$F$1000,5) -> 43896.94309 | T65: 6600 | U65: S | V65: =-439557.38*32889.97/(5193.13+32889.97+44113.25+279067.32) -> -40017.94324 | W65: 45809 | X65: =IFERROR(V65*VLOOKUP(CAPA!$C$15,Índices!$B$8:$F$1000,5)/VLOOKUP(EDATE('Multas Geradores'!W65,-1),Índices!$B$8:$F$1000,5),0) -> -44944.66626
J66: Desp. nº 2.495/2024 | K66: Termoceará | L66: PETROB PIE 1LN | M66: ENERGISA SE | N66: 16303 | O66: 1º LEN | P66: 2009-T15 | Q66: 29169.57 | R66: 45231 | S66: =Q66*VLOOKUP(CAPA!$C$15,Índices!$B$8:$F$1000,5)/VLOOKUP(EDATE('Multas Geradores'!R66,-1),Índices!$B$8:$F$1000,5) -> 38931.47225 | T66: 6587 | U66: N | X66: =IFERROR(V66*VLOOKUP(CAPA!$C$15,Índices!$B$8:$F$1000,5)/VLOOKUP(EDATE('Multas Geradores'!W66,-1),Índices!$B$8:$F$1000,5),0) -> 0
J67: Desp. nº 2.495/2024 | K67: Termoceará | L67: PETROB PIE 1LN | M67: ENERGISA SS | N67: 16290 | O67: 1º LEN | P67: 2009-T15 | Q67: 9950.3 | R67: 45231 | S67: =Q67*VLOOKUP(CAPA!$C$15,Índices!$B$8:$F$1000,5)/VLOOKUP(EDATE('Multas Geradores'!R67,-1),Índices!$B$8:$F$1000,5) -> 13280.27216 | T67: 1000040 | U67: S | V67: =-276681.523893658*9950.3/(4981.23+65963.88+292.48+9950.3+102128.5+6243.38+68032.54) -> -10687.67995 | W67: 45839 | X67: =IFERROR(V67*VLOOKUP(CAPA!$C$15,Índices!$B$8:$F$1000,5)/VLOOKUP(EDATE('Multas Geradores'!W67,-1),Índices!$B$8:$F$1000,5),0) -> -11873.21542
J68: Desp. nº 2.495/2024 | K68: Termoceará | L68: PETROB PIE 1LN | M68: ENERGISA TO | N68: 16306 | O68: 1º LEN | P68: 2009-T15 | Q68: 13247.46 | R68: 45231 | S68: =Q68*VLOOKUP(CAPA!$C$15,Índices!$B$8:$F$1000,5)/VLOOKUP(EDATE('Multas Geradores'!R68,-1),Índices!$B$8:$F$1000,5) -> 17680.8613 | T68: 32 | U68: S | V68: =-152142.474781536*13247.46/(13247.46+128398.18) -> -14229.18029 | W68: 45839 | X68: =IFERROR(V68*VLOOKUP(CAPA!$C$15,Índices!$B$8:$F$1000,5)/VLOOKUP(EDATE('Multas Geradores'!W68,-1),Índices!$B$8:$F$1000,5),0) -> -15807.5582
J69: Desp. nº 2.495/2024 | K69: Termoceará | L69: PETROB PIE 1LN | M69: ENERGISA VP | N69: 16308 | O69: 1º LEN | P69: 2009-T15 | Q69: 6243.38 | R69: 45231 | S69: =Q69*VLOOKUP(CAPA!$C$15,Índices!$B$8:$F$1000,5)/VLOOKUP(EDATE('Multas Geradores'!R69,-1),Índices!$B$8:$F$1000,5) -> 8332.792537 | T69: 1000040 | U69: S | V69: =-276681.523893658*6243.38/(4981.23+65963.88+292.48+9950.3+102128.5+6243.38+68032.54) -> -6706.053813 | W69: 45839 | X69: =IFERROR(V69*VLOOKUP(CAPA!$C$15,Índices!$B$8:$F$1000,5)/VLOOKUP(EDATE('Multas Geradores'!W69,-1),Índices!$B$8:$F$1000,5),0) -> -7449.925701
J70: Desp. nº 2.495/2024 | K70: Termoceará | L70: PETROB PIE 1LN | M70: ESCELSA | N70: 16282 | O70: 1º LEN | P70: 2009-T15 | Q70: 74919.9 | R70: 45231 | S70: =Q70*VLOOKUP(CAPA!$C$15,Índices!$B$8:$F$1000,5)/VLOOKUP(EDATE('Multas Geradores'!R70,-1),Índices!$B$8:$F$1000,5) -> 99992.62957 | T70: 380 | U70: S | V70: =-1385727.16615225*74919.9/(74919.9+1188922.8) -> -82145.1441 | W70: 01/082025 | X70: =IFERROR(V70*VLOOKUP(CAPA!$C$15,Índices!$B$8:$F$1000,5)/VLOOKUP(EDATE('Multas Geradores'!W70,-1),Índices!$B$8:$F$1000,5),0) -> 0
J71: Desp. nº 2.495/2024 | K71: Termoceará | L71: PETROB PIE 1LN | M71: LIGHT | N71: 16284 | O71: 1º LEN | P71: 2009-T15 | Q71: 173783.63 | R71: 45231 | S71: =Q71*VLOOKUP(CAPA!$C$15,Índices!$B$8:$F$1000,5)/VLOOKUP(EDATE('Multas Geradores'!R71,-1),Índices!$B$8:$F$1000,5) -> 231942.1427 | T71: =VLOOKUP(M71,$Z$7:$AD$64,2) -> 382 | U71: N | X71: =IFERROR(V71*VLOOKUP(CAPA!$C$15,Índices!$B$8:$F$1000,5)/VLOOKUP(EDATE('Multas Geradores'!W71,-1),Índices!$B$8:$F$1000,5),0) -> 0
J72: Desp. nº 2.495/2024 | K72: Termoceará | L72: PETROB PIE 1LN | M72: RGE SUL | N72: 16287 | O72: 1º LEN | P72: 2009-T15 | Q72: 90322.36 | R72: 45231 | S72: =Q72*VLOOKUP(CAPA!$C$15,Índices!$B$8:$F$1000,5)/VLOOKUP(EDATE('Multas Geradores'!R72,-1),Índices!$B$8:$F$1000,5) -> 120549.6842 | T72: 1000042 | U72: S | V72: =-928794.33*90322.36/(90322.36+797751.65+3208.42) -> -94123.80747 | W72: 45809 | X72: =IFERROR(V72*VLOOKUP(CAPA!$C$15,Índices!$B$8:$F$1000,5)/VLOOKUP(EDATE('Multas Geradores'!W72,-1),Índices!$B$8:$F$1000,5),0) -> -105711.6576
J73: Desp. nº 2.495/2024 | K73: Termoceará | L73: PETROB PIE 1LN | M73: AMPLA | N73: 16330 | O73: 1º LEN | P73: 2010-T15 | Q73: 882724.17 | R73: 45231 | S73: =Q73*VLOOKUP(CAPA!$C$15,Índices!$B$8:$F$1000,5)/VLOOKUP(EDATE('Multas Geradores'!R73,-1),Índices!$B$8:$F$1000,5) -> 1178137.063 | T73: 383 | U73: N | X73: =IFERROR(V73*VLOOKUP(CAPA!$C$15,Índices!$B$8:$F$1000,5)/VLOOKUP(EDATE('Multas Geradores'!W73,-1),Índices!$B$8:$F$1000,5),0) -> 0
J74: Desp. nº 2.495/2024 | K74: Termoceará | L74: PETROB PIE 1LN | M74: BANDEIRANTE | N74: 16332 | O74: 1º LEN | P74: 2010-T15 | Q74: 969538.33 | R74: 45231 | S74: =Q74*VLOOKUP(CAPA!$C$15,Índices!$B$8:$F$1000,5)/VLOOKUP(EDATE('Multas Geradores'!R74,-1),Índices!$B$8:$F$1000,5) -> 1294004.491 | T74: 391 | U74: N | X74: =IFERROR(V74*VLOOKUP(CAPA!$C$15,Índices!$B$8:$F$1000,5)/VLOOKUP(EDATE('Multas Geradores'!W74,-1),Índices!$B$8:$F$1000,5),0) -> 0
J75: Desp. nº 2.495/2024 | K75: Termoceará | L75: PETROB PIE 1LN | M75: CEAL | N75: 16328 | O75: 1º LEN | P75: 2010-T15 | Q75: 114293.77 | R75: 45231 | S75: =Q75*VLOOKUP(CAPA!$C$15,Índices!$B$8:$F$1000,5)/VLOOKUP(EDATE('Multas Geradores'!R75,-1),Índices!$B$8:$F$1000,5) -> 152543.3777 | T75: 44 | U75: N | X75: =IFERROR(V75*VLOOKUP(CAPA!$C$15,Índices!$B$8:$F$1000,5)/VLOOKUP(EDATE('Multas Geradores'!W75,-1),Índices!$B$8:$F$1000,5),0) -> 0
J76: Desp. nº 2.495/2024 | K76: Termoceará | L76: PETROB PIE 1LN | M76: CEEE DISTRIB | N76: 16336 | O76: 1º LEN | P76: 2010-T15 | Q76: 817139.55 | R76: 45231 | S76: =Q76*VLOOKUP(CAPA!$C$15,Índices!$B$8:$F$1000,5)/VLOOKUP(EDATE('Multas Geradores'!R76,-1),Índices!$B$8:$F$1000,5) -> 1090603.863 | T76: 5707 | U76: N | X76: =IFERROR(V76*VLOOKUP(CAPA!$C$15,Índices!$B$8:$F$1000,5)/VLOOKUP(EDATE('Multas Geradores'!W76,-1),Índices!$B$8:$F$1000,5),0) -> 0
J77: Desp. nº 2.495/2024 | K77: Termoceará | L77: PETROB PIE 1LN | M77: CELESC DIST | N77: 16312 | O77: 1º LEN | P77: 2010-T15 | Q77: 1717163.29 | R77: 45231 | S77: =Q77*VLOOKUP(CAPA!$C$15,Índices!$B$8:$F$1000,5)/VLOOKUP(EDATE('Multas Geradores'!R77,-1),Índices!$B$8:$F$1000,5) -> 2291829.978 | T77: 5697 | U77: N | X77: =IFERROR(V77*VLOOKUP(CAPA!$C$15,Índices!$B$8:$F$1000,5)/VLOOKUP(EDATE('Multas Geradores'!W77,-1),Índices!$B$8:$F$1000,5),0) -> 0
J78: Desp. nº 2.495/2024 | K78: Termoceará | L78: PETROB PIE 1LN | M78: CELG | N78: 16335 | O78: 1º LEN | P78: 2010-T15 | Q78: 885275.08 | R78: 45231 | S78: =Q78*VLOOKUP(CAPA!$C$15,Índices!$B$8:$F$1000,5)/VLOOKUP(EDATE('Multas Geradores'!R78,-1),Índices!$B$8:$F$1000,5) -> 1181541.662 | T78: 6072 | U78: N | X78: =IFERROR(V78*VLOOKUP(CAPA!$C$15,Índices!$B$8:$F$1000,5)/VLOOKUP(EDATE('Multas Geradores'!W78,-1),Índices!$B$8:$F$1000,5),0) -> 0
J79: Desp. nº 2.495/2024 | K79: Termoceará | L79: PETROB PIE 1LN | M79: CELPA | N79: 16317 | O79: 1º LEN | P79: 2010-T15 | Q79: 941775.92 | R79: 45231 | S79: =Q79*VLOOKUP(CAPA!$C$15,Índices!$B$8:$F$1000,5)/VLOOKUP(EDATE('Multas Geradores'!R79,-1),Índices!$B$8:$F$1000,5) -> 1256951.1 | T79: 371 | U79: N | X79: =IFERROR(V79*VLOOKUP(CAPA!$C$15,Índices!$B$8:$F$1000,5)/VLOOKUP(EDATE('Multas Geradores'!W79,-1),Índices!$B$8:$F$1000,5),0) -> 0
J80: Desp. nº 2.495/2024 | K80: Termoceará | L80: PETROB PIE 1LN | M80: CELPE | N80: 16311 | O80: 1º LEN | P80: 2010-T15 | Q80: 1119228.98 | R80: 45231 | S80: =Q80*VLOOKUP(CAPA!$C$15,Índices!$B$8:$F$1000,5)/VLOOKUP(EDATE('Multas Geradores'!R80,-1),Índices!$B$8:$F$1000,5) -> 1493790.686 | T80: 43 | U80: N | X80: =IFERROR(V80*VLOOKUP(CAPA!$C$15,Índices!$B$8:$F$1000,5)/VLOOKUP(EDATE('Multas Geradores'!W80,-1),Índices!$B$8:$F$1000,5),0) -> 0
J81: Desp. nº 2.495/2024 | K81: Termoceará | L81: PETROB PIE 1LN | M81: CEMAR | N81: 16341 | O81: 1º LEN | P81: 2010-T15 | Q81: 592386.96 | R81: 45231 | S81: =Q81*VLOOKUP(CAPA!$C$15,Índices!$B$8:$F$1000,5)/VLOOKUP(EDATE('Multas Geradores'!R81,-1),Índices!$B$8:$F$1000,5) -> 790635.4634 | T81: 37 | U81: N | X81: =IFERROR(V81*VLOOKUP(CAPA!$C$15,Índices!$B$8:$F$1000,5)/VLOOKUP(EDATE('Multas Geradores'!W81,-1),Índices!$B$8:$F$1000,5),0) -> 0
J82: Desp. nº 2.495/2024 | K82: Termoceará | L82: PETROB PIE 1LN | M82: CEMIG DISTRIB | N82: 16325 | O82: 1º LEN | P82: 2010-T15 | Q82: 2529782.66 | R82: 45231 | S82: =Q82*VLOOKUP(CAPA!$C$15,Índices!$B$8:$F$1000,5)/VLOOKUP(EDATE('Multas Geradores'!R82,-1),Índices!$B$8:$F$1000,5) -> 3376400.935 | T82: 4950 | U82: N | X82: =IFERROR(V82*VLOOKUP(CAPA!$C$15,Índices!$B$8:$F$1000,5)/VLOOKUP(EDATE('Multas Geradores'!W82,-1),Índices!$B$8:$F$1000,5),0) -> 0
J83: Desp. nº 2.495/2024 | K83: Termoceará | L83: PETROB PIE 1LN | M83: CEPISA | N83: 16318 | O83: 1º LEN | P83: 2010-T15 | Q83: 336873.28 | R83: 45231 | S83: =Q83*VLOOKUP(CAPA!$C$15,Índices!$B$8:$F$1000,5)/VLOOKUP(EDATE('Multas Geradores'!R83,-1),Índices!$B$8:$F$1000,5) -> 449611.453 | T83: 4950 | U83: N | X83: =IFERROR(V83*VLOOKUP(CAPA!$C$15,Índices!$B$8:$F$1000,5)/VLOOKUP(EDATE('Multas Geradores'!W83,-1),Índices!$B$8:$F$1000,5),0) -> 0
J84: Desp. nº 2.495/2024 | K84: Termoceará | L84: PETROB PIE 1LN | M84: COELBA | N84: 16326 | O84: 1º LEN | P84: 2010-T15 | Q84: 1598898.52 | R84: 45231 | S84: =Q84*VLOOKUP(CAPA!$C$15,Índices!$B$8:$F$1000,5)/VLOOKUP(EDATE('Multas Geradores'!R84,-1),Índices!$B$8:$F$1000,5) -> 2133986.663 | T84: 47 | U84: S | V84: =-1801895.84088413*1598898.52/(185312.57+1598898.52) -> -1614746.489 | W84: 45748 | X84: =IFERROR(V84*VLOOKUP(CAPA!$C$15,Índices!$B$8:$F$1000,5)/VLOOKUP(EDATE('Multas Geradores'!W84,-1),Índices!$B$8:$F$1000,5),0) -> -1853561.603
J85: Desp. nº 2.495/2024 | K85: Termoceará | L85: PETROB PIE 1LN | M85: COELCE | N85: 16313 | O85: 1º LEN | P85: 2010-T15 | Q85: 978924.04 | R85: 45231 | S85: =Q85*VLOOKUP(CAPA!$C$15,Índices!$B$8:$F$1000,5)/VLOOKUP(EDATE('Multas Geradores'!R85,-1),Índices!$B$8:$F$1000,5) -> 1306531.227 | T85: 39 | U85: N | X85: =IFERROR(V85*VLOOKUP(CAPA!$C$15,Índices!$B$8:$F$1000,5)/VLOOKUP(EDATE('Multas Geradores'!W85,-1),Índices!$B$8:$F$1000,5),0) -> 0
J86: Desp. nº 2.495/2024 | K86: Termoceará | L86: PETROB PIE 1LN | M86: COPEL DISTRIB | N86: 16333 | O86: 1º LEN | P86: 2010-T15 | Q86: 1852455.66 | R86: 45231 | S86: =Q86*VLOOKUP(CAPA!$C$15,Índices!$B$8:$F$1000,5)/VLOOKUP(EDATE('Multas Geradores'!R86,-1),Índices!$B$8:$F$1000,5) -> 2472399.357 | T86: 2866 | U86: N | X86: =IFERROR(V86*VLOOKUP(CAPA!$C$15,Índices!$B$8:$F$1000,5)/VLOOKUP(EDATE('Multas Geradores'!W86,-1),Índices!$B$8:$F$1000,5),0) -> 0
J87: Desp. nº 2.495/2024 | K87: Termoceará | L87: PETROB PIE 1LN | M87: COSERN | N87: 16315 | O87: 1º LEN | P87: 2010-T15 | Q87: 639559.39 | R87: 45231 | S87: =Q87*VLOOKUP(CAPA!$C$15,Índices!$B$8:$F$1000,5)/VLOOKUP(EDATE('Multas Geradores'!R87,-1),Índices!$B$8:$F$1000,5) -> 853594.6414 | T87: 40 | U87: N | X87: =IFERROR(V87*VLOOKUP(CAPA!$C$15,Índices!$B$8:$F$1000,5)/VLOOKUP(EDATE('Multas Geradores'!W87,-1),Índices!$B$8:$F$1000,5),0) -> 0
J88: Desp. nº 2.495/2024 | K88: Termoceará | L88: PETROB PIE 1LN | M88: CPFL LESTE PAULISTA | N88: 245806 | O88: 1º LEN | P88: 2010-T15 | Q88: 68.22 | R88: 45231 | S88: =Q88*VLOOKUP(CAPA!$C$15,Índices!$B$8:$F$1000,5)/VLOOKUP(EDATE('Multas Geradores'!R88,-1),Índices!$B$8:$F$1000,5) -> 91.05053783 | T88: 1000041 | U88: S | V88: =-82230.1*68.22/(8518.79+72840.76+68.22) -> -68.89219024 | W88: 45717 | X88: =IFERROR(V88*VLOOKUP(CAPA!$C$15,Índices!$B$8:$F$1000,5)/VLOOKUP(EDATE('Multas Geradores'!W88,-1),Índices!$B$8:$F$1000,5),0) -> -79.84345893
J89: Desp. nº 2.495/2024 | K89: Termoceará | L89: PETROB PIE 1LN | M89: CPFL PAULISTA | N89: 245945 | O89: 1º LEN | P89: 2010-T15 | Q89: 182.83 | R89: 45231 | S89: =Q89*VLOOKUP(CAPA!$C$15,Índices!$B$8:$F$1000,5)/VLOOKUP(EDATE('Multas Geradores'!R89,-1),Índices!$B$8:$F$1000,5) -> 244.0159752 | T89: 63 | U89: N | V89: 0 | W89: 45748 | X89: =IFERROR(V89*VLOOKUP(CAPA!$C$15,Índices!$B$8:$F$1000,5)/VLOOKUP(EDATE('Multas Geradores'!W89,-1),Índices!$B$8:$F$1000,5),0) -> 0
J90: Desp. nº 2.495/2024 | K90: Termoceará | L90: PETROB PIE 1LN | M90: CPFL PIRATINGA | N90: 246009 | O90: 1º LEN | P90: 2010-T15 | Q90: 1117.55 | R90: 45231 | S90: =Q90*VLOOKUP(CAPA!$C$15,Índices!$B$8:$F$1000,5)/VLOOKUP(EDATE('Multas Geradores'!R90,-1),Índices!$B$8:$F$1000,5) -> 1491.549818 | T90: 2937 | U90: N | X90: =IFERROR(V90*VLOOKUP(CAPA!$C$15,Índices!$B$8:$F$1000,5)/VLOOKUP(EDATE('Multas Geradores'!W90,-1),Índices!$B$8:$F$1000,5),0) -> 0
J91: Desp. nº 2.495/2024 | K91: Termoceará | L91: PETROB PIE 1LN | M91: CPFL SANTA CRUZ | N91: 16320 | O91: 1º LEN | P91: 2010-T15 | Q91: 72840.76 | R91: 45231 | S91: =Q91*VLOOKUP(CAPA!$C$15,Índices!$B$8:$F$1000,5)/VLOOKUP(EDATE('Multas Geradores'!R91,-1),Índices!$B$8:$F$1000,5) -> 97217.68358 | T91: 1000041 | U91: S | V91: =-82230.1*72840.76/(8518.79+72840.76+68.22) -> -73558.47985 | W91: 45717 | X91: =IFERROR(V91*VLOOKUP(CAPA!$C$15,Índices!$B$8:$F$1000,5)/VLOOKUP(EDATE('Multas Geradores'!W91,-1),Índices!$B$8:$F$1000,5),0) -> -85251.51319
J92: Desp. nº 2.495/2024 | K92: Termoceará | L92: PETROB PIE 1LN | M92: ELEKTRO | N92: 16327 | O92: 1º LEN | P92: 2010-T15 | Q92: 935155.36 | R92: 45231 | S92: =Q92*VLOOKUP(CAPA!$C$15,Índices!$B$8:$F$1000,5)/VLOOKUP(EDATE('Multas Geradores'!R92,-1),Índices!$B$8:$F$1000,5) -> 1248114.9 | T92: 385 | U92: S | V92: =-1153405.38*935155.36/(135021.97+935155.36) -> -1007882.706 | W92: 45870 | X92: =IFERROR(V92*VLOOKUP(CAPA!$C$15,Índices!$B$8:$F$1000,5)/VLOOKUP(EDATE('Multas Geradores'!W92,-1),Índices!$B$8:$F$1000,5),0) -> -1105578.305
J93: Desp. nº 2.495/2024 | K93: Termoceará | L93: PETROB PIE 1LN | M93: ELETROPAULO | N93: 16329 | O93: 1º LEN | P93: 2010-T15 | Q93: 2489755.81 | R93: 45231 | S93: =Q93*VLOOKUP(CAPA!$C$15,Índices!$B$8:$F$1000,5)/VLOOKUP(EDATE('Multas Geradores'!R93,-1),Índices!$B$8:$F$1000,5) -> 3322978.68 | T93: 390 | U93: N | X93: =IFERROR(V93*VLOOKUP(CAPA!$C$15,Índices!$B$8:$F$1000,5)/VLOOKUP(EDATE('Multas Geradores'!W93,-1),Índices!$B$8:$F$1000,5),0) -> 0
J94: Desp. nº 2.495/2024 | K94: Termoceará | L94: PETROB PIE 1LN | M94: ENERGISA BORBOREMA | N94: 16321 | O94: 1º LEN | P94: 2010-T15 | Q94: 44113.25 | R94: 45231 | S94: =Q94*VLOOKUP(CAPA!$C$15,Índices!$B$8:$F$1000,5)/VLOOKUP(EDATE('Multas Geradores'!R94,-1),Índices!$B$8:$F$1000,5) -> 58876.21134 | T94: 6600 | U94: S | V94: =-439557.38*44113.25/(5193.13+32889.97+44113.25+279067.32) -> -53673.5526 | W94: 45809 | X94: =IFERROR(V94*VLOOKUP(CAPA!$C$15,Índices!$B$8:$F$1000,5)/VLOOKUP(EDATE('Multas Geradores'!W94,-1),Índices!$B$8:$F$1000,5),0) -> -60281.45659
J95: Desp. nº 2.495/2024 | K95: 1 | L95: PETROB PIE 1LN | M95: ENERGISA BR | N95: 16324 | O95: 1º LEN | P95: 2010-T15 | Q95: 65963.88 | R95: 45231 | S95: =Q95*VLOOKUP(CAPA!$C$15,Índices!$B$8:$F$1000,5)/VLOOKUP(EDATE('Multas Geradores'!R95,-1),Índices!$B$8:$F$1000,5) -> 88039.38363 | T95: 1000040 | U95: S | V95: =-276681.523893658*65963.88/(4981.23+65963.88+292.48+9950.3+102128.5+6243.38+68032.54) -> -70852.21931 | W95: 45839 | X95: =IFERROR(V95*VLOOKUP(CAPA!$C$15,Índices!$B$8:$F$1000,5)/VLOOKUP(EDATE('Multas Geradores'!W95,-1),Índices!$B$8:$F$1000,5),0) -> -78711.53204
J96: Desp. nº 2.495/2024 | K96: Termoceará | L96: PETROB PIE 1LN | M96: ENERGISA MS | N96: 16323 | O96: 1º LEN | P96: 2010-T15 | Q96: 296566.55 | R96: 45231 | S96: =Q96*VLOOKUP(CAPA!$C$15,Índices!$B$8:$F$1000,5)/VLOOKUP(EDATE('Multas Geradores'!R96,-1),Índices!$B$8:$F$1000,5) -> 395815.6535 | T96: 404 | U96: N | X96: =IFERROR(V96*VLOOKUP(CAPA!$C$15,Índices!$B$8:$F$1000,5)/VLOOKUP(EDATE('Multas Geradores'!W96,-1),Índices!$B$8:$F$1000,5),0) -> 0
J97: Desp. nº 2.495/2024 | K97: Termoceará | L97: PETROB PIE 1LN | M97: ENERGISA MT | N97: 16338 | O97: 1º LEN | P97: 2010-T15 | Q97: 788678.48 | R97: 45231 | S97: =Q97*VLOOKUP(CAPA!$C$15,Índices!$B$8:$F$1000,5)/VLOOKUP(EDATE('Multas Geradores'!R97,-1),Índices!$B$8:$F$1000,5) -> 1052617.997 | T97: 405 | U97: N | X97: =IFERROR(V97*VLOOKUP(CAPA!$C$15,Índices!$B$8:$F$1000,5)/VLOOKUP(EDATE('Multas Geradores'!W97,-1),Índices!$B$8:$F$1000,5),0) -> 0
J98: Desp. nº 2.495/2024 | K98: Termoceará | L98: PETROB PIE 1LN | M98: ENERGISA NA | N98: 245908 | O98: 1º LEN | P98: 2010-T15 | Q98: 292.48 | R98: 45231 | S98: =Q98*VLOOKUP(CAPA!$C$15,Índices!$B$8:$F$1000,5)/VLOOKUP(EDATE('Multas Geradores'!R98,-1),Índices!$B$8:$F$1000,5) -> 390.3614967 | T98: 1000040 | U98: S | V98: =-276681.523893658*292.48/(4981.23+65963.88+292.48+9950.3+102128.5+6243.38+68032.54) -> -314.1546116 | W98: 45839 | X98: =IFERROR(V98*VLOOKUP(CAPA!$C$15,Índices!$B$8:$F$1000,5)/VLOOKUP(EDATE('Multas Geradores'!W98,-1),Índices!$B$8:$F$1000,5),0) -> -349.0023463
J99: Desp. nº 2.495/2024 | K99: Termoceará | L99: PETROB PIE 1LN | M99: ENERGISA PB | N99: 16331 | O99: 1º LEN | P99: 2010-T15 | Q99: 279067.32 | R99: 45231 | S99: =Q99*VLOOKUP(CAPA!$C$15,Índices!$B$8:$F$1000,5)/VLOOKUP(EDATE('Multas Geradores'!R99,-1),Índices!$B$8:$F$1000,5) -> 372460.1228 | T99: 6600 | U99: S | V99: =-439557.38*279067.32/(5193.13+32889.97+44113.25+279067.32) -> -339547.2897 | W99: 45809 | X99: =IFERROR(V99*VLOOKUP(CAPA!$C$15,Índices!$B$8:$F$1000,5)/VLOOKUP(EDATE('Multas Geradores'!W99,-1),Índices!$B$8:$F$1000,5),0) -> -381349.924
J100: Desp. nº 2.495/2024 | K100: Termoceará | L100: PETROB PIE 1LN | M100: ENERGISA SE | N100: 16334 | O100: 1º LEN | P100: 2010-T15 | Q100: 174425.31 | R100: 45231 | S100: =Q100*VLOOKUP(CAPA!$C$15,Índices!$B$8:$F$1000,5)/VLOOKUP(EDATE('Multas Geradores'!R100,-1),Índices!$B$8:$F$1000,5) -> 232798.5677 | T100: 6587 | U100: N | X100: =IFERROR(V100*VLOOKUP(CAPA!$C$15,Índices!$B$8:$F$1000,5)/VLOOKUP(EDATE('Multas Geradores'!W100,-1),Índices!$B$8:$F$1000,5),0) -> 0
J101: Desp. nº 2.495/2024 | K101: Termoceará | L101: PETROB PIE 1LN | M101: ENERGISA SS | N101: 16322 | O101: 1º LEN | P101: 2010-T15 | Q101: 102128.5 | R101: 45231 | S101: =Q101*VLOOKUP(CAPA!$C$15,Índices!$B$8:$F$1000,5)/VLOOKUP(EDATE('Multas Geradores'!R101,-1),Índices!$B$8:$F$1000,5) -> 136306.8727 | T101: 1000040 | U101: S | V101: =-276681.523893658*102128.5/(4981.23+65963.88+292.48+9950.3+102128.5+6243.38+68032.54) -> -109696.8656 | W101: 45839 | X101: =IFERROR(V101*VLOOKUP(CAPA!$C$15,Índices!$B$8:$F$1000,5)/VLOOKUP(EDATE('Multas Geradores'!W101,-1),Índices!$B$8:$F$1000,5),0) -> -121865.0374
J102: Desp. nº 2.495/2024 | K102: Termoceará | L102: PETROB PIE 1LN | M102: ENERGISA TO | N102: 16337 | O102: 1º LEN | P102: 2010-T15 | Q102: 128398.18 | R102: 45231 | S102: =Q102*VLOOKUP(CAPA!$C$15,Índices!$B$8:$F$1000,5)/VLOOKUP(EDATE('Multas Geradores'!R102,-1),Índices!$B$8:$F$1000,5) -> 171367.9763 | T102: 32 | U102: S | V102: =-152142.474781536*128398.18/(13247.46+128398.18) -> -137913.2945 | W102: 45839 | X102: =IFERROR(V102*VLOOKUP(CAPA!$C$15,Índices!$B$8:$F$1000,5)/VLOOKUP(EDATE('Multas Geradores'!W102,-1),Índices!$B$8:$F$1000,5),0) -> -153211.3857
J103: Desp. nº 2.495/2024 | K103: Termoceará | L103: PETROB PIE 1LN | M103: ENERGISA VP | N103: 16339 | O103: 1º LEN | P103: 2010-T15 | Q103: 68032.54 | R103: 45231 | S103: =Q103*VLOOKUP(CAPA!$C$15,Índices!$B$8:$F$1000,5)/VLOOKUP(EDATE('Multas Geradores'!R103,-1),Índices!$B$8:$F$1000,5) -> 90800.34238 | T103: 1000040 | U103: S | V103: =-276681.523893658*68032.54/(4981.23+65963.88+292.48+9950.3+102128.5+6243.38+68032.54) -> -73074.18005 | W103: 45839 | X103: =IFERROR(V103*VLOOKUP(CAPA!$C$15,Índices!$B$8:$F$1000,5)/VLOOKUP(EDATE('Multas Geradores'!W103,-1),Índices!$B$8:$F$1000,5),0) -> -81179.96474
J104: Desp. nº 2.495/2024 | K104: Termoceará | L104: PETROB PIE 1LN | M104: ESCELSA | N104: 16314 | O104: 1º LEN | P104: 2010-T15 | Q104: 1188927.8 | R104: 45231 | S104: =Q104*VLOOKUP(CAPA!$C$15,Índices!$B$8:$F$1000,5)/VLOOKUP(EDATE('Multas Geradores'!R104,-1),Índices!$B$8:$F$1000,5) -> 1586814.946 | T104: 380 | U104: S | V104: =-1385727.16615225*1188922.8/(74919.9+1188922.8) -> -1303582.022 | W104: 45870 | X104: =IFERROR(V104*VLOOKUP(CAPA!$C$15,Índices!$B$8:$F$1000,5)/VLOOKUP(EDATE('Multas Geradores'!W104,-1),Índices!$B$8:$F$1000,5),0) -> -1429940.203
J105: Desp. nº 2.495/2024 | K105: Termoceará | L105: PETROB PIE 1LN | M105: LIGHT | N105: 16316 | O105: 1º LEN | P105: 2010-T15 | Q105: 966965.63 | R105: 45231 | S105: =Q105*VLOOKUP(CAPA!$C$15,Índices!$B$8:$F$1000,5)/VLOOKUP(EDATE('Multas Geradores'!R105,-1),Índices!$B$8:$F$1000,5) -> 1290570.81 | T105: 382 | U105: N | X105: =IFERROR(V105*VLOOKUP(CAPA!$C$15,Índices!$B$8:$F$1000,5)/VLOOKUP(EDATE('Multas Geradores'!W105,-1),Índices!$B$8:$F$1000,5),0) -> 0
J106: Desp. nº 2.495/2024 | K106: Termoceará | L106: PETROB PIE 1LN | M106: RGE DIST | N106: 245979 | O106: 1º LEN | P106: 2010-T15 | Q106: 3208.42 | R106: 45231 | S106: =Q106*VLOOKUP(CAPA!$C$15,Índices!$B$8:$F$1000,5)/VLOOKUP(EDATE('Multas Geradores'!R106,-1),Índices!$B$8:$F$1000,5) -> 4282.151372 | T106: 382 | U106: S | V106: =-928794.33*3208.42/(90322.36+797751.65+3208.42) -> -3343.454559 | W106: 45809 | X106: =IFERROR(V106*VLOOKUP(CAPA!$C$15,Índices!$B$8:$F$1000,5)/VLOOKUP(EDATE('Multas Geradores'!W106,-1),Índices!$B$8:$F$1000,5),0) -> -3755.076777
J107: Desp. nº 2.495/2024 | K107: Termoceará | L107: PETROB PIE 1LN | M107: RGE SUL | N107: 16319 | O107: 1º LEN | P107: 2010-T15 | Q107: 797751.65 | R107: 45231 | S107: =Q107*VLOOKUP(CAPA!$C$15,Índices!$B$8:$F$1000,5)/VLOOKUP(EDATE('Multas Geradores'!R107,-1),Índices!$B$8:$F$1000,5) -> 1064727.599 | T107: 1000042 | U107: S | V107: =-928794.33*797751.65/(90322.36+797751.65+3208.42) -> -831327.068 | W107: 45809 | X107: =IFERROR(V107*VLOOKUP(CAPA!$C$15,Índices!$B$8:$F$1000,5)/VLOOKUP(EDATE('Multas Geradores'!W107,-1),Índices!$B$8:$F$1000,5),0) -> -933674.112

Sheet BD
B1: Banco de Dados | M1: Anexo II | N1: =Resultado!$D$6 -> 0.008050423216
B2: =CAPA!B6 -> EMT | M2: Anexo I | N2: =Resultado!$D$8 -> 0.009447491259
B5: Informações do ano anterior | G5: Dados de abertura (Neutralidade e CVA saldo a compensar) | L5: Dados de Energia | S5: Dados para Revisão | AA5: BMP_RIT | AK5: Avaliação Parcela B | AQ5: Compensação DIC FIC | BF5: Financeiro Desconcatenação Permissionárias
B7: Encargos | G7: Encargo | H7: Valor | I7: Norma | L7: Cotas | M7: Valor da "Cota" | N7: Ano | O7: Custo Médio da Cota | P7: Energia MWh | S7: item | T7: Descrição | U7: Detalhe | V7: Valor | AA7: IDAGENTE | AB7: ANO | AC7: SIGLA | AD7: ContaPrincipal | AE7: ContaDetalhada | AF7: CONTA | AG7: SALDO | AK7: Ano | AL7: DataRevREa | AM7: item | AN7: valor | AQ7: Competência | AR7: IdSariAcessado | AS7: IdSariAcessante | AT7: IdcTipoPontoConexao | AU7: VlrCompensacao | AV7: VlrDIC | AW7: VlrDMICMensal | AX7: VrlCompensasao_compensado | AY7: VlrDIC_compensado | AZ7: VlrDMICMensal_compensado | BA7: VlrCompensacao_a_Compensar | BB7: VlrDIC_a_compensar | BC7: VlrDMICMensal_a_compensar | BD7: Vlr_a_Compensar | BF7: IdAg_acessado | BG7: Sigla_acessada | BH7: IdAg_acessante | BI7: Sigla_acessante | BJ7: Competência | BK7: AnoRef | BL7: NomSubgrupo | BM7: DetalheTarifario | BN7: Posto | BO7: Vlr_Mercado | BP7: Tarifa | BQ7: Tarifa_ant | BR7: Vig_ini_acessada | BS7: Vig_fin_acessada | BT7: Competencia_seg | BU7: Vig_ini_acessante | BV7: Desconto | BW7: Desconto_ant | BX7: Financeiro
B8: CDE Covid TE | C8: 0 | G8: CDE Eletrobras | H8: -5296524.4 | I8: DSP 1.536/2025 | L8: Angra | N8: 2026 | O8: 361.56 | P8: 190808 | AA8: 405 | AB8: 2023 | AC8: EMT | AD8: Pessoal | AE8: Remuneração | AF8: 610530501 | AG8: 70782845.29 | AK8: 2025 | AL8: 23839 | AM8: ANEXO II | AN8: 0.05076025677 | AQ8: 45689 | AR8: 369 | AS8: 405 | AT8: D | AU8: 0 | AV8: 3.18 | AW8: 0 | AX8: 0 | AY8: 0 | AZ8: 0 | BA8: 0 | BB8: -3.18 | BC8: 0 | BD8: -3.18
B9: CDE Covid TUSD | C9: 0 | G9: CDE | H9: 1155141285 | I9: REH 3.564/2025 | AA9: 405 | AB9: 2023 | AC9: EMT | AD9: Pessoal | AE9: Encargos | AF9: 610530502 | AG9: 48512160.18 | AK9: 2025 | AL9: 23839 | AM9: CONSUMIDOR DISTRIBUIÇÃO | AN9: 38423.63 | AQ9: 45689 | AR9: 6072 | AS9: 405 | AT9: D | AU9: 538504.67 | AV9: 131.71 | AW9: 0 | AX9: 0 | AY9: 0 | AZ9: 0 | BA9: -538504.67 | BB9: -131.71 | BC9: 0 | BD9: -538636.38
B10: TFSEE | C10: 12025135.67 | G10: CFURH | AA10: 405 | AB10: 2023 | AC10: EMT | AD10: Pessoal | AE10: Previdência Privada - Corrente | AF10: 610530503 | AG10: 3981923.36 | AK10: 2025 | AL10: 23839 | AM10: CONSUMIDOR LIVRE | AN10: 3183577.281 | AQ10: 45627 | AR10: 6072 | AS10: 405 | AT10: D | AU10: 240692.63 | AV10: 44.02 | AW10: 43.94 | AX10: 0 | AY10: 0 | AZ10: 0 | BA10: -240692.63 | BB10: -44.02 | BC10: -43.94 | BD10: -240736.65
B11: CDE | C11: 931193917 | G11: PROINFA | H11: 109229850.3 | I11: REH 3.558/2025 | L11: Ano | M11: Cota Itaipu | AA11: 405 | AB11: 2023 | AC11: EMT | AD11: Pessoal | AE11: Despesas Rescisórias | AF11: 610530506 | AG11: 0 | AK11: 2025 | AL11: 23839 | AM11: ENCARGO | AN11: 1621604253 | AQ11: 45505 | AR11: 6072 | AS11: 405 | AT11: D | AU11: 17506.74 | AV11: 7.2 | AW11: 3.44 | AX11: 0 | AY11: 0 | AZ11: 0 | BA11: -17506.74 | BB11: -7.2 | BC11: -3.44 | BD11: -17513.94
B12: ESS/ERR | C12: 185691593.4 | G12: ONS | H12: 230067.84 | I12: Contribuição 2025 | L12: 2024 | M12: 0.03059811765 | AA12: 405 | AB12: 2023 | AC12: EMT | AD12: Pessoal | AE12: Participação nos Lucros e Resultados - PLR | AF12: 610530507 | AG12: 21871209.02 | AK12: 2025 | AL12: 23839 | AM12: ENERGIA | AN12: 2536307999 | AQ12: 45474 | AR12: 6072 | AS12: 405 | AT12: D | AU12: 0 | AV12: 0.05 | AW12: 0.05 | AX12: 0 | AY12: 0 | AZ12: 0 | BA12: 0 | BB12: -0.05 | BC12: -0.05 | BD12: -0.05
B13: PROINFA | C13: 131726974 | G13: ERCAP | H13: 40525868.57 | I13: DSP 3.880/2025 | L13: 2025 | M13: 0.03059171 | AA13: 405 | AB13: 2023 | AC13: EMT | AD13: Pessoal | AE13: Outros Benefícios - Corrente | AF13: 610530508 | AG13: 51217625.53 | AK13: 2025 | AL13: 23839 | AM13: FATOR X | AN13: 0.02683219686 | AQ13: 45444 | AR13: 6072 | AS13: 405 | AT13: D | AU13: 0 | AV13: 0.17 | AW13: 0.1 | AX13: 0 | AY13: 0 | AZ13: 0 | BA13: 0 | BB13: -0.17 | BC13: -0.1 | BD13: -0.17
B14: P&D | C14: 66558525.59 | G14: EER | H14: 133811887.7 | I14: DSP 3.880/2025 | L14: 2026 | M14: 0.03060069 | AA14: 405 | AB14: 2023 | AC14: EMT | AD14: Pessoal | AE14: (-) Créditos de Tributos Recuperáveis | AF14: 610530510 | AG14: 0 | AK14: 2025 | AL14: 23839 | AM14: Fornecimento | AN14: 7834501.87 | AQ14: 45413 | AR14: 369 | AS14: 405 | AT14: D | AU14: 0 | AV14: 3.18 | AW14: 0 | AX14: 0 | AY14: 0 | AZ14: 0 | BA14: 0 | BB14: -3.18 | BC14: 0 | BD14: -3.18
B15: ONS | C15: 230067.84 | G15: ESS | H15: 3319658.49 | I15: DSP 3.880/2025 | L15: 2027 | M15: 0.03188903 | AA15: 405 | AB15: 2023 | AC15: EMT | AD15: Pessoal | AE15: Estagiários e Programas de Iniciação ao Trabalho | AF15: 610530511 | AG15: 1604168.24 | AK15: 2025 | AL15: 23839 | AM15: IGPM | AN15: 0.09293819473 | AQ15: 45413 | AR15: 6072 | AS15: 405 | AT15: D | AU15: 56130.07 | AV15: 38.68 | AW15: 7.67 | AX15: 0 | AY15: 0 | AZ15: 0 | BA15: -56130.07 | BB15: -38.68 | BC15: -7.67 | BD15: -56168.75
B16: CDE Eletrobras | C16: 0 | G16: TFSEE Fator de Carga | H16: 0.86 | AA16: 405 | AB16: 2023 | AC16: EMT | AD16: Pessoal | AE16: Outros | AF16: 610530599 | AG16: 0 | AK16: 2025 | AL16: 23839 | AM16: IPCA | AN16: 0.0547797832 | AQ16: 45383 | AR16: 6072 | AS16: 405 | AT16: D | AU16: 86725.24 | AV16: 23.02 | AW16: 20.33 | AX16: 0 | AY16: 0 | AZ16: 0 | BA16: -86725.24 | BB16: -23.02 | BC16: -20.33 | BD16: -86748.26
B17: CDE GD | C17: 54114150.09 | G17: CDE Covid | H17: 0 | I17: Quitação | AA17: 405 | AB17: 2023 | AC17: EMT | AD17: Pessoal | AE17: Honorários e Encargos (Diretoria e Conselho) | AF17: 610530601 | AG17: 0 | AK17: 2025 | AL17: 23839 | AM17: Parcela B | AN17: 3081195682 | AQ17: 45352 | AR17: 369 | AS17: 405 | AT17: D | AU17: 1763.81 | AV17: 3.18 | AW17: 3.18 | AX17: 0 | AY17: 0 | AZ17: 0 | BA17: -1763.81 | BB17: -3.18 | BC17: -3.18 | BD17: -1766.99
B18: CDE Conta - Escassez Hídrica TUSD | C18: 38036308.86 | G18: CDE Covid TE% | H18: 0.3618054792 | AA18: 405 | AB18: 2023 | AC18: EMT | AD18: Pessoal | AE18: Benefícios dos Administradores | AF18: 610530602 | AG18: 0 | AK18: 2025 | AL18: 23839 | AM18: Revisão ou Reajuste (1-REVI,0-Reaj) | AN18: 0 | AQ18: 45352 | AR18: 6072 | AS18: 405 | AT18: D | AU18: 0 | AV18: 0.14 | AW18: 0.14 | AX18: 0 | AY18: 0 | AZ18: 0 | BA18: 0 | BB18: -0.14 | BC18: -0.14 | BD18: -0.14
B19: CDE Conta - Escassez Hídrica TE | C19: 202027580.7 | G19: CDE Covid TUSD% | H19: 0.6381945208 | AA19: 405 | AB19: 2023 | AC19: EMT | AD19: Materiais | AE19: Materiais | AF19: 610530701 | AG19: 37042365.09 | AK19: 2025 | AL19: 23839 | AM19: SUPRIMENTO (Mercado TUSD) | AN19: 0 | AQ19: 45323 | AR19: 369 | AS19: 405 | AT19: D | AU19: 0 | AV19: 0.28 | AW19: 0.28 | AX19: 0 | AY19: 0 | AZ19: 0 | BA19: 0 | BB19: -0.28 | BC19: -0.28 | BD19: -0.28
G20: CDE Escassez Hidrica | H20: 240063889.6 | I20: DSP 510/2023 | AA20: 405 | AB20: 2023 | AC20: EMT | AD20: Materiais | AE20: (-) Créditos de Tributos Recuperáveis | AF20: 610530710 | AG20: -400413.48 | AK20: 2025 | AL20: 23839 | AM20: SUPRIMENTO (via Rede Básica) | AN20: 0 | AQ20: 45323 | AR20: 6072 | AS20: 405 | AT20: D | AU20: 50432.09 | AV20: 4.79 | AW20: 0.4 | AX20: 0 | AY20: 0 | AZ20: 0 | BA20: -50432.09 | BB20: -4.79 | BC20: -0.4 | BD20: -50436.88
B21: Pmix | C21: 292.6954732 | G21: CDE Escassez Hidr TE% | H21: 0.8415575582 | AA21: 405 | AB21: 2023 | AC21: EMT | AD21: Materiais | AE21: Outros | AF21: 610530799 | AG21: 1184039.56 | AK21: 2025 | AL21: 23839 | AM21: TRANSPORTE TERCEIROS | AN21: 651189563.8 | AQ21: 45292 | AR21: 6072 | AS21: 405 | AT21: D | AU21: 13299.59 | AV21: 4.52 | AW21: 4.21 | AX21: 0 | AY21: 0 | AZ21: 0 | BA21: -13299.59 | BB21: -4.52 | BC21: -4.21 | BD21: -13304.11
B22: PN2025 | C22: =D22 -> 0.075309 | D22: 0.075309 | E22: DESP. 1.220/2025 | G22: CDE Escassez Hidr TUSD% | H22: 0.1584424418 | L22: Mês | M22: Potência | N22: Tarifa | O22: Perdas | P22: Energia | AA22: 405 | AB22: 2023 | AC22: EMT | AD22: Serviços | AE22: Serviços de Terceiros | AF22: 610530801 | AG22: 230036084 | AQ22: 45231 | AR22: 6072 | AS22: 405 | AT22: D | AU22: 0 | AV22: 1.41 | AW22: 0.54 | AX22: 0 | AY22: 0 | AZ22: 0 | BA22: 0 | BB22: -1.41 | BC22: -0.54 | BD22: -1.41
B23: PN2026 | C23: 0.07342613513 | G23: CDE GD | H23: 0.001 | I23: Art. 23, Lei 15.269/2025 | L23: 46113 | M23: 287.1874757 | N23: 17.66 | O23: 0.05390602441 | P23: 126141.4037 | AA23: 405 | AB23: 2023 | AC23: EMT | AD23: Serviços | AE23: (-) Créditos de Tributos Recuperáveis | AF23: 610530810 | AG23: -11542347.84 | AQ23: 45200 | AR23: 6072 | AS23: 405 | AT23: D | AU23: 0 | AV23: 0.22 | AW23: 0.22 | AX23: 0 | AY23: 0 | AZ23: 0 | BA23: 0 | BB23: -0.22 | BC23: -0.22 | BD23: -0.22
B24: PT2023 | C24: 0.08779 | L24: 46143 | M24: 293.3076137 | N24: 17.66 | O24: 0.05390602441 | P24: 130346.1171 | AA24: 405 | AB24: 2023 | AC24: EMT | AD24: Seguros | AE24: Seguros | AF24: 610531001 | AG24: 38336.67
B25: Perda RB total | C25: 0.01437178401 | G25: Informações de Postergação | L25: 46174 | M25: 294.8376482 | N25: 17.66 | O25: 0.05390602441 | P25: 126141.4037 | AA25: 405 | AB25: 2023 | AC25: EMT | AD25: Seguros | AE25: (-) Créditos de Tributos Recuperáveis | AF25: 610531010 | AG25: 0
L26: 46204 | M26: 294.7152454 | N26: 17.66 | O26: 0.05390602441 | P26: 130346.1171 | AA26: 405 | AB26: 2023 | AC26: EMT | AD26: Seguros | AE26: Outros | AF26: 610531099 | AG26: 0
B27: CVA RB | C27: 74355201.71 | G27: Tipo | H27: Valor | I27: Coluna1 | L27: 46235 | M27: 288.7175102 | N27: 17.66 | O27: 0.05390602441 | P27: 130346.1171 | AA27: 405 | AB27: 2023 | AC27: EMT | AD27: Tributos | AE27: Tributos | AF27: 610531601 | AG27: 1748272.92
B28: CVA CDE Covid TUSD | C28: -36137717.31 | G28: Data Postergada | H28: DtAniversario | I28: 46120 | L28: 46266 | M28: 284.1274067 | N28: 17.66 | O28: 0.05390602441 | P28: 126141.4037 | AA28: 405 | AB28: 2023 | AC28: EMT | AD28: Outros | AE28: Indenização por Perdas e Danos | AF28: 610531901 | AG28: 3103077.32
B29: CVA CCC | C29: 0 | G29: Data Anterior | I29: 46120 | L29: 46296 | M29: 278.0072687 | N29: 17.66 | O29: 0.05390602441 | P29: 130346.1171 | AA29: 405 | AB29: 2023 | AC29: EMT | AD29: Outros | AE29: Consumo Próprio de Energia | AF29: 610531902 | AG29: 13042285.61
B30: CVA CDE | C30: 33253812.51 | G30: Diferença de Dias | I30: 0 | L30: 46327 | M30: 276.4772342 | N30: 17.66 | O30: 0.05390602441 | P30: 126141.4037 | AA30: 405 | AB30: 2023 | AC30: EMT | AD30: Outros | AE30: Taxa de Arrecadação | AF30: 610531903 | AG30: 0
B31: CVA CFURH | G31: MesesAdin | I31: 0 | L31: 46357 | M31: 276.4772342 | N31: 17.66 | O31: 0.05390602441 | P31: 130346.1171 | AA31: 405 | AB31: 2023 | AC31: EMT | AD31: Outros | AE31: Taxas Bancárias | AF31: 610531904 | AG31: 0
B32: CVA ESS\ERR | C32: 22604791.35 | G32: Reversão Subvenção CDE | L32: 46388 | M32: 288.1173861 | N32: 17.66 | O32: 0.05390602441 | P32: 135833.9057 | AA32: 405 | AB32: 2023 | AC32: EMT | AD32: Outros | AE32: Despesas com Conselho de Consumidores | AF32: 610531905 | AG32: 0
B33: CVA PROINFA | C33: 6185468.819 | G33: Data 4CRT | I33: 45024 | L33: 46419 | M33: 288.1173861 | N33: 17.66 | O33: 0.05390602441 | P33: 122688.689 | AA33: 405 | AB33: 2023 | AC33: EMT | AD33: Outros | AE33: Comunicação e Reprografia | AF33: 610531907 | AG33: 3679299.06
B34: CVA TRANS. ITAIPU | C34: -1321073.989 | L34: 46447 | M34: 288.1173861 | N34: 17.66 | O34: 0.05390602441 | P34: 135833.9057 | AA34: 405 | AB34: 2023 | AC34: EMT | AD34: Outros | AE34: Contribuição Associativa - CCEE | AF34: 610531908 | AG34: 928204.49
B35: CVA ENERGIA | C35: 62465680.5 | G35: Nome | H35: Valor | AA35: 405 | AB35: 2023 | AC35: EMT | AD35: Outros | AE35: Contribuição Associativa - ONS | AF35: 610531909 | AG35: 215630.35
B36: CVA CDE Covid TE | C36: -20487208.37 | G36: TUSDg Export DRP | H36: 55994317.95 | L36: Mês | M36: Potência | N36: Tarifa DRA | O36: Tarifa DRP | P36: Colunas1 | AA36: 405 | AB36: 2023 | AC36: EMT | AD36: Outros | AE36: (-) Créditos de Tributos Recuperáveis | AF36: 610531910 | AG36: 0
G37: TUSDg ONS DRP | H37: 3588665.95 | L37: 45748 | M37: 301.4813021 | N37: 12001.87 | O37: 14961.37 | AA37: 405 | AB37: 2023 | AC37: EMT | AD37: Pessoal | AE37: Remuneração | AF37: 610532501 | AG37: 39569687.36
G38: TUSDg ONS DRA | H38: 3301282.04 | L38: 45778 | M38: 307.599644 | N38: 12001.87 | O38: 14961.37 | AA38: 405 | AB38: 2023 | AC38: EMT | AD38: Pessoal | AE38: Encargos | AF38: 610532502 | AG38: 16134448.77
B39: Transporte | G39: TUSDg Export DRA | H39: 53422550.86 | L39: 45809 | M39: 311.5765664 | N39: 12001.87 | O39: 14961.37 | AA39: 405 | AB39: 2023 | AC39: EMT | AD39: Pessoal | AE39: Previdência Privada - Corrente | AF39: 610532503 | AG39: 2029210.02
B40: Conexao | C40: 11975370.35 | L40: 45839 | M40: 311.8213 | N40: 12001.87 | O40: 14961.37 | AA40: 405 | AB40: 2023 | AC40: EMT | AD40: Pessoal | AE40: Despesas Rescisórias | AF40: 610532506 | AG40: 0
L41: 45870 | M41: 299.6457995 | N41: 12001.87 | O41: 14961.37 | AA41: 405 | AB41: 2023 | AC41: EMT | AD41: Pessoal | AE41: Participação nos Lucros e Resultados - PLR | AF41: 610532507 | AG41: 10545028.02
G42: Fator X | H42: Valor | L42: 45901 | M42: 293.5274574 | N42: 12001.87 | O42: 14961.37 | AA42: 405 | AB42: 2023 | AC42: EMT | AD42: Pessoal | AE42: Outros Benefícios - Corrente | AF42: 610532508 | AG42: 14796225.75
G43: fatorx_t | H43: 0.01762 | L43: 45931 | M43: 278.2316025 | N43: 12001.87 | O43: 14961.37 | AA43: 405 | AB43: 2023 | AC43: EMT | AD43: Pessoal | AE43: (-) Créditos de Tributos Recuperáveis | AF43: 610532510 | AG43: 0
B44: Mercado | G44: fatorx_pd | H44: 0.00904 | L44: 45962 | M44: 275.1724315 | N44: 12001.87 | O44: 14961.37 | AA44: 405 | AB44: 2023 | AC44: EMT | AD44: Pessoal | AE44: Estagiários e programa de iniciação ao trabalho | AF44: 610532511 | AG44: 536901.74
B45: RA0_MWh_Tusd | C45: 11056502.78 | L45: 45992 | M45: 270.2777579 | N45: 12001.87 | O45: 14961.37 | AA45: 405 | AB45: 2023 | AC45: EMT | AD45: Pessoal | AE45: Outros | AF45: 610532599 | AG45: 0
B46: RA1_R$ | C46: 7890297498 | G46: DecFec Processo Anterior | H46: Valor | L46: 46023 | M46: 276.4772342 | N46: 12001.87 | O46: 14961.37 | AA46: 405 | AB46: 2023 | AC46: EMT | AD46: Pessoal | AE46: Honorários e Encargos (Diretoria e Conselho) | AF46: 610532601 | AG46: 8409514.77
B47: Proinfa | L47: 46054 | M47: 276.4772342 | N47: 12001.87 | O47: 14961.37 | AA47: 405 | AB47: 2023 | AC47: EMT | AD47: Pessoal | AE47: Benefícios dos Administradores | AF47: 610532602 | AG47: 1124222.17
B48: 2026 | C48: 155489.1944 | L48: 46082 | M48: 276.4772342 | N48: 12001.87 | O48: 14961.37 | AA48: 405 | AB48: 2023 | AC48: EMT | AD48: Pessoal | AE48: (-) Créditos de Tributos Recuperáveis | AF48: 610532610 | AG48: 0
B49: Detalhamento de Encargos ESS e CDE | AA49: 405 | AB49: 2023 | AC49: EMT | AD49: Materiais | AE49: Materiais | AF49: 610532701 | AG49: 14558279.04
L50: Dado | M50: Valor | N50: Início | O50: Fim | AA50: 405 | AB50: 2023 | AC50: EMT | AD50: Materiais | AE50: (-) Créditos de Tributos Recuperáveis | AF50: 610532710 | AG50: 0
L51: MUST | M51: 6963 | N51: 45474 | O51: 45838 | AA51: 405 | AB51: 2023 | AC51: EMT | AD51: Materiais | AE51: Outros | AF51: 610532799 | AG51: 0
G52: Dados de dólar | H52: Valor | L52: MUST | M52: 7170 | N52: 45839 | O52: 46203 | AA52: 405 | AB52: 2023 | AC52: EMT | AD52: Serviços | AE52: Serviços de Terceiros | AF52: 610532801 | AG52: 157594978
G53: Dólar médio | H53: 5.204052632 | L53: Potência Max | M53: 10193 | N53: 45658 | O53: 46022 | AA53: 405 | AB53: 2023 | AC53: EMT | AD53: Serviços | AE53: (-) Créditos de Tributos Recuperáveis | AF53: 610532810 | AG53: 0
G54: Data Inicial | H54: 46066 | L54: Potência Max | M54: 9635 | N54: 46023 | O54: 46387 | AA54: 405 | AB54: 2023 | AC54: EMT | AD54: Seguros | AE54: Seguros | AF54: 610533001 | AG54: 3923540.35
G55: Data Final | H55: 46094 | AA55: 405 | AB55: 2023 | AC55: EMT | AD55: Seguros | AE55: (-) Créditos de Tributos Recuperáveis | AF55: 610533010 | AG55: 0
L56: Dados de perda | M56: Valor | O56: Agente | P56: Ressarcimento P&D | AA56: 405 | AB56: 2023 | AC56: EMT | AD56: Seguros | AE56: Outros | AF56: 610533099 | AG56: 0
B57: Subsídios Concedidos (sem ajuste) | L57: Perdas RB | M57: 114519.7422 | AA57: 405 | AB57: 2023 | AC57: EMT | AD57: Tributos | AE57: Tributos | AF57: 610533601 | AG57: 3453917.69
B58: Mês de Início | C58: Carga Fonte | D58: Geração | E58: Distribuição | F58: Água, Esgoto e Saneamento | G58: Rural | H58: Irrigante/Aquicultor | I58: SCEE | J58: Lei 14299/20222 | L58: Perdas DITs | M58: 14902.63757 | AA58: 405 | AB58: 2023 | AC58: EMT | AD58: Outros | AE58: Indenização por Perdas e Danos | AF58: 610533901 | AG58: 4350.53
B59: 2025-04-01 | C59: 24815756.63 | D59: 7917252.362 | E59: 0 | F59: 0.003333333333 | G59: 0 | H59: 4549113.431 | I59: 18717385.41 | J59: 0 | AA59: 405 | AB59: 2023 | AC59: EMT | AD59: Outros | AE59: Consumo Próprio de Energia | AF59: 610533902 | AG59: 0
AA60: 405 | AB60: 2023 | AC60: EMT | AD60: Outros | AE60: Taxa de Arrecadação | AF60: 610533903 | AG60: 0
AA61: 405 | AB61: 2023 | AC61: EMT | AD61: Outros | AE61: Taxas Bancárias | AF61: 610533904 | AG61: 0
AA62: 405 | AB62: 2023 | AC62: EMT | AD62: Outros | AE62: Comunicação e Reprografia | AF62: 610533907 | AG62: 14016644.66
AA63: 405 | AB63: 2023 | AC63: EMT | AD63: Outros | AE63: Contribuição Associativa - CCEE | AF63: 610533908 | AG63: 0
AA64: 405 | AB64: 2023 | AC64: EMT | AD64: Outros | AE64: Contribuição Associativa - ONS | AF64: 610533909 | AG64: 0
B65: Data | C65: Tipo | D65: Valor | E65: Valor IGPM | F65: Valor IPCA | G65: EixoRef | AA65: 405 | AB65: 2023 | AC65: EMT | AD65: Outros | AE65: (-) Créditos de Tributos Recuperáveis | AF65: 610533910 | AG65: 0
B66: =DATE(YEAR(CAPA!C10),MONTH(CAPA!C10),1) -> 2026-04-01 | C66: =IF(CAPA!C7="Revisão",1,0) -> 0 | D66: =Resultado!L11 -> 899.422587 | E66: =IFERROR(VLOOKUP(EDATE($B66,-1),Índices!$B$6:$F$500,2,FALSE)/VLOOKUP(EDATE(MIN($B$67:$B$81),-1),Índices!$B$6:$F$500,2,FALSE)*VLOOKUP(MIN($B$67:$B$81),$B$67:$D$81,3,FALSE),0) -> 0 | F66: =IFERROR(VLOOKUP(EDATE($B66,-1),Índices!$B$6:$F$500,3,FALSE)/VLOOKUP(EDATE(MIN($B$67:$B$81),-1),Índices!$B$6:$F$500,3,FALSE)*VLOOKUP(MIN($B$67:$B$81),$B$67:$D$81,3,FALSE),0) -> 0 | G66: =IF(B66<>"",150+1,"") -> 151 | O66: Data | P66: Fat Bandeiras | AA66: 405 | AB66: 2023 | AC66: EMT | AD66: Alienação | AE66: Ganhos na Alienação de Bens Reversíveis | AF66: 611112203 | AG66: 0
O67: 45748 | P67: 31142.57 | AA67: 405 | AB67: 2023 | AC67: EMT | AD67: Desativação | AE67: Ganhos na Desativação de Bens Reversíveis | AF67: 611112403 | AG67: 0
O68: 45778 | P68: 4842292.54 | AA68: 405 | AB68: 2023 | AC68: EMT | AD68: Desativação | AE68: Perdas na Desativação de Bens Reversíveis | AF68: 611512003 | AG68: 63010671.09
O69: 45809 | P69: 14840806.21 | AA69: 405 | AB69: 2023 | AC69: EMT | AD69: Alienação | AE69: Perdas na Alienação de Bens Reversíveis | AF69: 611512203 | AG69: 5692327.7
O70: 45839 | P70: 20987408.41 | AA70: 405 | AB70: 2024 | AC70: EMT | AD70: Pessoal | AE70: Remuneração | AF70: 610530501 | AG70: 59775048.85
O71: 45870 | P71: 30956657.28 | AA71: 405 | AB71: 2024 | AC71: EMT | AD71: Pessoal | AE71: Encargos | AF71: 610530502 | AG71: 69222816.68
O72: 45901 | P72: 42966454.95 | AA72: 405 | AB72: 2024 | AC72: EMT | AD72: Pessoal | AE72: Previdência Privada - Corrente | AF72: 610530503 | AG72: 4518028.79
O73: 45931 | P73: 39651985.41 | AA73: 405 | AB73: 2024 | AC73: EMT | AD73: Pessoal | AE73: Despesas Rescisórias | AF73: 610530506 | AG73: 0
O74: 45962 | P74: 26728712.32 | AA74: 405 | AB74: 2024 | AC74: EMT | AD74: Pessoal | AE74: Participação nos Lucros e Resultados - PLR | AF74: 610530507 | AG74: 9873552.12
O75: 45992 | P75: 17826609.79 | AA75: 405 | AB75: 2024 | AC75: EMT | AD75: Pessoal | AE75: Outros Benefícios - Corrente | AF75: 610530508 | AG75: 66377785.92
O76: 46023 | P76: 17826609.79 | AA76: 405 | AB76: 2024 | AC76: EMT | AD76: Pessoal | AE76: (-) Créditos de Tributos Recuperáveis | AF76: 610530510 | AG76: 0
O77: 46054 | P77: 17826609.79 | AA77: 405 | AB77: 2024 | AC77: EMT | AD77: Pessoal | AE77: Estagiários e Programas de Iniciação ao Trabalho | AF77: 610530511 | AG77: 1637906.79
O78: 46082 | P78: 17826609.79 | AA78: 405 | AB78: 2024 | AC78: EMT | AD78: Pessoal | AE78: Outros | AF78: 610530599 | AG78: 0
AA79: 405 | AB79: 2024 | AC79: EMT | AD79: Pessoal | AE79: Honorários e Encargos (Diretoria e Conselho) | AF79: 610530601 | AG79: 0
AA80: 405 | AB80: 2024 | AC80: EMT | AD80: Pessoal | AE80: Benefícios dos Administradores | AF80: 610530602 | AG80: 0
AA81: 405 | AB81: 2024 | AC81: EMT | AD81: Materiais | AE81: Materiais | AF81: 610530701 | AG81: 48174127.03
AA82: 405 | AB82: 2024 | AC82: EMT | AD82: Materiais | AE82: (-) Créditos de Tributos Recuperáveis | AF82: 610530710 | AG82: -945679.46
AA83: 405 | AB83: 2024 | AC83: EMT | AD83: Materiais | AE83: Outros | AF83: 610530799 | AG83: 1467061.8
B84: Tabela de Resumo de Montante DRP ano anterior/ Montante Apurado pelo Mercado | AA84: 405 | AB84: 2024 | AC84: EMT | AD84: Serviços | AE84: Serviços de Terceiros | AF84: 610530801 | AG84: 194884042.4
B85: detalhe_grupo | C85: GrupoTarifa | D85: tipoBase | E85: tipofatura | F85: ValorCTAnterior_Sum | G85: ValorAnt_Sum | L85: Prcesso Anterior | N85: RTE | AA85: 405 | AB85: 2024 | AC85: EMT | AD85: Serviços | AE85: (-) Créditos de Tributos Recuperáveis | AF85: 610530810 | AG85: -7342010.65
L86: MWh | M86: R$ | N86: MWh | O86: R$ | S86: DthEfetivaPagamento | T86: VlrGarantiaFinanceira | V86: Conta Escassez | W86: Valor | X86: Legislacao | AA86: 405 | AB86: 2024 | AC86: EMT | AD86: Seguros | AE86: Seguros | AF86: 610531001 | AG86: 245644.75
I87: BILATERAL | K87: valor | L87: 1865136.729 | M87: 723724914.7 | S87: 45778 | T87: 32513.62 | AA87: 405 | AB87: 2024 | AC87: EMT | AD87: Seguros | AE87: (-) Créditos de Tributos Recuperáveis | AF87: 610531010 | AG87: 0
I88: CCEAR-DISP | J88: Nova | K88: valor | L88: 3983730.06 | M88: 1284831629 | S88: 45809 | T88: 32513.62 | AA88: 405 | AB88: 2024 | AC88: EMT | AD88: Seguros | AE88: Outros | AF88: 610531099 | AG88: 0
I89: CCEAR-QTD | J89: Belo Monte | K89: valor | L89: 3477.755 | M89: 635758.2913 | S89: 45839 | T89: 34177.6 | AA89: 405 | AB89: 2024 | AC89: EMT | AD89: Tributos | AE89: Tributos | AF89: 610531601 | AG89: 2768424.23
I90: CCEAR-QTD | J90: Madeira | K90: valor | L90: 9.338 | M90: 1722.284983 | S90: 45870 | T90: 34177.6 | AA90: 405 | AB90: 2024 | AC90: EMT | AD90: Outros | AE90: Indenização por Perdas e Danos | AF90: 610531901 | AG90: 3616641.51
I91: CCEAR-QTD | J91: Nova | K91: valor | L91: 1048446.72 | M91: 260944547.7 | S91: 45901 | T91: 34177.6 | AA91: 405 | AB91: 2024 | AC91: EMT | AD91: Outros | AE91: Consumo Próprio de Energia | AF91: 610531902 | AG91: 14545146.07
I92: CCEN | K92: valor | L92: 303189.3034 | M92: 93606665.52 | S92: 45931 | T92: 34177.6 | AA92: 405 | AB92: 2024 | AC92: EMT | AD92: Outros | AE92: Taxa de Arrecadação | AF92: 610531903 | AG92: 0
I93: CCGF | K93: valor | L93: 1229318.735 | M93: 248532506.7 | S93: 45962 | T93: 34177.6 | AA93: 405 | AB93: 2024 | AC93: EMT | AD93: Outros | AE93: Taxas Bancárias | AF93: 610531904 | AG93: 0
I94: ITAIPU | K94: valor | L94: 1502068.107 | M94: 356136047.2 | S94: 45992 | T94: 34177.6 | AA94: 405 | AB94: 2024 | AC94: EMT | AD94: Outros | AE94: Despesas com Conselho de Consumidores | AF94: 610531905 | AG94: 0
I95: PROINFA | K95: valor | L95: 176242.824 | S95: 46023 | T95: 34177.6 | AA95: 405 | AB95: 2024 | AC95: EMT | AD95: Outros | AE95: Comunicação e Reprografia | AF95: 610531907 | AG95: 3554757.23
I96: SOBRA/EXPOSIÇÃO | K96: valor | L96: -1446272.032 | M96: -432105792.7 | AA96: 405 | AB96: 2024 | AC96: EMT | AD96: Outros | AE96: Contribuição Associativa - CCEE | AF96: 610531908 | AG96: 1173557.01
AA97: 405 | AB97: 2024 | AC97: EMT | AD97: Outros | AE97: Contribuição Associativa - ONS | AF97: 610531909 | AG97: 225781.01
AA98: 405 | AB98: 2024 | AC98: EMT | AD98: Outros | AE98: (-) Créditos de Tributos Recuperáveis | AF98: 610531910 | AG98: 0
AA99: 405 | AB99: 2024 | AC99: EMT | AD99: Pessoal | AE99: Remuneração | AF99: 610532501 | AG99: 41357884.01
AA100: 405 | AB100: 2024 | AC100: EMT | AD100: Pessoal | AE100: Encargos | AF100: 610532502 | AG100: 24435270.26
AA101: 405 | AB101: 2024 | AC101: EMT | AD101: Pessoal | AE101: Previdência Privada - Corrente | AF101: 610532503 | AG101: 2192850.34
AA102: 405 | AB102: 2024 | AC102: EMT | AD102: Pessoal | AE102: Despesas Rescisórias | AF102: 610532506 | AG102: 0
AA103: 405 | AB103: 2024 | AC103: EMT | AD103: Pessoal | AE103: Participação nos Lucros e Resultados - PLR | AF103: 610532507 | AG103: 15765648.44
AA104: 405 | AB104: 2024 | AC104: EMT | AD104: Pessoal | AE104: Outros Benefícios - Corrente | AF104: 610532508 | AG104: 21102137.04
V105: Empresa | W105: AT | X105: MT | Y105: BT | AA105: 405 | AB105: 2024 | AC105: EMT | AD105: Pessoal | AE105: (-) Créditos de Tributos Recuperáveis | AF105: 610532510 | AG105: 0
V106: 167 | W106: 0.02134 | X106: 0.35825 | Y106: 0.62041 | AA106: 405 | AB106: 2024 | AC106: EMT | AD106: Pessoal | AE106: Estagiários e programa de iniciação ao trabalho | AF106: 610532511 | AG106: 433740.01
V107: 102 | W107: 0.064 | X107: 0.32003 | Y107: 0.61596 | AA107: 405 | AB107: 2024 | AC107: EMT | AD107: Pessoal | AE107: Outros | AF107: 610532599 | AG107: 0
V108: 103 | W108: 0.02996 | X108: 0.27106 | Y108: 0.69898 | AA108: 405 | AB108: 2024 | AC108: EMT | AD108: Pessoal | AE108: Honorários e Encargos (Diretoria e Conselho) | AF108: 610532601 | AG108: 11118582.56
V109: 104 | W109: 0.07171 | X109: 0.2909 | Y109: 0.63739 | AA109: 405 | AB109: 2024 | AC109: EMT | AD109: Pessoal | AE109: Benefícios dos Administradores | AF109: 610532602 | AG109: 1316611.99
V110: 105 | W110: 0.00823 | X110: 0.24677 | Y110: 0.745 | AA110: 405 | AB110: 2024 | AC110: EMT | AD110: Pessoal | AE110: (-) Créditos de Tributos Recuperáveis | AF110: 610532610 | AG110: 0
I111: Agente | J111: idagente | K111: indexador | L111: database | M111: RAP do ciclo | N111: Colunas1 | O111: RAP atualizada | V111: 165 | W111: 0.00795 | X111: 0.22554 | Y111: 0.76651 | AA111: 405 | AB111: 2024 | AC111: EMT | AD111: Materiais | AE111: Materiais | AF111: 610532701 | AG111: 14485756.27
O112: =M112*VLOOKUP(CAPA!C15,Índices!$B$6:$F$626,IF(BD!K112="IPCA",3,2),FALSE)/VLOOKUP(L112,Índices!$B$6:$F$626,IF(BD!K112="IPCA",3,2),FALSE) ->  | V112: 108 | W112: 0.06098 | X112: 0.1711 | Y112: 0.76792 | AA112: 405 | AB112: 2024 | AC112: EMT | AD112: Materiais | AE112: (-) Créditos de Tributos Recuperáveis | AF112: 610532710 | AG112: 0
O113: =M113*VLOOKUP(CAPA!C16,Índices!$B$6:$F$626,IF(BD!K113="IPCA",3,2),FALSE)/VLOOKUP(L113,Índices!$B$6:$F$626,IF(BD!K113="IPCA",3,2),FALSE) ->  | V113: 109 | W113: 0.01034 | X113: 0.24366 | Y113: 0.746 | AA113: 405 | AB113: 2024 | AC113: EMT | AD113: Materiais | AE113: Outros | AF113: 610532799 | AG113: 0
O114: =M114*VLOOKUP(CAPA!C17,Índices!$B$6:$F$626,IF(BD!K114="IPCA",3,2),FALSE)/VLOOKUP(L114,Índices!$B$6:$F$626,IF(BD!K114="IPCA",3,2),FALSE) ->  | V114: 110 | W114: 0.01165 | X114: 0.24322 | Y114: 0.74513 | AA114: 405 | AB114: 2024 | AC114: EMT | AD114: Serviços | AE114: Serviços de Terceiros | AF114: 610532801 | AG114: 181335416
O115: =M115*VLOOKUP(CAPA!C18,Índices!$B$6:$F$626,IF(BD!K115="IPCA",3,2),FALSE)/VLOOKUP(L115,Índices!$B$6:$F$626,IF(BD!K115="IPCA",3,2),FALSE) ->  | V115: 111 | W115: 0.03791 | X115: 0.37961 | Y115: 0.58248 | AA115: 405 | AB115: 2024 | AC115: EMT | AD115: Serviços | AE115: (-) Créditos de Tributos Recuperáveis | AF115: 610532810 | AG115: 0
O116: =M116*VLOOKUP(CAPA!C19,Índices!$B$6:$F$626,IF(BD!K116="IPCA",3,2),FALSE)/VLOOKUP(L116,Índices!$B$6:$F$626,IF(BD!K116="IPCA",3,2),FALSE) ->  | V116: 112 | W116: 0.02273 | X116: 0.26361 | Y116: 0.71367 | AA116: 405 | AB116: 2024 | AC116: EMT | AD116: Seguros | AE116: Seguros | AF116: 610533001 | AG116: 4895724.29
O117: =M117*VLOOKUP(CAPA!C20,Índices!$B$6:$F$626,IF(BD!K117="IPCA",3,2),FALSE)/VLOOKUP(L117,Índices!$B$6:$F$626,IF(BD!K117="IPCA",3,2),FALSE) ->  | V117: 113 | W117: 0.01263 | X117: 0.23345 | Y117: 0.75392 | AA117: 405 | AB117: 2024 | AC117: EMT | AD117: Seguros | AE117: (-) Créditos de Tributos Recuperáveis | AF117: 610533010 | AG117: 0
O118: =M118*VLOOKUP(CAPA!C21,Índices!$B$6:$F$626,IF(BD!K118="IPCA",3,2),FALSE)/VLOOKUP(L118,Índices!$B$6:$F$626,IF(BD!K118="IPCA",3,2),FALSE) ->  | V118: 114 | W118: 0.01726 | X118: 0.23794 | Y118: 0.7448 | AA118: 405 | AB118: 2024 | AC118: EMT | AD118: Seguros | AE118: Outros | AF118: 610533099 | AG118: 0
O119: =M119*VLOOKUP(CAPA!C22,Índices!$B$6:$F$626,IF(BD!K119="IPCA",3,2),FALSE)/VLOOKUP(L119,Índices!$B$6:$F$626,IF(BD!K119="IPCA",3,2),FALSE) ->  | V119: 115 | W119: 0.00993 | X119: 0.23087 | Y119: 0.7592 | AA119: 405 | AB119: 2024 | AC119: EMT | AD119: Tributos | AE119: Tributos | AF119: 610533601 | AG119: 3766110.2
O120: =M120*VLOOKUP(CAPA!C23,Índices!$B$6:$F$626,IF(BD!K120="IPCA",3,2),FALSE)/VLOOKUP(L120,Índices!$B$6:$F$626,IF(BD!K120="IPCA",3,2),FALSE) ->  | S120: iddet1 | T120: valor | V120: 116 | W120: 0.00806 | X120: 0.16835 | Y120: 0.82359 | AA120: 405 | AB120: 2024 | AC120: EMT | AD120: Outros | AE120: Indenização por Perdas e Danos | AF120: 610533901 | AG120: 0
O121: =M121*VLOOKUP(CAPA!C24,Índices!$B$6:$F$626,IF(BD!K121="IPCA",3,2),FALSE)/VLOOKUP(L121,Índices!$B$6:$F$626,IF(BD!K121="IPCA",3,2),FALSE) ->  | S121: 56-Datalimite_D-25 | T121: 46097 | V121: 117 | W121: 0.03028 | X121: 0.29131 | Y121: 0.67841 | AA121: 405 | AB121: 2024 | AC121: EMT | AD121: Outros | AE121: Consumo Próprio de Energia | AF121: 610533902 | AG121: 0
O122: =M122*VLOOKUP(CAPA!C25,Índices!$B$6:$F$626,IF(BD!K122="IPCA",3,2),FALSE)/VLOOKUP(L122,Índices!$B$6:$F$626,IF(BD!K122="IPCA",3,2),FALSE) ->  | S122: 57-DthEfetivaPagamento | T122: 46037 | V122: 118 | W122: 0.04215 | X122: 0.2081 | Y122: 0.74975 | AA122: 405 | AB122: 2024 | AC122: EMT | AD122: Outros | AE122: Taxa de Arrecadação | AF122: 610533903 | AG122: 0
O123: =M123*VLOOKUP(CAPA!C26,Índices!$B$6:$F$626,IF(BD!K123="IPCA",3,2),FALSE)/VLOOKUP(L123,Índices!$B$6:$F$626,IF(BD!K123="IPCA",3,2),FALSE) ->  | S123: 58-DthCompetenciaPagamento | T123: 45992 | V123: 119 | W123: 0.01807 | X123: 0.11713 | Y123: 0.8648 | AA123: 405 | AB123: 2024 | AC123: EMT | AD123: Outros | AE123: Taxas Bancárias | AF123: 610533904 | AG123: 0
O124: =M124*VLOOKUP(CAPA!C27,Índices!$B$6:$F$626,IF(BD!K124="IPCA",3,2),FALSE)/VLOOKUP(L124,Índices!$B$6:$F$626,IF(BD!K124="IPCA",3,2),FALSE) ->  | V124: 120 | W124: - | X124: 0.17688 | Y124: 0.82312 | AA124: 405 | AB124: 2024 | AC124: EMT | AD124: Outros | AE124: Comunicação e Reprografia | AF124: 610533907 | AG124: 14059074.22
O125: =M125*VLOOKUP(CAPA!C28,Índices!$B$6:$F$626,IF(BD!K125="IPCA",3,2),FALSE)/VLOOKUP(L125,Índices!$B$6:$F$626,IF(BD!K125="IPCA",3,2),FALSE) ->  | V125: 123 | W125: - | X125: 0.13612 | Y125: 0.86388 | AA125: 405 | AB125: 2024 | AC125: EMT | AD125: Outros | AE125: Contribuição Associativa - CCEE | AF125: 610533908 | AG125: 0
O126: =M126*VLOOKUP(CAPA!C29,Índices!$B$6:$F$626,IF(BD!K126="IPCA",3,2),FALSE)/VLOOKUP(L126,Índices!$B$6:$F$626,IF(BD!K126="IPCA",3,2),FALSE) ->  | V126: 166 | W126: 0.04257 | X126: 0.29652 | Y126: 0.66092 | AA126: 405 | AB126: 2024 | AC126: EMT | AD126: Outros | AE126: Contribuição Associativa - ONS | AF126: 610533909 | AG126: 0
O127: =M127*VLOOKUP(CAPA!C30,Índices!$B$6:$F$626,IF(BD!K127="IPCA",3,2),FALSE)/VLOOKUP(L127,Índices!$B$6:$F$626,IF(BD!K127="IPCA",3,2),FALSE) ->  | V127: 128 | W127: - | X127: 0.40427 | Y127: 0.59573 | AA127: 405 | AB127: 2024 | AC127: EMT | AD127: Outros | AE127: (-) Créditos de Tributos Recuperáveis | AF127: 610533910 | AG127: 0
O128: =M128*VLOOKUP(CAPA!C31,Índices!$B$6:$F$626,IF(BD!K128="IPCA",3,2),FALSE)/VLOOKUP(L128,Índices!$B$6:$F$626,IF(BD!K128="IPCA",3,2),FALSE) ->  | V128: 129 | W128: 0.02905 | X128: 0.24895 | Y128: 0.722 | AA128: 405 | AB128: 2024 | AC128: EMT | AD128: Alienação | AE128: Ganhos na Alienação de Bens Reversíveis | AF128: 611112203 | AG128: 0
O129: =M129*VLOOKUP(CAPA!C32,Índices!$B$6:$F$626,IF(BD!K129="IPCA",3,2),FALSE)/VLOOKUP(L129,Índices!$B$6:$F$626,IF(BD!K129="IPCA",3,2),FALSE) ->  | V129: 130 | W129: 0.0175 | X129: 0.14397 | Y129: 0.83853 | AA129: 405 | AB129: 2024 | AC129: EMT | AD129: Desativação | AE129: Ganhos na Desativação de Bens Reversíveis | AF129: 611112403 | AG129: 0
O130: =M130*VLOOKUP(CAPA!C33,Índices!$B$6:$F$626,IF(BD!K130="IPCA",3,2),FALSE)/VLOOKUP(L130,Índices!$B$6:$F$626,IF(BD!K130="IPCA",3,2),FALSE) ->  | S130: Nível | T130: Mercado Faturado A-6 | V130: 131 | W130: - | X130: 0.30099 | Y130: 0.69901 | AA130: 405 | AB130: 2024 | AC130: EMT | AD130: Desativação | AE130: Perdas na Desativação de Bens Reversíveis | AF130: 611512003 | AG130: 57740358.02
O131: =M131*VLOOKUP(CAPA!C34,Índices!$B$6:$F$626,IF(BD!K131="IPCA",3,2),FALSE)/VLOOKUP(L131,Índices!$B$6:$F$626,IF(BD!K131="IPCA",3,2),FALSE) ->  | S131: AT | T131: 685863.291 | V131: 132 | W131: 0.02757 | X131: 0.26424 | Y131: 0.70819 | AA131: 405 | AB131: 2024 | AC131: EMT | AD131: Alienação | AE131: Perdas na Alienação de Bens Reversíveis | AF131: 611512203 | AG131: 4069035.66
O132: =M132*VLOOKUP(CAPA!C35,Índices!$B$6:$F$626,IF(BD!K132="IPCA",3,2),FALSE)/VLOOKUP(L132,Índices!$B$6:$F$626,IF(BD!K132="IPCA",3,2),FALSE) ->  | S132: BT | T132: 5824432.229 | V132: 133 | W132: 0.01856 | X132: 0.19536 | Y132: 0.78608 | AA132: 405 | AB132: 2025 | AC132: EMT | AD132: Pessoal | AE132: Remuneração | AF132: 610530501 | AG132: 0
S133: MT | T133: 3151202.689 | V133: 135 | W133: 0.04788 | X133: 0.27054 | Y133: 0.68158 | AA133: 405 | AB133: 2025 | AC133: EMT | AD133: Pessoal | AE133: Encargos | AF133: 610530502 | AG133: 0
V134: 136 | W134: 0.06732 | X134: 0.35547 | Y134: 0.57721 | AA134: 405 | AB134: 2025 | AC134: EMT | AD134: Pessoal | AE134: Previdência Privada - Corrente | AF134: 610530503 | AG134: 0
V135: 138 | W135: - | X135: 0.07651 | Y135: 0.92349 | AA135: 405 | AB135: 2025 | AC135: EMT | AD135: Pessoal | AE135: Despesas Rescisórias | AF135: 610530506 | AG135: 0
V136: 139 | W136: - | X136: 0.35483 | Y136: 0.64517 | AA136: 405 | AB136: 2025 | AC136: EMT | AD136: Pessoal | AE136: Participação nos Lucros e Resultados - PLR | AF136: 610530507 | AG136: 0
V137: 140 | W137: 0.01004 | X137: 0.21058 | Y137: 0.77938 | AA137: 405 | AB137: 2025 | AC137: EMT | AD137: Pessoal | AE137: Outros Benefícios - Corrente | AF137: 610530508 | AG137: 0
V138: 143 | W138: - | X138: 0.20409 | Y138: 0.79591 | AA138: 405 | AB138: 2025 | AC138: EMT | AD138: Pessoal | AE138: (-) Créditos de Tributos Recuperáveis | AF138: 610530510 | AG138: 0
V139: 144 | W139: - | X139: 0.48131 | Y139: 0.51869 | AA139: 405 | AB139: 2025 | AC139: EMT | AD139: Pessoal | AE139: Estagiários e Programas de Iniciação ao Trabalho | AF139: 610530511 | AG139: 0
A140: NumBar | B140: Nome Conexão | C140: Tensão | D140: Posto Tarifário | E140: Tarifas RB- DRA | F140: Tarifas RB - DRP | G140: Tarifas FR- DRA | H140: Tarifas FR - DRP | I140: M01 | J140: M02 | K140: M03 | L140: M04 | M140: M05 | N140: M06 | O140: M07 | P140: M08 | Q140: M09 | R140: M10 | S140: M11 | T140: M12 | V140: 145 | W140: 0.03725 | X140: 0.29306 | Y140: 0.66969 | AA140: 405 | AB140: 2025 | AC140: EMT | AD140: Pessoal | AE140: Outros | AF140: 610530599 | AG140: 0
A141: 4506 | B141: BARRA PEIXE - 13,8 kV (A) | C141: 13.8 | D141: Ponta | E141: 6165 | F141: 6960 | G141: 9086 | H141: 6640 | I141: 4 | J141: 4 | K141: 4 | L141: 4 | M141: 4 | N141: 4 | O141: 4 | P141: 4 | Q141: 4 | R141: 3.6 | S141: 3.6 | T141: 3.6 | W141: - | X141: 0.14124 | Y141: 0.85876 | AA141: 405 | AB141: 2025 | AC141: EMT | AD141: Pessoal | AE141: Honorários e Encargos (Diretoria e Conselho) | AF141: 610530601 | AG141: 0
A142: 4503 | B142: BARRA PEIXE - 138 kV (A) | C142: 138.0 | D142: Ponta | E142: 6161 | F142: 6950 | G142: 9086 | H142: 6640 | I142: 130 | J142: 130 | K142: 130 | L142: 130 | M142: 130 | N142: 130 | O142: 130 | P142: 130 | Q142: 130 | R142: 133.9 | S142: 133.9 | T142: 133.9 | V142: 147 | W142: - | X142: 0.20977 | Y142: 0.79023 | AA142: 405 | AB142: 2025 | AC142: EMT | AD142: Pessoal | AE142: Benefícios dos Administradores | AF142: 610530602 | AG142: 0
A143: 4871 | B143: BRASNORTE - 138 kV (A) | C143: 138.0 | D143: Ponta | E143: 5447 | F143: 6430 | G143: 1176 | H143: 850 | I143: 40 | J143: 40 | K143: 40 | L143: 40 | M143: 40 | N143: 40 | O143: 40 | P143: 40 | Q143: 40 | R143: 67 | S143: 67 | T143: 67 | V143: 148 | W143: 0.03455 | X143: 0.23757 | Y143: 0.72788 | AA143: 405 | AB143: 2025 | AC143: EMT | AD143: Materiais | AE143: Materiais | AF143: 610530701 | AG143: 0
A144: 4513 | B144: C. MAGALHAES - 138 kV (A) | C144: 138.0 | D144: Ponta | E144: 6376 | F144: 7070 | G144: 16494 | H144: 11520 | I144: 28 | J144: 28 | K144: 28 | L144: 28 | M144: 28 | N144: 28 | O144: 28 | P144: 28 | Q144: 28 | R144: 30 | S144: 30 | T144: 30 | V144: 149 | W144: - | X144: 0.17399 | Y144: 0.82601 | AA144: 405 | AB144: 2025 | AC144: EMT | AD144: Materiais | AE144: (-) Créditos de Tributos Recuperáveis | AF144: 610530710 | AG144: 0
A145: 4683 | B145: CANARANA CMT138kVA | C145: 138.0 | D145: Ponta | E145: 7104 | F145: 7810 | G145: 2599 | H145: 2350 | I145: 95 | J145: 95 | K145: 95 | L145: 95 | M145: 95 | N145: 95 | O145: 95 | P145: 95 | Q145: 95 | R145: 97.85 | S145: 97.85 | T145: 97.85 | V145: 150 | W145: 0.03635 | X145: 0.17413 | Y145: 0.78952 | AA145: 405 | AB145: 2025 | AC145: EMT | AD145: Materiais | AE145: Outros | AF145: 610530799 | AG145: 0
A146: 4533 | B146: COXIPO - 138 kV (A) | C146: 138.0 | D146: Ponta | E146: 6154 | F146: 7300 | G146: 2608 | H146: 2180 | I146: 576 | J146: 576 | K146: 576 | L146: 576 | M146: 576 | N146: 576 | O146: 576 | P146: 576 | Q146: 576 | R146: 604.8 | S146: 604.8 | T146: 604.8 | V146: 151 | W146: 0.02735 | X146: 0.28351 | Y146: 0.68915 | AA146: 405 | AB146: 2025 | AC146: EMT | AD146: Serviços | AE146: Serviços de Terceiros | AF146: 610530801 | AG146: 0
A147: 4643 | B147: JACIARA CMT - 138 kV (A) | C147: 138.0 | D147: Ponta | E147: 6108 | F147: 7170 | G147: 16494 | H147: 11520 | I147: 16 | J147: 16 | K147: 16 | L147: 16 | M147: 16 | N147: 16 | O147: 16 | P147: 16 | Q147: 16 | R147: 20 | S147: 20 | T147: 20 | V147: 152 | W147: 0.00215 | X147: 0.1412 | Y147: 0.85665 | AA147: 405 | AB147: 2025 | AC147: EMT | AD147: Serviços | AE147: (-) Créditos de Tributos Recuperáveis | AF147: 610530810 | AG147: 0
A148: 4807 | B148: JAURU - 138 kV (A) | C148: 138.0 | D148: Ponta | E148: 5759 | F148: 6730 | H148: 0 | I148: 0 | J148: 0 | K148: 0 | L148: 0 | M148: 0 | N148: 0 | O148: 0 | P148: 0 | Q148: 0 | R148: 0 | S148: 0 | T148: 0 | V148: 153 | W148: 0.03606 | X148: 0.17601 | Y148: 0.78793 | AA148: 405 | AB148: 2025 | AC148: EMT | AD148: Seguros | AE148: Seguros | AF148: 610531001 | AG148: 0
A149: 4870 | B149: JUBA - 138 kV (A) | C149: 138.0 | D149: Ponta | E149: 5602 | F149: 6580 | G149: 3649 | H149: 1280 | I149: 30 | J149: 30 | K149: 30 | L149: 30 | M149: 30 | N149: 30 | O149: 30 | P149: 30 | Q149: 30 | R149: 30.9 | S149: 30.9 | T149: 30.9 | V149: 154 | W149: 0.12913 | X149: 0.26626 | Y149: 0.60462 | AA149: 405 | AB149: 2025 | AC149: EMT | AD149: Seguros | AE149: (-) Créditos de Tributos Recuperáveis | AF149: 610531010 | AG149: 0
A150: 4895 | B150: JUINA - 138 kV (A) | C150: 138.0 | D150: Ponta | E150: 5329 | F150: 6310 | G150: 785 | H150: 770 | I150: 48 | J150: 48 | K150: 48 | L150: 48 | M150: 48 | N150: 48 | O150: 48 | P150: 48 | Q150: 48 | R150: 49 | S150: 49 | T150: 49 | V150: 155 | W150: 0.04008 | X150: 0.23225 | Y150: 0.72768 | AA150: 405 | AB150: 2025 | AC150: EMT | AD150: Seguros | AE150: Outros | AF150: 610531099 | AG150: 0
A151: 4575 | B151: LUCAS R.VERDE - 138 kV (A) | C151: 138.0 | D151: Ponta | E151: 5884 | F151: 6800 | G151: 4262 | H151: 3180 | I151: 80 | J151: 80 | K151: 80 | L151: 95 | M151: 95 | N151: 95 | O151: 95 | P151: 95 | Q151: 95 | R151: 85 | S151: 85 | T151: 85 | V151: 156 | W151: - | X151: 0.35985 | Y151: 0.64015 | AA151: 405 | AB151: 2025 | AC151: EMT | AD151: Tributos | AE151: Tributos | AF151: 610531601 | AG151: 0
A152: 4544 | B152: NOBRES - 138 kV (A) | C152: 138.0 | D152: Ponta | E152: 6013 | F152: 7100 | G152: 658 | H152: 640 | I152: 115 | J152: 115 | K152: 115 | L152: 115 | M152: 115 | N152: 115 | O152: 115 | P152: 115 | Q152: 115 | R152: 142 | S152: 142 | T152: 142 | V152: 157 | W152: - | X152: 0.15963 | Y152: 0.84037 | AA152: 405 | AB152: 2025 | AC152: EMT | AD152: Outros | AE152: Indenização por Perdas e Danos | AF152: 610531901 | AG152: 0
A153: 4978 | B153: PARANAITA - 138 kV (A) | C153: 138.0 | D153: Ponta | E153: 5307 | F153: 5930 | G153: 3973 | H153: 3390 | I153: 90 | J153: 90 | K153: 90 | L153: 90 | M153: 90 | N153: 90 | O153: 90 | P153: 90 | Q153: 90 | R153: 110 | S153: 110 | T153: 110 | V153: 158 | W153: - | X153: 0.33049 | Y153: 0.66951 | AA153: 405 | AB153: 2025 | AC153: EMT | AD153: Outros | AE153: Consumo Próprio de Energia | AF153: 610531902 | AG153: 0
A154: 4874 | B154: PARECIS - 138 kV (A) | C154: 138.0 | D154: Ponta | E154: 4932 | F154: 5820 | H154: 0 | I154: 0 | J154: 0 | K154: 0 | L154: 0 | M154: 0 | N154: 0 | O154: 0 | P154: 0 | Q154: 0 | R154: 0 | S154: 0 | T154: 0 | V154: 160 | W154: 0.1013 | X154: 0.22818 | Y154: 0.67051 | AA154: 405 | AB154: 2025 | AC154: EMT | AD154: Outros | AE154: Taxa de Arrecadação | AF154: 610531903 | AG154: 0
A155: 4613 | B155: PETROVINA - 138 kV (B) | C155: 138.0 | D155: Ponta | E155: 6086 | F155: 7090 | G155: 16494 | H155: 11520 | I155: 15 | J155: 15 | K155: 15 | L155: 15 | M155: 15 | N155: 15 | O155: 15 | P155: 15 | Q155: 15 | R155: 18.5 | S155: 18.5 | T155: 18.5 | V155: 161 | W155: - | X155: 0.28355 | Y155: 0.71645 | AA155: 405 | AB155: 2025 | AC155: EMT | AD155: Outros | AE155: Taxas Bancárias | AF155: 610531904 | AG155: 0
A156: 4623 | B156: RONDONOPOLIS1 - 138 kV (A) | C156: 138.0 | D156: Ponta | E156: 6080 | F156: 7090 | G156: 1299 | H156: 1160 | I156: 280 | J156: 280 | K156: 280 | L156: 280 | M156: 280 | N156: 280 | O156: 280 | P156: 280 | Q156: 280 | R156: 288.4 | S156: 288.4 | T156: 288.4 | V156: 163 | W156: 0.03507 | X156: 0.1664 | Y156: 0.79853 | AA156: 405 | AB156: 2025 | AC156: EMT | AD156: Outros | AE156: Despesas com Conselho de Consumidores | AF156: 610531905 | AG156: 0
A157: 6563 | B157: SANT. ARAGUAIA138kVA | C157: 138.0 | D157: Ponta | E157: 7825 | F157: 7920 | G157: 3789 | H157: 3090 | I157: 105 | J157: 105 | K157: 105 | L157: 105 | M157: 105 | N157: 105 | O157: 105 | P157: 105 | Q157: 105 | R157: 120 | S157: 120 | T157: 120 | V157: 164 | W157: - | X157: 0.12897 | Y157: 0.87103 | AA157: 405 | AB157: 2025 | AC157: EMT | AD157: Outros | AE157: Comunicação e Reprografia | AF157: 610531907 | AG157: 0
A158: 4583 | B158: SINOP - 138 kV (A) | C158: 138.0 | D158: Ponta | E158: 5574 | F158: 6260 | G158: 1110 | H158: 980 | I158: 270 | J158: 270 | K158: 270 | L158: 270 | M158: 270 | N158: 270 | O158: 270 | P158: 270 | Q158: 270 | R158: 292 | S158: 292 | T158: 292 | AA158: 405 | AB158: 2025 | AC158: EMT | AD158: Outros | AE158: Contribuição Associativa - CCEE | AF158: 610531908 | AG158: 0
A159: 4712 | B159: VZ.GRANDE CMT - 138 kV (A) | C159: 138.0 | D159: Ponta | E159: 6149 | F159: 7290 | G159: 2863 | H159: 2970 | I159: 265 | J159: 265 | K159: 265 | L159: 265 | M159: 265 | N159: 265 | O159: 265 | P159: 265 | Q159: 265 | R159: 283.55 | S159: 283.55 | T159: 283.55 | AA159: 405 | AB159: 2025 | AC159: EMT | AD159: Outros | AE159: Contribuição Associativa - ONS | AF159: 610531909 | AG159: 0
A160: 4892 | B160: DARDANELOS230kVA | C160: 230.0 | D160: Ponta | F160: 6070 | H160: 0 | I160: 20.5 | J160: 20.5 | K160: 20.5 | L160: 20.5 | M160: 20.5 | N160: 20.5 | O160: 20.5 | P160: 20.5 | Q160: 20.5 | R160: 21.12 | S160: 21.12 | T160: 21.12 | AA160: 405 | AB160: 2025 | AC160: EMT | AD160: Outros | AE160: (-) Créditos de Tributos Recuperáveis | AF160: 610531910 | AG160: 0
A161: 4554 | B161: NOVA MUTUM - 69 kV (A) | C161: 69.0 | D161: Ponta | E161: 5650 | F161: 6650 | G161: 2407 | H161: 1780 | I161: 68 | J161: 68 | K161: 68 | L161: 68 | M161: 68 | N161: 68 | O161: 68 | P161: 68 | Q161: 68 | R161: 64 | S161: 64 | T161: 64 | AA161: 405 | AB161: 2025 | AC161: EMT | AD161: Pessoal | AE161: Remuneração | AF161: 610532501 | AG161: 0
A162: 4564 | B162: SORRISO - 69 kV (A) | C162: 69.0 | D162: Ponta | E162: 5670 | F162: 6430 | G162: 2803 | H162: 4290 | I162: 75 | J162: 75 | K162: 75 | L162: 75 | M162: 75 | N162: 75 | O162: 75 | P162: 75 | Q162: 75 | R162: 110 | S162: 110 | T162: 110 | AA162: 405 | AB162: 2025 | AC162: EMT | AD162: Pessoal | AE162: Encargos | AF162: 610532502 | AG162: 0
A163: 4506 | B163: BARRA PEIXE - 13,8 kV (A) | C163: 13.8 | D163: Fora Ponta | E163: 6235 | F163: 7110 | G163: 9086 | H163: 6640 | I163: 4 | J163: 4 | K163: 4 | L163: 4 | M163: 4 | N163: 4 | O163: 4 | P163: 4 | Q163: 4 | R163: 3.6 | S163: 3.6 | T163: 3.6 | V163: Tab_EnergiaConsumidaMWh | AA163: 405 | AB163: 2025 | AC163: EMT | AD163: Pessoal | AE163: Previdência Privada - Corrente | AF163: 610532503 | AG163: 0
A164: 4503 | B164: BARRA PEIXE - 138 kV (A) | C164: 138.0 | D164: Fora Ponta | E164: 6231 | F164: 7110 | G164: 9086 | H164: 6640 | I164: 144 | J164: 144 | K164: 144 | L164: 144 | M164: 144 | N164: 144 | O164: 144 | P164: 144 | Q164: 144 | R164: 149 | S164: 149 | T164: 149 | V164: Competencia | W164: EnergiaConsumidaMWh | X164: EnergiaFaturadaMWh | Y164: Dif_Consumida_FaturadaMWh | AA164: 405 | AB164: 2025 | AC164: EMT | AD164: Pessoal | AE164: Despesas Rescisórias | AF164: 610532506 | AG164: 0
A165: 4871 | B165: BRASNORTE - 138 kV (A) | C165: 138.0 | D165: Fora Ponta | E165: 5552 | F165: 6640 | G165: 1176 | H165: 850 | I165: 60 | J165: 60 | K165: 60 | L165: 60 | M165: 60 | N165: 60 | O165: 60 | P165: 60 | Q165: 60 | R165: 78 | S165: 78 | T165: 78 | V165: 45748 | W165: 302849.606 | X165: 96750.222 | Y165: 206099.384 | AA165: 405 | AB165: 2025 | AC165: EMT | AD165: Pessoal | AE165: Participação nos Lucros e Resultados - PLR | AF165: 610532507 | AG165: 0
A166: 4513 | B166: C. MAGALHAES - 138 kV (A) | C166: 138.0 | D166: Fora Ponta | E166: 6408 | F166: 7180 | G166: 16494 | H166: 11520 | I166: 28 | J166: 28 | K166: 28 | L166: 28 | M166: 28 | N166: 28 | O166: 28 | P166: 28 | Q166: 28 | R166: 30 | S166: 30 | T166: 30 | V166: 45778 | W166: 319003.655 | X166: 100371.16 | Y166: 218632.495 | AA166: 405 | AB166: 2025 | AC166: EMT | AD166: Pessoal | AE166: Outros Benefícios - Corrente | AF166: 610532508 | AG166: 0
A167: 4683 | B167: CANARANA CMT138kVA | C167: 138.0 | D167: Fora Ponta | E167: 7273 | F167: 7950 | G167: 2599 | H167: 2350 | I167: 100 | J167: 100 | K167: 100 | L167: 100 | M167: 100 | N167: 100 | O167: 100 | P167: 100 | Q167: 100 | R167: 100 | S167: 100 | T167: 100 | V167: 45809 | W167: 295021.208 | X167: 91367.24 | Y167: 203653.968 | AA167: 405 | AB167: 2025 | AC167: EMT | AD167: Pessoal | AE167: (-) Créditos de Tributos Recuperáveis | AF167: 610532510 | AG167: 0
A168: 4533 | B168: COXIPO - 138 kV (A) | C168: 138.0 | D168: Fora Ponta | E168: 6300 | F168: 7580 | G168: 2608 | H168: 2180 | I168: 630 | J168: 630 | K168: 630 | L168: 630 | M168: 630 | N168: 630 | O168: 630 | P168: 630 | Q168: 630 | R168: 640 | S168: 640 | T168: 640 | V168: 45839 | W168: 293384.106 | X168: 93486.535 | Y168: 199897.571 | AA168: 405 | AB168: 2025 | AC168: EMT | AD168: Pessoal | AE168: Estagiários e programa de iniciação ao trabalho | AF168: 610532511 | AG168: 0
A169: 4643 | B169: JACIARA CMT - 138 kV (A) | C169: 138.0 | D169: Fora Ponta | E169: 6252 | F169: 7450 | G169: 16494 | H169: 11520 | I169: 18 | J169: 18 | K169: 18 | L169: 18 | M169: 18 | N169: 18 | O169: 18 | P169: 18 | Q169: 18 | R169: 22 | S169: 22 | T169: 22 | V169: 45870 | W169: 336555.858 | X169: 103518.456 | Y169: 233037.402 | AA169: 405 | AB169: 2025 | AC169: EMT | AD169: Pessoal | AE169: Outros | AF169: 610532599 | AG169: 0
A170: 4807 | B170: JAURU - 138 kV (A) | C170: 138.0 | D170: Fora Ponta | E170: 5784 | F170: 6870 | H170: 0 | I170: 0 | J170: 0 | K170: 0 | L170: 0 | M170: 0 | N170: 0 | O170: 0 | P170: 0 | Q170: 0 | R170: 0 | S170: 0 | T170: 0 | V170: 45901 | W170: 367597.199 | X170: 109028.387 | Y170: 258568.812 | AA170: 405 | AB170: 2025 | AC170: EMT | AD170: Pessoal | AE170: Honorários e Encargos (Diretoria e Conselho) | AF170: 610532601 | AG170: 0
A171: 4870 | B171: JUBA - 138 kV (A) | C171: 138.0 | D171: Fora Ponta | E171: 5653 | F171: 6750 | G171: 3649 | H171: 1280 | I171: 50 | J171: 50 | K171: 50 | L171: 50 | M171: 50 | N171: 50 | O171: 50 | P171: 50 | Q171: 50 | R171: 51.5 | S171: 51.5 | T171: 51.5 | V171: 45931 | W171: 422599.054 | X171: 133877.534 | Y171: 288721.52 | AA171: 405 | AB171: 2025 | AC171: EMT | AD171: Pessoal | AE171: Benefícios dos Administradores | AF171: 610532602 | AG171: 0
A172: 4895 | B172: JUINA - 138 kV (A) | C172: 138.0 | D172: Fora Ponta | E172: 5432 | F172: 6510 | G172: 785 | H172: 770 | I172: 59 | J172: 59 | K172: 59 | L172: 54 | M172: 54 | N172: 54 | O172: 54 | P172: 54 | Q172: 54 | R172: 61 | S172: 61 | T172: 61 | V172: 45962 | W172: 410731.647 | X172: 129157.872 | Y172: 281573.775 | AA172: 405 | AB172: 2025 | AC172: EMT | AD172: Pessoal | AE172: (-) Créditos de Tributos Recuperáveis | AF172: 610532610 | AG172: 0
A173: 4575 | B173: LUCAS R.VERDE - 138 kV (A) | C173: 138.0 | D173: Fora Ponta | E173: 6103 | F173: 7050 | G173: 4262 | H173: 3180 | I173: 95 | J173: 95 | K173: 95 | L173: 120 | M173: 120 | N173: 120 | O173: 120 | P173: 120 | Q173: 120 | R173: 100 | S173: 100 | T173: 100 | V173: 45992 | W173: 363785.144 | X173: 107663.028 | Y173: 256122.116 | AA173: 405 | AB173: 2025 | AC173: EMT | AD173: Materiais | AE173: Materiais | AF173: 610532701 | AG173: 0
A174: 4544 | B174: NOBRES - 138 kV (A) | C174: 138.0 | D174: Fora Ponta | E174: 6163 | F174: 7380 | G174: 658 | H174: 640 | I174: 145 | J174: 145 | K174: 145 | L174: 145 | M174: 145 | N174: 145 | O174: 145 | P174: 145 | Q174: 145 | R174: 164 | S174: 164 | T174: 164 | V174: 46023 | W174: 349493.356 | X174: 96158.961 | Y174: 253334.395 | AA174: 405 | AB174: 2025 | AC174: EMT | AD174: Materiais | AE174: (-) Créditos de Tributos Recuperáveis | AF174: 610532710 | AG174: 0
A175: 4978 | B175: PARANAITA - 138 kV (A) | C175: 138.0 | D175: Fora Ponta | E175: 5304 | F175: 5940 | G175: 3973 | H175: 3390 | I175: 115 | J175: 115 | K175: 115 | L175: 115 | M175: 115 | N175: 115 | O175: 115 | P175: 115 | Q175: 115 | R175: 120 | S175: 120 | T175: 120 | V175: 46054 | W175: 351403.529 | X175: 95656.433 | Y175: 255747.096 | AA175: 405 | AB175: 2025 | AC175: EMT | AD175: Materiais | AE175: Outros | AF175: 610532799 | AG175: 0
A176: 4874 | B176: PARECIS - 138 kV (A) | C176: 138.0 | D176: Fora Ponta | E176: 4979 | F176: 5960 | H176: 0 | I176: 0 | J176: 0 | K176: 0 | L176: 0 | M176: 0 | N176: 0 | O176: 0 | P176: 0 | Q176: 0 | R176: 0 | S176: 0 | T176: 0 | V176: 46082 | W176: 351403.529 | X176: 95656.433 | Y176: 255747.096 | AA176: 405 | AB176: 2025 | AC176: EMT | AD176: Serviços | AE176: Serviços de Terceiros | AF176: 610532801 | AG176: 0
A177: 4613 | B177: PETROVINA - 138 kV (B) | C177: 138.0 | D177: Fora Ponta | E177: 6227 | F177: 7370 | G177: 16494 | H177: 11520 | I177: 20 | J177: 20 | K177: 20 | L177: 20 | M177: 20 | N177: 20 | O177: 20 | P177: 20 | Q177: 20 | R177: 20.6 | S177: 20.6 | T177: 20.6 | AA177: 405 | AB177: 2025 | AC177: EMT | AD177: Serviços | AE177: (-) Créditos de Tributos Recuperáveis | AF177: 610532810 | AG177: 0
A178: 4623 | B178: RONDONOPOLIS1 - 138 kV (A) | C178: 138.0 | D178: Fora Ponta | E178: 6224 | F178: 7370 | G178: 1299 | H178: 1160 | I178: 340 | J178: 340 | K178: 340 | L178: 340 | M178: 340 | N178: 340 | O178: 340 | P178: 340 | Q178: 340 | R178: 350.2 | S178: 350.2 | T178: 350.2 | AA178: 405 | AB178: 2025 | AC178: EMT | AD178: Seguros | AE178: Seguros | AF178: 610533001 | AG178: 0
A179: 6563 | B179: SANT. ARAGUAIA138kVA | C179: 138.0 | D179: Fora Ponta | E179: 7882 | F179: 7920 | G179: 3789 | H179: 3090 | I179: 105 | J179: 105 | K179: 105 | L179: 105 | M179: 105 | N179: 105 | O179: 105 | P179: 105 | Q179: 105 | R179: 120 | S179: 120 | T179: 120 | AA179: 405 | AB179: 2025 | AC179: EMT | AD179: Seguros | AE179: (-) Créditos de Tributos Recuperáveis | AF179: 610533010 | AG179: 0
A180: 4583 | B180: SINOP - 138 kV (A) | C180: 138.0 | D180: Fora Ponta | E180: 5645 | F180: 6330 | G180: 1110 | H180: 980 | I180: 292 | J180: 292 | K180: 292 | L180: 292 | M180: 292 | N180: 292 | O180: 292 | P180: 292 | Q180: 292 | R180: 292 | S180: 292 | T180: 292 | AA180: 405 | AB180: 2025 | AC180: EMT | AD180: Seguros | AE180: Outros | AF180: 610533099 | AG180: 0
A181: 4712 | B181: VZ.GRANDE CMT - 138 kV (A) | C181: 138.0 | D181: Fora Ponta | E181: 6294 | F181: 7570 | G181: 2863 | H181: 2970 | I181: 280 | J181: 280 | K181: 280 | L181: 280 | M181: 280 | N181: 280 | O181: 280 | P181: 280 | Q181: 280 | R181: 299.6 | S181: 299.6 | T181: 299.6 | AA181: 405 | AB181: 2025 | AC181: EMT | AD181: Tributos | AE181: Tributos | AF181: 610533601 | AG181: 0
A182: 4892 | B182: DARDANELOS230kVA | C182: 230.0 | D182: Fora Ponta | F182: 6260 | H182: 0 | I182: 21 | J182: 21 | K182: 21 | L182: 21 | M182: 21 | N182: 21 | O182: 21 | P182: 21 | Q182: 21 | R182: 21.63 | S182: 21.63 | T182: 21.63 | AA182: 405 | AB182: 2025 | AC182: EMT | AD182: Outros | AE182: Indenização por Perdas e Danos | AF182: 610533901 | AG182: 0
A183: 4554 | B183: NOVA MUTUM - 69 kV (A) | C183: 69.0 | D183: Fora Ponta | E183: 5818 | F183: 6900 | G183: 2407 | H183: 1780 | I183: 92 | J183: 92 | K183: 92 | L183: 92 | M183: 92 | N183: 92 | O183: 92 | P183: 92 | Q183: 92 | R183: 90 | S183: 90 | T183: 90 | AA183: 405 | AB183: 2025 | AC183: EMT | AD183: Outros | AE183: Consumo Próprio de Energia | AF183: 610533902 | AG183: 0
A184: 4564 | B184: SORRISO - 69 kV (A) | C184: 69.0 | D184: Fora Ponta | E184: 5795 | F184: 6560 | G184: 2803 | H184: 4290 | I184: 86 | J184: 86 | K184: 86 | L184: 86 | M184: 86 | N184: 86 | O184: 86 | P184: 86 | Q184: 86 | R184: 145 | S184: 145 | T184: 145 | AA184: 405 | AB184: 2025 | AC184: EMT | AD184: Outros | AE184: Taxa de Arrecadação | AF184: 610533903 | AG184: 0
AA185: 405 | AB185: 2025 | AC185: EMT | AD185: Outros | AE185: Taxas Bancárias | AF185: 610533904 | AG185: 0
AA186: 405 | AB186: 2025 | AC186: EMT | AD186: Outros | AE186: Comunicação e Reprografia | AF186: 610533907 | AG186: 0
AA187: 405 | AB187: 2025 | AC187: EMT | AD187: Outros | AE187: Contribuição Associativa - CCEE | AF187: 610533908 | AG187: 0
AA188: 405 | AB188: 2025 | AC188: EMT | AD188: Outros | AE188: Contribuição Associativa - ONS | AF188: 610533909 | AG188: 0
AA189: 405 | AB189: 2025 | AC189: EMT | AD189: Outros | AE189: (-) Créditos de Tributos Recuperáveis | AF189: 610533910 | AG189: 0
AA190: 405 | AB190: 2025 | AC190: EMT | AD190: Alienação | AE190: Ganhos na Alienação de Bens Reversíveis | AF190: 611112203 | AG190: 0
AA191: 405 | AB191: 2025 | AC191: EMT | AD191: Desativação | AE191: Ganhos na Desativação de Bens Reversíveis | AF191: 611112403 | AG191: 0
AA192: 405 | AB192: 2025 | AC192: EMT | AD192: Desativação | AE192: Perdas na Desativação de Bens Reversíveis | AF192: 611512003 | AG192: 0
AA193: 405 | AB193: 2025 | AC193: EMT | AD193: Alienação | AE193: Perdas na Alienação de Bens Reversíveis | AF193: 611512203 | AG193: 0
B469: Transmissora | C469: Indice de atualização | D469: ENCARGO DE CONEXÃO repassável | E469: Instalações com Estabelecimento de RAP que entraram em operação | F469: PA para repasse a tarifa | G469: PA Qualidade DIT | H469: ENCARGO DE CONEXÃO ou PA não rapassável a tarifa (REN 67/2004 ou 68/2004) | I469: PA Empreendimento Autorizado sem estabelecimento prévio de RAP | J469: Contrato | K469: Razão Social Transmissora
B470: BRASNORTE | C470: IPCA | D470: 164939.66 | E470: 0 | F470: -13291.72 | G470: 0 | H470: 0 | I470: 0 | J470: 003/2008 | K470: BRASNORTE TRANSMISSORA DE ENERGIA S/A - BRASNORTE (Contrato nº 003/2008 )
B471: ELETRONORTE | C471: IPCA | D471: 598831.22 | E471: 0 | F471: 0 | G471: 0 | H471: 395064.21 | I471: 0 | J471: 004/2011 | K471: CENTRAIS ELÉTRICAS DO NORTE DO BRASIL S/A - ELETRONORTE (Contrato nº 004/2011 )
B472: EBTE | C472: IPCA | D472: 224430.91 | E472: 0 | F472: 0 | G472: 0 | H472: 0 | I472: 0 | J472: 011/2008 | K472: EBTE - EMPRESA BRASILEIRA DE TRANSMISSAO DE ENERGIA S.A. - EBTE (Contrato nº 011/2008 )
B473: ELETRONORTE | C473: IPCA | D473: 445989.84 | E473: 0 | F473: 0 | G473: 0 | H473: 0 | I473: 0 | J473: 013/2011 | K473: CENTRAIS ELÉTRICAS DO NORTE DO BRASIL S/A - ELETRONORTE (Contrato nº 013/2011 )
B474: CANARANA | C474: IPCA | D474: 2900359.06 | E474: 0 | F474: 0 | G474: 0 | H474: 0 | I474: 0 | J474: 016/2016 | K474: CANARANA TRANSMISSORA DE ENERGIA S.A. - CANARANA (Contrato nº 016/2016 )
B475: ETVG | C475: IPCA | D475: 1531635.68 | E475: 0 | F475: -388639.82 | G475: 0 | H475: 0 | I475: 0 | J475: 018/2010 | K475: EMPRESA DE TRANSMISSAO DE VARZEA GRANDE S.A. - ETVG - ETVG (Contrato nº 018/2010 )
B476: PARANAITA | C476: IPCA | D476: 1626472.93 | E476: 0 | F476: 0 | G476: 0 | H476: 0 | I476: 0 | J476: 022/2016 | K476: ENERGISA PARANAITA TRANSMISSORA DE ENERGIA S.A. - PARANAITA (Contrato nº 022/2016 )
B477: PARÁ I | C477: IPCA | D477: 1458982.66 | E477: 0 | F477: 0 | G477: 0 | H477: 0 | I477: 0 | J477: 043/2017 | K477: ENERGISA PARA TRANSMISSORA DE ENERGIA I S.A. - PARÁ I (Contrato nº 043/2017 )
B478: ELETRONORTE | C478: IPCA | D478: 4698226.37 | E478: 0 | F478: 99219.47 | G478: 0 | H478: 59540.01 | I478: 0 | J478: 058/2001 | K478: CENTRAIS ELÉTRICAS DO NORTE DO BRASIL S/A - ELETRONORTE (Contrato nº 058/2001 )
... 28 more rows

Sheet BD_Uderor
K1: Número de lançamentos por item e por competência
A2: Dados SAMP Opção:Cativo Classe:Industrial | K2: Descrição | L2: =EDATE(M2,1) -> 1900-06-28 | M2: 1900-05-28 | N2: 1900-04-28 | O2: 1900-03-28 | P2: 1900-02-28 | Q2: =EDATE(R2,1) -> 1900-01-31 | R2: =Entrada!R5 -> 00:00:00 | S2: =EDATE(R2,-1) ->  | AA2: =EDATE(Z2,-1) ->  | BA2: =EDATE(AZ2,-1) ->  | BG2: =EDATE(BF2,-1) -> 
A3: Competencia | B3: COFINS (R$) | C3: ICMS (R$) | D3: PIS/PASEP (R$) | E3: Receita Bandeiras (R$) | F3: Receita Demanda (R$) | G3: Receita Energia (R$) | H3: PIS_Cofins_% | I3: ICMS_% | K3: =Entrada!P8 -> Serviços Cobráveis | L3: =IF(COUNTIFS($C$82:$C$200000,$K3,$H$82:$H$200000,L$2)=0,"",COUNTIFS($C$82:$C$200000,$K3,$H$82:$H$200000,L$2)) ->  | V3: =IF(COUNTIFS($C$82:$C$200000,$K3,$H$82:$H$200000,V$2)=0,"",COUNTIFS($C$82:$C$200000,$K3,$H$82:$H$200000,V$2)) ->  | AF3: =IF(COUNTIFS($C$82:$C$200000,$K3,$H$82:$H$200000,AF$2)=0,"",COUNTIFS($C$82:$C$200000,$K3,$H$82:$H$200000,AF$2)) ->  | AP3: =IF(COUNTIFS($C$82:$C$200000,$K3,$H$82:$H$200000,AP$2)=0,"",COUNTIFS($C$82:$C$200000,$K3,$H$82:$H$200000,AP$2)) ->  | AZ3: =IF(COUNTIFS($C$82:$C$200000,$K3,$H$82:$H$200000,AZ$2)=0,"",COUNTIFS($C$82:$C$200000,$K3,$H$82:$H$200000,AZ$2)) ->  | BJ3: =IF(COUNTIFS($C$82:$C$200000,$K3,$H$82:$H$200000,BJ$2)=0,"",COUNTIFS($C$82:$C$200000,$K3,$H$82:$H$200000,BJ$2)) -> 
A4: 43952 | B4: 1435096.48 | C4: 10055915.41 | D4: 311520.53 | E4: -7.09 | F4: 4465977.75 | G4: 22112940.01 | H4: 0.04550680086 | I4: 0.2619993607 | K4: =Entrada!P9 -> Arrecadação de convênios ou valores pela fatura
A5: 43983 | B5: 1549547.56 | C5: 10521983.96 | D5: 336353.65 | E5: -3521.63 | F5: 4692396 | G5: 22803654.91 | H5: 0.04726103225 | I5: 0.2636828592 | K5: =Entrada!P10 -> Arrecadação de faturas de terceiros por estrutura própria
A6: 44013 | B6: 2073135.98 | C6: 11220996.1 | D6: 450030.99 | E6: -354.19 | F6: 5153294.76 | G6: 23615360.73 | H6: 0.05935073362 | I6: 0.2639438287 | K6: =Entrada!P11 -> Veiculação de publicidade
A7: 44044 | B7: 1945461.86 | C7: 11584906.26 | D7: 422298.78 | E7: -12081.44 | F7: 5288603.72 | G7: 24641840.52 | H7: 0.05395607965 | I7: 0.263994643 | K7: =Entrada!P12 -> Aluguel ou cessão onerosa de imóveis e espaços físicos
A8: 44075 | B8: 2113921.1 | C8: 12742101.67 | D8: 458882.81 | E8: -869.38 | F8: 5376082.31 | G8: 27311563.4 | H8: 0.05359723266 | I8: 0.2654463425 | K8: =Entrada!P13 -> Compartilhamento de infraestrutura
A9: 44105 | B9: 2092970.21 | C9: 12397699.45 | D9: 454360.86 | E9: 514.17 | F9: 5427109.6 | G9: 26591840.59 | H9: 0.05424010128 | I9: 0.2639831476 | K9: =Entrada!P14 -> Serviços de avaliação técnica e aferição de medidores.
A10: 44136 | B10: 1946321.02 | C10: 11643035.12 | D10: 422485.1 | E10: -538.48 | F10: 5296658 | G10: 24951031.37 | H10: 0.05352081433 | I10: 0.263062779 | K10: =Entrada!P15 -> Operacionalização de serviço de créditos tributários
A11: 44166 | B11: 2114037.89 | C11: 11536204.86 | D11: 458904.77 | E11: 1990623.8 | F11: 5075153.63 | G11: 25160071.3 | H11: 0.05802185301 | I11: 0.2601503691 | K11: =Entrada!P16 -> Elaboração de projeto, construção, operação, manutenção ou reforma de:
A12: 44197 | B12: 1288209.85 | C12: 9044532.16 | D12: 279614.48 | E12: 1183187.02 | F12: 4908602.99 | G12: 19678374.15 | H12: 0.04454130713 | I12: 0.2569518007 | K12: =Entrada!P17 -> (1) redes de distribuição de energia elétrica destinadas à regularização fundiária de interesse específico e ao atendimento dos empreendimentos de múltiplas unidades consumidoras; | L12: =IF(COUNTIFS($C$82:$C$200000,$K12,$H$82:$H$200000,L$2)=0,"",COUNTIFS($C$82:$C$200000,$K12,$H$82:$H$200000,L$2)) ->  | V12: =IF(COUNTIFS($C$82:$C$200000,$K12,$H$82:$H$200000,V$2)=0,"",COUNTIFS($C$82:$C$200000,$K12,$H$82:$H$200000,V$2)) ->  | AF12: =IF(COUNTIFS($C$82:$C$200000,$K12,$H$82:$H$200000,AF$2)=0,"",COUNTIFS($C$82:$C$200000,$K12,$H$82:$H$200000,AF$2)) ->  | AP12: =IF(COUNTIFS($C$82:$C$200000,$K12,$H$82:$H$200000,AP$2)=0,"",COUNTIFS($C$82:$C$200000,$K12,$H$82:$H$200000,AP$2)) ->  | AZ12: =IF(COUNTIFS($C$82:$C$200000,$K12,$H$82:$H$200000,AZ$2)=0,"",COUNTIFS($C$82:$C$200000,$K12,$H$82:$H$200000,AZ$2)) ->  | BJ12: =IF(COUNTIFS($C$82:$C$200000,$K12,$H$82:$H$200000,BJ$2)=0,"",COUNTIFS($C$82:$C$200000,$K12,$H$82:$H$200000,BJ$2)) -> 
A13: 44228 | B13: 1442504.99 | C13: 9774406.45 | D13: 313097.06 | E13: 604046.01 | F13: 4898791.06 | G13: 21213571.21 | H13: 0.04663898724 | I13: 0.2596650065 | K13: =Entrada!P18 -> (2) redes de energia elétrica destinadas ao acesso dos sistemas de distribuição ou transmissão;
A14: 44256 | B14: 1632985.29 | C14: 10247191.42 | D14: 354457.04 | E14: 633986.17 | F14: 5038121.71 | G14: 22372979.08 | H14: 0.05013004181 | I14: 0.258468951 | K14: =Entrada!P19 -> (3) subestações de energia;
A15: 44287 | B15: 1617627.89 | C15: 8875093.62 | D15: 351114.18 | E15: 475383.03 | F15: 3034628.89 | G15: 18838910.19 | H15: 0.06017420664 | I15: 0.271265457 | K15: =Entrada!P20 -> (4) instalações elétricas internas de unidades consumidoras;
A16: 44317 | B16: 2050012.72 | C16: 10701109.09 | D16: 444980.08 | E16: 1365759.83 | F16: 5161259.82 | G16: 22412220.23 | H16: 0.06119740947 | I16: 0.2624777734 | K16: =Entrada!P21 -> (5) banco de capacitores;
A17: 44348 | B17: 1664258.19 | C17: 11856014.89 | D17: 361234.14 | E17: 2522219.85 | F17: 5695445.92 | G17: 25201013.86 | H17: 0.04523412887 | I17: 0.2647734072 | K17: =Entrada!P22 -> (6) padrões de entrada de unidades consumidoras atendidas em baixa tensão;
A18: 44378 | B18: 1650718.55 | C18: 12791924.85 | D18: 358310.49 | E18: 4029084.98 | F18: 5969204.85 | G18: 27253122.95 | H18: 0.04183448047 | I18: 0.2663692359 | K18: =Entrada!P23 -> (7) sistemas de medição de energia elétrica;
A19: 44409 | B19: 1534772.99 | C19: 14171819.38 | D19: 333130.88 | E19: 5237743.69 | F19: 6065174.07 | G19: 30850118.36 | H19: 0.03527340793 | I19: 0.2676199638 | K19: =Entrada!P24 -> (8) geradores, incluindo-se unidades de microgeração e minigeração distribuída;
A20: 44440 | B20: 1321909.76 | C20: 14814270.23 | D20: 286910.98 | E20: 6696814.36 | F20: 6120003.35 | G20: 32237859.08 | H20: 0.0293682501 | I20: 0.2704273896 | K20: =Entrada!P25 -> (9) sistemas de iluminação pública.
A21: 44470 | B21: 1238278.08 | C21: 14565402.3 | D21: 268755.54 | E21: 7263664.05 | F21: 6164848.08 | G21: 31761999.31 | H21: 0.0279084004 | I21: 0.2697332521 | K21: =Entrada!P26 -> (10) estações de recarga de veículos elétricos, incluindo a prestação de serviços aos usuários
A22: 44501 | B22: 1609651.73 | C22: 13404791.59 | D22: 349378.77 | E22: 6605157.64 | F22: 5894718.1 | G22: 28912017.44 | H22: 0.03904741331 | I22: 0.267184425 | K22: =Entrada!P27 -> Eficientização do consumo de energia elétrica e instalação de cogeração qualificada, desde que não enquadráveis nos projetos de Pesquisa e Desenvolvimento (P&D) ou de Eficiência Energética estabelecidos em lei
A23: 44531 | B23: 1795828.49 | C23: 12830729.92 | D23: 389799 | E23: 6133846.81 | F23: 5829498.37 | G23: 27404831.16 | H23: 0.04529733416 | I23: 0.2659180777 | K23: =Entrada!P28 -> Serviços de comunicação de dados
A24: 44562 | B24: 1164659.82 | C24: 7574940.08 | D24: 252777.82 | E24: 5238287.04 | F24: 5690041.37 | G24: 23430485.33 | H24: 0.03719049129 | I24: 0.1987500086 | K24: =Entrada!P29 -> Serviços de consultoria
A25: 44593 | B25: 970718.54 | C25: 6173880.9 | D25: 210673.08 | E25: 5523999.23 | F25: 5730964.46 | G25: 24327735.22 | H25: 0.03157621473 | I25: 0.1650153816 | K25: =Entrada!P30 -> Receita proveniente da comercialização de resultados de projetos de P&D COM comprovação
A26: 44621 | B26: 1111408.86 | C26: 6934021.48 | D26: 241215.67 | E26: 6377065.79 | F26: 6057117.71 | G26: 28255514.55 | H26: 0.03175228748 | I26: 0.162773215 | K26: =Entrada!P31 -> Receita proveniente da comercialização de resultados de projetos de P&D SEM comprovação
A27: 44652 | B27: 1083211.2 | C27: 6681368.14 | D27: 235094.66 | E27: 4908513.75 | F27: 6356729.76 | G27: 27193647.07 | H27: 0.03172814073 | I27: 0.1608028873
A28: 44682 | B28: 1468306.51 | C28: 6667096.21 | D28: 318700.84 | E28: 1226231.6 | F28: 7997871.6 | G28: 25379458.48 | H28: 0.04271924709 | I28: 0.1593800554 | K28: Descrição | L28: =L2 -> 1900-06-28 | M28: =M2 -> 1900-05-28 | N28: 1900-04-28 | O28: 1900-03-28 | P28: 1900-02-28 | Q28: 1900-01-31 | R28: 00:00:00 | AA28: =AA2 ->  | BA28: =BA2 ->  | BG28: =BG2 -> 
A29: 44713 | B29: 2122958.66 | C29: 7289312 | D29: 460831.77 | E29: -2105.23 | F29: 9079756.64 | G29: 30700191.51 | H29: 0.05203689199 | I29: 0.1468049176 | K29: =Entrada!P36 -> Ultrapassagem de Demanda | L29: =IF(COUNTIFS($C$82:$C$200000,$K29,$H$82:$H$200000,L$2)=0,"",COUNTIFS($C$82:$C$200000,$K29,$H$82:$H$200000,L$2)) ->  | V29: =IF(COUNTIFS($C$82:$C$200000,$K29,$H$82:$H$200000,V$2)=0,"",COUNTIFS($C$82:$C$200000,$K29,$H$82:$H$200000,V$2)) ->  | AF29: =IF(COUNTIFS($C$82:$C$200000,$K29,$H$82:$H$200000,AF$2)=0,"",COUNTIFS($C$82:$C$200000,$K29,$H$82:$H$200000,AF$2)) ->  | AP29: =IF(COUNTIFS($C$82:$C$200000,$K29,$H$82:$H$200000,AP$2)=0,"",COUNTIFS($C$82:$C$200000,$K29,$H$82:$H$200000,AP$2)) ->  | AZ29: =IF(COUNTIFS($C$82:$C$200000,$K29,$H$82:$H$200000,AZ$2)=0,"",COUNTIFS($C$82:$C$200000,$K29,$H$82:$H$200000,AZ$2)) ->  | BJ29: =IF(COUNTIFS($C$82:$C$200000,$K29,$H$82:$H$200000,BJ$2)=0,"",COUNTIFS($C$82:$C$200000,$K29,$H$82:$H$200000,BJ$2)) -> 
A30: 44743 | B30: 1523545.74 | C30: 6614554.02 | D30: 330692.25 | E30: 21791.81 | F30: 9357303.61 | G30: 27454036.51 | H30: 0.04095036615 | I30: 0.1460807137 | K30: =Entrada!P37 -> Excedente Reativo
A31: 44774 | B31: 1720815.08 | C31: 6607820.17 | D31: 373522.41 | E31: -3767.98 | F31: 9251604.95 | G31: 28046090.53 | H31: 0.04552922123 | I31: 0.1436487232
A32: 44805 | B32: 1914808.72 | C32: 6806126.31 | D32: 415655.49 | E32: 25944.89 | F32: 7755590.84 | G32: 28415589.83 | H32: 0.05143630218 | I32: 0.1502198438
A33: 44835 | B33: 1825386.14 | C33: 6057289.67 | D33: 396236.67 | E33: 5745.23 | F33: 8881864.92 | G33: 25837392.48 | H33: 0.05166784578 | I33: 0.1408731973
A34: 44866 | B34: 1324537.08 | C34: 5726152.18 | D34: 287502.6 | E34: 2461.02 | F34: 7950489 | G34: 23753966.51 | H34: 0.04128920011 | I34: 0.1466640345 | K34: Data do último Lançamento por item e competência
A35: 44896 | B35: 1164371.55 | C35: 5478133.61 | D35: 252742.79 | E35: -9430.26 | F35: 8438125.26 | G35: 23405604.45 | H35: 0.03658109805 | I35: 0.1414114141 | K35: Descrição | L35: =L2 -> 1900-06-28 | M35: =M2 -> 1900-05-28 | N35: 1900-04-28 | O35: 1900-03-28 | P35: 1900-02-28 | Q35: 1900-01-31 | R35: 00:00:00 | BG35: =BG2 -> 
A36: 44927 | B36: 1117848.56 | C36: 4688267.67 | D36: 242646.02 | E36: 2264.19 | F36: 8752508.15 | G36: 20434035.35 | H36: 0.03861168652 | I36: 0.1330559667 | K36: =Entrada!P8 -> Serviços Cobráveis | L36: =IF(_xlfn.MAXIFS($G$82:$G$200000,$C$82:$C$200000,$K36,$H$82:$H$200000,L$2)=0,"",_xlfn.MAXIFS($G$82:$G$200000,$C$82:$C$200000,$K36,$H$82:$H$200000,L$2)) ->  | V36: =IF(_xlfn.MAXIFS($G$82:$G$200000,$C$82:$C$200000,$K36,$H$82:$H$200000,V$2)=0,"",_xlfn.MAXIFS($G$82:$G$200000,$C$82:$C$200000,$K36,$H$82:$H$200000,V$2)) ->  | AF36: =IF(_xlfn.MAXIFS($G$82:$G$200000,$C$82:$C$200000,$K36,$H$82:$H$200000,AF$2)=0,"",_xlfn.MAXIFS($G$82:$G$200000,$C$82:$C$200000,$K36,$H$82:$H$200000,AF$2)) ->  | AP36: =IF(_xlfn.MAXIFS($G$82:$G$200000,$C$82:$C$200000,$K36,$H$82:$H$200000,AP$2)=0,"",_xlfn.MAXIFS($G$82:$G$200000,$C$82:$C$200000,$K36,$H$82:$H$200000,AP$2)) ->  | AZ36: =IF(_xlfn.MAXIFS($G$82:$G$200000,$C$82:$C$200000,$K36,$H$82:$H$200000,AZ$2)=0,"",_xlfn.MAXIFS($G$82:$G$200000,$C$82:$C$200000,$K36,$H$82:$H$200000,AZ$2)) ->  | BJ36: =IF(_xlfn.MAXIFS($G$82:$G$200000,$C$82:$C$200000,$K36,$H$82:$H$200000,BJ$2)=0,"",_xlfn.MAXIFS($G$82:$G$200000,$C$82:$C$200000,$K36,$H$82:$H$200000,BJ$2)) -> 
A37: 44958 | B37: 1239100.88 | C37: 4965869.15 | D37: 268986.3 | E37: -7224 | F37: 8628196.49 | G37: 20267895.56 | H37: 0.04263740789 | I37: 0.1403975787 | K37: =Entrada!P9 -> Arrecadação de convênios ou valores pela fatura
A38: 44986 | B38: 1624725.39 | C38: 5692107.33 | D38: 352684.29 | E38: 697.54 | F38: 8663413.94 | G38: 23460208.3 | H38: 0.04969222628 | I38: 0.1430424299 | K38: =Entrada!P10 -> Arrecadação de faturas de terceiros por estrutura própria
A39: 45017 | B39: 1816459.87 | C39: 5930891.69 | D39: 394300.08 | E39: -2359.43 | F39: 9147646.17 | G39: 23967577.87 | H39: 0.05358524885 | I39: 0.1437552309 | K39: =Entrada!P11 -> Veiculação de publicidade
A40: 45047 | B40: 2036882.28 | C40: 6638559.05 | D40: 442151.92 | E40: 12200.5 | F40: 10571252.22 | G40: 26350855.11 | H40: 0.05384557607 | I40: 0.1441920553 | K40: =Entrada!P12 -> Aluguel ou cessão onerosa de imóveis e espaços físicos
A41: 45078 | B41: 2288526.71 | C41: 7772852.29 | D41: 496781.99 | E41: -113.85 | F41: 10311468.84 | G41: 31299891.92 | H41: 0.05338957703 | I41: 0.148992209 | K41: =Entrada!P13 -> Compartilhamento de infraestrutura
A42: 45108 | B42: 1983148.18 | C42: 6478951.4 | D42: 430486.1 | E42: 283.11 | F42: 10187887.69 | G42: 25749327.8 | H42: 0.05383995059 | I42: 0.1445233133 | K42: =Entrada!P14 -> Serviços de avaliação técnica e aferição de medidores.
A43: 45139 | B43: 2032714 | C43: 6933859.5 | D43: 441247.28 | E43: -711.96 | F43: 8964927.64 | G43: 27819998.73 | H43: 0.05355735332 | I43: 0.150107104 | K43: =Entrada!P15 -> Operacionalização de serviço de créditos tributários
A44: 45170 | B44: 2034127.67 | C44: 6828465.7 | D44: 441555.77 | E44: -218.65 | F44: 8981462.25 | G44: 27818726.15 | H44: 0.05369740836 | I44: 0.1481089647 | K44: =Entrada!P16 -> Elaboração de projeto, construção, operação, manutenção ou reforma de:
A45: 45200 | B45: 1913313.96 | C45: 6517109.43 | D45: 415326.85 | E45: -715.24 | F45: 8366490.63 | G45: 26302864.94 | H45: 0.05351338958 | I45: 0.1497665996 | K45: =Entrada!P17 -> (1) redes de distribuição de energia elétrica destinadas à regularização fundiária de interesse específico e ao atendimento dos empreendimentos de múltiplas unidades consumidoras; | L45: =IF(_xlfn.MAXIFS($G$82:$G$200000,$C$82:$C$200000,$K45,$H$82:$H$200000,L$2)=0,"",_xlfn.MAXIFS($G$82:$G$200000,$C$82:$C$200000,$K45,$H$82:$H$200000,L$2)) ->  | V45: =IF(_xlfn.MAXIFS($G$82:$G$200000,$C$82:$C$200000,$K45,$H$82:$H$200000,V$2)=0,"",_xlfn.MAXIFS($G$82:$G$200000,$C$82:$C$200000,$K45,$H$82:$H$200000,V$2)) ->  | AF45: =IF(_xlfn.MAXIFS($G$82:$G$200000,$C$82:$C$200000,$K45,$H$82:$H$200000,AF$2)=0,"",_xlfn.MAXIFS($G$82:$G$200000,$C$82:$C$200000,$K45,$H$82:$H$200000,AF$2)) ->  | AP45: =IF(_xlfn.MAXIFS($G$82:$G$200000,$C$82:$C$200000,$K45,$H$82:$H$200000,AP$2)=0,"",_xlfn.MAXIFS($G$82:$G$200000,$C$82:$C$200000,$K45,$H$82:$H$200000,AP$2)) ->  | AZ45: =IF(_xlfn.MAXIFS($G$82:$G$200000,$C$82:$C$200000,$K45,$H$82:$H$200000,AZ$2)=0,"",_xlfn.MAXIFS($G$82:$G$200000,$C$82:$C$200000,$K45,$H$82:$H$200000,AZ$2)) ->  | BJ45: =IF(_xlfn.MAXIFS($G$82:$G$200000,$C$82:$C$200000,$K45,$H$82:$H$200000,BJ$2)=0,"",_xlfn.MAXIFS($G$82:$G$200000,$C$82:$C$200000,$K45,$H$82:$H$200000,BJ$2)) -> 
A46: 45231 | B46: 1902606.45 | C46: 6351217.08 | D46: 413004.68 | E46: -286.99 | F46: 8662429.66 | G46: 25473619 | H46: 0.05409942741 | I46: 0.1483829486 | K46: =Entrada!P18 -> (2) redes de energia elétrica destinadas ao acesso dos sistemas de distribuição ou transmissão;
A47: 45261 | B47: 1698862.86 | C47: 5564461.11 | D47: 368772.02 | F47: 7993973.23 | G47: 22349795.62 | H47: 0.05444602483 | I47: 0.1465262512 | K47: =Entrada!P19 -> (3) subestações de energia;
A48: 45292 | B48: 1653142.37 | C48: 5060381.01 | D48: 358845.2 | E48: 577.21 | F48: 7739695.05 | G48: 19914362.73 | H48: 0.0579382269 | I48: 0.1457213293 | K48: =Entrada!P20 -> (4) instalações elétricas internas de unidades consumidoras;
A49: 45323 | B49: 1654669.55 | C49: 5171680.28 | D49: 359178.73 | E49: -3917.87 | F49: 7100087.26 | G49: 20440033.55 | H49: 0.05799310644 | I49: 0.1489296924 | K49: =Entrada!P21 -> (5) banco de capacitores;
A50: 45352 | B50: 1719769.34 | C50: 5408518.71 | D50: 373315.34 | E50: -4.5 | F50: 7390026.36 | G50: 20923855.38 | H50: 0.05844077422 | I50: 0.1510106227 | K50: =Entrada!P22 -> (6) padrões de entrada de unidades consumidoras atendidas em baixa tensão;
A51: 45383 | B51: 1695694.94 | C51: 5285780.87 | D51: 368091.86 | E51: 354.88 | F51: 7221406.65 | G51: 20772897.07 | H51: 0.05839164525 | I51: 0.1495529681 | K51: =Entrada!P23 -> (7) sistemas de medição de energia elétrica;
A52: 45413 | B52: 1728545.68 | C52: 5480256.7 | D52: 375221.05 | E52: -430.31 | F52: 6895634.08 | G52: 21221437.53 | H52: 0.05892723256 | I52: 0.1535038826 | K52: =Entrada!P24 -> (8) geradores, incluindo-se unidades de microgeração e minigeração distribuída;
A53: 45444 | B53: 1546577.46 | C53: 5034268.97 | D53: 335715.14 | E53: 16.6 | F53: 6278896.24 | G53: 18412639.34 | H53: 0.05955096224 | I53: 0.1592714976 | K53: =Entrada!P25 -> (9) sistemas de iluminação pública.
A54: 45474 | B54: 1730989.49 | C54: 5792265 | D54: 375755.59 | E54: 316231.74 | F54: 6814815.23 | G54: 21155264.41 | H54: 0.0587342778 | I54: 0.1614834679 | K54: =Entrada!P26 -> (10) estações de recarga de veículos elétricos, incluindo a prestação de serviços aos usuários
A55: 45505 | B55: 1745000.1 | C55: 5821883.19 | D55: 378786.97 | E55: 310610.99 | F55: 6681528.52 | G55: 21502517.83 | H55: 0.05878227867 | I55: 0.1611383575 | K55: =Entrada!P27 -> Eficientização do consumo de energia elétrica e instalação de cogeração qualificada, desde que não enquadráveis nos projetos de Pesquisa e Desenvolvimento (P&D) ou de Eficiência Energética estabelecidos em lei
A56: 45536 | B56: 1832912.79 | C56: 6197430.18 | D56: 397882.61 | E56: 762748.33 | F56: 6597212.46 | G56: 23330761.15 | H56: 0.05815997015 | I56: 0.1615757116 | K56: =Entrada!P28 -> Serviços de comunicação de dados
A57: 45566 | B57: 1870432.53 | C57: 6402599.1 | D57: 406050.07 | E57: 2171985.27 | F57: 6311251.74 | G57: 24156738.77 | H57: 0.05815205254 | I57: 0.163552438 | K57: =Entrada!P29 -> Serviços de consultoria
A58: 45597 | B58: 1728041.71 | C58: 5936983.29 | D58: 375147.33 | E58: 1886171.09 | F58: 6599646.49 | G58: 22029918.6 | H58: 0.05735489774 | I58: 0.161904167 | K58: =Entrada!P30 -> Receita proveniente da comercialização de resultados de projetos de P&D COM comprovação
A59: 45627 | B59: 1455200.64 | C59: 4821126.21 | D59: 315896.85 | E59: 312917.7 | F59: 5976416.76 | G59: 17955927.02 | H59: 0.05802203393 | I59: 0.1579424905 | K59: =Entrada!P31 -> Receita proveniente da comercialização de resultados de projetos de P&D SEM comprovação
A60: 45658 | B60: 1086257.2 | C60: 3942487.06 | D60: 235791.43 | E60: 11772.83 | F60: 5625196.45 | G60: 14468832.18 | H60: 0.05213420655 | I60: 0.1554696477
A61: 45689 | B61: 1084243.61 | C61: 4149267.32 | D61: 235349.4 | E61: -105.11 | F61: 5722263.52 | G61: 15132081.95 | H61: 0.05013040661 | I61: 0.1576277354 | K61: Descrição | L61: =L35 -> 1900-06-28 | M61: =M35 -> 1900-05-28 | N61: 1900-04-28 | O61: 1900-03-28 | P61: 1900-02-28 | Q61: 1900-01-31 | R61: 00:00:00 | AA61: =AA35 ->  | BA61: =BA35 ->  | BG61: =BG35 -> 
A62: 45717 | B62: 1426270.38 | C62: 4310956.08 | D62: 309603.26 | E62: 2723.99 | F62: 5459467.19 | G62: 15734012.15 | H62: 0.06372444733 | I62: 0.158256504 | K62: =Entrada!P36 -> Ultrapassagem de Demanda | L62: =IF(COUNTIFS($C$82:$C$200000,$K62,$H$82:$H$200000,L$2)=0,"",COUNTIFS($C$82:$C$200000,$K62,$H$82:$H$200000,L$2)) ->  | V62: =IF(COUNTIFS($C$82:$C$200000,$K62,$H$82:$H$200000,V$2)=0,"",COUNTIFS($C$82:$C$200000,$K62,$H$82:$H$200000,V$2)) ->  | AF62: =IF(COUNTIFS($C$82:$C$200000,$K62,$H$82:$H$200000,AF$2)=0,"",COUNTIFS($C$82:$C$200000,$K62,$H$82:$H$200000,AF$2)) ->  | AP62: =IF(COUNTIFS($C$82:$C$200000,$K62,$H$82:$H$200000,AP$2)=0,"",COUNTIFS($C$82:$C$200000,$K62,$H$82:$H$200000,AP$2)) ->  | AZ62: =IF(COUNTIFS($C$82:$C$200000,$K62,$H$82:$H$200000,AZ$2)=0,"",COUNTIFS($C$82:$C$200000,$K62,$H$82:$H$200000,AZ$2)) ->  | BJ62: =IF(COUNTIFS($C$82:$C$200000,$K62,$H$82:$H$200000,BJ$2)=0,"",COUNTIFS($C$82:$C$200000,$K62,$H$82:$H$200000,BJ$2)) -> 
A63: 45748 | B63: 1381432.19 | C63: 4045764.68 | D63: 299872 | E63: -1307.6 | F63: 5201937.84 | G63: 14779597.31 | H63: 0.06539850194 | I63: 0.1573700648 | K63: =Entrada!P37 -> Excedente Reativo
A64: 45778 | B64: 1074582.4 | C64: 3190412.45 | D64: 233258.18 | E64: 135996.24 | F64: 4599001.06 | G64: 11477849.83 | H64: 0.06356422719 | I64: 0.1550617903
A65: 45809 | B65: 1457621.75 | C65: 4082580.09 | D65: 316390.15 | E65: 645293.54 | F65: 5402459.93 | G65: 14754102.08 | H65: 0.06819672463 | I65: 0.1569429101
A66: 45839 | B66: 1424632.87 | C66: 4134217.63 | D66: 309264.61 | E66: 190054.28 | F66: 5046719.71 | G66: 14743670.96 | H66: 0.06757593349 | I66: 0.1611246448
A67: 45870 | B67: 1316739.63 | C67: 4408201.78 | D67: 285848.84 | E67: 1353214.12 | F67: 5440718.63 | G67: 16099665.21 | H67: 0.05816770148 | I67: 0.1600005054
A68: 45901 | B68: 1211815.65 | C68: 4309364.73 | D68: 263064.94 | E68: 1704007.31 | F68: 5337971.13 | G68: 15620375.99 | H68: 0.0551509953 | I68: 0.1611423702
A69: 45931 | B69: 1412936.58 | C69: 4555521.3 | D69: 306732.38 | E69: 1561096.5 | F69: 5318962.83 | G69: 17002377.18 | H69: 0.06013558092 | I69: 0.1593032881
A70: 45962 | B70: 1559318.87 | C70: 4300523.25 | D70: 338513.06 | E70: 1002636.86 | F70: 5186167.17 | G70: 15651974.69 | H70: 0.07019518569 | I70: 0.1590636259
A71: 45992 | B71: 1904746.25 | C71: 4083760.8 | D71: 413498.45 | E71: 735668.34 | F71: 4984074.11 | G71: 14437591.5 | H71: 0.08977208121 | I71: 0.1581402111
A72: 46023 | B72: 1976334.14 | C72: 3474557.86 | D72: 429051.54 | E72: 206820.62 | F72: 4775247.32 | G72: 12044044.7 | H72: 0.1059676954 | I72: 0.1530693776
A73: 46054 | B73: 1976334.14 | C73: 3474557.86 | D73: 429051.54 | E73: 206820.62 | F73: 4775247.32 | G73: 12044044.7 | H73: 0.1059676954 | I73: 0.1530693776
A74: 46082 | B74: 1976334.14 | C74: 3474557.86 | D74: 429051.54 | E74: 206820.62 | F74: 4775247.32 | G74: 12044044.7 | H74: 0.1059676954 | I74: 0.1530693776
A80: Tab_Uderor
A81: IdeTipoReceita | B81: TipoReceitaArquivo | C81: TipoReceita | D81: CompetenciaArquivo | E81: Data_envio_arquivo | F81: NomeArquivo | G81: Data_Lancamento | H81: Competencia | I81: R$
A82: 1 | B82: Serviços Cobráveis | C82: Serviços Cobráveis | D82: 202011 | E82: 44872 | F82: APLCVA00405_FLXPAGAMENTOS_112020_S006.XML | G82: 44136 | H82: 44136 | I82: 306045.25
A83: 1 | B83: Serviços Cobráveis | C83: Serviços Cobráveis | D83: 202012 | E83: 44872 | F83: APLCVA00405_FLXPAGAMENTOS_122020_S005.XML | G83: 44166 | H83: 44166 | I83: 308954.13
A84: 1 | B84: Serviços Cobráveis | C84: Serviços Cobráveis | D84: 202101 | E84: 44872 | F84: APLCVA00405_FLXPAGAMENTOS_012021_S004.XML | G84: 44197 | H84: 44197 | I84: 302486.85
A85: 1 | B85: Serviços Cobráveis | C85: Serviços Cobráveis | D85: 202102 | E85: 44872 | F85: APLCVA00405_FLXPAGAMENTOS_022021_S005.XML | G85: 44228 | H85: 44228 | I85: 354514.13
A86: 1 | B86: Serviços Cobráveis | C86: Serviços Cobráveis | D86: 202103 | E86: 44872 | F86: APLCVA00405_FLXPAGAMENTOS_032021_S005.XML | G86: 44256 | H86: 44256 | I86: 338957.23
A87: 1 | B87: Serviços Cobráveis | C87: Serviços Cobráveis | D87: 202104 | E87: 44942 | F87: APLCVA00405_FLXPAGAMENTOS_042021_S007.XML | G87: 44287 | H87: 44287 | I87: 307054.24
A88: 1 | B88: Serviços Cobráveis | C88: Serviços Cobráveis | D88: 202105 | E88: 44872 | F88: APLCVA00405_FLXPAGAMENTOS_052021_S006.XML | G88: 44317 | H88: 44317 | I88: 272363.69
A89: 1 | B89: Serviços Cobráveis | C89: Serviços Cobráveis | D89: 202106 | E89: 44872 | F89: APLCVA00405_FLXPAGAMENTOS_062021_S006.XML | G89: 44348 | H89: 44348 | I89: 241208.31
A90: 1 | B90: Serviços Cobráveis | C90: Serviços Cobráveis | D90: 202107 | E90: 44872 | F90: APLCVA00405_FLXPAGAMENTOS_072021_S005.XML | G90: 44378 | H90: 44378 | I90: 216914.7
A91: 1 | B91: Serviços Cobráveis | C91: Serviços Cobráveis | D91: 202108 | E91: 44872 | F91: APLCVA00405_FLXPAGAMENTOS_082021_S006.XML | G91: 44409 | H91: 44409 | I91: 329315.25
A92: 1 | B92: Serviços Cobráveis | C92: Serviços Cobráveis | D92: 202109 | E92: 44872 | F92: APLCVA00405_FLXPAGAMENTOS_092021_S004.XML | G92: 44440 | H92: 44440 | I92: 314023.9
A93: 1 | B93: Serviços Cobráveis | C93: Serviços Cobráveis | D93: 202110 | E93: 44872 | F93: APLCVA00405_FLXPAGAMENTOS_102021_S004.XML | G93: 44470 | H93: 44470 | I93: 238848.36
A94: 1 | B94: Serviços Cobráveis | C94: Serviços Cobráveis | D94: 202111 | E94: 44872 | F94: APLCVA00405_FLXPAGAMENTOS_112021_S003.XML | G94: 44501 | H94: 44501 | I94: 229014.91
A95: 1 | B95: Serviços Cobráveis | C95: Serviços Cobráveis | D95: 202112 | E95: 44872 | F95: APLCVA00405_FLXPAGAMENTOS_122021_S005.XML | G95: 44531 | H95: 44531 | I95: 243691.05
A96: 1 | B96: Serviços Cobráveis | C96: Serviços Cobráveis | D96: 202201 | E96: 44872 | F96: APLCVA00405_FLXPAGAMENTOS_012022_S004.XML | G96: 44562 | H96: 44562 | I96: 221056.94
A97: 1 | B97: Serviços Cobráveis | C97: Serviços Cobráveis | D97: 202202 | E97: 44872 | F97: APLCVA00405_FLXPAGAMENTOS_022022_S005.XML | G97: 44593 | H97: 44593 | I97: 201704.47
A98: 1 | B98: Serviços Cobráveis | C98: Serviços Cobráveis | D98: 202203 | E98: 44872 | F98: APLCVA00405_FLXPAGAMENTOS_032022_S004.XML | G98: 44621 | H98: 44621 | I98: 214929.29
A99: 1 | B99: Serviços Cobráveis | C99: Serviços Cobráveis | D99: 202204 | E99: 44936 | F99: APLCVA00405_FLXPAGAMENTOS_042022_S003.XML | G99: 44652 | H99: 44652 | I99: 243671.61
A100: 1 | B100: Serviços Cobráveis | C100: Serviços Cobráveis | D100: 202205 | E100: 44942 | F100: APLCVA00405_FLXPAGAMENTOS_052022_S004.XML | G100: 44682 | H100: 44682 | I100: 333606.13
A101: 1 | B101: Serviços Cobráveis | C101: Serviços Cobráveis | D101: 202206 | E101: 44964 | F101: APLCVA00405_FLXPAGAMENTOS_062022_S005.XML | G101: 44713 | H101: 44713 | I101: 330908.22
A102: 1 | B102: Serviços Cobráveis | C102: Serviços Cobráveis | D102: 202207 | E102: 44992 | F102: APLCVA00405_FLXPAGAMENTOS_072022_S005.XML | G102: 44743 | H102: 44743 | I102: 332334.51
A103: 1 | B103: Serviços Cobráveis | C103: Serviços Cobráveis | D103: 202208 | E103: 44992 | F103: APLCVA00405_FLXPAGAMENTOS_082022_S008.XML | G103: 44774 | H103: 44774 | I103: 358864.96
A104: 1 | B104: Serviços Cobráveis | C104: Serviços Cobráveis | D104: 202209 | E104: 44992 | F104: APLCVA00405_FLXPAGAMENTOS_092022_S008.XML | G104: 44805 | H104: 44805 | I104: 321185.92
A105: 1 | B105: Serviços Cobráveis | C105: Serviços Cobráveis | D105: 202210 | E105: 44993 | F105: APLCVA00405_FLXPAGAMENTOS_102022_S006.XML | G105: 44835 | H105: 44835 | I105: 236486.65
A106: 1 | B106: Serviços Cobráveis | C106: Serviços Cobráveis | D106: 202211 | E106: 44993 | F106: APLCVA00405_FLXPAGAMENTOS_112022_S005.XML | G106: 44866 | H106: 44866 | I106: 202563.45
A107: 1 | B107: Serviços Cobráveis | C107: Serviços Cobráveis | D107: 202212 | E107: 44992 | F107: APLCVA00405_FLXPAGAMENTOS_122022_S003.XML | G107: 44896 | H107: 44896 | I107: 214301.45
A108: 1 | B108: Serviços Cobráveis | C108: Serviços Cobráveis | D108: 202301 | E108: 45352 | F108: APLCVA00405_FLXPAGAMENTOS_012023_S004.XML | G108: 44927 | H108: 44927 | I108: 193655.16
A109: 1 | B109: Serviços Cobráveis | C109: Serviços Cobráveis | D109: 202302 | E109: 45358 | F109: APLCVA00405_FLXPAGAMENTOS_022023_S005.XML | G109: 44958 | H109: 44958 | I109: 223226.5
A110: 1 | B110: Serviços Cobráveis | C110: Serviços Cobráveis | D110: 202303 | E110: 45358 | F110: APLCVA00405_FLXPAGAMENTOS_032023_S005.XML | G110: 44986 | H110: 44986 | I110: 215332.81
A111: 1 | B111: Serviços Cobráveis | C111: Serviços Cobráveis | D111: 202304 | E111: 45358 | F111: APLCVA00405_FLXPAGAMENTOS_042023_S006.XML | G111: 45017 | H111: 45017 | I111: 228252.91
A112: 1 | B112: Serviços Cobráveis | C112: Serviços Cobráveis | D112: 202305 | E112: 45338 | F112: APLCVA00405_FLXPAGAMENTOS_052023_S005.XML | G112: 45047 | H112: 45047 | I112: 270388.42
A113: 1 | B113: Serviços Cobráveis | C113: Serviços Cobráveis | D113: 202306 | E113: 45331 | F113: APLCVA00405_FLXPAGAMENTOS_062023_S004.XML | G113: 45078 | H113: 45078 | I113: 285529.62
A114: 1 | B114: Serviços Cobráveis | C114: Serviços Cobráveis | D114: 202307 | E114: 45338 | F114: APLCVA00405_FLXPAGAMENTOS_072023_S004.XML | G114: 45108 | H114: 45108 | I114: 278557.37
A115: 1 | B115: Serviços Cobráveis | C115: Serviços Cobráveis | D115: 202308 | E115: 45331 | F115: APLCVA00405_FLXPAGAMENTOS_082023_S004.XML | G115: 45139 | H115: 45139 | I115: 312708.82
A116: 1 | B116: Serviços Cobráveis | C116: Serviços Cobráveis | D116: 202309 | E116: 45331 | F116: APLCVA00405_FLXPAGAMENTOS_092023_S003.XML | G116: 45170 | H116: 45170 | I116: 235641.24
A117: 1 | B117: Serviços Cobráveis | C117: Serviços Cobráveis | D117: 202310 | E117: 45331 | F117: APLCVA00405_FLXPAGAMENTOS_102023_S003.XML | G117: 45200 | H117: 45200 | I117: 204697.94
A118: 1 | B118: Serviços Cobráveis | C118: Serviços Cobráveis | D118: 202311 | E118: 45331 | F118: APLCVA00405_FLXPAGAMENTOS_112023_S002.XML | G118: 45231 | H118: 45231 | I118: 207690.76
A119: 1 | B119: Serviços Cobráveis | C119: Serviços Cobráveis | D119: 202312 | E119: 45352 | F119: APLCVA00405_FLXPAGAMENTOS_122023_S003.XML | G119: 45261 | H119: 45261 | I119: 262893.93
A120: 1 | B120: Serviços Cobráveis | C120: Serviços Cobráveis | D120: 202401 | E120: 45365 | F120: APLCVA00405_FLXPAGAMENTOS_012024_S003.XML | G120: 45292 | H120: 45292 | I120: 233331.56
A121: 1 | B121: Serviços Cobráveis | C121: Serviços Cobráveis | D121: 202402 | E121: 45423 | F121: APLCVA00405_FLXPAGAMENTOS_022024_S002.XML | G121: 45323 | H121: 45323 | I121: 226257.84
A122: 1 | B122: Serviços Cobráveis | C122: Serviços Cobráveis | D122: 202403 | E122: 45636 | F122: APLCVA00405_FLXPAGAMENTOS_032024_S004.XML | G122: 45352 | H122: 45352 | I122: 289598.66
A123: 1 | B123: Serviços Cobráveis | C123: Serviços Cobráveis | D123: 202404 | E123: 45483 | F123: APLCVA00405_FLXPAGAMENTOS_042024_S001.XML | G123: 45383 | H123: 45383 | I123: 277917.53
A124: 1 | B124: Serviços Cobráveis | C124: Serviços Cobráveis | D124: 202405 | E124: 45692 | F124: APLCVA00405_FLXPAGAMENTOS_052024_S003.XML | G124: 45413 | H124: 45413 | I124: 299274.35
A125: 1 | B125: Serviços Cobráveis | C125: Serviços Cobráveis | D125: 202406 | E125: 45636 | F125: APLCVA00405_FLXPAGAMENTOS_062024_S004.XML | G125: 45444 | H125: 45444 | I125: 332041.87
A126: 1 | B126: Serviços Cobráveis | C126: Serviços Cobráveis | D126: 202407 | E126: 45636 | F126: APLCVA00405_FLXPAGAMENTOS_072024_S003.XML | G126: 45474 | H126: 45474 | I126: 393789.3
A127: 1 | B127: Serviços Cobráveis | C127: Serviços Cobráveis | D127: 202408 | E127: 45636 | F127: APLCVA00405_FLXPAGAMENTOS_082024_S002.XML | G127: 45505 | H127: 45505 | I127: 383205.52
A128: 1 | B128: Serviços Cobráveis | C128: Serviços Cobráveis | D128: 202409 | E128: 45636 | F128: APLCVA00405_FLXPAGAMENTOS_092024_S002.XML | G128: 45536 | H128: 45536 | I128: 410489.38
A129: 1 | B129: Serviços Cobráveis | C129: Serviços Cobráveis | D129: 202410 | E129: 45667 | F129: APLCVA00405_FLXPAGAMENTOS_102024_S002.XML | G129: 45566 | H129: 45566 | I129: 346758.33
A130: 1 | B130: Serviços Cobráveis | C130: Serviços Cobráveis | D130: 202411 | E130: 45723 | F130: APLCVA00405_FLXPAGAMENTOS_112024_S003.XML | G130: 45597 | H130: 45597 | I130: 308302.69
A131: 1 | B131: Serviços Cobráveis | C131: Serviços Cobráveis | D131: 202412 | E131: 45723 | F131: APLCVA00405_FLXPAGAMENTOS_122024_S002.XML | G131: 45627 | H131: 45627 | I131: 327879.13
A132: 1 | B132: Serviços Cobráveis | C132: Serviços Cobráveis | D132: 202501 | E132: 45726 | F132: APLCVA00405_FLXPAGAMENTOS_012025_S002.XML | G132: 45658 | H132: 45658 | I132: 349214.52
A133: 1 | B133: Serviços Cobráveis | C133: Serviços Cobráveis | D133: 202502 | E133: 45723 | F133: APLCVA00405_FLXPAGAMENTOS_022025_S000.XML | G133: 45689 | H133: 45689 | I133: 0
A134: 1 | B134: Serviços Cobráveis | C134: Serviços Cobráveis | D134: 202503 | E134: 45723 | F134: APLCVA00405_FLXPAGAMENTOS_032025_S000.XML | G134: 45717 | H134: 45717 | I134: 0
A135: 1 | B135: Serviços Cobráveis | C135: Serviços Cobráveis | D135: 202505 | E135: 45848 | F135: APLCVA00405_FLXPAGAMENTOS_052025_S001.XML | G135: 45778 | H135: 45778 | I135: 446818.96
A136: 1 | B136: Serviços Cobráveis | C136: Serviços Cobráveis | D136: 202506 | E136: 45877 | F136: APLCVA00405_FLXPAGAMENTOS_062025_S001.XML | G136: 45809 | H136: 45809 | I136: 505305.09
A137: 1 | B137: Serviços Cobráveis | C137: Serviços Cobráveis | D137: 202507 | E137: 45910 | F137: APLCVA00405_FLXPAGAMENTOS_072025_S001.XML | G137: 45839 | H137: 45839 | I137: 593432.83
A138: 1 | B138: Serviços Cobráveis | C138: Serviços Cobráveis | D138: 202508 | E138: 45940 | F138: APLCVA00405_FLXPAGAMENTOS_082025_S001.XML | G138: 45870 | H138: 45870 | I138: 584983.61
A139: 1 | B139: Serviços Cobráveis | C139: Serviços Cobráveis | D139: 202509 | E139: 45971 | F139: APLCVA00405_FLXPAGAMENTOS_092025_S001.XML | G139: 45901 | H139: 45901 | I139: 469671.69
A140: 1 | B140: Serviços Cobráveis | C140: Serviços Cobráveis | D140: 202510 | E140: 46083 | F140: APLCVA00405_FLXPAGAMENTOS_102025_S003.XML | G140: 45931 | H140: 45931 | I140: 462916.93
A141: 1 | B141: Serviços Cobráveis | C141: Serviços Cobráveis | D141: 202511 | E141: 46031 | F141: APLCVA00405_FLXPAGAMENTOS_112025_S001.XML | G141: 45962 | H141: 45962 | I141: 427593.16
A142: 1 | B142: Serviços Cobráveis | C142: Serviços Cobráveis | D142: 202512 | E142: 46083 | F142: APLCVA00405_FLXPAGAMENTOS_122025_S002.XML | G142: 45992 | H142: 45992 | I142: 365525.01
A143: 1 | B143: Serviços Cobráveis | C143: Serviços Cobráveis | D143: 202601 | E143: 46064 | F143: APLCVA00405_FLXPAGAMENTOS_012026_S000.XML | G143: 46023 | H143: 46023 | I143: 0
A144: 2 | B144: Arrecadação de convênios ou valores pela fatura | C144: Arrecadação de convênios ou valores pela fatura | D144: 202011 | E144: 44872 | F144: APLCVA00405_FLXPAGAMENTOS_112020_S006.XML | G144: 44136 | H144: 44136 | I144: 315089.58
A145: 2 | B145: Arrecadação de convênios ou valores pela fatura | C145: Arrecadação de convênios ou valores pela fatura | D145: 202012 | E145: 44872 | F145: APLCVA00405_FLXPAGAMENTOS_122020_S005.XML | G145: 44166 | H145: 44166 | I145: 238456.99
A146: 2 | B146: Arrecadação de convênios ou valores pela fatura | C146: Arrecadação de convênios ou valores pela fatura | D146: 202101 | E146: 44872 | F146: APLCVA00405_FLXPAGAMENTOS_012021_S004.XML | G146: 44197 | H146: 44197 | I146: 120342.8
A147: 2 | B147: Arrecadação de convênios ou valores pela fatura | C147: Arrecadação de convênios ou valores pela fatura | D147: 202102 | E147: 44872 | F147: APLCVA00405_FLXPAGAMENTOS_022021_S005.XML | G147: 44228 | H147: 44228 | I147: 218850.96
A148: 2 | B148: Arrecadação de convênios ou valores pela fatura | C148: Arrecadação de convênios ou valores pela fatura | D148: 202103 | E148: 44872 | F148: APLCVA00405_FLXPAGAMENTOS_032021_S005.XML | G148: 44256 | H148: 44256 | I148: 114756.93
A149: 2 | B149: Arrecadação de convênios ou valores pela fatura | C149: Arrecadação de convênios ou valores pela fatura | D149: 202104 | E149: 44942 | F149: APLCVA00405_FLXPAGAMENTOS_042021_S007.XML | G149: 44287 | H149: 44287 | I149: 798536.79
A150: 2 | B150: Arrecadação de convênios ou valores pela fatura | C150: Arrecadação de convênios ou valores pela fatura | D150: 202105 | E150: 44872 | F150: APLCVA00405_FLXPAGAMENTOS_052021_S006.XML | G150: 44317 | H150: 44317 | I150: 1016854.54
A151: 2 | B151: Arrecadação de convênios ou valores pela fatura | C151: Arrecadação de convênios ou valores pela fatura | D151: 202106 | E151: 44872 | F151: APLCVA00405_FLXPAGAMENTOS_062021_S006.XML | G151: 44348 | H151: 44348 | I151: 652965.49
A152: 2 | B152: Arrecadação de convênios ou valores pela fatura | C152: Arrecadação de convênios ou valores pela fatura | D152: 202107 | E152: 44872 | F152: APLCVA00405_FLXPAGAMENTOS_072021_S005.XML | G152: 44378 | H152: 44378 | I152: 743455.84
A153: 2 | B153: Arrecadação de convênios ou valores pela fatura | C153: Arrecadação de convênios ou valores pela fatura | D153: 202108 | E153: 44872 | F153: APLCVA00405_FLXPAGAMENTOS_082021_S006.XML | G153: 44409 | H153: 44409 | I153: 125258.35
A154: 2 | B154: Arrecadação de convênios ou valores pela fatura | C154: Arrecadação de convênios ou valores pela fatura | D154: 202109 | E154: 44872 | F154: APLCVA00405_FLXPAGAMENTOS_092021_S004.XML | G154: 44440 | H154: 44440 | I154: 1284086.32
A155: 2 | B155: Arrecadação de convênios ou valores pela fatura | C155: Arrecadação de convênios ou valores pela fatura | D155: 202110 | E155: 44872 | F155: APLCVA00405_FLXPAGAMENTOS_102021_S004.XML | G155: 44470 | H155: 44470 | I155: 773675.53
A156: 2 | B156: Arrecadação de convênios ou valores pela fatura | C156: Arrecadação de convênios ou valores pela fatura | D156: 202111 | E156: 44872 | F156: APLCVA00405_FLXPAGAMENTOS_112021_S003.XML | G156: 44501 | H156: 44501 | I156: 742507
A157: 2 | B157: Arrecadação de convênios ou valores pela fatura | C157: Arrecadação de convênios ou valores pela fatura | D157: 202112 | E157: 44872 | F157: APLCVA00405_FLXPAGAMENTOS_122021_S005.XML | G157: 44531 | H157: 44531 | I157: 1193338.69
A158: 2 | B158: Arrecadação de convênios ou valores pela fatura | C158: Arrecadação de convênios ou valores pela fatura | D158: 202201 | E158: 44872 | F158: APLCVA00405_FLXPAGAMENTOS_012022_S004.XML | G158: 44562 | H158: 44562 | I158: 859679.9
A159: 2 | B159: Arrecadação de convênios ou valores pela fatura | C159: Arrecadação de convênios ou valores pela fatura | D159: 202202 | E159: 44872 | F159: APLCVA00405_FLXPAGAMENTOS_022022_S005.XML | G159: 44593 | H159: 44593 | I159: 796574.19
A160: 2 | B160: Arrecadação de convênios ou valores pela fatura | C160: Arrecadação de convênios ou valores pela fatura | D160: 202203 | E160: 44872 | F160: APLCVA00405_FLXPAGAMENTOS_032022_S004.XML | G160: 44621 | H160: 44621 | I160: 869852.57
A161: 2 | B161: Arrecadação de convênios ou valores pela fatura | C161: Arrecadação de convênios ou valores pela fatura | D161: 202204 | E161: 44936 | F161: APLCVA00405_FLXPAGAMENTOS_042022_S003.XML | G161: 44652 | H161: 44652 | I161: 739562.66
A162: 2 | B162: Arrecadação de convênios ou valores pela fatura | C162: Arrecadação de convênios ou valores pela fatura | D162: 202205 | E162: 44942 | F162: APLCVA00405_FLXPAGAMENTOS_052022_S004.XML | G162: 44682 | H162: 44682 | I162: 879271.15
A163: 2 | B163: Arrecadação de convênios ou valores pela fatura | C163: Arrecadação de convênios ou valores pela fatura | D163: 202206 | E163: 44964 | F163: APLCVA00405_FLXPAGAMENTOS_062022_S005.XML | G163: 44713 | H163: 44713 | I163: 795429.84
A164: 2 | B164: Arrecadação de convênios ou valores pela fatura | C164: Arrecadação de convênios ou valores pela fatura | D164: 202207 | E164: 44992 | F164: APLCVA00405_FLXPAGAMENTOS_072022_S005.XML | G164: 44743 | H164: 44743 | I164: 1103882.7
A165: 2 | B165: Arrecadação de convênios ou valores pela fatura | C165: Arrecadação de convênios ou valores pela fatura | D165: 202208 | E165: 44992 | F165: APLCVA00405_FLXPAGAMENTOS_082022_S008.XML | G165: 44774 | H165: 44774 | I165: 948450.53
A166: 2 | B166: Arrecadação de convênios ou valores pela fatura | C166: Arrecadação de convênios ou valores pela fatura | D166: 202209 | E166: 44992 | F166: APLCVA00405_FLXPAGAMENTOS_092022_S008.XML | G166: 44805 | H166: 44805 | I166: 1108648.36
A167: 2 | B167: Arrecadação de convênios ou valores pela fatura | C167: Arrecadação de convênios ou valores pela fatura | D167: 202210 | E167: 44993 | F167: APLCVA00405_FLXPAGAMENTOS_102022_S006.XML | G167: 44835 | H167: 44835 | I167: 1109001.1
A168: 2 | B168: Arrecadação de convênios ou valores pela fatura | C168: Arrecadação de convênios ou valores pela fatura | D168: 202211 | E168: 44993 | F168: APLCVA00405_FLXPAGAMENTOS_112022_S005.XML | G168: 44866 | H168: 44866 | I168: 136327.04
A169: 2 | B169: Arrecadação de convênios ou valores pela fatura | C169: Arrecadação de convênios ou valores pela fatura | D169: 202212 | E169: 44992 | F169: APLCVA00405_FLXPAGAMENTOS_122022_S003.XML | G169: 44896 | H169: 44896 | I169: 1116251.24
A170: 2 | B170: Arrecadação de convênios ou valores pela fatura | C170: Arrecadação de convênios ou valores pela fatura | D170: 202301 | E170: 45352 | F170: APLCVA00405_FLXPAGAMENTOS_012023_S004.XML | G170: 44927 | H170: 44927 | I170: 1079033.57
A171: 2 | B171: Arrecadação de convênios ou valores pela fatura | C171: Arrecadação de convênios ou valores pela fatura | D171: 202302 | E171: 45358 | F171: APLCVA00405_FLXPAGAMENTOS_022023_S005.XML | G171: 44958 | H171: 44958 | I171: 1017167.62
A172: 2 | B172: Arrecadação de convênios ou valores pela fatura | C172: Arrecadação de convênios ou valores pela fatura | D172: 202303 | E172: 45358 | F172: APLCVA00405_FLXPAGAMENTOS_032023_S005.XML | G172: 44986 | H172: 44986 | I172: 1132924.18
A173: 2 | B173: Arrecadação de convênios ou valores pela fatura | C173: Arrecadação de convênios ou valores pela fatura | D173: 202304 | E173: 45358 | F173: APLCVA00405_FLXPAGAMENTOS_042023_S006.XML | G173: 45017 | H173: 45017 | I173: 1070371.47
A174: 2 | B174: Arrecadação de convênios ou valores pela fatura | C174: Arrecadação de convênios ou valores pela fatura | D174: 202305 | E174: 45338 | F174: APLCVA00405_FLXPAGAMENTOS_052023_S005.XML | G174: 45047 | H174: 45047 | I174: 1060253.17
A175: 2 | B175: Arrecadação de convênios ou valores pela fatura | C175: Arrecadação de convênios ou valores pela fatura | D175: 202306 | E175: 45331 | F175: APLCVA00405_FLXPAGAMENTOS_062023_S004.XML | G175: 45078 | H175: 45078 | I175: 1006386.72
A176: 2 | B176: Arrecadação de convênios ou valores pela fatura | C176: Arrecadação de convênios ou valores pela fatura | D176: 202307 | E176: 45338 | F176: APLCVA00405_FLXPAGAMENTOS_072023_S004.XML | G176: 45108 | H176: 45108 | I176: 1291.68
A177: 2 | B177: Arrecadação de convênios ou valores pela fatura | C177: Arrecadação de convênios ou valores pela fatura | D177: 202308 | E177: 45331 | F177: APLCVA00405_FLXPAGAMENTOS_082023_S004.XML | G177: 45139 | H177: 45139 | I177: 2356725.93
A178: 2 | B178: Arrecadação de convênios ou valores pela fatura | C178: Arrecadação de convênios ou valores pela fatura | D178: 202309 | E178: 45331 | F178: APLCVA00405_FLXPAGAMENTOS_092023_S003.XML | G178: 45170 | H178: 45170 | I178: 1131792.45
A179: 2 | B179: Arrecadação de convênios ou valores pela fatura | C179: Arrecadação de convênios ou valores pela fatura | D179: 202310 | E179: 45331 | F179: APLCVA00405_FLXPAGAMENTOS_102023_S003.XML | G179: 45200 | H179: 45200 | I179: 1099212.04
A180: 2 | B180: Arrecadação de convênios ou valores pela fatura | C180: Arrecadação de convênios ou valores pela fatura | D180: 202311 | E180: 45331 | F180: APLCVA00405_FLXPAGAMENTOS_112023_S002.XML | G180: 45231 | H180: 45231 | I180: 1163903.09
A181: 2 | B181: Arrecadação de convênios ou valores pela fatura | C181: Arrecadação de convênios ou valores pela fatura | D181: 202312 | E181: 45352 | F181: APLCVA00405_FLXPAGAMENTOS_122023_S003.XML | G181: 45261 | H181: 45261 | I181: 1275453.95
A182: 2 | B182: Arrecadação de convênios ou valores pela fatura | C182: Arrecadação de convênios ou valores pela fatura | D182: 202401 | E182: 45365 | F182: APLCVA00405_FLXPAGAMENTOS_012024_S003.XML | G182: 45292 | H182: 45292 | I182: 1308689.54
A183: 2 | B183: Arrecadação de convênios ou valores pela fatura | C183: Arrecadação de convênios ou valores pela fatura | D183: 202402 | E183: 45423 | F183: APLCVA00405_FLXPAGAMENTOS_022024_S002.XML | G183: 45323 | H183: 45323 | I183: 1300831.33
A184: 2 | B184: Arrecadação de convênios ou valores pela fatura | C184: Arrecadação de convênios ou valores pela fatura | D184: 202403 | E184: 45636 | F184: APLCVA00405_FLXPAGAMENTOS_032024_S004.XML | G184: 45352 | H184: 45352 | I184: 1314106.11
A185: 2 | B185: Arrecadação de convênios ou valores pela fatura | C185: Arrecadação de convênios ou valores pela fatura | D185: 202404 | E185: 45483 | F185: APLCVA00405_FLXPAGAMENTOS_042024_S001.XML | G185: 45383 | H185: 45383 | I185: 1209482.86
A186: 2 | B186: Arrecadação de convênios ou valores pela fatura | C186: Arrecadação de convênios ou valores pela fatura | D186: 202405 | E186: 45692 | F186: APLCVA00405_FLXPAGAMENTOS_052024_S003.XML | G186: 45413 | H186: 45413 | I186: 1236068.99
A187: 2 | B187: Arrecadação de convênios ou valores pela fatura | C187: Arrecadação de convênios ou valores pela fatura | D187: 202406 | E187: 45636 | F187: APLCVA00405_FLXPAGAMENTOS_062024_S004.XML | G187: 45444 | H187: 45444 | I187: 1207561.96
A188: 2 | B188: Arrecadação de convênios ou valores pela fatura | C188: Arrecadação de convênios ou valores pela fatura | D188: 202407 | E188: 45636 | F188: APLCVA00405_FLXPAGAMENTOS_072024_S003.XML | G188: 45474 | H188: 45474 | I188: 1282180.17
A189: 2 | B189: Arrecadação de convênios ou valores pela fatura | C189: Arrecadação de convênios ou valores pela fatura | D189: 202408 | E189: 45636 | F189: APLCVA00405_FLXPAGAMENTOS_082024_S002.XML | G189: 45505 | H189: 45505 | I189: 1194911.09
A190: 2 | B190: Arrecadação de convênios ou valores pela fatura | C190: Arrecadação de convênios ou valores pela fatura | D190: 202409 | E190: 45636 | F190: APLCVA00405_FLXPAGAMENTOS_092024_S002.XML | G190: 45536 | H190: 45536 | I190: 1162233.7
A191: 2 | B191: Arrecadação de convênios ou valores pela fatura | C191: Arrecadação de convênios ou valores pela fatura | D191: 202410 | E191: 45667 | F191: APLCVA00405_FLXPAGAMENTOS_102024_S002.XML | G191: 45566 | H191: 45566 | I191: 1114318.07
A192: 2 | B192: Arrecadação de convênios ou valores pela fatura | C192: Arrecadação de convênios ou valores pela fatura | D192: 202411 | E192: 45723 | F192: APLCVA00405_FLXPAGAMENTOS_112024_S003.XML | G192: 45597 | H192: 45597 | I192: 1106572.89
A193: 2 | B193: Arrecadação de convênios ou valores pela fatura | C193: Arrecadação de convênios ou valores pela fatura | D193: 202412 | E193: 45723 | F193: APLCVA00405_FLXPAGAMENTOS_122024_S002.XML | G193: 45627 | H193: 45627 | I193: 1364445.34
A194: 2 | B194: Arrecadação de convênios ou valores pela fatura | C194: Arrecadação de convênios ou valores pela fatura | D194: 202501 | E194: 45726 | F194: APLCVA00405_FLXPAGAMENTOS_012025_S002.XML | G194: 45658 | H194: 45658 | I194: 1220849.46
A195: 2 | B195: Arrecadação de convênios ou valores pela fatura | C195: Arrecadação de convênios ou valores pela fatura | D195: 202502 | E195: 45723 | F195: APLCVA00405_FLXPAGAMENTOS_022025_S000.XML | G195: 45689 | H195: 45689 | I195: 0
A196: 2 | B196: Arrecadação de convênios ou valores pela fatura | C196: Arrecadação de convênios ou valores pela fatura | D196: 202503 | E196: 45723 | F196: APLCVA00405_FLXPAGAMENTOS_032025_S000.XML | G196: 45717 | H196: 45717 | I196: 0
A197: 2 | B197: Arrecadação de convênios ou valores pela fatura | C197: Arrecadação de convênios ou valores pela fatura | D197: 202505 | E197: 45848 | F197: APLCVA00405_FLXPAGAMENTOS_052025_S001.XML | G197: 45778 | H197: 45778 | I197: 1213898.69
A198: 2 | B198: Arrecadação de convênios ou valores pela fatura | C198: Arrecadação de convênios ou valores pela fatura | D198: 202506 | E198: 45877 | F198: APLCVA00405_FLXPAGAMENTOS_062025_S001.XML | G198: 45809 | H198: 45809 | I198: 1201645.19
A199: 2 | B199: Arrecadação de convênios ou valores pela fatura | C199: Arrecadação de convênios ou valores pela fatura | D199: 202507 | E199: 45910 | F199: APLCVA00405_FLXPAGAMENTOS_072025_S001.XML | G199: 45839 | H199: 45839 | I199: 1262944.64
A200: 2 | B200: Arrecadação de convênios ou valores pela fatura | C200: Arrecadação de convênios ou valores pela fatura | D200: 202508 | E200: 45940 | F200: APLCVA00405_FLXPAGAMENTOS_082025_S001.XML | G200: 45870 | H200: 45870 | I200: 1235762.18
A201: 2 | B201: Arrecadação de convênios ou valores pela fatura | C201: Arrecadação de convênios ou valores pela fatura | D201: 202509 | E201: 45971 | F201: APLCVA00405_FLXPAGAMENTOS_092025_S001.XML | G201: 45901 | H201: 45901 | I201: 1200778.45
A202: 2 | B202: Arrecadação de convênios ou valores pela fatura | C202: Arrecadação de convênios ou valores pela fatura | D202: 202510 | E202: 46083 | F202: APLCVA00405_FLXPAGAMENTOS_102025_S003.XML | G202: 45931 | H202: 45931 | I202: 1125281.92
A203: 2 | B203: Arrecadação de convênios ou valores pela fatura | C203: Arrecadação de convênios ou valores pela fatura | D203: 202511 | E203: 46031 | F203: APLCVA00405_FLXPAGAMENTOS_112025_S001.XML | G203: 45962 | H203: 45962 | I203: 2551606.18
A204: 2 | B204: Arrecadação de convênios ou valores pela fatura | C204: Arrecadação de convênios ou valores pela fatura | D204: 202512 | E204: 46083 | F204: APLCVA00405_FLXPAGAMENTOS_122025_S002.XML | G204: 45992 | H204: 45992 | I204: 1286368.67
A205: 2 | B205: Arrecadação de convênios ou valores pela fatura | C205: Arrecadação de convênios ou valores pela fatura | D205: 202601 | E205: 46064 | F205: APLCVA00405_FLXPAGAMENTOS_012026_S000.XML | G205: 46023 | H205: 46023 | I205: 0
... 186 more rows

Sheet Entrada
A1: Entrada de parâmetros para cálculo tarifário
B4: Energia | D4: Últ. Atulização | F4: Parâmetros para Revisão | P4: ="Caso de OR para a empresa é: " &IF(BD!C53=4,"caso 1","caso 3") -> Caso de OR para a empresa é: caso 3
Q5: Competência Final OR | R5: =IF(CAPA!C7="Revisão",(DATE(YEAR('VPB e Fator X'!C10),MONTH('VPB e Fator X'!C10)-1,1)),0) -> 0
D6: 46078 | F6: CAPEX - Ativos de Distribuição | J6: Custo Operacional Real do(s) último(s) ano(s) | P6: Outras Receitas
B7: Montante de Geração Própria | C7: 2251 | D7: 46104 | F7: (1) Ativo Imobilizado em Serviço (Valor Novo de Reposição) | G7: =G73*VLOOKUP(DATE(YEAR(CAPA!$C$10),MONTH(CAPA!$C$10)-1,1),Índices!$B$135:$D$638,3,0)/VLOOKUP(DATE(YEAR($G$72),MONTH($G$72)-1,1),Índices!$B$135:$D$638,3,0) ->  | J7: Ano do Custo Operacional | L7: =MAX(Tab_RIT_BMP[ANO])-1 -> 2024 | M7: =MAX(Tab_RIT_BMP[ANO]) -> 2025 | P7: Tipo de Receita | Q7: =$R$5 -> 00:00:00 | R7: =DATE(YEAR(Q7),MONTH(Q7)-1,1) ->  | S7: =DATE(YEAR(R7),MONTH(R7)-1,1) -> 
B8: Custo médio da Geração Própria | C8: 342.71 | D8: 46094 | E8: (Extraído do RTA de 2026 da Roraima Energia) | F8: (2) Índice de Aproveitamento Integral | G8: =G74*VLOOKUP(DATE(YEAR(CAPA!$C$10),MONTH(CAPA!$C$10)-1,1),Índices!$B$135:$D$638,3,0)/VLOOKUP(DATE(YEAR($G$72),MONTH($G$72)-1,1),Índices!$B$135:$D$638,3,0) ->  | J8: CONTA PESSOAL | P8: Serviços Cobráveis | Q8: =SUMIFS(Tab_Uderor[R$],Tab_Uderor[Competencia],Entrada!Q$7,Tab_Uderor[TipoReceita],Entrada!$P8) -> 0 | R8: =SUMIFS(Tab_Uderor[R$],Tab_Uderor[Competencia],Entrada!R$7,Tab_Uderor[TipoReceita],Entrada!$P8) -> 0 | S8: =SUMIFS(Tab_Uderor[R$],Tab_Uderor[Competencia],Entrada!S$7,Tab_Uderor[TipoReceita],Entrada!$P8) -> 0 | T8: =SUMIFS(Tab_Uderor[R$],Tab_Uderor[Competencia],Entrada!T$7,Tab_Uderor[TipoReceita],Entrada!$P8) -> 0 | U8: =SUMIFS(Tab_Uderor[R$],Tab_Uderor[Competencia],Entrada!U$7,Tab_Uderor[TipoReceita],Entrada!$P8) -> 0 | V8: =SUMIFS(Tab_Uderor[R$],Tab_Uderor[Competencia],Entrada!V$7,Tab_Uderor[TipoReceita],Entrada!$P8) -> 0 | W8: =SUMIFS(Tab_Uderor[R$],Tab_Uderor[Competencia],Entrada!W$7,Tab_Uderor[TipoReceita],Entrada!$P8) -> 0 | X8: =SUMIFS(Tab_Uderor[R$],Tab_Uderor[Competencia],Entrada!X$7,Tab_Uderor[TipoReceita],Entrada!$P8) -> 0 | Y8: =SUMIFS(Tab_Uderor[R$],Tab_Uderor[Competencia],Entrada!Y$7,Tab_Uderor[TipoReceita],Entrada!$P8) -> 0 | Z8: =SUMIFS(Tab_Uderor[R$],Tab_Uderor[Competencia],Entrada!Z$7,Tab_Uderor[TipoReceita],Entrada!$P8) -> 0 | AA8: =SUMIFS(Tab_Uderor[R$],Tab_Uderor[Competencia],Entrada!AA$7,Tab_Uderor[TipoReceita],Entrada!$P8) -> 0 | AB8: =SUMIFS(Tab_Uderor[R$],Tab_Uderor[Competencia],Entrada!AB$7,Tab_Uderor[TipoReceita],Entrada!$P8) -> 0 | AC8: =SUMIFS(Tab_Uderor[R$],Tab_Uderor[Competencia],Entrada!AC$7,Tab_Uderor[TipoReceita],Entrada!$P8) -> 0 | AD8: =SUMIFS(Tab_Uderor[R$],Tab_Uderor[Competencia],Entrada!AD$7,Tab_Uderor[TipoReceita],Entrada!$P8) -> 0 | AE8: =SUMIFS(Tab_Uderor[R$],Tab_Uderor[Competencia],Entrada!AE$7,Tab_Uderor[TipoReceita],Entrada!$P8) -> 0 | AF8: =SUMIFS(Tab_Uderor[R$],Tab_Uderor[Competencia],Entrada!AF$7,Tab_Uderor[TipoReceita],Entrada!$P8) -> 0 | AG8: =SUMIFS(Tab_Uderor[R$],Tab_Uderor[Competencia],Entrada!AG$7,Tab_Uderor[TipoReceita],Entrada!$P8) -> 0 | AH8: =SUMIFS(Tab_Uderor[R$],Tab_Uderor[Competencia],Entrada!AH$7,Tab_Uderor[TipoReceita],Entrada!$P8) -> 0 | AI8: =SUMIFS(Tab_Uderor[R$],Tab_Uderor[Competencia],Entrada!AI$7,Tab_Uderor[TipoReceita],Entrada!$P8) -> 0 | AJ8: =SUMIFS(Tab_Uderor[R$],Tab_Uderor[Competencia],Entrada!AJ$7,Tab_Uderor[TipoReceita],Entrada!$P8) -> 0 | AK8: =SUMIFS(Tab_Uderor[R$],Tab_Uderor[Competencia],Entrada!AK$7,Tab_Uderor[TipoReceita],Entrada!$P8) -> 0 | AL8: =SUMIFS(Tab_Uderor[R$],Tab_Uderor[Competencia],Entrada!AL$7,Tab_Uderor[TipoReceita],Entrada!$P8) -> 0 | AM8: =SUMIFS(Tab_Uderor[R$],Tab_Uderor[Competencia],Entrada!AM$7,Tab_Uderor[TipoReceita],Entrada!$P8) -> 0 | AN8: =SUMIFS(Tab_Uderor[R$],Tab_Uderor[Competencia],Entrada!AN$7,Tab_Uderor[TipoReceita],Entrada!$P8) -> 0 | AO8: =SUMIFS(Tab_Uderor[R$],Tab_Uderor[Competencia],Entrada!AO$7,Tab_Uderor[TipoReceita],Entrada!$P8) -> 0 | AP8: =SUMIFS(Tab_Uderor[R$],Tab_Uderor[Competencia],Entrada!AP$7,Tab_Uderor[TipoReceita],Entrada!$P8) -> 0 | AQ8: =SUMIFS(Tab_Uderor[R$],Tab_Uderor[Competencia],Entrada!AQ$7,Tab_Uderor[TipoReceita],Entrada!$P8) -> 0 | AR8: =SUMIFS(Tab_Uderor[R$],Tab_Uderor[Competencia],Entrada!AR$7,Tab_Uderor[TipoReceita],Entrada!$P8) -> 0 | AS8: =SUMIFS(Tab_Uderor[R$],Tab_Uderor[Competencia],Entrada!AS$7,Tab_Uderor[TipoReceita],Entrada!$P8) -> 0 | AT8: =SUMIFS(Tab_Uderor[R$],Tab_Uderor[Competencia],Entrada!AT$7,Tab_Uderor[TipoReceita],Entrada!$P8) -> 0 | AU8: =SUMIFS(Tab_Uderor[R$],Tab_Uderor[Competencia],Entrada!AU$7,Tab_Uderor[TipoReceita],Entrada!$P8) -> 0 | AV8: =SUMIFS(Tab_Uderor[R$],Tab_Uderor[Competencia],Entrada!AV$7,Tab_Uderor[TipoReceita],Entrada!$P8) -> 0 | AW8: =SUMIFS(Tab_Uderor[R$],Tab_Uderor[Competencia],Entrada!AW$7,Tab_Uderor[TipoReceita],Entrada!$P8) -> 0 | AX8: =SUMIFS(Tab_Uderor[R$],Tab_Uderor[Competencia],Entrada!AX$7,Tab_Uderor[TipoReceita],Entrada!$P8) -> 0 | AY8: =SUMIFS(Tab_Uderor[R$],Tab_Uderor[Competencia],Entrada!AY$7,Tab_Uderor[TipoReceita],Entrada!$P8) -> 0 | AZ8: =SUMIFS(Tab_Uderor[R$],Tab_Uderor[Competencia],Entrada!AZ$7,Tab_Uderor[TipoReceita],Entrada!$P8) -> 0
D9: 46078 | F9: (3) Obrigações Especiais Bruta | G9: =G75*VLOOKUP(DATE(YEAR(CAPA!$C$10),MONTH(CAPA!$C$10)-1,1),Índices!$B$135:$D$638,3,0)/VLOOKUP(DATE(YEAR($G$72),MONTH($G$72)-1,1),Índices!$B$135:$D$638,3,0) ->  | J9: BMP - 610530501; 610550501; 610532501; 610552501; 610530511; 610532511 | K9: Remuneração | L9: =SUMIFS(Tab_RIT_BMP[SALDO],Tab_RIT_BMP[CONTA],610530501,Tab_RIT_BMP[ANO],$L$7)+SUMIFS(Tab_RIT_BMP[SALDO],Tab_RIT_BMP[CONTA],610550501,Tab_RIT_BMP[ANO],$L$7)+ SUMIFS(Tab_RIT_BMP[SALDO],Tab_RIT_BMP[CONTA],610532501,Tab_RIT_BMP[ANO],$L$7)+SUMIFS(Tab_RIT_BMP[SALDO],Tab_RIT_BMP[CONTA],610552501,Tab_RIT_BMP[ANO],$L$7)+ SUMIFS(Tab_RIT_BMP[SALDO],Tab_RIT_BMP[CONTA],610530511,Tab_RIT_BMP[ANO],$L$7)+SUMIFS(Tab_RIT_BMP[SALDO],Tab_RIT_BMP[CONTA],610532511,Tab_RIT_BMP[ANO],$L$7) -> 103204579.7 | M9: =SUMIFS(Tab_RIT_BMP[SALDO],Tab_RIT_BMP[CONTA],610530501,Tab_RIT_BMP[ANO],$M$7)+SUMIFS(Tab_RIT_BMP[SALDO],Tab_RIT_BMP[CONTA],610550501,Tab_RIT_BMP[ANO],$M$7)+ SUMIFS(Tab_RIT_BMP[SALDO],Tab_RIT_BMP[CONTA],610532501,Tab_RIT_BMP[ANO],$M$7)+SUMIFS(Tab_RIT_BMP[SALDO],Tab_RIT_BMP[CONTA],610552501,Tab_RIT_BMP[ANO],$M$7)+ SUMIFS(Tab_RIT_BMP[SALDO],Tab_RIT_BMP[CONTA],610530511,Tab_RIT_BMP[ANO],$M$7)+SUMIFS(Tab_RIT_BMP[SALDO],Tab_RIT_BMP[CONTA],610532511,Tab_RIT_BMP[ANO],$M$7) -> 0 | P9: Arrecadação de convênios ou valores pela fatura | Q9: =SUMIFS(Tab_Uderor[R$],Tab_Uderor[Competencia],Entrada!Q$7,Tab_Uderor[TipoReceita],Entrada!$P9) -> 0 | R9: =SUMIFS(Tab_Uderor[R$],Tab_Uderor[Competencia],Entrada!R$7,Tab_Uderor[TipoReceita],Entrada!$P9) -> 0 | S9: =SUMIFS(Tab_Uderor[R$],Tab_Uderor[Competencia],Entrada!S$7,Tab_Uderor[TipoReceita],Entrada!$P9) -> 0 | T9: =SUMIFS(Tab_Uderor[R$],Tab_Uderor[Competencia],Entrada!T$7,Tab_Uderor[TipoReceita],Entrada!$P9) -> 0 | U9: =SUMIFS(Tab_Uderor[R$],Tab_Uderor[Competencia],Entrada!U$7,Tab_Uderor[TipoReceita],Entrada!$P9) -> 0 | V9: =SUMIFS(Tab_Uderor[R$],Tab_Uderor[Competencia],Entrada!V$7,Tab_Uderor[TipoReceita],Entrada!$P9) -> 0 | W9: =SUMIFS(Tab_Uderor[R$],Tab_Uderor[Competencia],Entrada!W$7,Tab_Uderor[TipoReceita],Entrada!$P9) -> 0 | X9: =SUMIFS(Tab_Uderor[R$],Tab_Uderor[Competencia],Entrada!X$7,Tab_Uderor[TipoReceita],Entrada!$P9) -> 0 | Y9: =SUMIFS(Tab_Uderor[R$],Tab_Uderor[Competencia],Entrada!Y$7,Tab_Uderor[TipoReceita],Entrada!$P9) -> 0 | Z9: =SUMIFS(Tab_Uderor[R$],Tab_Uderor[Competencia],Entrada!Z$7,Tab_Uderor[TipoReceita],Entrada!$P9) -> 0 | AA9: =SUMIFS(Tab_Uderor[R$],Tab_Uderor[Competencia],Entrada!AA$7,Tab_Uderor[TipoReceita],Entrada!$P9) -> 0 | AB9: =SUMIFS(Tab_Uderor[R$],Tab_Uderor[Competencia],Entrada!AB$7,Tab_Uderor[TipoReceita],Entrada!$P9) -> 0 | AC9: =SUMIFS(Tab_Uderor[R$],Tab_Uderor[Competencia],Entrada!AC$7,Tab_Uderor[TipoReceita],Entrada!$P9) -> 0 | AD9: =SUMIFS(Tab_Uderor[R$],Tab_Uderor[Competencia],Entrada!AD$7,Tab_Uderor[TipoReceita],Entrada!$P9) -> 0 | AE9: =SUMIFS(Tab_Uderor[R$],Tab_Uderor[Competencia],Entrada!AE$7,Tab_Uderor[TipoReceita],Entrada!$P9) -> 0 | AF9: =SUMIFS(Tab_Uderor[R$],Tab_Uderor[Competencia],Entrada!AF$7,Tab_Uderor[TipoReceita],Entrada!$P9) -> 0 | AG9: =SUMIFS(Tab_Uderor[R$],Tab_Uderor[Competencia],Entrada!AG$7,Tab_Uderor[TipoReceita],Entrada!$P9) -> 0 | AH9: =SUMIFS(Tab_Uderor[R$],Tab_Uderor[Competencia],Entrada!AH$7,Tab_Uderor[TipoReceita],Entrada!$P9) -> 0 | AI9: =SUMIFS(Tab_Uderor[R$],Tab_Uderor[Competencia],Entrada!AI$7,Tab_Uderor[TipoReceita],Entrada!$P9) -> 0 | AJ9: =SUMIFS(Tab_Uderor[R$],Tab_Uderor[Competencia],Entrada!AJ$7,Tab_Uderor[TipoReceita],Entrada!$P9) -> 0 | AK9: =SUMIFS(Tab_Uderor[R$],Tab_Uderor[Competencia],Entrada!AK$7,Tab_Uderor[TipoReceita],Entrada!$P9) -> 0 | AL9: =SUMIFS(Tab_Uderor[R$],Tab_Uderor[Competencia],Entrada!AL$7,Tab_Uderor[TipoReceita],Entrada!$P9) -> 0 | AM9: =SUMIFS(Tab_Uderor[R$],Tab_Uderor[Competencia],Entrada!AM$7,Tab_Uderor[TipoReceita],Entrada!$P9) -> 0 | AN9: =SUMIFS(Tab_Uderor[R$],Tab_Uderor[Competencia],Entrada!AN$7,Tab_Uderor[TipoReceita],Entrada!$P9) -> 0 | AO9: =SUMIFS(Tab_Uderor[R$],Tab_Uderor[Competencia],Entrada!AO$7,Tab_Uderor[TipoReceita],Entrada!$P9) -> 0 | AP9: =SUMIFS(Tab_Uderor[R$],Tab_Uderor[Competencia],Entrada!AP$7,Tab_Uderor[TipoReceita],Entrada!$P9) -> 0 | AQ9: =SUMIFS(Tab_Uderor[R$],Tab_Uderor[Competencia],Entrada!AQ$7,Tab_Uderor[TipoReceita],Entrada!$P9) -> 0 | AR9: =SUMIFS(Tab_Uderor[R$],Tab_Uderor[Competencia],Entrada!AR$7,Tab_Uderor[TipoReceita],Entrada!$P9) -> 0 | AS9: =SUMIFS(Tab_Uderor[R$],Tab_Uderor[Competencia],Entrada!AS$7,Tab_Uderor[TipoReceita],Entrada!$P9) -> 0 | AT9: =SUMIFS(Tab_Uderor[R$],Tab_Uderor[Competencia],Entrada!AT$7,Tab_Uderor[TipoReceita],Entrada!$P9) -> 0 | AU9: =SUMIFS(Tab_Uderor[R$],Tab_Uderor[Competencia],Entrada!AU$7,Tab_Uderor[TipoReceita],Entrada!$P9) -> 0 | AV9: =SUMIFS(Tab_Uderor[R$],Tab_Uderor[Competencia],Entrada!AV$7,Tab_Uderor[TipoReceita],Entrada!$P9) -> 0 | AW9: =SUMIFS(Tab_Uderor[R$],Tab_Uderor[Competencia],Entrada!AW$7,Tab_Uderor[TipoReceita],Entrada!$P9) -> 0 | AX9: =SUMIFS(Tab_Uderor[R$],Tab_Uderor[Competencia],Entrada!AX$7,Tab_Uderor[TipoReceita],Entrada!$P9) -> 0 | AY9: =SUMIFS(Tab_Uderor[R$],Tab_Uderor[Competencia],Entrada!AY$7,Tab_Uderor[TipoReceita],Entrada!$P9) -> 0 | AZ9: =SUMIFS(Tab_Uderor[R$],Tab_Uderor[Competencia],Entrada!AZ$7,Tab_Uderor[TipoReceita],Entrada!$P9) -> 0
D10: 46078 | F10: (4) Bens Totalmente Depreciados | G10: =G76*VLOOKUP(DATE(YEAR(CAPA!$C$10),MONTH(CAPA!$C$10)-1,1),Índices!$B$135:$D$638,3,0)/VLOOKUP(DATE(YEAR($G$72),MONTH($G$72)-1,1),Índices!$B$135:$D$638,3,0) ->  | J10: BMP - 610530502; 610550502; 610532502; 610552502 | K10: Encargos | L10: =SUMIFS(Tab_RIT_BMP[SALDO],Tab_RIT_BMP[CONTA],610530502,Tab_RIT_BMP[ANO],$L$7)+SUMIFS(Tab_RIT_BMP[SALDO],Tab_RIT_BMP[CONTA],610550502,Tab_RIT_BMP[ANO],$L$7)+ SUMIFS(Tab_RIT_BMP[SALDO],Tab_RIT_BMP[CONTA],610532502,Tab_RIT_BMP[ANO],$L$7)+SUMIFS(Tab_RIT_BMP[SALDO],Tab_RIT_BMP[CONTA],610552502,Tab_RIT_BMP[ANO],$L$7) -> 93658086.94 | M10: =SUMIFS(Tab_RIT_BMP[SALDO],Tab_RIT_BMP[CONTA],610530502,Tab_RIT_BMP[ANO],$M$7)+SUMIFS(Tab_RIT_BMP[SALDO],Tab_RIT_BMP[CONTA],610550502,Tab_RIT_BMP[ANO],$M$7)+ SUMIFS(Tab_RIT_BMP[SALDO],Tab_RIT_BMP[CONTA],610532502,Tab_RIT_BMP[ANO],$M$7)+SUMIFS(Tab_RIT_BMP[SALDO],Tab_RIT_BMP[CONTA],610552502,Tab_RIT_BMP[ANO],$M$7) -> 0 | P10: Arrecadação de faturas de terceiros por estrutura própria | Q10: =SUMIFS(Tab_Uderor[R$],Tab_Uderor[Competencia],Entrada!Q$7,Tab_Uderor[TipoReceita],Entrada!$P10) -> 0 | R10: =SUMIFS(Tab_Uderor[R$],Tab_Uderor[Competencia],Entrada!R$7,Tab_Uderor[TipoReceita],Entrada!$P10) -> 0 | S10: =SUMIFS(Tab_Uderor[R$],Tab_Uderor[Competencia],Entrada!S$7,Tab_Uderor[TipoReceita],Entrada!$P10) -> 0 | T10: =SUMIFS(Tab_Uderor[R$],Tab_Uderor[Competencia],Entrada!T$7,Tab_Uderor[TipoReceita],Entrada!$P10) -> 0 | U10: =SUMIFS(Tab_Uderor[R$],Tab_Uderor[Competencia],Entrada!U$7,Tab_Uderor[TipoReceita],Entrada!$P10) -> 0 | V10: =SUMIFS(Tab_Uderor[R$],Tab_Uderor[Competencia],Entrada!V$7,Tab_Uderor[TipoReceita],Entrada!$P10) -> 0 | W10: =SUMIFS(Tab_Uderor[R$],Tab_Uderor[Competencia],Entrada!W$7,Tab_Uderor[TipoReceita],Entrada!$P10) -> 0 | X10: =SUMIFS(Tab_Uderor[R$],Tab_Uderor[Competencia],Entrada!X$7,Tab_Uderor[TipoReceita],Entrada!$P10) -> 0 | Y10: =SUMIFS(Tab_Uderor[R$],Tab_Uderor[Competencia],Entrada!Y$7,Tab_Uderor[TipoReceita],Entrada!$P10) -> 0 | Z10: =SUMIFS(Tab_Uderor[R$],Tab_Uderor[Competencia],Entrada!Z$7,Tab_Uderor[TipoReceita],Entrada!$P10) -> 0 | AA10: =SUMIFS(Tab_Uderor[R$],Tab_Uderor[Competencia],Entrada!AA$7,Tab_Uderor[TipoReceita],Entrada!$P10) -> 0 | AB10: =SUMIFS(Tab_Uderor[R$],Tab_Uderor[Competencia],Entrada!AB$7,Tab_Uderor[TipoReceita],Entrada!$P10) -> 0 | AC10: =SUMIFS(Tab_Uderor[R$],Tab_Uderor[Competencia],Entrada!AC$7,Tab_Uderor[TipoReceita],Entrada!$P10) -> 0 | AD10: =SUMIFS(Tab_Uderor[R$],Tab_Uderor[Competencia],Entrada!AD$7,Tab_Uderor[TipoReceita],Entrada!$P10) -> 0 | AE10: =SUMIFS(Tab_Uderor[R$],Tab_Uderor[Competencia],Entrada!AE$7,Tab_Uderor[TipoReceita],Entrada!$P10) -> 0 | AF10: =SUMIFS(Tab_Uderor[R$],Tab_Uderor[Competencia],Entrada!AF$7,Tab_Uderor[TipoReceita],Entrada!$P10) -> 0 | AG10: =SUMIFS(Tab_Uderor[R$],Tab_Uderor[Competencia],Entrada!AG$7,Tab_Uderor[TipoReceita],Entrada!$P10) -> 0 | AH10: =SUMIFS(Tab_Uderor[R$],Tab_Uderor[Competencia],Entrada!AH$7,Tab_Uderor[TipoReceita],Entrada!$P10) -> 0 | AI10: =SUMIFS(Tab_Uderor[R$],Tab_Uderor[Competencia],Entrada!AI$7,Tab_Uderor[TipoReceita],Entrada!$P10) -> 0 | AJ10: =SUMIFS(Tab_Uderor[R$],Tab_Uderor[Competencia],Entrada!AJ$7,Tab_Uderor[TipoReceita],Entrada!$P10) -> 0 | AK10: =SUMIFS(Tab_Uderor[R$],Tab_Uderor[Competencia],Entrada!AK$7,Tab_Uderor[TipoReceita],Entrada!$P10) -> 0 | AL10: =SUMIFS(Tab_Uderor[R$],Tab_Uderor[Competencia],Entrada!AL$7,Tab_Uderor[TipoReceita],Entrada!$P10) -> 0 | AM10: =SUMIFS(Tab_Uderor[R$],Tab_Uderor[Competencia],Entrada!AM$7,Tab_Uderor[TipoReceita],Entrada!$P10) -> 0 | AN10: =SUMIFS(Tab_Uderor[R$],Tab_Uderor[Competencia],Entrada!AN$7,Tab_Uderor[TipoReceita],Entrada!$P10) -> 0 | AO10: =SUMIFS(Tab_Uderor[R$],Tab_Uderor[Competencia],Entrada!AO$7,Tab_Uderor[TipoReceita],Entrada!$P10) -> 0 | AP10: =SUMIFS(Tab_Uderor[R$],Tab_Uderor[Competencia],Entrada!AP$7,Tab_Uderor[TipoReceita],Entrada!$P10) -> 0 | AQ10: =SUMIFS(Tab_Uderor[R$],Tab_Uderor[Competencia],Entrada!AQ$7,Tab_Uderor[TipoReceita],Entrada!$P10) -> 0 | AR10: =SUMIFS(Tab_Uderor[R$],Tab_Uderor[Competencia],Entrada!AR$7,Tab_Uderor[TipoReceita],Entrada!$P10) -> 0 | AS10: =SUMIFS(Tab_Uderor[R$],Tab_Uderor[Competencia],Entrada!AS$7,Tab_Uderor[TipoReceita],Entrada!$P10) -> 0 | AT10: =SUMIFS(Tab_Uderor[R$],Tab_Uderor[Competencia],Entrada!AT$7,Tab_Uderor[TipoReceita],Entrada!$P10) -> 0 | AU10: =SUMIFS(Tab_Uderor[R$],Tab_Uderor[Competencia],Entrada!AU$7,Tab_Uderor[TipoReceita],Entrada!$P10) -> 0 | AV10: =SUMIFS(Tab_Uderor[R$],Tab_Uderor[Competencia],Entrada!AV$7,Tab_Uderor[TipoReceita],Entrada!$P10) -> 0 | AW10: =SUMIFS(Tab_Uderor[R$],Tab_Uderor[Competencia],Entrada!AW$7,Tab_Uderor[TipoReceita],Entrada!$P10) -> 0 | AX10: =SUMIFS(Tab_Uderor[R$],Tab_Uderor[Competencia],Entrada!AX$7,Tab_Uderor[TipoReceita],Entrada!$P10) -> 0 | AY10: =SUMIFS(Tab_Uderor[R$],Tab_Uderor[Competencia],Entrada!AY$7,Tab_Uderor[TipoReceita],Entrada!$P10) -> 0 | AZ10: =SUMIFS(Tab_Uderor[R$],Tab_Uderor[Competencia],Entrada!AZ$7,Tab_Uderor[TipoReceita],Entrada!$P10) -> 0
F11: (5) Base de Remuneração Bruta = (1)-(2)-(3)-(4) | G11: =G7-G8-G9-G10 ->  | J11: BMP - 610530503; 610550503; 610532503; 610552503 | K11: Previdência Privada - Corrente | L11: =SUMIFS(Tab_RIT_BMP[SALDO],Tab_RIT_BMP[CONTA],610530503,Tab_RIT_BMP[ANO],$L$7)+SUMIFS(Tab_RIT_BMP[SALDO],Tab_RIT_BMP[CONTA],610550503,Tab_RIT_BMP[ANO],$L$7)+ SUMIFS(Tab_RIT_BMP[SALDO],Tab_RIT_BMP[CONTA],610532503,Tab_RIT_BMP[ANO],$L$7)+SUMIFS(Tab_RIT_BMP[SALDO],Tab_RIT_BMP[CONTA],610552503,Tab_RIT_BMP[ANO],$L$7) -> 6710879.13 | M11: =SUMIFS(Tab_RIT_BMP[SALDO],Tab_RIT_BMP[CONTA],610530503,Tab_RIT_BMP[ANO],$M$7)+SUMIFS(Tab_RIT_BMP[SALDO],Tab_RIT_BMP[CONTA],610550503,Tab_RIT_BMP[ANO],$M$7)+ SUMIFS(Tab_RIT_BMP[SALDO],Tab_RIT_BMP[CONTA],610532503,Tab_RIT_BMP[ANO],$M$7)+SUMIFS(Tab_RIT_BMP[SALDO],Tab_RIT_BMP[CONTA],610552503,Tab_RIT_BMP[ANO],$M$7) -> 0 | P11: Veiculação de publicidade | Q11: =SUMIFS(Tab_Uderor[R$],Tab_Uderor[Competencia],Entrada!Q$7,Tab_Uderor[TipoReceita],Entrada!$P11) -> 0 | R11: =SUMIFS(Tab_Uderor[R$],Tab_Uderor[Competencia],Entrada!R$7,Tab_Uderor[TipoReceita],Entrada!$P11) -> 0 | S11: =SUMIFS(Tab_Uderor[R$],Tab_Uderor[Competencia],Entrada!S$7,Tab_Uderor[TipoReceita],Entrada!$P11) -> 0 | T11: =SUMIFS(Tab_Uderor[R$],Tab_Uderor[Competencia],Entrada!T$7,Tab_Uderor[TipoReceita],Entrada!$P11) -> 0 | U11: =SUMIFS(Tab_Uderor[R$],Tab_Uderor[Competencia],Entrada!U$7,Tab_Uderor[TipoReceita],Entrada!$P11) -> 0 | V11: =SUMIFS(Tab_Uderor[R$],Tab_Uderor[Competencia],Entrada!V$7,Tab_Uderor[TipoReceita],Entrada!$P11) -> 0 | W11: =SUMIFS(Tab_Uderor[R$],Tab_Uderor[Competencia],Entrada!W$7,Tab_Uderor[TipoReceita],Entrada!$P11) -> 0 | X11: =SUMIFS(Tab_Uderor[R$],Tab_Uderor[Competencia],Entrada!X$7,Tab_Uderor[TipoReceita],Entrada!$P11) -> 0 | Y11: =SUMIFS(Tab_Uderor[R$],Tab_Uderor[Competencia],Entrada!Y$7,Tab_Uderor[TipoReceita],Entrada!$P11) -> 0 | Z11: =SUMIFS(Tab_Uderor[R$],Tab_Uderor[Competencia],Entrada!Z$7,Tab_Uderor[TipoReceita],Entrada!$P11) -> 0 | AA11: =SUMIFS(Tab_Uderor[R$],Tab_Uderor[Competencia],Entrada!AA$7,Tab_Uderor[TipoReceita],Entrada!$P11) -> 0 | AB11: =SUMIFS(Tab_Uderor[R$],Tab_Uderor[Competencia],Entrada!AB$7,Tab_Uderor[TipoReceita],Entrada!$P11) -> 0 | AC11: =SUMIFS(Tab_Uderor[R$],Tab_Uderor[Competencia],Entrada!AC$7,Tab_Uderor[TipoReceita],Entrada!$P11) -> 0 | AD11: =SUMIFS(Tab_Uderor[R$],Tab_Uderor[Competencia],Entrada!AD$7,Tab_Uderor[TipoReceita],Entrada!$P11) -> 0 | AE11: =SUMIFS(Tab_Uderor[R$],Tab_Uderor[Competencia],Entrada!AE$7,Tab_Uderor[TipoReceita],Entrada!$P11) -> 0 | AF11: =SUMIFS(Tab_Uderor[R$],Tab_Uderor[Competencia],Entrada!AF$7,Tab_Uderor[TipoReceita],Entrada!$P11) -> 0 | AG11: =SUMIFS(Tab_Uderor[R$],Tab_Uderor[Competencia],Entrada!AG$7,Tab_Uderor[TipoReceita],Entrada!$P11) -> 0 | AH11: =SUMIFS(Tab_Uderor[R$],Tab_Uderor[Competencia],Entrada!AH$7,Tab_Uderor[TipoReceita],Entrada!$P11) -> 0 | AI11: =SUMIFS(Tab_Uderor[R$],Tab_Uderor[Competencia],Entrada!AI$7,Tab_Uderor[TipoReceita],Entrada!$P11) -> 0 | AJ11: =SUMIFS(Tab_Uderor[R$],Tab_Uderor[Competencia],Entrada!AJ$7,Tab_Uderor[TipoReceita],Entrada!$P11) -> 0 | AK11: =SUMIFS(Tab_Uderor[R$],Tab_Uderor[Competencia],Entrada!AK$7,Tab_Uderor[TipoReceita],Entrada!$P11) -> 0 | AL11: =SUMIFS(Tab_Uderor[R$],Tab_Uderor[Competencia],Entrada!AL$7,Tab_Uderor[TipoReceita],Entrada!$P11) -> 0 | AM11: =SUMIFS(Tab_Uderor[R$],Tab_Uderor[Competencia],Entrada!AM$7,Tab_Uderor[TipoReceita],Entrada!$P11) -> 0 | AN11: =SUMIFS(Tab_Uderor[R$],Tab_Uderor[Competencia],Entrada!AN$7,Tab_Uderor[TipoReceita],Entrada!$P11) -> 0 | AO11: =SUMIFS(Tab_Uderor[R$],Tab_Uderor[Competencia],Entrada!AO$7,Tab_Uderor[TipoReceita],Entrada!$P11) -> 0 | AP11: =SUMIFS(Tab_Uderor[R$],Tab_Uderor[Competencia],Entrada!AP$7,Tab_Uderor[TipoReceita],Entrada!$P11) -> 0 | AQ11: =SUMIFS(Tab_Uderor[R$],Tab_Uderor[Competencia],Entrada!AQ$7,Tab_Uderor[TipoReceita],Entrada!$P11) -> 0 | AR11: =SUMIFS(Tab_Uderor[R$],Tab_Uderor[Competencia],Entrada!AR$7,Tab_Uderor[TipoReceita],Entrada!$P11) -> 0 | AS11: =SUMIFS(Tab_Uderor[R$],Tab_Uderor[Competencia],Entrada!AS$7,Tab_Uderor[TipoReceita],Entrada!$P11) -> 0 | AT11: =SUMIFS(Tab_Uderor[R$],Tab_Uderor[Competencia],Entrada!AT$7,Tab_Uderor[TipoReceita],Entrada!$P11) -> 0 | AU11: =SUMIFS(Tab_Uderor[R$],Tab_Uderor[Competencia],Entrada!AU$7,Tab_Uderor[TipoReceita],Entrada!$P11) -> 0 | AV11: =SUMIFS(Tab_Uderor[R$],Tab_Uderor[Competencia],Entrada!AV$7,Tab_Uderor[TipoReceita],Entrada!$P11) -> 0 | AW11: =SUMIFS(Tab_Uderor[R$],Tab_Uderor[Competencia],Entrada!AW$7,Tab_Uderor[TipoReceita],Entrada!$P11) -> 0 | AX11: =SUMIFS(Tab_Uderor[R$],Tab_Uderor[Competencia],Entrada!AX$7,Tab_Uderor[TipoReceita],Entrada!$P11) -> 0 | AY11: =SUMIFS(Tab_Uderor[R$],Tab_Uderor[Competencia],Entrada!AY$7,Tab_Uderor[TipoReceita],Entrada!$P11) -> 0 | AZ11: =SUMIFS(Tab_Uderor[R$],Tab_Uderor[Competencia],Entrada!AZ$7,Tab_Uderor[TipoReceita],Entrada!$P11) -> 0
F12: (6) Depreciação Acumulada | G12: =G78*VLOOKUP(DATE(YEAR(CAPA!$C$10),MONTH(CAPA!$C$10)-1,1),Índices!$B$135:$D$638,3,0)/VLOOKUP(DATE(YEAR($G$72),MONTH($G$72)-1,1),Índices!$B$135:$D$638,3,0) ->  | J12: BMP - 610530508; 610550508; 610532508; 610552508 | K12: Outros Benefícios | L12: =SUMIFS(Tab_RIT_BMP[SALDO],Tab_RIT_BMP[CONTA],610530508,Tab_RIT_BMP[ANO],$L$7)+SUMIFS(Tab_RIT_BMP[SALDO],Tab_RIT_BMP[CONTA],610550508,Tab_RIT_BMP[ANO],$L$7)+ SUMIFS(Tab_RIT_BMP[SALDO],Tab_RIT_BMP[CONTA],610532508,Tab_RIT_BMP[ANO],$L$7)+SUMIFS(Tab_RIT_BMP[SALDO],Tab_RIT_BMP[CONTA],610552508,Tab_RIT_BMP[ANO],$L$7) -> 87479922.96 | M12: =SUMIFS(Tab_RIT_BMP[SALDO],Tab_RIT_BMP[CONTA],610530508,Tab_RIT_BMP[ANO],$M$7)+SUMIFS(Tab_RIT_BMP[SALDO],Tab_RIT_BMP[CONTA],610550508,Tab_RIT_BMP[ANO],$M$7)+ SUMIFS(Tab_RIT_BMP[SALDO],Tab_RIT_BMP[CONTA],610532508,Tab_RIT_BMP[ANO],$M$7)+SUMIFS(Tab_RIT_BMP[SALDO],Tab_RIT_BMP[CONTA],610552508,Tab_RIT_BMP[ANO],$M$7) -> 0 | P12: Aluguel ou cessão onerosa de imóveis e espaços físicos | Q12: =SUMIFS(Tab_Uderor[R$],Tab_Uderor[Competencia],Entrada!Q$7,Tab_Uderor[TipoReceita],Entrada!$P12) -> 0 | R12: =SUMIFS(Tab_Uderor[R$],Tab_Uderor[Competencia],Entrada!R$7,Tab_Uderor[TipoReceita],Entrada!$P12) -> 0 | S12: =SUMIFS(Tab_Uderor[R$],Tab_Uderor[Competencia],Entrada!S$7,Tab_Uderor[TipoReceita],Entrada!$P12) -> 0 | T12: =SUMIFS(Tab_Uderor[R$],Tab_Uderor[Competencia],Entrada!T$7,Tab_Uderor[TipoReceita],Entrada!$P12) -> 0 | U12: =SUMIFS(Tab_Uderor[R$],Tab_Uderor[Competencia],Entrada!U$7,Tab_Uderor[TipoReceita],Entrada!$P12) -> 0 | V12: =SUMIFS(Tab_Uderor[R$],Tab_Uderor[Competencia],Entrada!V$7,Tab_Uderor[TipoReceita],Entrada!$P12) -> 0 | W12: =SUMIFS(Tab_Uderor[R$],Tab_Uderor[Competencia],Entrada!W$7,Tab_Uderor[TipoReceita],Entrada!$P12) -> 0 | X12: =SUMIFS(Tab_Uderor[R$],Tab_Uderor[Competencia],Entrada!X$7,Tab_Uderor[TipoReceita],Entrada!$P12) -> 0 | Y12: =SUMIFS(Tab_Uderor[R$],Tab_Uderor[Competencia],Entrada!Y$7,Tab_Uderor[TipoReceita],Entrada!$P12) -> 0 | Z12: =SUMIFS(Tab_Uderor[R$],Tab_Uderor[Competencia],Entrada!Z$7,Tab_Uderor[TipoReceita],Entrada!$P12) -> 0 | AA12: =SUMIFS(Tab_Uderor[R$],Tab_Uderor[Competencia],Entrada!AA$7,Tab_Uderor[TipoReceita],Entrada!$P12) -> 0 | AB12: =SUMIFS(Tab_Uderor[R$],Tab_Uderor[Competencia],Entrada!AB$7,Tab_Uderor[TipoReceita],Entrada!$P12) -> 0 | AC12: =SUMIFS(Tab_Uderor[R$],Tab_Uderor[Competencia],Entrada!AC$7,Tab_Uderor[TipoReceita],Entrada!$P12) -> 0 | AD12: =SUMIFS(Tab_Uderor[R$],Tab_Uderor[Competencia],Entrada!AD$7,Tab_Uderor[TipoReceita],Entrada!$P12) -> 0 | AE12: =SUMIFS(Tab_Uderor[R$],Tab_Uderor[Competencia],Entrada!AE$7,Tab_Uderor[TipoReceita],Entrada!$P12) -> 0 | AF12: =SUMIFS(Tab_Uderor[R$],Tab_Uderor[Competencia],Entrada!AF$7,Tab_Uderor[TipoReceita],Entrada!$P12) -> 0 | AG12: =SUMIFS(Tab_Uderor[R$],Tab_Uderor[Competencia],Entrada!AG$7,Tab_Uderor[TipoReceita],Entrada!$P12) -> 0 | AH12: =SUMIFS(Tab_Uderor[R$],Tab_Uderor[Competencia],Entrada!AH$7,Tab_Uderor[TipoReceita],Entrada!$P12) -> 0 | AI12: =SUMIFS(Tab_Uderor[R$],Tab_Uderor[Competencia],Entrada!AI$7,Tab_Uderor[TipoReceita],Entrada!$P12) -> 0 | AJ12: =SUMIFS(Tab_Uderor[R$],Tab_Uderor[Competencia],Entrada!AJ$7,Tab_Uderor[TipoReceita],Entrada!$P12) -> 0 | AK12: =SUMIFS(Tab_Uderor[R$],Tab_Uderor[Competencia],Entrada!AK$7,Tab_Uderor[TipoReceita],Entrada!$P12) -> 0 | AL12: =SUMIFS(Tab_Uderor[R$],Tab_Uderor[Competencia],Entrada!AL$7,Tab_Uderor[TipoReceita],Entrada!$P12) -> 0 | AM12: =SUMIFS(Tab_Uderor[R$],Tab_Uderor[Competencia],Entrada!AM$7,Tab_Uderor[TipoReceita],Entrada!$P12) -> 0 | AN12: =SUMIFS(Tab_Uderor[R$],Tab_Uderor[Competencia],Entrada!AN$7,Tab_Uderor[TipoReceita],Entrada!$P12) -> 0 | AO12: =SUMIFS(Tab_Uderor[R$],Tab_Uderor[Competencia],Entrada!AO$7,Tab_Uderor[TipoReceita],Entrada!$P12) -> 0 | AP12: =SUMIFS(Tab_Uderor[R$],Tab_Uderor[Competencia],Entrada!AP$7,Tab_Uderor[TipoReceita],Entrada!$P12) -> 0 | AQ12: =SUMIFS(Tab_Uderor[R$],Tab_Uderor[Competencia],Entrada!AQ$7,Tab_Uderor[TipoReceita],Entrada!$P12) -> 0 | AR12: =SUMIFS(Tab_Uderor[R$],Tab_Uderor[Competencia],Entrada!AR$7,Tab_Uderor[TipoReceita],Entrada!$P12) -> 0 | AS12: =SUMIFS(Tab_Uderor[R$],Tab_Uderor[Competencia],Entrada!AS$7,Tab_Uderor[TipoReceita],Entrada!$P12) -> 0 | AT12: =SUMIFS(Tab_Uderor[R$],Tab_Uderor[Competencia],Entrada!AT$7,Tab_Uderor[TipoReceita],Entrada!$P12) -> 0 | AU12: =SUMIFS(Tab_Uderor[R$],Tab_Uderor[Competencia],Entrada!AU$7,Tab_Uderor[TipoReceita],Entrada!$P12) -> 0 | AV12: =SUMIFS(Tab_Uderor[R$],Tab_Uderor[Competencia],Entrada!AV$7,Tab_Uderor[TipoReceita],Entrada!$P12) -> 0 | AW12: =SUMIFS(Tab_Uderor[R$],Tab_Uderor[Competencia],Entrada!AW$7,Tab_Uderor[TipoReceita],Entrada!$P12) -> 0 | AX12: =SUMIFS(Tab_Uderor[R$],Tab_Uderor[Competencia],Entrada!AX$7,Tab_Uderor[TipoReceita],Entrada!$P12) -> 0 | AY12: =SUMIFS(Tab_Uderor[R$],Tab_Uderor[Competencia],Entrada!AY$7,Tab_Uderor[TipoReceita],Entrada!$P12) -> 0 | AZ12: =SUMIFS(Tab_Uderor[R$],Tab_Uderor[Competencia],Entrada!AZ$7,Tab_Uderor[TipoReceita],Entrada!$P12) -> 0
F13: (7) AIS Líquido (Valor de Mercado em Uso) | G13: =G7-G12 ->  | J13: BMP - 610530506; 610550506; 610532506; 610552506 | K13: Despesas Rescisórias | L13: =SUMIFS(Tab_RIT_BMP[SALDO],Tab_RIT_BMP[CONTA],610530506,Tab_RIT_BMP[ANO],$L$7)+SUMIFS(Tab_RIT_BMP[SALDO],Tab_RIT_BMP[CONTA],610550506,Tab_RIT_BMP[ANO],$L$7)+ SUMIFS(Tab_RIT_BMP[SALDO],Tab_RIT_BMP[CONTA],610532506,Tab_RIT_BMP[ANO],$L$7)+SUMIFS(Tab_RIT_BMP[SALDO],Tab_RIT_BMP[CONTA],610552506,Tab_RIT_BMP[ANO],$L$7) -> 0 | M13: =SUMIFS(Tab_RIT_BMP[SALDO],Tab_RIT_BMP[CONTA],610530506,Tab_RIT_BMP[ANO],$M$7)+SUMIFS(Tab_RIT_BMP[SALDO],Tab_RIT_BMP[CONTA],610550506,Tab_RIT_BMP[ANO],$M$7)+ SUMIFS(Tab_RIT_BMP[SALDO],Tab_RIT_BMP[CONTA],610532506,Tab_RIT_BMP[ANO],$M$7)+SUMIFS(Tab_RIT_BMP[SALDO],Tab_RIT_BMP[CONTA],610552506,Tab_RIT_BMP[ANO],$M$7) -> 0 | P13: Compartilhamento de infraestrutura | Q13: =SUMIFS(Tab_Uderor[R$],Tab_Uderor[Competencia],Entrada!Q$7,Tab_Uderor[TipoReceita],Entrada!$P13) -> 0 | R13: =SUMIFS(Tab_Uderor[R$],Tab_Uderor[Competencia],Entrada!R$7,Tab_Uderor[TipoReceita],Entrada!$P13) -> 0 | S13: =SUMIFS(Tab_Uderor[R$],Tab_Uderor[Competencia],Entrada!S$7,Tab_Uderor[TipoReceita],Entrada!$P13) -> 0 | T13: =SUMIFS(Tab_Uderor[R$],Tab_Uderor[Competencia],Entrada!T$7,Tab_Uderor[TipoReceita],Entrada!$P13) -> 0 | U13: =SUMIFS(Tab_Uderor[R$],Tab_Uderor[Competencia],Entrada!U$7,Tab_Uderor[TipoReceita],Entrada!$P13) -> 0 | V13: =SUMIFS(Tab_Uderor[R$],Tab_Uderor[Competencia],Entrada!V$7,Tab_Uderor[TipoReceita],Entrada!$P13) -> 0 | W13: =SUMIFS(Tab_Uderor[R$],Tab_Uderor[Competencia],Entrada!W$7,Tab_Uderor[TipoReceita],Entrada!$P13) -> 0 | X13: =SUMIFS(Tab_Uderor[R$],Tab_Uderor[Competencia],Entrada!X$7,Tab_Uderor[TipoReceita],Entrada!$P13) -> 0 | Y13: =SUMIFS(Tab_Uderor[R$],Tab_Uderor[Competencia],Entrada!Y$7,Tab_Uderor[TipoReceita],Entrada!$P13) -> 0 | Z13: =SUMIFS(Tab_Uderor[R$],Tab_Uderor[Competencia],Entrada!Z$7,Tab_Uderor[TipoReceita],Entrada!$P13) -> 0 | AA13: =SUMIFS(Tab_Uderor[R$],Tab_Uderor[Competencia],Entrada!AA$7,Tab_Uderor[TipoReceita],Entrada!$P13) -> 0 | AB13: =SUMIFS(Tab_Uderor[R$],Tab_Uderor[Competencia],Entrada!AB$7,Tab_Uderor[TipoReceita],Entrada!$P13) -> 0 | AC13: =SUMIFS(Tab_Uderor[R$],Tab_Uderor[Competencia],Entrada!AC$7,Tab_Uderor[TipoReceita],Entrada!$P13) -> 0 | AD13: =SUMIFS(Tab_Uderor[R$],Tab_Uderor[Competencia],Entrada!AD$7,Tab_Uderor[TipoReceita],Entrada!$P13) -> 0 | AE13: =SUMIFS(Tab_Uderor[R$],Tab_Uderor[Competencia],Entrada!AE$7,Tab_Uderor[TipoReceita],Entrada!$P13) -> 0 | AF13: =SUMIFS(Tab_Uderor[R$],Tab_Uderor[Competencia],Entrada!AF$7,Tab_Uderor[TipoReceita],Entrada!$P13) -> 0 | AG13: =SUMIFS(Tab_Uderor[R$],Tab_Uderor[Competencia],Entrada!AG$7,Tab_Uderor[TipoReceita],Entrada!$P13) -> 0 | AH13: =SUMIFS(Tab_Uderor[R$],Tab_Uderor[Competencia],Entrada!AH$7,Tab_Uderor[TipoReceita],Entrada!$P13) -> 0 | AI13: =SUMIFS(Tab_Uderor[R$],Tab_Uderor[Competencia],Entrada!AI$7,Tab_Uderor[TipoReceita],Entrada!$P13) -> 0 | AJ13: =SUMIFS(Tab_Uderor[R$],Tab_Uderor[Competencia],Entrada!AJ$7,Tab_Uderor[TipoReceita],Entrada!$P13) -> 0 | AK13: =SUMIFS(Tab_Uderor[R$],Tab_Uderor[Competencia],Entrada!AK$7,Tab_Uderor[TipoReceita],Entrada!$P13) -> 0 | AL13: =SUMIFS(Tab_Uderor[R$],Tab_Uderor[Competencia],Entrada!AL$7,Tab_Uderor[TipoReceita],Entrada!$P13) -> 0 | AM13: =SUMIFS(Tab_Uderor[R$],Tab_Uderor[Competencia],Entrada!AM$7,Tab_Uderor[TipoReceita],Entrada!$P13) -> 0 | AN13: =SUMIFS(Tab_Uderor[R$],Tab_Uderor[Competencia],Entrada!AN$7,Tab_Uderor[TipoReceita],Entrada!$P13) -> 0 | AO13: =SUMIFS(Tab_Uderor[R$],Tab_Uderor[Competencia],Entrada!AO$7,Tab_Uderor[TipoReceita],Entrada!$P13) -> 0 | AP13: =SUMIFS(Tab_Uderor[R$],Tab_Uderor[Competencia],Entrada!AP$7,Tab_Uderor[TipoReceita],Entrada!$P13) -> 0 | AQ13: =SUMIFS(Tab_Uderor[R$],Tab_Uderor[Competencia],Entrada!AQ$7,Tab_Uderor[TipoReceita],Entrada!$P13) -> 0 | AR13: =SUMIFS(Tab_Uderor[R$],Tab_Uderor[Competencia],Entrada!AR$7,Tab_Uderor[TipoReceita],Entrada!$P13) -> 0 | AS13: =SUMIFS(Tab_Uderor[R$],Tab_Uderor[Competencia],Entrada!AS$7,Tab_Uderor[TipoReceita],Entrada!$P13) -> 0 | AT13: =SUMIFS(Tab_Uderor[R$],Tab_Uderor[Competencia],Entrada!AT$7,Tab_Uderor[TipoReceita],Entrada!$P13) -> 0 | AU13: =SUMIFS(Tab_Uderor[R$],Tab_Uderor[Competencia],Entrada!AU$7,Tab_Uderor[TipoReceita],Entrada!$P13) -> 0 | AV13: =SUMIFS(Tab_Uderor[R$],Tab_Uderor[Competencia],Entrada!AV$7,Tab_Uderor[TipoReceita],Entrada!$P13) -> 0 | AW13: =SUMIFS(Tab_Uderor[R$],Tab_Uderor[Competencia],Entrada!AW$7,Tab_Uderor[TipoReceita],Entrada!$P13) -> 0 | AX13: =SUMIFS(Tab_Uderor[R$],Tab_Uderor[Competencia],Entrada!AX$7,Tab_Uderor[TipoReceita],Entrada!$P13) -> 0 | AY13: =SUMIFS(Tab_Uderor[R$],Tab_Uderor[Competencia],Entrada!AY$7,Tab_Uderor[TipoReceita],Entrada!$P13) -> 0 | AZ13: =SUMIFS(Tab_Uderor[R$],Tab_Uderor[Competencia],Entrada!AZ$7,Tab_Uderor[TipoReceita],Entrada!$P13) -> 0
F14: (8) Índice de Aproveitamento Depreciado | G14: =G80*VLOOKUP(DATE(YEAR(CAPA!$C$10),MONTH(CAPA!$C$10)-1,1),Índices!$B$135:$D$638,3,0)/VLOOKUP(DATE(YEAR($G$72),MONTH($G$72)-1,1),Índices!$B$135:$D$638,3,0) ->  | J14: BMP - 610530507; 610550507; 610532507; 610552507 | K14: Participação nos Lucros e Resultados - PLR | L14: =SUMIFS(Tab_RIT_BMP[SALDO],Tab_RIT_BMP[CONTA],610530507,Tab_RIT_BMP[ANO],$L$7)+SUMIFS(Tab_RIT_BMP[SALDO],Tab_RIT_BMP[CONTA],610550507,Tab_RIT_BMP[ANO],$L$7)+SUMIFS(Tab_RIT_BMP[SALDO],Tab_RIT_BMP[CONTA],610532507,Tab_RIT_BMP[ANO],$L$7)+SUMIFS(Tab_RIT_BMP[SALDO],Tab_RIT_BMP[CONTA],610552507,Tab_RIT_BMP[ANO],$L$7) -> 25639200.56 | M14: =SUMIFS(Tab_RIT_BMP[SALDO],Tab_RIT_BMP[CONTA],610530507,Tab_RIT_BMP[ANO],$M$7)+SUMIFS(Tab_RIT_BMP[SALDO],Tab_RIT_BMP[CONTA],610550507,Tab_RIT_BMP[ANO],$M$7)+ SUMIFS(Tab_RIT_BMP[SALDO],Tab_RIT_BMP[CONTA],610532507,Tab_RIT_BMP[ANO],$M$7)+SUMIFS(Tab_RIT_BMP[SALDO],Tab_RIT_BMP[CONTA],610552507,Tab_RIT_BMP[ANO],$M$7) -> 0 | P14: Serviços de avaliação técnica e aferição de medidores. | Q14: =SUMIFS(Tab_Uderor[R$],Tab_Uderor[Competencia],Entrada!Q$7,Tab_Uderor[TipoReceita],Entrada!$P14) -> 0 | R14: =SUMIFS(Tab_Uderor[R$],Tab_Uderor[Competencia],Entrada!R$7,Tab_Uderor[TipoReceita],Entrada!$P14) -> 0 | S14: =SUMIFS(Tab_Uderor[R$],Tab_Uderor[Competencia],Entrada!S$7,Tab_Uderor[TipoReceita],Entrada!$P14) -> 0 | T14: =SUMIFS(Tab_Uderor[R$],Tab_Uderor[Competencia],Entrada!T$7,Tab_Uderor[TipoReceita],Entrada!$P14) -> 0 | U14: =SUMIFS(Tab_Uderor[R$],Tab_Uderor[Competencia],Entrada!U$7,Tab_Uderor[TipoReceita],Entrada!$P14) -> 0 | V14: =SUMIFS(Tab_Uderor[R$],Tab_Uderor[Competencia],Entrada!V$7,Tab_Uderor[TipoReceita],Entrada!$P14) -> 0 | W14: =SUMIFS(Tab_Uderor[R$],Tab_Uderor[Competencia],Entrada!W$7,Tab_Uderor[TipoReceita],Entrada!$P14) -> 0 | X14: =SUMIFS(Tab_Uderor[R$],Tab_Uderor[Competencia],Entrada!X$7,Tab_Uderor[TipoReceita],Entrada!$P14) -> 0 | Y14: =SUMIFS(Tab_Uderor[R$],Tab_Uderor[Competencia],Entrada!Y$7,Tab_Uderor[TipoReceita],Entrada!$P14) -> 0 | Z14: =SUMIFS(Tab_Uderor[R$],Tab_Uderor[Competencia],Entrada!Z$7,Tab_Uderor[TipoReceita],Entrada!$P14) -> 0 | AA14: =SUMIFS(Tab_Uderor[R$],Tab_Uderor[Competencia],Entrada!AA$7,Tab_Uderor[TipoReceita],Entrada!$P14) -> 0 | AB14: =SUMIFS(Tab_Uderor[R$],Tab_Uderor[Competencia],Entrada!AB$7,Tab_Uderor[TipoReceita],Entrada!$P14) -> 0 | AC14: =SUMIFS(Tab_Uderor[R$],Tab_Uderor[Competencia],Entrada!AC$7,Tab_Uderor[TipoReceita],Entrada!$P14) -> 0 | AD14: =SUMIFS(Tab_Uderor[R$],Tab_Uderor[Competencia],Entrada!AD$7,Tab_Uderor[TipoReceita],Entrada!$P14) -> 0 | AE14: =SUMIFS(Tab_Uderor[R$],Tab_Uderor[Competencia],Entrada!AE$7,Tab_Uderor[TipoReceita],Entrada!$P14) -> 0 | AF14: =SUMIFS(Tab_Uderor[R$],Tab_Uderor[Competencia],Entrada!AF$7,Tab_Uderor[TipoReceita],Entrada!$P14) -> 0 | AG14: =SUMIFS(Tab_Uderor[R$],Tab_Uderor[Competencia],Entrada!AG$7,Tab_Uderor[TipoReceita],Entrada!$P14) -> 0 | AH14: =SUMIFS(Tab_Uderor[R$],Tab_Uderor[Competencia],Entrada!AH$7,Tab_Uderor[TipoReceita],Entrada!$P14) -> 0 | AI14: =SUMIFS(Tab_Uderor[R$],Tab_Uderor[Competencia],Entrada!AI$7,Tab_Uderor[TipoReceita],Entrada!$P14) -> 0 | AJ14: =SUMIFS(Tab_Uderor[R$],Tab_Uderor[Competencia],Entrada!AJ$7,Tab_Uderor[TipoReceita],Entrada!$P14) -> 0 | AK14: =SUMIFS(Tab_Uderor[R$],Tab_Uderor[Competencia],Entrada!AK$7,Tab_Uderor[TipoReceita],Entrada!$P14) -> 0 | AL14: =SUMIFS(Tab_Uderor[R$],Tab_Uderor[Competencia],Entrada!AL$7,Tab_Uderor[TipoReceita],Entrada!$P14) -> 0 | AM14: =SUMIFS(Tab_Uderor[R$],Tab_Uderor[Competencia],Entrada!AM$7,Tab_Uderor[TipoReceita],Entrada!$P14) -> 0 | AN14: =SUMIFS(Tab_Uderor[R$],Tab_Uderor[Competencia],Entrada!AN$7,Tab_Uderor[TipoReceita],Entrada!$P14) -> 0 | AO14: =SUMIFS(Tab_Uderor[R$],Tab_Uderor[Competencia],Entrada!AO$7,Tab_Uderor[TipoReceita],Entrada!$P14) -> 0 | AP14: =SUMIFS(Tab_Uderor[R$],Tab_Uderor[Competencia],Entrada!AP$7,Tab_Uderor[TipoReceita],Entrada!$P14) -> 0 | AQ14: =SUMIFS(Tab_Uderor[R$],Tab_Uderor[Competencia],Entrada!AQ$7,Tab_Uderor[TipoReceita],Entrada!$P14) -> 0 | AR14: =SUMIFS(Tab_Uderor[R$],Tab_Uderor[Competencia],Entrada!AR$7,Tab_Uderor[TipoReceita],Entrada!$P14) -> 0 | AS14: =SUMIFS(Tab_Uderor[R$],Tab_Uderor[Competencia],Entrada!AS$7,Tab_Uderor[TipoReceita],Entrada!$P14) -> 0 | AT14: =SUMIFS(Tab_Uderor[R$],Tab_Uderor[Competencia],Entrada!AT$7,Tab_Uderor[TipoReceita],Entrada!$P14) -> 0 | AU14: =SUMIFS(Tab_Uderor[R$],Tab_Uderor[Competencia],Entrada!AU$7,Tab_Uderor[TipoReceita],Entrada!$P14) -> 0 | AV14: =SUMIFS(Tab_Uderor[R$],Tab_Uderor[Competencia],Entrada!AV$7,Tab_Uderor[TipoReceita],Entrada!$P14) -> 0 | AW14: =SUMIFS(Tab_Uderor[R$],Tab_Uderor[Competencia],Entrada!AW$7,Tab_Uderor[TipoReceita],Entrada!$P14) -> 0 | AX14: =SUMIFS(Tab_Uderor[R$],Tab_Uderor[Competencia],Entrada!AX$7,Tab_Uderor[TipoReceita],Entrada!$P14) -> 0 | AY14: =SUMIFS(Tab_Uderor[R$],Tab_Uderor[Competencia],Entrada!AY$7,Tab_Uderor[TipoReceita],Entrada!$P14) -> 0 | AZ14: =SUMIFS(Tab_Uderor[R$],Tab_Uderor[Competencia],Entrada!AZ$7,Tab_Uderor[TipoReceita],Entrada!$P14) -> 0
F15: (9) Valor da Base de Remuneração (VBR) | G15: =G13-G14 ->  | J15: BMP - 610530599; 610550599; 610532599; 610552599 | K15: Outros | L15: =SUMIFS(Tab_RIT_BMP[SALDO],Tab_RIT_BMP[CONTA],610530599,Tab_RIT_BMP[ANO],$L$7)+SUMIFS(Tab_RIT_BMP[SALDO],Tab_RIT_BMP[CONTA],610550599,Tab_RIT_BMP[ANO],$L$7)+ SUMIFS(Tab_RIT_BMP[SALDO],Tab_RIT_BMP[CONTA],610532599,Tab_RIT_BMP[ANO],$L$7)+SUMIFS(Tab_RIT_BMP[SALDO],Tab_RIT_BMP[CONTA],610552599,Tab_RIT_BMP[ANO],$L$7) -> 0 | M15: =SUMIFS(Tab_RIT_BMP[SALDO],Tab_RIT_BMP[CONTA],610530599,Tab_RIT_BMP[ANO],$M$7)+SUMIFS(Tab_RIT_BMP[SALDO],Tab_RIT_BMP[CONTA],610550599,Tab_RIT_BMP[ANO],$M$7)+ SUMIFS(Tab_RIT_BMP[SALDO],Tab_RIT_BMP[CONTA],610532599,Tab_RIT_BMP[ANO],$M$7)+SUMIFS(Tab_RIT_BMP[SALDO],Tab_RIT_BMP[CONTA],610552599,Tab_RIT_BMP[ANO],$M$7) -> 0 | P15: Operacionalização de serviço de créditos tributários | Q15: =SUMIFS(Tab_Uderor[R$],Tab_Uderor[Competencia],Entrada!Q$7,Tab_Uderor[TipoReceita],Entrada!$P15) -> 0 | R15: =SUMIFS(Tab_Uderor[R$],Tab_Uderor[Competencia],Entrada!R$7,Tab_Uderor[TipoReceita],Entrada!$P15) -> 0 | S15: =SUMIFS(Tab_Uderor[R$],Tab_Uderor[Competencia],Entrada!S$7,Tab_Uderor[TipoReceita],Entrada!$P15) -> 0 | T15: =SUMIFS(Tab_Uderor[R$],Tab_Uderor[Competencia],Entrada!T$7,Tab_Uderor[TipoReceita],Entrada!$P15) -> 0 | U15: =SUMIFS(Tab_Uderor[R$],Tab_Uderor[Competencia],Entrada!U$7,Tab_Uderor[TipoReceita],Entrada!$P15) -> 0 | V15: =SUMIFS(Tab_Uderor[R$],Tab_Uderor[Competencia],Entrada!V$7,Tab_Uderor[TipoReceita],Entrada!$P15) -> 0 | W15: =SUMIFS(Tab_Uderor[R$],Tab_Uderor[Competencia],Entrada!W$7,Tab_Uderor[TipoReceita],Entrada!$P15) -> 0 | X15: =SUMIFS(Tab_Uderor[R$],Tab_Uderor[Competencia],Entrada!X$7,Tab_Uderor[TipoReceita],Entrada!$P15) -> 0 | Y15: =SUMIFS(Tab_Uderor[R$],Tab_Uderor[Competencia],Entrada!Y$7,Tab_Uderor[TipoReceita],Entrada!$P15) -> 0 | Z15: =SUMIFS(Tab_Uderor[R$],Tab_Uderor[Competencia],Entrada!Z$7,Tab_Uderor[TipoReceita],Entrada!$P15) -> 0 | AA15: =SUMIFS(Tab_Uderor[R$],Tab_Uderor[Competencia],Entrada!AA$7,Tab_Uderor[TipoReceita],Entrada!$P15) -> 0 | AB15: =SUMIFS(Tab_Uderor[R$],Tab_Uderor[Competencia],Entrada!AB$7,Tab_Uderor[TipoReceita],Entrada!$P15) -> 0 | AC15: =SUMIFS(Tab_Uderor[R$],Tab_Uderor[Competencia],Entrada!AC$7,Tab_Uderor[TipoReceita],Entrada!$P15) -> 0 | AD15: =SUMIFS(Tab_Uderor[R$],Tab_Uderor[Competencia],Entrada!AD$7,Tab_Uderor[TipoReceita],Entrada!$P15) -> 0 | AE15: =SUMIFS(Tab_Uderor[R$],Tab_Uderor[Competencia],Entrada!AE$7,Tab_Uderor[TipoReceita],Entrada!$P15) -> 0 | AF15: =SUMIFS(Tab_Uderor[R$],Tab_Uderor[Competencia],Entrada!AF$7,Tab_Uderor[TipoReceita],Entrada!$P15) -> 0 | AG15: =SUMIFS(Tab_Uderor[R$],Tab_Uderor[Competencia],Entrada!AG$7,Tab_Uderor[TipoReceita],Entrada!$P15) -> 0 | AH15: =SUMIFS(Tab_Uderor[R$],Tab_Uderor[Competencia],Entrada!AH$7,Tab_Uderor[TipoReceita],Entrada!$P15) -> 0 | AI15: =SUMIFS(Tab_Uderor[R$],Tab_Uderor[Competencia],Entrada!AI$7,Tab_Uderor[TipoReceita],Entrada!$P15) -> 0 | AJ15: =SUMIFS(Tab_Uderor[R$],Tab_Uderor[Competencia],Entrada!AJ$7,Tab_Uderor[TipoReceita],Entrada!$P15) -> 0 | AK15: =SUMIFS(Tab_Uderor[R$],Tab_Uderor[Competencia],Entrada!AK$7,Tab_Uderor[TipoReceita],Entrada!$P15) -> 0 | AL15: =SUMIFS(Tab_Uderor[R$],Tab_Uderor[Competencia],Entrada!AL$7,Tab_Uderor[TipoReceita],Entrada!$P15) -> 0 | AM15: =SUMIFS(Tab_Uderor[R$],Tab_Uderor[Competencia],Entrada!AM$7,Tab_Uderor[TipoReceita],Entrada!$P15) -> 0 | AN15: =SUMIFS(Tab_Uderor[R$],Tab_Uderor[Competencia],Entrada!AN$7,Tab_Uderor[TipoReceita],Entrada!$P15) -> 0 | AO15: =SUMIFS(Tab_Uderor[R$],Tab_Uderor[Competencia],Entrada!AO$7,Tab_Uderor[TipoReceita],Entrada!$P15) -> 0 | AP15: =SUMIFS(Tab_Uderor[R$],Tab_Uderor[Competencia],Entrada!AP$7,Tab_Uderor[TipoReceita],Entrada!$P15) -> 0 | AQ15: =SUMIFS(Tab_Uderor[R$],Tab_Uderor[Competencia],Entrada!AQ$7,Tab_Uderor[TipoReceita],Entrada!$P15) -> 0 | AR15: =SUMIFS(Tab_Uderor[R$],Tab_Uderor[Competencia],Entrada!AR$7,Tab_Uderor[TipoReceita],Entrada!$P15) -> 0 | AS15: =SUMIFS(Tab_Uderor[R$],Tab_Uderor[Competencia],Entrada!AS$7,Tab_Uderor[TipoReceita],Entrada!$P15) -> 0 | AT15: =SUMIFS(Tab_Uderor[R$],Tab_Uderor[Competencia],Entrada!AT$7,Tab_Uderor[TipoReceita],Entrada!$P15) -> 0 | AU15: =SUMIFS(Tab_Uderor[R$],Tab_Uderor[Competencia],Entrada!AU$7,Tab_Uderor[TipoReceita],Entrada!$P15) -> 0 | AV15: =SUMIFS(Tab_Uderor[R$],Tab_Uderor[Competencia],Entrada!AV$7,Tab_Uderor[TipoReceita],Entrada!$P15) -> 0 | AW15: =SUMIFS(Tab_Uderor[R$],Tab_Uderor[Competencia],Entrada!AW$7,Tab_Uderor[TipoReceita],Entrada!$P15) -> 0 | AX15: =SUMIFS(Tab_Uderor[R$],Tab_Uderor[Competencia],Entrada!AX$7,Tab_Uderor[TipoReceita],Entrada!$P15) -> 0 | AY15: =SUMIFS(Tab_Uderor[R$],Tab_Uderor[Competencia],Entrada!AY$7,Tab_Uderor[TipoReceita],Entrada!$P15) -> 0 | AZ15: =SUMIFS(Tab_Uderor[R$],Tab_Uderor[Competencia],Entrada!AZ$7,Tab_Uderor[TipoReceita],Entrada!$P15) -> 0
F16: (10) Almoxarifado em Operação | G16: =G82*VLOOKUP(DATE(YEAR(CAPA!$C$10),MONTH(CAPA!$C$10)-1,1),Índices!$B$135:$D$638,3,0)/VLOOKUP(DATE(YEAR($G$72),MONTH($G$72)-1,1),Índices!$B$135:$D$638,3,0) ->  | J16: BMP - 610530510; 610550510; 610532510; 610552510 | K16: (-) Créditos de Tributos Recuperáveis | L16: =SUMIFS(Tab_RIT_BMP[SALDO],Tab_RIT_BMP[CONTA],610530510,Tab_RIT_BMP[ANO],$L$7)+SUMIFS(Tab_RIT_BMP[SALDO],Tab_RIT_BMP[CONTA],610550510,Tab_RIT_BMP[ANO],$L$7)+ SUMIFS(Tab_RIT_BMP[SALDO],Tab_RIT_BMP[CONTA],610532510,Tab_RIT_BMP[ANO],$L$7)+SUMIFS(Tab_RIT_BMP[SALDO],Tab_RIT_BMP[CONTA],610552510,Tab_RIT_BMP[ANO],$L$7) -> 0 | M16: =SUMIFS(Tab_RIT_BMP[SALDO],Tab_RIT_BMP[CONTA],610530510,Tab_RIT_BMP[ANO],$M$7)+SUMIFS(Tab_RIT_BMP[SALDO],Tab_RIT_BMP[CONTA],610550510,Tab_RIT_BMP[ANO],$M$7)+ SUMIFS(Tab_RIT_BMP[SALDO],Tab_RIT_BMP[CONTA],610532510,Tab_RIT_BMP[ANO],$M$7)+SUMIFS(Tab_RIT_BMP[SALDO],Tab_RIT_BMP[CONTA],610552510,Tab_RIT_BMP[ANO],$M$7) -> 0 | P16: Elaboração de projeto, construção, operação, manutenção ou reforma de:
F17: (11) Ativo Diferido | G17: =G83*VLOOKUP(DATE(YEAR(CAPA!$C$10),MONTH(CAPA!$C$10)-1,1),Índices!$B$135:$D$638,3,0)/VLOOKUP(DATE(YEAR($G$72),MONTH($G$72)-1,1),Índices!$B$135:$D$638,3,0) ->  | J17: BMP - 6105306; 6105506; 6105326; 6105526 | K17: Administradores | L17: =SUMIFS(Tab_RIT_BMP[SALDO],Tab_RIT_BMP[CONTA],6105306,Tab_RIT_BMP[ANO],$L$7)+SUMIFS(Tab_RIT_BMP[SALDO],Tab_RIT_BMP[CONTA],6105506,Tab_RIT_BMP[ANO],$L$7)+ SUMIFS(Tab_RIT_BMP[SALDO],Tab_RIT_BMP[CONTA],6105326,Tab_RIT_BMP[ANO],$L$7)+SUMIFS(Tab_RIT_BMP[SALDO],Tab_RIT_BMP[CONTA],6105526,Tab_RIT_BMP[ANO],$L$7) -> 0 | M17: =SUMIFS(Tab_RIT_BMP[SALDO],Tab_RIT_BMP[CONTA],6105306,Tab_RIT_BMP[ANO],$M$7)+SUMIFS(Tab_RIT_BMP[SALDO],Tab_RIT_BMP[CONTA],6105506,Tab_RIT_BMP[ANO],$M$7)+ SUMIFS(Tab_RIT_BMP[SALDO],Tab_RIT_BMP[CONTA],6105326,Tab_RIT_BMP[ANO],$M$7)+SUMIFS(Tab_RIT_BMP[SALDO],Tab_RIT_BMP[CONTA],6105526,Tab_RIT_BMP[ANO],$M$7) -> 0 | P17: (1) redes de distribuição de energia elétrica destinadas à regularização fundiária de interesse específico e ao atendimento dos empreendimentos de múltiplas unidades consumidoras; | Q17: =SUMIFS(Tab_Uderor[R$],Tab_Uderor[Competencia],Entrada!Q$7,Tab_Uderor[TipoReceita],Entrada!$P17) -> 0 | R17: =SUMIFS(Tab_Uderor[R$],Tab_Uderor[Competencia],Entrada!R$7,Tab_Uderor[TipoReceita],Entrada!$P17) -> 0 | S17: =SUMIFS(Tab_Uderor[R$],Tab_Uderor[Competencia],Entrada!S$7,Tab_Uderor[TipoReceita],Entrada!$P17) -> 0 | T17: =SUMIFS(Tab_Uderor[R$],Tab_Uderor[Competencia],Entrada!T$7,Tab_Uderor[TipoReceita],Entrada!$P17) -> 0 | U17: =SUMIFS(Tab_Uderor[R$],Tab_Uderor[Competencia],Entrada!U$7,Tab_Uderor[TipoReceita],Entrada!$P17) -> 0 | V17: =SUMIFS(Tab_Uderor[R$],Tab_Uderor[Competencia],Entrada!V$7,Tab_Uderor[TipoReceita],Entrada!$P17) -> 0 | W17: =SUMIFS(Tab_Uderor[R$],Tab_Uderor[Competencia],Entrada!W$7,Tab_Uderor[TipoReceita],Entrada!$P17) -> 0 | X17: =SUMIFS(Tab_Uderor[R$],Tab_Uderor[Competencia],Entrada!X$7,Tab_Uderor[TipoReceita],Entrada!$P17) -> 0 | Y17: =SUMIFS(Tab_Uderor[R$],Tab_Uderor[Competencia],Entrada!Y$7,Tab_Uderor[TipoReceita],Entrada!$P17) -> 0 | Z17: =SUMIFS(Tab_Uderor[R$],Tab_Uderor[Competencia],Entrada!Z$7,Tab_Uderor[TipoReceita],Entrada!$P17) -> 0 | AA17: =SUMIFS(Tab_Uderor[R$],Tab_Uderor[Competencia],Entrada!AA$7,Tab_Uderor[TipoReceita],Entrada!$P17) -> 0 | AB17: =SUMIFS(Tab_Uderor[R$],Tab_Uderor[Competencia],Entrada!AB$7,Tab_Uderor[TipoReceita],Entrada!$P17) -> 0 | AC17: =SUMIFS(Tab_Uderor[R$],Tab_Uderor[Competencia],Entrada!AC$7,Tab_Uderor[TipoReceita],Entrada!$P17) -> 0 | AD17: =SUMIFS(Tab_Uderor[R$],Tab_Uderor[Competencia],Entrada!AD$7,Tab_Uderor[TipoReceita],Entrada!$P17) -> 0 | AE17: =SUMIFS(Tab_Uderor[R$],Tab_Uderor[Competencia],Entrada!AE$7,Tab_Uderor[TipoReceita],Entrada!$P17) -> 0 | AF17: =SUMIFS(Tab_Uderor[R$],Tab_Uderor[Competencia],Entrada!AF$7,Tab_Uderor[TipoReceita],Entrada!$P17) -> 0 | AG17: =SUMIFS(Tab_Uderor[R$],Tab_Uderor[Competencia],Entrada!AG$7,Tab_Uderor[TipoReceita],Entrada!$P17) -> 0 | AH17: =SUMIFS(Tab_Uderor[R$],Tab_Uderor[Competencia],Entrada!AH$7,Tab_Uderor[TipoReceita],Entrada!$P17) -> 0 | AI17: =SUMIFS(Tab_Uderor[R$],Tab_Uderor[Competencia],Entrada!AI$7,Tab_Uderor[TipoReceita],Entrada!$P17) -> 0 | AJ17: =SUMIFS(Tab_Uderor[R$],Tab_Uderor[Competencia],Entrada!AJ$7,Tab_Uderor[TipoReceita],Entrada!$P17) -> 0 | AK17: =SUMIFS(Tab_Uderor[R$],Tab_Uderor[Competencia],Entrada!AK$7,Tab_Uderor[TipoReceita],Entrada!$P17) -> 0 | AL17: =SUMIFS(Tab_Uderor[R$],Tab_Uderor[Competencia],Entrada!AL$7,Tab_Uderor[TipoReceita],Entrada!$P17) -> 0 | AM17: =SUMIFS(Tab_Uderor[R$],Tab_Uderor[Competencia],Entrada!AM$7,Tab_Uderor[TipoReceita],Entrada!$P17) -> 0 | AN17: =SUMIFS(Tab_Uderor[R$],Tab_Uderor[Competencia],Entrada!AN$7,Tab_Uderor[TipoReceita],Entrada!$P17) -> 0 | AO17: =SUMIFS(Tab_Uderor[R$],Tab_Uderor[Competencia],Entrada!AO$7,Tab_Uderor[TipoReceita],Entrada!$P17) -> 0 | AP17: =SUMIFS(Tab_Uderor[R$],Tab_Uderor[Competencia],Entrada!AP$7,Tab_Uderor[TipoReceita],Entrada!$P17) -> 0 | AQ17: =SUMIFS(Tab_Uderor[R$],Tab_Uderor[Competencia],Entrada!AQ$7,Tab_Uderor[TipoReceita],Entrada!$P17) -> 0 | AR17: =SUMIFS(Tab_Uderor[R$],Tab_Uderor[Competencia],Entrada!AR$7,Tab_Uderor[TipoReceita],Entrada!$P17) -> 0 | AS17: =SUMIFS(Tab_Uderor[R$],Tab_Uderor[Competencia],Entrada!AS$7,Tab_Uderor[TipoReceita],Entrada!$P17) -> 0 | AT17: =SUMIFS(Tab_Uderor[R$],Tab_Uderor[Competencia],Entrada!AT$7,Tab_Uderor[TipoReceita],Entrada!$P17) -> 0 | AU17: =SUMIFS(Tab_Uderor[R$],Tab_Uderor[Competencia],Entrada!AU$7,Tab_Uderor[TipoReceita],Entrada!$P17) -> 0 | AV17: =SUMIFS(Tab_Uderor[R$],Tab_Uderor[Competencia],Entrada!AV$7,Tab_Uderor[TipoReceita],Entrada!$P17) -> 0 | AW17: =SUMIFS(Tab_Uderor[R$],Tab_Uderor[Competencia],Entrada!AW$7,Tab_Uderor[TipoReceita],Entrada!$P17) -> 0 | AX17: =SUMIFS(Tab_Uderor[R$],Tab_Uderor[Competencia],Entrada!AX$7,Tab_Uderor[TipoReceita],Entrada!$P17) -> 0 | AY17: =SUMIFS(Tab_Uderor[R$],Tab_Uderor[Competencia],Entrada!AY$7,Tab_Uderor[TipoReceita],Entrada!$P17) -> 0 | AZ17: =SUMIFS(Tab_Uderor[R$],Tab_Uderor[Competencia],Entrada!AZ$7,Tab_Uderor[TipoReceita],Entrada!$P17) -> 0
F18: (12) Obrigações Especiais Líquida | G18: =G84*VLOOKUP(DATE(YEAR(CAPA!$C$10),MONTH(CAPA!$C$10)-1,1),Índices!$B$135:$D$638,3,0)/VLOOKUP(DATE(YEAR($G$72),MONTH($G$72)-1,1),Índices!$B$135:$D$638,3,0) ->  | K18: Subtotal | L18: =SUM(L9:L17) -> 316692669.3 | M18: =SUM(M9:M17) -> 0 | P18: (2) redes de energia elétrica destinadas ao acesso dos sistemas de distribuição ou transmissão; | Q18: =SUMIFS(Tab_Uderor[R$],Tab_Uderor[Competencia],Entrada!Q$7,Tab_Uderor[TipoReceita],Entrada!$P18) -> 0 | R18: =SUMIFS(Tab_Uderor[R$],Tab_Uderor[Competencia],Entrada!R$7,Tab_Uderor[TipoReceita],Entrada!$P18) -> 0 | S18: =SUMIFS(Tab_Uderor[R$],Tab_Uderor[Competencia],Entrada!S$7,Tab_Uderor[TipoReceita],Entrada!$P18) -> 0 | T18: =SUMIFS(Tab_Uderor[R$],Tab_Uderor[Competencia],Entrada!T$7,Tab_Uderor[TipoReceita],Entrada!$P18) -> 0 | U18: =SUMIFS(Tab_Uderor[R$],Tab_Uderor[Competencia],Entrada!U$7,Tab_Uderor[TipoReceita],Entrada!$P18) -> 0 | V18: =SUMIFS(Tab_Uderor[R$],Tab_Uderor[Competencia],Entrada!V$7,Tab_Uderor[TipoReceita],Entrada!$P18) -> 0 | W18: =SUMIFS(Tab_Uderor[R$],Tab_Uderor[Competencia],Entrada!W$7,Tab_Uderor[TipoReceita],Entrada!$P18) -> 0 | X18: =SUMIFS(Tab_Uderor[R$],Tab_Uderor[Competencia],Entrada!X$7,Tab_Uderor[TipoReceita],Entrada!$P18) -> 0 | Y18: =SUMIFS(Tab_Uderor[R$],Tab_Uderor[Competencia],Entrada!Y$7,Tab_Uderor[TipoReceita],Entrada!$P18) -> 0 | Z18: =SUMIFS(Tab_Uderor[R$],Tab_Uderor[Competencia],Entrada!Z$7,Tab_Uderor[TipoReceita],Entrada!$P18) -> 0 | AA18: =SUMIFS(Tab_Uderor[R$],Tab_Uderor[Competencia],Entrada!AA$7,Tab_Uderor[TipoReceita],Entrada!$P18) -> 0 | AB18: =SUMIFS(Tab_Uderor[R$],Tab_Uderor[Competencia],Entrada!AB$7,Tab_Uderor[TipoReceita],Entrada!$P18) -> 0 | AC18: =SUMIFS(Tab_Uderor[R$],Tab_Uderor[Competencia],Entrada!AC$7,Tab_Uderor[TipoReceita],Entrada!$P18) -> 0 | AD18: =SUMIFS(Tab_Uderor[R$],Tab_Uderor[Competencia],Entrada!AD$7,Tab_Uderor[TipoReceita],Entrada!$P18) -> 0 | AE18: =SUMIFS(Tab_Uderor[R$],Tab_Uderor[Competencia],Entrada!AE$7,Tab_Uderor[TipoReceita],Entrada!$P18) -> 0 | AF18: =SUMIFS(Tab_Uderor[R$],Tab_Uderor[Competencia],Entrada!AF$7,Tab_Uderor[TipoReceita],Entrada!$P18) -> 0 | AG18: =SUMIFS(Tab_Uderor[R$],Tab_Uderor[Competencia],Entrada!AG$7,Tab_Uderor[TipoReceita],Entrada!$P18) -> 0 | AH18: =SUMIFS(Tab_Uderor[R$],Tab_Uderor[Competencia],Entrada!AH$7,Tab_Uderor[TipoReceita],Entrada!$P18) -> 0 | AI18: =SUMIFS(Tab_Uderor[R$],Tab_Uderor[Competencia],Entrada!AI$7,Tab_Uderor[TipoReceita],Entrada!$P18) -> 0 | AJ18: =SUMIFS(Tab_Uderor[R$],Tab_Uderor[Competencia],Entrada!AJ$7,Tab_Uderor[TipoReceita],Entrada!$P18) -> 0 | AK18: =SUMIFS(Tab_Uderor[R$],Tab_Uderor[Competencia],Entrada!AK$7,Tab_Uderor[TipoReceita],Entrada!$P18) -> 0 | AL18: =SUMIFS(Tab_Uderor[R$],Tab_Uderor[Competencia],Entrada!AL$7,Tab_Uderor[TipoReceita],Entrada!$P18) -> 0 | AM18: =SUMIFS(Tab_Uderor[R$],Tab_Uderor[Competencia],Entrada!AM$7,Tab_Uderor[TipoReceita],Entrada!$P18) -> 0 | AN18: =SUMIFS(Tab_Uderor[R$],Tab_Uderor[Competencia],Entrada!AN$7,Tab_Uderor[TipoReceita],Entrada!$P18) -> 0 | AO18: =SUMIFS(Tab_Uderor[R$],Tab_Uderor[Competencia],Entrada!AO$7,Tab_Uderor[TipoReceita],Entrada!$P18) -> 0 | AP18: =SUMIFS(Tab_Uderor[R$],Tab_Uderor[Competencia],Entrada!AP$7,Tab_Uderor[TipoReceita],Entrada!$P18) -> 0 | AQ18: =SUMIFS(Tab_Uderor[R$],Tab_Uderor[Competencia],Entrada!AQ$7,Tab_Uderor[TipoReceita],Entrada!$P18) -> 0 | AR18: =SUMIFS(Tab_Uderor[R$],Tab_Uderor[Competencia],Entrada!AR$7,Tab_Uderor[TipoReceita],Entrada!$P18) -> 0 | AS18: =SUMIFS(Tab_Uderor[R$],Tab_Uderor[Competencia],Entrada!AS$7,Tab_Uderor[TipoReceita],Entrada!$P18) -> 0 | AT18: =SUMIFS(Tab_Uderor[R$],Tab_Uderor[Competencia],Entrada!AT$7,Tab_Uderor[TipoReceita],Entrada!$P18) -> 0 | AU18: =SUMIFS(Tab_Uderor[R$],Tab_Uderor[Competencia],Entrada!AU$7,Tab_Uderor[TipoReceita],Entrada!$P18) -> 0 | AV18: =SUMIFS(Tab_Uderor[R$],Tab_Uderor[Competencia],Entrada!AV$7,Tab_Uderor[TipoReceita],Entrada!$P18) -> 0 | AW18: =SUMIFS(Tab_Uderor[R$],Tab_Uderor[Competencia],Entrada!AW$7,Tab_Uderor[TipoReceita],Entrada!$P18) -> 0 | AX18: =SUMIFS(Tab_Uderor[R$],Tab_Uderor[Competencia],Entrada!AX$7,Tab_Uderor[TipoReceita],Entrada!$P18) -> 0 | AY18: =SUMIFS(Tab_Uderor[R$],Tab_Uderor[Competencia],Entrada!AY$7,Tab_Uderor[TipoReceita],Entrada!$P18) -> 0 | AZ18: =SUMIFS(Tab_Uderor[R$],Tab_Uderor[Competencia],Entrada!AZ$7,Tab_Uderor[TipoReceita],Entrada!$P18) -> 0
F19: (13) Terrenos e Servidões | G19: =G85*VLOOKUP(DATE(YEAR(CAPA!$C$10),MONTH(CAPA!$C$10)-1,1),Índices!$B$135:$D$638,3,0)/VLOOKUP(DATE(YEAR($G$72),MONTH($G$72)-1,1),Índices!$B$135:$D$638,3,0) ->  | J19: CONTA MATERIAIS | P19: (3) subestações de energia; | Q19: =SUMIFS(Tab_Uderor[R$],Tab_Uderor[Competencia],Entrada!Q$7,Tab_Uderor[TipoReceita],Entrada!$P19) -> 0 | R19: =SUMIFS(Tab_Uderor[R$],Tab_Uderor[Competencia],Entrada!R$7,Tab_Uderor[TipoReceita],Entrada!$P19) -> 0 | S19: =SUMIFS(Tab_Uderor[R$],Tab_Uderor[Competencia],Entrada!S$7,Tab_Uderor[TipoReceita],Entrada!$P19) -> 0 | T19: =SUMIFS(Tab_Uderor[R$],Tab_Uderor[Competencia],Entrada!T$7,Tab_Uderor[TipoReceita],Entrada!$P19) -> 0 | U19: =SUMIFS(Tab_Uderor[R$],Tab_Uderor[Competencia],Entrada!U$7,Tab_Uderor[TipoReceita],Entrada!$P19) -> 0 | V19: =SUMIFS(Tab_Uderor[R$],Tab_Uderor[Competencia],Entrada!V$7,Tab_Uderor[TipoReceita],Entrada!$P19) -> 0 | W19: =SUMIFS(Tab_Uderor[R$],Tab_Uderor[Competencia],Entrada!W$7,Tab_Uderor[TipoReceita],Entrada!$P19) -> 0 | X19: =SUMIFS(Tab_Uderor[R$],Tab_Uderor[Competencia],Entrada!X$7,Tab_Uderor[TipoReceita],Entrada!$P19) -> 0 | Y19: =SUMIFS(Tab_Uderor[R$],Tab_Uderor[Competencia],Entrada!Y$7,Tab_Uderor[TipoReceita],Entrada!$P19) -> 0 | Z19: =SUMIFS(Tab_Uderor[R$],Tab_Uderor[Competencia],Entrada!Z$7,Tab_Uderor[TipoReceita],Entrada!$P19) -> 0 | AA19: =SUMIFS(Tab_Uderor[R$],Tab_Uderor[Competencia],Entrada!AA$7,Tab_Uderor[TipoReceita],Entrada!$P19) -> 0 | AB19: =SUMIFS(Tab_Uderor[R$],Tab_Uderor[Competencia],Entrada!AB$7,Tab_Uderor[TipoReceita],Entrada!$P19) -> 0 | AC19: =SUMIFS(Tab_Uderor[R$],Tab_Uderor[Competencia],Entrada!AC$7,Tab_Uderor[TipoReceita],Entrada!$P19) -> 0 | AD19: =SUMIFS(Tab_Uderor[R$],Tab_Uderor[Competencia],Entrada!AD$7,Tab_Uderor[TipoReceita],Entrada!$P19) -> 0 | AE19: =SUMIFS(Tab_Uderor[R$],Tab_Uderor[Competencia],Entrada!AE$7,Tab_Uderor[TipoReceita],Entrada!$P19) -> 0 | AF19: =SUMIFS(Tab_Uderor[R$],Tab_Uderor[Competencia],Entrada!AF$7,Tab_Uderor[TipoReceita],Entrada!$P19) -> 0 | AG19: =SUMIFS(Tab_Uderor[R$],Tab_Uderor[Competencia],Entrada!AG$7,Tab_Uderor[TipoReceita],Entrada!$P19) -> 0 | AH19: =SUMIFS(Tab_Uderor[R$],Tab_Uderor[Competencia],Entrada!AH$7,Tab_Uderor[TipoReceita],Entrada!$P19) -> 0 | AI19: =SUMIFS(Tab_Uderor[R$],Tab_Uderor[Competencia],Entrada!AI$7,Tab_Uderor[TipoReceita],Entrada!$P19) -> 0 | AJ19: =SUMIFS(Tab_Uderor[R$],Tab_Uderor[Competencia],Entrada!AJ$7,Tab_Uderor[TipoReceita],Entrada!$P19) -> 0 | AK19: =SUMIFS(Tab_Uderor[R$],Tab_Uderor[Competencia],Entrada!AK$7,Tab_Uderor[TipoReceita],Entrada!$P19) -> 0 | AL19: =SUMIFS(Tab_Uderor[R$],Tab_Uderor[Competencia],Entrada!AL$7,Tab_Uderor[TipoReceita],Entrada!$P19) -> 0 | AM19: =SUMIFS(Tab_Uderor[R$],Tab_Uderor[Competencia],Entrada!AM$7,Tab_Uderor[TipoReceita],Entrada!$P19) -> 0 | AN19: =SUMIFS(Tab_Uderor[R$],Tab_Uderor[Competencia],Entrada!AN$7,Tab_Uderor[TipoReceita],Entrada!$P19) -> 0 | AO19: =SUMIFS(Tab_Uderor[R$],Tab_Uderor[Competencia],Entrada!AO$7,Tab_Uderor[TipoReceita],Entrada!$P19) -> 0 | AP19: =SUMIFS(Tab_Uderor[R$],Tab_Uderor[Competencia],Entrada!AP$7,Tab_Uderor[TipoReceita],Entrada!$P19) -> 0 | AQ19: =SUMIFS(Tab_Uderor[R$],Tab_Uderor[Competencia],Entrada!AQ$7,Tab_Uderor[TipoReceita],Entrada!$P19) -> 0 | AR19: =SUMIFS(Tab_Uderor[R$],Tab_Uderor[Competencia],Entrada!AR$7,Tab_Uderor[TipoReceita],Entrada!$P19) -> 0 | AS19: =SUMIFS(Tab_Uderor[R$],Tab_Uderor[Competencia],Entrada!AS$7,Tab_Uderor[TipoReceita],Entrada!$P19) -> 0 | AT19: =SUMIFS(Tab_Uderor[R$],Tab_Uderor[Competencia],Entrada!AT$7,Tab_Uderor[TipoReceita],Entrada!$P19) -> 0 | AU19: =SUMIFS(Tab_Uderor[R$],Tab_Uderor[Competencia],Entrada!AU$7,Tab_Uderor[TipoReceita],Entrada!$P19) -> 0 | AV19: =SUMIFS(Tab_Uderor[R$],Tab_Uderor[Competencia],Entrada!AV$7,Tab_Uderor[TipoReceita],Entrada!$P19) -> 0 | AW19: =SUMIFS(Tab_Uderor[R$],Tab_Uderor[Competencia],Entrada!AW$7,Tab_Uderor[TipoReceita],Entrada!$P19) -> 0 | AX19: =SUMIFS(Tab_Uderor[R$],Tab_Uderor[Competencia],Entrada!AX$7,Tab_Uderor[TipoReceita],Entrada!$P19) -> 0 | AY19: =SUMIFS(Tab_Uderor[R$],Tab_Uderor[Competencia],Entrada!AY$7,Tab_Uderor[TipoReceita],Entrada!$P19) -> 0 | AZ19: =SUMIFS(Tab_Uderor[R$],Tab_Uderor[Competencia],Entrada!AZ$7,Tab_Uderor[TipoReceita],Entrada!$P19) -> 0
F20: (14) Base de Rem. Líquida Total = (1)-(6)-(8)+(10)+(11)-(12)+(13) | G20: =G15+G16+G17-G18+G19 ->  | J20: BMP - 610530701; 610550701; 610532701; 610552701 | K20: Materiais | L20: =SUMIFS(Tab_RIT_BMP[SALDO],Tab_RIT_BMP[CONTA],610530701,Tab_RIT_BMP[ANO],$L$7)+SUMIFS(Tab_RIT_BMP[SALDO],Tab_RIT_BMP[CONTA],610550701,Tab_RIT_BMP[ANO],$L$7)+ SUMIFS(Tab_RIT_BMP[SALDO],Tab_RIT_BMP[CONTA],610532701,Tab_RIT_BMP[ANO],$L$7)+SUMIFS(Tab_RIT_BMP[SALDO],Tab_RIT_BMP[CONTA],610552701,Tab_RIT_BMP[ANO],$L$7) -> 62659883.3 | M20: =SUMIFS(Tab_RIT_BMP[SALDO],Tab_RIT_BMP[CONTA],610530701,Tab_RIT_BMP[ANO],$M$7)+SUMIFS(Tab_RIT_BMP[SALDO],Tab_RIT_BMP[CONTA],610550701,Tab_RIT_BMP[ANO],$M$7)+ SUMIFS(Tab_RIT_BMP[SALDO],Tab_RIT_BMP[CONTA],610532701,Tab_RIT_BMP[ANO],$M$7)+SUMIFS(Tab_RIT_BMP[SALDO],Tab_RIT_BMP[CONTA],610552701,Tab_RIT_BMP[ANO],$M$7) -> 0 | P20: (4) instalações elétricas internas de unidades consumidoras; | Q20: =SUMIFS(Tab_Uderor[R$],Tab_Uderor[Competencia],Entrada!Q$7,Tab_Uderor[TipoReceita],Entrada!$P20) -> 0 | R20: =SUMIFS(Tab_Uderor[R$],Tab_Uderor[Competencia],Entrada!R$7,Tab_Uderor[TipoReceita],Entrada!$P20) -> 0 | S20: =SUMIFS(Tab_Uderor[R$],Tab_Uderor[Competencia],Entrada!S$7,Tab_Uderor[TipoReceita],Entrada!$P20) -> 0 | T20: =SUMIFS(Tab_Uderor[R$],Tab_Uderor[Competencia],Entrada!T$7,Tab_Uderor[TipoReceita],Entrada!$P20) -> 0 | U20: =SUMIFS(Tab_Uderor[R$],Tab_Uderor[Competencia],Entrada!U$7,Tab_Uderor[TipoReceita],Entrada!$P20) -> 0 | V20: =SUMIFS(Tab_Uderor[R$],Tab_Uderor[Competencia],Entrada!V$7,Tab_Uderor[TipoReceita],Entrada!$P20) -> 0 | W20: =SUMIFS(Tab_Uderor[R$],Tab_Uderor[Competencia],Entrada!W$7,Tab_Uderor[TipoReceita],Entrada!$P20) -> 0 | X20: =SUMIFS(Tab_Uderor[R$],Tab_Uderor[Competencia],Entrada!X$7,Tab_Uderor[TipoReceita],Entrada!$P20) -> 0 | Y20: =SUMIFS(Tab_Uderor[R$],Tab_Uderor[Competencia],Entrada!Y$7,Tab_Uderor[TipoReceita],Entrada!$P20) -> 0 | Z20: =SUMIFS(Tab_Uderor[R$],Tab_Uderor[Competencia],Entrada!Z$7,Tab_Uderor[TipoReceita],Entrada!$P20) -> 0 | AA20: =SUMIFS(Tab_Uderor[R$],Tab_Uderor[Competencia],Entrada!AA$7,Tab_Uderor[TipoReceita],Entrada!$P20) -> 0 | AB20: =SUMIFS(Tab_Uderor[R$],Tab_Uderor[Competencia],Entrada!AB$7,Tab_Uderor[TipoReceita],Entrada!$P20) -> 0 | AC20: =SUMIFS(Tab_Uderor[R$],Tab_Uderor[Competencia],Entrada!AC$7,Tab_Uderor[TipoReceita],Entrada!$P20) -> 0 | AD20: =SUMIFS(Tab_Uderor[R$],Tab_Uderor[Competencia],Entrada!AD$7,Tab_Uderor[TipoReceita],Entrada!$P20) -> 0 | AE20: =SUMIFS(Tab_Uderor[R$],Tab_Uderor[Competencia],Entrada!AE$7,Tab_Uderor[TipoReceita],Entrada!$P20) -> 0 | AF20: =SUMIFS(Tab_Uderor[R$],Tab_Uderor[Competencia],Entrada!AF$7,Tab_Uderor[TipoReceita],Entrada!$P20) -> 0 | AG20: =SUMIFS(Tab_Uderor[R$],Tab_Uderor[Competencia],Entrada!AG$7,Tab_Uderor[TipoReceita],Entrada!$P20) -> 0 | AH20: =SUMIFS(Tab_Uderor[R$],Tab_Uderor[Competencia],Entrada!AH$7,Tab_Uderor[TipoReceita],Entrada!$P20) -> 0 | AI20: =SUMIFS(Tab_Uderor[R$],Tab_Uderor[Competencia],Entrada!AI$7,Tab_Uderor[TipoReceita],Entrada!$P20) -> 0 | AJ20: =SUMIFS(Tab_Uderor[R$],Tab_Uderor[Competencia],Entrada!AJ$7,Tab_Uderor[TipoReceita],Entrada!$P20) -> 0 | AK20: =SUMIFS(Tab_Uderor[R$],Tab_Uderor[Competencia],Entrada!AK$7,Tab_Uderor[TipoReceita],Entrada!$P20) -> 0 | AL20: =SUMIFS(Tab_Uderor[R$],Tab_Uderor[Competencia],Entrada!AL$7,Tab_Uderor[TipoReceita],Entrada!$P20) -> 0 | AM20: =SUMIFS(Tab_Uderor[R$],Tab_Uderor[Competencia],Entrada!AM$7,Tab_Uderor[TipoReceita],Entrada!$P20) -> 0 | AN20: =SUMIFS(Tab_Uderor[R$],Tab_Uderor[Competencia],Entrada!AN$7,Tab_Uderor[TipoReceita],Entrada!$P20) -> 0 | AO20: =SUMIFS(Tab_Uderor[R$],Tab_Uderor[Competencia],Entrada!AO$7,Tab_Uderor[TipoReceita],Entrada!$P20) -> 0 | AP20: =SUMIFS(Tab_Uderor[R$],Tab_Uderor[Competencia],Entrada!AP$7,Tab_Uderor[TipoReceita],Entrada!$P20) -> 0 | AQ20: =SUMIFS(Tab_Uderor[R$],Tab_Uderor[Competencia],Entrada!AQ$7,Tab_Uderor[TipoReceita],Entrada!$P20) -> 0 | AR20: =SUMIFS(Tab_Uderor[R$],Tab_Uderor[Competencia],Entrada!AR$7,Tab_Uderor[TipoReceita],Entrada!$P20) -> 0 | AS20: =SUMIFS(Tab_Uderor[R$],Tab_Uderor[Competencia],Entrada!AS$7,Tab_Uderor[TipoReceita],Entrada!$P20) -> 0 | AT20: =SUMIFS(Tab_Uderor[R$],Tab_Uderor[Competencia],Entrada!AT$7,Tab_Uderor[TipoReceita],Entrada!$P20) -> 0 | AU20: =SUMIFS(Tab_Uderor[R$],Tab_Uderor[Competencia],Entrada!AU$7,Tab_Uderor[TipoReceita],Entrada!$P20) -> 0 | AV20: =SUMIFS(Tab_Uderor[R$],Tab_Uderor[Competencia],Entrada!AV$7,Tab_Uderor[TipoReceita],Entrada!$P20) -> 0 | AW20: =SUMIFS(Tab_Uderor[R$],Tab_Uderor[Competencia],Entrada!AW$7,Tab_Uderor[TipoReceita],Entrada!$P20) -> 0 | AX20: =SUMIFS(Tab_Uderor[R$],Tab_Uderor[Competencia],Entrada!AX$7,Tab_Uderor[TipoReceita],Entrada!$P20) -> 0 | AY20: =SUMIFS(Tab_Uderor[R$],Tab_Uderor[Competencia],Entrada!AY$7,Tab_Uderor[TipoReceita],Entrada!$P20) -> 0 | AZ20: =SUMIFS(Tab_Uderor[R$],Tab_Uderor[Competencia],Entrada!AZ$7,Tab_Uderor[TipoReceita],Entrada!$P20) -> 0
